Workbook

Sheet Version Information
A12: Version Number | B12: Notes | C12: Date
A13: 1 | B13: Initial version | C13: 2018-12-12

Sheet Overview and Explanations
B1: Overview
B2: All results recorded in this template will be made publically available on NETL's database exchange web portal ( ). The focus is to characterize the bulk elemental concentration and mineralogy of rare earth elements in coal and coal by-product material during the initial field sampling in order to provide data needed to determine the best path forward. The Attributes tab contains definitions and examples to assist in determining the correct dropdown item(s) to select in both of the Field Samples tabs. The contains step by step information on how to fill out each column within the sample analysis tabs below. In order to maintain the NETL database's integrity, researcher's should do their best to accurately and precisely describe all information about the samples that is publically releasable. Please send all email user questions to or contact your Federal Project Manager.
B3: Coal Basins | E3: Researcher Analytical Technique Notes
E4: ICP-MS | F4: Inductively Coupled Plasma Mass Spectrometry
E5: ICP-OES | F5: Inductively Coupled Plasma Optical Emission Spectrometry
E6: EPA methods 6010, 6020, and 7000 were followed for analysis of samples by ICP-MS and ICP-OES
E7: BDL = Below Detection limit
E8: NETL Digestion Procedure for Bulk Elemental Analysis of Solids
E9: There are many digestion procedures that can be employed for inductively coupled plasma mass spectrometry (ICP-MS) or inductively coupled plasma optical emission spectrometry (ICP-OES) analysis (bulk elemental analysis) of solid coal by-products. One method employed by NETL-RIC is described below. Note that it is also critical for the lab to determine the percent recoveries of the rare earths and other elements from certified reference materials. This serves as a check on the digestion procedure, as well as the analytical procedure. Also note that ICP-OES has inferior detection limits for the rare earths as compared to ICP-MS. In the NETL digestion procedure, solid samples were prepared by mixing pulverized sample with calcined LiBO2 (lithium metaborate) at a ratio of 1:8. Prior to fusion, samples were mixed by stirring with a platinum rod in a 99.95% platinum crucible. The open crucibles were heated to 1100°C for five minutes in a Phoenix microwave muffle furnace (CEM). After 5 minutes, the melt was removed from the oven and allowed to cool to a homogeneous glass. The glass was digested in 5% HNO3 on low heat with stirring. To ensure that the sample glass was completely digested, the platinum crucibles were rinsed 3x with 5% HNO3 and the sample was diluted to a final volume of 100 ml. These samples were further diluted in 2% HNO3 before analysis to determine the optimal balance between internal standard recovery and limit of detection. For solid samples containing significant carbon content, samples were dried and ashed in a Leco Thermogravimetric Analyzer (TGA701) for one hour under nitrogen at 107°C for drying and then for five hours under air at 550°C for ashing. Reference: "Analysis of Rare Earth Elements in Geologic Samples using Inductively Coupled Plasma Mass Spectrometry" Tracy Bank, Elliot Roth, Phillip Tinker, Evan Granite, DOE Topical Report, available on the

Sheet Attributes
D1: Level 1 Attribute | E1: Level 2 Attribute | F1: Level 3 Attribute
D2: Resource Production | E2: Coal Reserve | F2: Coal
D3: Processing | E3: Coal Mining | F3: Clean Coal
D4: Utilization | E4: Coal Separations | F4: Bottom Ash
E5: Feed Coal | F5: Fly Ash
E6: Energy Conversion Processes | F6: Ash
E7: Other | F7: Refuse
F8: Fine Coal By-Product
F9: Coarse Refuse
F10: Disposed Combustion By-Products
F11: Coal Mine Drainage
F12: Acid Mine Drainage
F13: Acid Mine Drainage - Sludge
F14: Aqueous
F15: Other
D17: Level 1 Attributes: Based on the preparation point of collection, the three level 1 attributes refer to the point of recovery in the coal value process chain on the highest trichotomy level.
D18: Resource Production
D19: Data in Resource Production reflect characterization of the REEs in resources as they exist in their natural environment, and materials that are produced during mining operations. These data include core samples, road cuts, outcrops, raw coal grab samples, and aqueous by-products.
D20: Processing
D21: These data reflect REE characterization results for “as received” or run-of mine material from a number of coal preparation plants, in-plant streams, product streams (refuse, fine coal, and clean coal), and aqueous by-products.
D22: Utilization
D23: These data reflect REE characterization results of feed coals as they arrive at the power plant, refuse and coal by-products (fly ash and bottom ash), and aqueous by-products generated at the plant. These materials include grab samples taken at several by-product storage/disposal sites. Samples can include aqueous effluents from processing facilities, material found in ash ponds, coal mine drainage, and runoff from storage piles.
A25: Figure 1. Coal Value Chain Opportunities for REE Recovery. | D25: Level 2 Attributes: Based on the preparation point of collection, level 2 attributes refer to more specific points of recovery in the coal value process chain from Resource Production through Processing and Utilization.
D26: Coal Reserve
D27: Underground and surface coal not yet mined within the United States (e.g., Basin A coal)
D28: Coal Mining
D29: Coal that has been extracted from the earth through production processes (e.g., Mine A - run of mine)
D30: Coal Separations
D31: Coal that has undergone washing, dewatering, crushing, and sieving (and or other classifying steps) resulting in clean coal for utilization and by-products such as slurries, refuse, and out-of-spec sized product (e.g., Mine A - midlings refuse)
D32: Feed Coal
D33: Clean Coal that has been approved for utilization and has been pulverized to plant specs (Power plant A - clean coal pulverized rejects)
D34: Energy Conversion Processes
D35: Coal that has been utilized and converted into energy through the power production process (Power Plant A - Fly Ash)
D36: Other
D37: Coal that does not fall into the above categories
D39: Level 3 Attributes
D40: Self Evident

Sheet Field Samples
A1: Field Site Sampling Material Identification and Characterization
F4: Researcher Field Sampling Data Inputs | AJ4: Primary Elemental Identification Technique | CU4: Secondary Elemental Identification Technique (If Measured) | DO4: XRD, Phase Identification (If measured) | DS4: SEM-EDX (If measured)
D5: Sample Reference # for Analyses on Sample Source | F5: Origin of the Sample and Description | O5: Location of Sampling Site | V5: Proximate Analysis (Wt%) | AA5: Ultimate Analysis (%) | AF5: CHNS Analysis (%) | AJ5: Analysis Description/Method | AM5: Elements (ppm) | BY5: Lanthanides (ppm) | CM5: Other Metals (ppm) | CP5: Actinides (ppm) | CR5: Total REE (ppm) | CS5: Total REE+Y (ppm) | CU5: Analysis Description Method | CX5: Results (ppm)
A6: Sample Reference # (# required to enable calculations) | B6: Sample Type | C6: Description | D6: Furthest Upstream Sample Ref # | E6: Previous Upstream Sample Ref # | F6: Level 1 Attribute | G6: Level 2 Attribute | H6: Level 3 Attribute | I6: Coal Basin | J6: Geological Group | K6: Associated Coal Bed/Zone/Seam | L6: State | M6: County | N6: Site | O6: State2 | P6: County2 | Q6: Site2 | R6: Location2 | S6: Size Fraction Analyzed (µm) | T6: % Moisture, As-Received | U6: %Ash, Dry | V6: Sulfur | W6: Moisture | X6: Volatile Matter | Y6: Ash | Z6: Fixed Carbon | AA6: Carbon | AB6: Hydrogen | AC6: Sulfur | AD6: Oxygen | AE6: Nitrogen | AF6: Carbon2 | AG6: H | AH6: N | AI6: S | AJ6: Digestion Method | AK6: Analytical Technique | AL6: Measurment Basis | AM6: Be 4 | AN6: Na 11 | AO6: Mg 12 | AP6: Al 13 | AQ6: Si 14 | AR6: P 15 | AS6: K 19 | AT6: Ca 20 | AU6: Sc 21 | AV6: Ti 22 | AW6: V 23 | AX6: Cr 24 | AY6: Mn 25 | AZ6: Fe 26 | BA6: Co 27 | BB6: Ni 28 | BC6: Cu 29 | BD6: Zn 30 | BE6: Ga 31 | BF6: Ge 32 | BG6: As 33 | BH6: Se 34 | BI6: Rb 37 | BJ6: Y 39 | BK6: Zr 40 | BL6: Nb 41 | BM6: Mo 42 | BN6: Ag 47 | BO6: Cd 48 | BP6: Sn 50 | BQ6: Sb 51 | BR6: Cs 55 | BS6: Ba 56 | BT6: B | BU6: Bi | BV6: Li | BW6: Re | BX6: Sr | BY6: La 57 | BZ6: Ce 58 | CA6: Pr 59 | CB6: Nd 60 | CC6: Sm 62 | CD6: Eu 63 | CE6: Gd 64 | CF6: Tb 65 | CG6: Dy 66 | CH6: Ho 67 | CI6: Er 68 | CJ6: Tm 69 | CK6: Yb 70 | CL6: Lu 71 | CM6: Hf 72 | CN6: Tl 81 | CO6: Pb 82 | CP6: Th 90 | CQ6: U 92 | CR6: Lanthanides | CS6: Lanthanides+Y | CT6: Notes | CU6: Secondary Analytical Technique | CV6: Secondary Digestion Method | CW6: Measurement Basis2 | CX6: Al3 13 | CY6: Ca4 20 | CZ6: Fe5 26 | DA6: K6 19 | DB6: Mg7 12 | DC6: Na8 11 | DD6: P2 15 | DE6: Ti2 22 | DF6: SiO2* | DG6: Zr 402 | DH6: Sn 502 | DI6: Other6 | DJ6: Other8 | DK6: Other9 | DL6: Other10 | DM6: Other11 | DN6: Notes3 | DO6: Major Phases | DP6: Minor Phases | DQ6: Trace Phases | DR6: Notes2 | DS6: Mineral/particle/crystal | DT6: Size | DU6: Mineral/particle/crystal2 | DV6: Size3 | DW6: Mineral/particle/crystal3 | DX6: Size4 | DY6: Notes4
A7: HCO.AMD.111920.1 | B7: Acid Mine Drainage | C7: AMD sample, Hamilton County Coal | F7: Resource Production | G7: Coal Mining | H7: Acid Mine Drainage | I7: Illinois Basin | J7: N/A | K7: Illinois No.6 Coal Seam | L7: Illinois | M7: Hamilton | N7: NA | O7: Illinois | P7: Hamilton | Q7: NA | R7: Pond | T7: N/A | U7: N/A | AJ7: N/A | AK7: ICP-OES | AL7: N/A | AM7: < 0.085 | AN7: 57.74 | AO7: 179.6 | AP7: 156.58 | AQ7: 4.444 | AR7: 6.984 | AS7: 0.536 | AT7: 234.42 | AU7: 0.13 | AV7: n/a | AW7: 0.024 | AX7: 0.165 | AY7: 21.32 | AZ7: 260.42 | BA7: 0.912 | BB7: 2.66 | BC7: 0.891 | BD7: 5.742 | BE7: < -0.063 | BF7: n/a | BG7: < 0.033 | BH7: 0.357 | BI7: n/a | BJ7: 0.403 | BK7: n/a | BL7: n/a | BM7: n/a | BN7: < -0.007 | BO7: 0.139 | BP7: n/a | BQ7: n/a | BR7: n/a | BS7: 0.003 | BT7: 0.366 | BU7: < 0.058 | BV7: 0.4 | BW7: < 0.038 | BX7: 0.171 | BY7: < 0.034 | BZ7: < 0.183 | CA7: < -0.02 | CB7: 0.222 | CC7: 0.048 | CD7: < -0.044 | CE7: < 0.121 | CF7: < 0.007 | CG7: 0.126 | CH7: < 0.018 | CI7: 0.013 | CJ7: < -0.026 | CK7: 0.037 | CL7: 0.01 | CM7: n/a | CN7: < 0.047 | CO7: 0.231 | CP7: 0.038 | CR7: =SUM(BY7:CL7) -> 0.456 | CS7: =SUM(BJ7,BY7:CL7) -> 0.859
A8: HCO.AMD.111920.2 | B8: Acid Mine Drainage | C8: AMD sample, Hamilton County Coal | F8: Resource Production | G8: Coal Mining | H8: Acid Mine Drainage | I8: Illinois Basin | J8: N/A | K8: Illinois No.6 Coal Seam | L8: Illinois | M8: Hamilton | N8: NA | O8: Illinois | P8: Hamilton | Q8: NA | R8: Pond | T8: N/A | U8: N/A | AJ8: N/A | AK8: ICP-OES | AL8: N/A | AM8: < 0.088 | AN8: 58.52 | AO8: 182.22 | AP8: 160.6 | AQ8: 4.303 | AR8: 7.401 | AS8: 0.518 | AT8: 237.7 | AU8: 0.131 | AV8: n/a | AW8: 0.028 | AX8: 0.168 | AY8: 21.68 | AZ8: 265.6 | BA8: 0.918 | BB8: 2.682 | BC8: 0.899 | BD8: 5.876 | BE8: < -0.045 | BF8: n/a | BG8: < 0.045 | BH8: 0.328 | BI8: n/a | BJ8: 0.413 | BK8: n/a | BL8: n/a | BM8: n/a | BN8: < -0.005 | BO8: 0.14 | BP8: n/a | BQ8: n/a | BR8: n/a | BS8: < 0 | BT8: 0.375 | BU8: < 0.057 | BV8: 0.404 | BW8: < 0.04 | BX8: 0.169 | BY8: < 0.03 | BZ8: < 0.184 | CA8: < -0.019 | CB8: 0.214 | CC8: 0.051 | CD8: < -0.043 | CE8: < 0.123 | CF8: < 0.006 | CG8: 0.126 | CH8: < 0.019 | CI8: 0.012 | CJ8: < -0.025 | CK8: 0.038 | CL8: 0.01 | CM8: n/a | CN8: < 0.044 | CO8: 0.234 | CP8: 0.041 | CR8: =SUM(BY8:CL8) -> 0.451 | CS8: =SUM(BJ8,BY8:CL8) -> 0.864
A9: PLEASANT.VIEW.EAST.POND | B9: Acid Mine Drainage | C9: AMD sample, Pleasant View mine | F9: Resource Production | G9: Coal Mining | H9: Acid Mine Drainage | I9: Illinois Basin | J9: N/A | K9: West Kentucky No.9 Coal Seam | L9: Kentucky | M9: Hopkins | N9: NA | O9: Kentucky | P9: Hopkins | Q9: NA | R9: Pond | T9: N/A | U9: N/A | AJ9: N/A | AK9: ICP-OES | AL9: N/A | AM9: 0.767 | AN9: 0.231 | AO9: 0.921 | AQ9: < 0.015 | AR9: 2.293 | AS9: 4.289 | AT9: < 0 | AU9: n/a | AV9: 0.001 | AW9: < 0 | AX9: 0.055 | AY9: 0.704 | AZ9: < 0.001 | BA9: < 0.002 | BB9: < -0.004 | BC9: < 0.014 | BD9: < -0.004 | BE9: n/a | BF9: < -0.003 | BG9: < -0.015 | BH9: n/a | BI9: < 0 | BJ9: n/a | BK9: n/a | BL9: n/a | BN9: 0.001 | BO9: n/a | BP9: n/a | BQ9: n/a | BR9: 0.031 | BS9: < 0.039 | BT9: < -0.011 | BU9: 0.001 | BV9: < -0.005 | BW9: < 0.006 | BX9: < 0.003 | BY9: < -0.005 | BZ9: < -0.011 | CA9: 0.016 | CB9: < 0.004 | CC9: < 0 | CD9: < -0.001 | CE9: < -0.002 | CF9: < 0.002 | CG9: < -0.003 | CH9: < -0.005 | CI9: < 0 | CJ9: < 0 | CK9: < 0 | CL9: n/a | CM9: < 0.002 | CN9: < -0.014 | CO9: < -0.007 | CP9: < 0.01 | CR9: 0.016 | CS9: 0.016
A10: PLEASANT.VIEW.EFFLUENT.1 | B10: Acid Mine Drainage | C10: AMD sample, Pleasant View mine | F10: Resource Production | G10: Coal Mining | H10: Acid Mine Drainage | I10: Illinois Basin | J10: N/A | K10: West Kentucky No.9 Coal Seam | L10: Kentucky | M10: Hopkins | N10: NA | O10: Kentucky | P10: Hopkins | Q10: NA | R10: Pond | T10: N/A | U10: N/A | AJ10: N/A | AK10: ICP-OES | AL10: N/A | AM10: 6.404 | AN10: 19.008 | AO10: 38.835 | AQ10: < 0.091 | AR10: 5.972 | AS10: 310.18 | AT10: 0.002 | AU10: n/a | AV10: < -0.002 | AW10: 0.014 | AX10: 6.239 | AY10: 83.88 | AZ10: 0.073 | BA10: 0.109 | BB10: < 0.007 | BC10: 0.7 | BD10: < -0.036 | BE10: n/a | BF10: < -0.005 | BG10: 0.112 | BH10: n/a | BI10: 0.054 | BJ10: n/a | BK10: n/a | BL10: n/a | BN10: 0.022 | BO10: n/a | BP10: n/a | BQ10: n/a | BR10: 0.005 | BS10: 0.52 | BT10: < 0.036 | BU10: 0.086 | BV10: < 0.014 | BW10: 0.413 | BX10: < 0.044 | BY10: < 0.123 | BZ10: < -0.02 | CA10: 0.128 | CB10: 0.011 | CC10: < -0.015 | CD10: < 0.05 | CE10: < 0.005 | CF10: 0.013 | CG10: < 0 | CH10: < -0.01 | CI10: < -0.004 | CJ10: 0.009 | CK10: 0.003 | CL10: n/a | CM10: < 0.022 | CN10: 0.02 | CO10: < -0.004 | CP10: 2.222 | CR10: 0.164 | CS10: 0.164
A11: PLEASANT.VIEW.EFFLUENT.2 | B11: Acid Mine Drainage | C11: AMD sample, Pleasant View mine | F11: Resource Production | G11: Coal Mining | H11: Acid Mine Drainage | I11: Illinois Basin | J11: N/A | K11: West Kentucky No.9 Coal Seam | L11: Kentucky | M11: Hopkins | N11: NA | O11: Kentucky | P11: Hopkins | Q11: NA | R11: Pond | T11: N/A | U11: N/A | AJ11: N/A | AK11: ICP-OES | AL11: N/A | AM11: 6.179 | AN11: 18.195 | AO11: 37.646 | AQ11: < 0.089 | AR11: 5.679 | AS11: 315.18 | AT11: 0.001 | AU11: n/a | AV11: < -0.002 | AW11: 0.014 | AX11: 6.021 | AY11: 85.38 | AZ11: 0.068 | BA11: 0.109 | BB11: < 0.006 | BC11: 0.67 | BD11: < -0.037 | BE11: n/a | BF11: < 0.004 | BG11: 0.088 | BH11: n/a | BI11: 0.052 | BJ11: n/a | BK11: n/a | BL11: n/a | BN11: 0.021 | BO11: n/a | BP11: n/a | BQ11: n/a | BR11: 0.004 | BS11: 0.511 | BT11: < 0.024 | BU11: 0.081 | BV11: < 0.01 | BW11: 0.395 | BX11: < 0.047 | BY11: < 0.118 | BZ11: < -0.015 | CA11: 0.12 | CB11: 0.011 | CC11: < -0.015 | CD11: < 0.055 | CE11: < 0.001 | CF11: 0.012 | CG11: < 0 | CH11: < -0.01 | CI11: < -0.003 | CJ11: 0.009 | CK11: 0.003 | CL11: n/a | CM11: < 0.004 | CN11: 0.032 | CO11: < -0.003 | CP11: 2.001 | CR11: 0.155 | CS11: 0.155
A12: PLEASANT.VIEW.NORTH.POND.1 | B12: Acid Mine Drainage | C12: AMD sample, Pleasant View mine | F12: Resource Production | G12: Coal Mining | H12: Acid Mine Drainage | I12: Illinois Basin | J12: N/A | K12: West Kentucky No.9 Coal Seam | L12: Kentucky | M12: Hopkins | N12: NA | O12: Kentucky | P12: Hopkins | Q12: NA | R12: Pond | T12: N/A | U12: N/A | AJ12: N/A | AK12: ICP-OES | AL12: N/A | AM12: 3.074 | AN12: 9.697 | AO12: 24.593 | AQ12: < 0.024 | AR12: 6.898 | AS12: 286.36 | AT12: < -0.001 | AU12: n/a | AV12: < -0.001 | AW12: 0.007 | AX12: 1.84 | AY12: 53.744 | AZ12: 0.015 | BA12: 0.053 | BB12: < -0.004 | BC12: 0.395 | BD12: < -0.02 | BE12: n/a | BF12: < -0.014 | BG12: < 0.034 | BH12: n/a | BI12: 0.022 | BJ12: n/a | BK12: n/a | BL12: n/a | BN12: 0.011 | BO12: n/a | BP12: n/a | BQ12: n/a | BR12: 0.01 | BS12: 0.574 | BT12: < 0.027 | BU12: 0.059 | BV12: < 0.007 | BW12: 0.387 | BX12: < 0.02 | BY12: < 0.045 | BZ12: < -0.016 | CA12: 0.06 | CB12: < 0.001 | CC12: < -0.006 | CD12: < 0.043 | CE12: < -0.007 | CF12: < -0.002 | CG12: < 0 | CH12: < -0.004 | CI12: < -0.001 | CJ12: 0.004 | CK12: 0.001 | CL12: n/a | CM12: < 0.01 | CN12: 0.016 | CO12: < 0.003 | CP12: 1.346 | CR12: 0.065 | CS12: 0.065
A13: PLEASANT.VIEW.NORTH.POND.2 | B13: Acid Mine Drainage | C13: AMD sample, Pleasant View mine | F13: Resource Production | G13: Coal Mining | H13: Acid Mine Drainage | I13: Illinois Basin | J13: N/A | K13: West Kentucky No.9 Coal Seam | L13: Kentucky | M13: Hopkins | N13: NA | O13: Kentucky | P13: Hopkins | Q13: NA | R13: Pond | T13: N/A | U13: N/A | AJ13: N/A | AK13: ICP-OES | AL13: N/A | AM13: 2.643 | AN13: 8.723 | AO13: 29.446 | AQ13: < 0.079 | AR13: 6.832 | AS13: 361.56 | AT13: < 0 | AU13: n/a | AV13: < 0 | AW13: 0.009 | AX13: 1.615 | AY13: 65.88 | AZ13: 0.019 | BA13: 0.062 | BB13: < -0.004 | BC13: 0.515 | BD13: < -0.024 | BE13: n/a | BF13: < -0.011 | BG13: < 0.047 | BH13: n/a | BI13: 0.029 | BJ13: n/a | BK13: n/a | BL13: n/a | BN13: 0.014 | BO13: n/a | BP13: n/a | BQ13: n/a | BR13: 0.002 | BS13: 0.564 | BT13: < 0.038 | BU13: 0.061 | BV13: < 0.008 | BW13: 0.345 | BX13: < 0.027 | BY13: < 0.074 | BZ13: < -0.015 | CA13: 0.078 | CB13: 0.006 | CC13: < -0.011 | CD13: < 0.053 | CE13: < 0 | CF13: < -0.005 | CG13: < 0.001 | CH13: < -0.008 | CI13: < -0.002 | CJ13: 0.005 | CK13: 0.001 | CL13: n/a | CM13: < 0.022 | CN13: 0.011 | CO13: < -0.005 | CP13: 1.53 | CR13: 0.09 | CS13: 0.09
A14: PLEASANT.VIEW.MAIN.POND.1 | B14: Acid Mine Drainage | C14: AMD sample, Pleasant View mine | F14: Resource Production | G14: Coal Mining | H14: Acid Mine Drainage | I14: Illinois Basin | J14: N/A | K14: West Kentucky No.9 Coal Seam | L14: Kentucky | M14: Hopkins | N14: NA | O14: Kentucky | P14: Hopkins | Q14: NA | R14: Pond | AJ14: N/A | AK14: ICP-OES | AL14: N/A | AM14: 0.25 | AN14: 0.389 | AO14: 1.01 | AQ14: < 0.003 | AR14: 0.32 | AS14: 38.725 | AT14: < 0 | AU14: n/a | AV14: < -0.001 | AW14: < 0 | AX14: 0.081 | AY14: 0.27 | AZ14: < 0.001 | BA14: 0.007 | BB14: < -0.002 | BC14: < 0.044 | BD14: < 0 | BE14: n/a | BF14: < -0.003 | BG14: < 0.013 | BH14: n/a | BI14: 0.001 | BJ14: n/a | BK14: n/a | BL14: n/a | BN14: 0.001 | BO14: n/a | BP14: n/a | BQ14: n/a | BR14: 0.004 | BS14: < 0.046 | BT14: < 0.007 | BU14: 0.003 | BV14: < -0.002 | BW14: < 0.011 | BX14: < 0.004 | BY14: < -0.002 | BZ14: < -0.02 | CA14: 0.01 | CB14: < -0.002 | CC14: < -0.001 | CD14: < 0.003 | CE14: < -0.003 | CF14: < 0.001 | CG14: < -0.002 | CH14: < -0.002 | CI14: < -0.001 | CJ14: < 0 | CK14: < -0.001 | CL14: n/a | CM14: < -0.001 | CN14: < -0.007 | CO14: < -0.002 | CP14: < -0.01 | CR14: 0.01 | CS14: 0.01
A15: SMITH.PHASE.2.LOWER | B15: Acid Mine Drainage | C15: AMD sample, Dotiki Smith Property | F15: Resource Production | G15: Coal Mining | H15: Acid Mine Drainage | I15: Illinois Basin | J15: N/A | K15: West Kentucky No.9 Coal Seam | L15: Kentucky | M15: Webster | N15: NA | O15: Kentucky | P15: Webster | Q15: NA | R15: Pond | AJ15: N/A | AK15: ICP-OES | AL15: N/A | AM15: 0.444 | AN15: 6.322 | AO15: 1.063 | AQ15: < 0.003 | AR15: 2.767 | AS15: 9.878 | AT15: < 0 | AU15: n/a | AV15: < 0 | AW15: < -0.001 | AX15: 0.545 | AY15: < 0.099 | AZ15: < 0.009 | BA15: 0.027 | BB15: < 0.003 | BC15: < 0.034 | BD15: < 0 | BE15: n/a | BF15: < -0.009 | BG15: < -0.007 | BH15: n/a | BI15: 0.004 | BJ15: n/a | BK15: n/a | BL15: n/a | BN15: < -0.001 | BO15: n/a | BP15: n/a | BQ15: n/a | BR15: 0.01 | BS15: < 0.008 | BT15: < 0.005 | BU15: 0.014 | BV15: < -0.001 | BW15: < 0.025 | BX15: < 0 | BY15: < -0.013 | BZ15: < 0.007 | CA15: 0.002 | CB15: < 0.001 | CC15: < -0.001 | CD15: < 0.002 | CE15: < 0 | CF15: < 0.004 | CG15: < 0 | CH15: < -0.002 | CI15: < -0.001 | CJ15: < 0 | CK15: < -0.001 | CL15: n/a | CM15: < 0.012 | CN15: < -0.007 | CO15: < -0.003 | CP15: < -0.014 | CR15: 0.002 | CS15: 0.002
A16: SMITH.PHASE.2.UPPER | B16: Acid Mine Drainage | C16: AMD sample, Dotiki Smith Property | F16: Resource Production | G16: Coal Mining | H16: Acid Mine Drainage | I16: Illinois Basin | J16: N/A | K16: West Kentucky No.9 Coal Seam | L16: Kentucky | M16: Webster | N16: NA | O16: Kentucky | P16: Webster | Q16: NA | R16: Pond | AJ16: N/A | AK16: ICP-OES | AL16: N/A | AM16: 0.899 | AN16: 12.739 | AO16: 0.308 | AQ16: < 0.014 | AR16: 6.192 | AS16: 20.236 | AT16: < -0.001 | AU16: n/a | AV16: < -0.002 | AW16: < 0 | AX16: 0.161 | AY16: 0.314 | AZ16: < 0 | BA16: 0.009 | BB16: < -0.002 | BC16: < -0.001 | BD16: < 0.003 | BE16: n/a | BF16: < -0.002 | BG16: < -0.008 | BH16: n/a | BI16: < 0 | BJ16: n/a | BK16: n/a | BL16: n/a | BN16: < -0.001 | BO16: n/a | BP16: n/a | BQ16: n/a | BR16: 0.014 | BS16: < 0.02 | BT16: < 0.003 | BU16: 0.009 | BV16: < 0.001 | BW16: < 0.063 | BX16: < 0.002 | BY16: < -0.007 | BZ16: < -0.006 | CA16: < -0.001 | CB16: < -0.004 | CC16: < -0.002 | CD16: < 0.002 | CE16: < -0.004 | CF16: < 0 | CG16: < -0.002 | CH16: < -0.002 | CI16: < -0.002 | CJ16: < -0.001 | CK16: < -0.001 | CL16: n/a | CM16: < 0.012 | CN16: < 0 | CO16: < -0.002 | CP16: < -0.028 | CR16: 0 | CS16: 0
A17: FREEMAN.POND | B17: Acid Mine Drainage | C17: AMD sample | F17: Resource Production | G17: Coal Mining | H17: Acid Mine Drainage | I17: Illinois Basin | J17: N/A | K17: West Kentucky No.9 Coal Seam | L17: Kentucky | M17: Webster | N17: NA | O17: Kentucky | P17: Webster | Q17: NA | R17: Pond | AJ17: N/A | AK17: ICP-OES | AL17: N/A | AM17: < 0 | AN17: < 0.206 | AO17: 1.402 | AP17: < 0.043 | AR17: < 0.021 | AS17: 3.114 | AT17: 3.869 | AU17: < -0.001 | AV17: n/a | AW17: < -0.001 | AX17: < 0.001 | AY17: 0.007 | AZ17: 0.731 | BA17: < -0.002 | BB17: < 0.001 | BC17: < -0.001 | BD17: < -0.003 | BE17: < -0.007 | BF17: n/a | BG17: < -0.005 | BH17: < -0.005 | BI17: n/a | BJ17: < 0 | BK17: n/a | BL17: n/a | BM17: n/a | BO17: < -0.001 | BP17: n/a | BQ17: n/a | BR17: n/a | BS17: 0.007 | BT17: < 0.014 | BU17: < 0.005 | BV17: < 0 | BW17: < 0 | BX17: < -0.001 | BY17: < 0 | BZ17: < -0.002 | CA17: < -0.014 | CB17: < -0.006 | CC17: < -0.002 | CD17: < -0.001 | CE17: < 0 | CF17: < -0.007 | CG17: < 0.001 | CH17: < -0.002 | CI17: < -0.002 | CJ17: < -0.001 | CK17: < -0.001 | CL17: < -0.001 | CM17: n/a | CN17: < 0.003 | CO17: < -0.004 | CP17: < -0.005 | CR17: 0 | CS17: 0
A18: CHICKEN.COOP.PIT | B18: Acid Mine Drainage | C18: AMD sample | F18: Resource Production | G18: Coal Mining | H18: Acid Mine Drainage | I18: Illinois Basin | J18: N/A | K18: West Kentucky No.9 Coal Seam | L18: Kentucky | M18: Webster | N18: NA | O18: Kentucky | P18: Webster | Q18: NA | R18: Pond | AJ18: N/A | AK18: ICP-OES | AL18: N/A | AM18: < 0.01 | AN18: 48.02 | AO18: 20.408 | AP18: 20.92 | AR18: < 0.026 | AS18: 4.435 | AT18: 64.82 | AU18: 0.006 | AV18: n/a | AW18: < 0 | AX18: 0.021 | AY18: 1.591 | AZ18: 44.702 | BA18: 0.071 | BB18: 0.237 | BC18: 0.088 | BD18: 0.808 | BE18: < -0.02 | BF18: n/a | BG18: < 0 | BH18: < 0.003 | BI18: n/a | BJ18: 0.04 | BK18: n/a | BL18: n/a | BM18: n/a | BO18: 0.024 | BP18: n/a | BQ18: n/a | BR18: n/a | BS18: 0.005 | BT18: 0.126 | BU18: < 0.017 | BV18: 0.079 | BW18: < 0.008 | BX18: 0.15 | BY18: < 0.013 | BZ18: < 0.048 | CA18: < -0.012 | CB18: 0.045 | CC18: 0.006 | CD18: < -0.004 | CE18: < 0.016 | CF18: < -0.005 | CG18: 0.006 | CH18: < 0.001 | CI18: < -0.006 | CJ18: < -0.001 | CK18: 0.004 | CL18: < 0 | CM18: n/a | CN18: < 0.013 | CO18: 0.023 | CP18: < -0.004 | CR18: 0.061 | CS18: 0.101
A19: SEBREE.LOWER | B19: Acid Mine Drainage | C19: AMD sample, Sebree mine | F19: Resource Production | G19: Coal Mining | H19: Acid Mine Drainage | I19: Illinois Basin | J19: N/A | K19: West Kentucky No.9 Coal Seam | L19: Kentucky | M19: Webster | N19: NA | O19: Kentucky | P19: Webster | Q19: NA | R19: Pond | AJ19: N/A | AK19: ICP-OES | AL19: N/A | AM19: < 0 | AN19: 1.465 | AO19: 4.943 | AP19: 1.022 | AR19: < 0.039 | AS19: 6.583 | AT19: 17.403 | AU19: < 0 | AV19: n/a | AW19: < 0 | AX19: < 0 | AY19: 0.882 | AZ19: 1.04 | BA19: < 0.008 | BB19: 0.019 | BC19: < -0.001 | BD19: < 0.059 | BE19: < -0.007 | BF19: n/a | BG19: < -0.008 | BH19: < 0.039 | BI19: n/a | BJ19: 0.002 | BK19: n/a | BL19: n/a | BM19: n/a | BO19: 0.001 | BP19: n/a | BQ19: n/a | BR19: n/a | BS19: 0.025 | BT19: < 0.023 | BU19: < 0.004 | BV19: 0.005 | BW19: < 0 | BX19: < 0.042 | BY19: < 0.003 | BZ19: < 0.007 | CA19: < -0.004 | CB19: 0.009 | CC19: < -0.003 | CD19: < -0.001 | CE19: < 0.001 | CF19: < 0 | CG19: < 0.004 | CH19: < -0.002 | CI19: < -0.007 | CJ19: < -0.002 | CK19: < 0 | CL19: < -0.001 | CM19: n/a | CN19: < 0.006 | CO19: < -0.007 | CP19: < -0.003 | CR19: 0.009 | CS19: 0.011
A20: SEBREE.UPPER | B20: Acid Mine Drainage | C20: AMD sample, Sebree mine | F20: Resource Production | G20: Coal Mining | H20: Acid Mine Drainage | I20: Illinois Basin | J20: N/A | K20: West Kentucky No.9 Coal Seam | L20: Kentucky | M20: Webster | N20: NA | O20: Kentucky | P20: Webster | Q20: NA | R20: Pond | AJ20: N/A | AK20: ICP-OES | AL20: N/A | AM20: 0.131 | AN20: 9.682 | AO20: 326.58 | AP20: 297.46 | AR20: 9.195 | AS20: < 0.047 | AT20: 416.14 | AU20: 0.16 | AV20: n/a | AW20: 0.123 | AX20: 0.494 | AY20: 28.3 | AZ20: > 1181.23 | BA20: 0.722 | BB20: 2.707 | BC20: 0.979 | BD20: 16.42 | BE20: < -0.296 | BF20: n/a | BG20: < 0.052 | BH20: 0.275 | BI20: n/a | BJ20: 0.589 | BK20: n/a | BL20: n/a | BM20: n/a | BO20: 0.549 | BP20: n/a | BQ20: n/a | BR20: n/a | BS20: < 0 | BT20: 1.831 | BU20: 0.378 | BV20: 0.715 | BW20: 0.162 | BX20: 0.468 | BY20: 0.158 | BZ20: 0.569 | CA20: < -0.208 | CB20: 0.486 | CC20: 0.082 | CD20: < -0.208 | CE20: < 0.154 | CF20: < 0.023 | CG20: < -0.077 | CH20: < 0.032 | CI20: < -0.094 | CJ20: < -0.056 | CK20: 0.092 | CL20: 0.032 | CM20: n/a | CN20: < 0.058 | CO20: 0.472 | CP20: 0.18 | CR20: 1.419 | CS20: 2.008
A21: PP. RSLP. 111720 | B21: Solid | C21: Prep Plant Rougher Scavenger Light Product | F21: Processing | G21: Coal Separations | H21: Refuse | I21: Illinois Basin | J21: N/A | K21: West Kentucky No.13 Coal Seam | L21: Kentucky | M21: Webster | N21: NA | O21: Kentucky | P21: Webster | Q21: NA | R21: Spiral Circuit | T21: 0.0117 | U21: 0.7793 | AJ21: Modified ASTM 6357-11 | AK21: ICP-OES | AL21: Dry Mass Basis | AP21: 43813.4639 | AT21: 68541.40059 | AU21: 28.08871612 | BJ21: 12.20980415 | BV21: 19.82551533 | BY21: 21.29007517 | BZ21: 28.19663106 | CA21: 8.972356083 | CB21: 24.14211276 | CC21: 6.644476756 | CD21: 1.109982196 | CE21: 12.28688625 | CF21: 1.557058358 | CG21: 0.2466627102 | CH21: 0 | CI21: 1.634140455 | CJ21: 0.277495549 | CK21: 2.636207715 | CL21: 2.77495549 | CP21: 6.598227498 | CR21: =SUM(BY21:CL21) -> 111.7690406 | CS21: =SUM(BJ21,BY21:CL21) -> 123.9788447
A22: PP. RSHP. 111720 | B22: Solid | C22: Prep Plant Rougher Scavenger Heavy Product | F22: Processing | G22: Coal Separations | H22: Refuse | I22: Illinois Basin | J22: N/A | K22: West Kentucky No.13 Coal Seam | L22: Kentucky | M22: Webster | N22: NA | O22: Kentucky | P22: Webster | Q22: NA | R22: Spiral Circuit | T22: 0.0049 | U22: 0.862 | AJ22: Modified ASTM 6357-11 | AK22: ICP-OES | AL22: Dry Mass Basis | AP22: 31673.08543 | AT22: 104548.9045 | AU22: 39.41809045 | BJ22: 9.824201005 | BV22: 14.45041206 | BY22: 14.72763819 | BZ22: 2.668301508 | CA22: 8.195497487 | CB22: 18.15831156 | CC22: 5.700462312 | CD22: 0.727718593 | CE22: 16.54693467 | CF22: 2.339095477 | CG22: 0 | CH22: 0 | CI22: 1.108904523 | CJ22: 0.1212864322 | CK22: 2.668301508 | CL22: 3.725226131 | CP22: 5.388582915 | CR22: 76.68767839 | CS22: 86.5118794
A23: PP. SF. 111720 | B23: Solid | C23: Prep Plant Spiral Feed | F23: Processing | G23: Coal Separations | H23: Refuse | I23: Illinois Basin | J23: N/A | K23: West Kentucky No.13 Coal Seam | L23: Kentucky | M23: Webster | N23: NA | O23: Kentucky | P23: Webster | Q23: NA | R23: Spiral Circuit | T23: 0.0122 | U23: 0.4028 | AJ23: Modified ASTM 6357-11 | AK23: ICP-OES | AL23: Dry Mass Basis | AP23: 32638.3541 | AT23: 23745.67755 | AU23: 12.12782591 | BJ23: 8.23130366 | BV23: 15.02830465 | BY23: 13.44260336 | BZ23: 23.26757666 | CA23: 4.741167161 | CB23: 14.69363403 | CC23: 3.593725025 | CD23: 0.7649614243 | CE23: 5.370666667 | CF23: 0.7888664688 | CG23: 1.163378833 | CH23: 0.06374678536 | CI23: 1.378524233 | CJ23: 0.1912403561 | CK23: 1.545859545 | CL23: 0.9322967359 | CP23: 4.868660732 | CR23: 71.93824728 | CS23: 80.16955094
A24: PP. RLP. 111720 | B24: Solid | C24: Prep Plant Rougher Light Product | F24: Processing | G24: Coal Separations | H24: Refuse | I24: Illinois Basin | J24: N/A | K24: West Kentucky No.13 Coal Seam | L24: Kentucky | M24: Webster | N24: NA | O24: Kentucky | P24: Webster | Q24: NA | R24: Spiral Circuit | T24: 0.0107 | U24: 0.3186 | AJ24: Modified ASTM 6357-11 | AK24: ICP-OES | AL24: Dry Mass Basis | AP24: 25713.95745 | AT24: 18283.18541 | AU24: 9.658066869 | AZ24: 40614.23708 | BJ24: 7.101519757 | BV24: 12.72463222 | BY24: 10.66519149 | BZ24: 18.7351003 | CA24: 3.789629179 | CB24: 12.11131915 | CC24: 2.872887538 | CD24: 0.6778723404 | CE24: 4.286735562 | CF24: 0.6133130699 | CG24: 1.103963526 | CH24: 0 | CI24: 1.213714286 | CJ24: 0.1678541033 | CK24: 1.317009119 | CL24: 0.8134468085 | CP24: 3.763805471 | CR24: 58.36803647 | CS24: 65.46955623
A25: PMO-RAW | B25: Solid | C25: PMO Material Raw Coal | F25: Processing | G25: Coal Separations | H25: Coal | I25: Central Appalachia | J25: N/A | K25: N/A | L25: N/A | M25: N/A | N25: N/A | O25: N/A | P25: N/A | Q25: N/A | R25: N/A | T25: 0.058 | U25: 0.4262 | AJ25: Modified ASTM 6357-11 | AK25: ICP-OES | AL25: Dry Mass Basis | AM25: 0 | AN25: 995.794 | AO25: 3988.713 | AP25: 53151.683 | AR25: 110.336 | AS25: 16559.925 | AT25: 2510.21 | AU25: 8.74 | AW25: 68.105 | AX25: 38.769 | AY25: 109.038 | AZ25: 13695.515 | BA25: 12.461 | BB25: 18.952 | BC25: 25.01 | BD25: 49.067 | BE25: 4.673 | BG25: 0 | BH25: 12.894 | BJ25: 11.683 | BO25: 1.904 | BS25: 479.161 | BT25: 58.154 | BU25: 0 | BV25: 52.096 | BW25: 0 | BX25: 96.144 | BY25: 20.769 | BZ25: 45.952 | CA25: 4.413 | CB25: 0 | CC25: 1.558 | CD25: 0 | CE25: 0 | CF25: 0 | CG25: 0 | CH25: 0 | CI25: 2.683 | CJ25: 0 | CK25: 1.99 | CL25: 0.433 | CN25: 0 | CO25: 85.153 | CP25: 7.702 | CR25: =SUM(BY25:CL25) -> 77.798 | CS25: =SUM(BJ25,BY25:CL25) -> 89.481 | CX25: 58006.469 | CY25: 3113.64 | CZ25: 17575.882
A26: PMD-D-5-1 | B26: Solid | C26: PMO Material Coarse Refuse | F26: Processing | G26: Coal Separations | H26: Coarse Refuse | I26: Central Appalachia | J26: N/A | K26: N/A | L26: N/A | M26: N/A | N26: N/A | O26: N/A | P26: N/A | Q26: N/A | R26: N/A | T26: 0.0118 | U26: 0.7646 | AJ26: Modified ASTM 6357-11 | AK26: ICP-OES | AL26: Dry Mass Basis | AM26: 0 | AN26: 1906.496483 | AO26: 6692.048139 | AP26: 76887.9571 | AR26: 212.0240491 | AS26: 24663.11898 | AT26: 2042.060532 | AU26: 14.07239264 | AW26: 100.0703476 | AX26: 61.29308793 | AY26: 187.6319018 | AZ26: 19696.50254 | BA26: 16.57415133 | BB26: 26.42482618 | BC26: 28.45750511 | BD26: 77.71087935 | BE26: 8.130715746 | BG26: 0 | BH26: 16.57415133 | BJ26: 16.88687117 | BO26: 2.970838446 | BS26: 604.4874438 | BT26: 100.3830675 | BU26: 0 | BV26: 87.87427403 | BY26: 35.1809816 | BZ26: 77.86723926 | CA26: 7.974355828 | CB26: 0 | CC26: 2.814478528 | CD26: 0 | CE26: 0 | CF26: 0 | CG26: 0 | CH26: 0 | CI26: 3.908997955 | CJ26: 0 | CK26: 2.970838446 | CL26: 0.781799591 | CN26: 0 | CO26: 150.1055215 | CP26: 14.07239264 | CR26: 131.4986912 | CS26: 148.3855624 | CX26: 100257.98 | CY26: 2447.033 | CZ26: 26628.094
A27: FC-CR Roastd | B27: Solid | C27: Fireclay Coarse Refuse Roasted | F27: Processing | G27: Coal Separations | H27: Coarse Refuse | I27: Central Appalachia | J27: N/A | K27: Fire Clay Seam | L27: KY | M27: Hazard | N27: Leatherwood | O27: KY | P27: Hazard | Q27: Leatherwood | R27: Coarse Refuse | T27: 0.003 | U27: 0.9597 | AJ27: Modified ASTM 6357-11 | AK27: ICP-OES | AL27: Dry Mass Basis | AM27: 8.503670886 | AN27: 4998.943671 | AO27: 8019.771519 | AP27: 175054.1392 | AR27: 475.5981646 | AS27: 28608.77848 | AT27: 4077.712658 | AU27: 21.46164557 | AW27: 150.8389241 | AX27: 76.53303797 | AY27: 218.4633544 | AZ27: 30248.77215 | BA27: 26.32088608 | BB27: 31.99 | BC27: 34.62208861 | BD27: 96.37493671 | BE27: 39.48132911 | BG27: 0 | BH27: 11.5406962 | BJ27: 37.05170886 | BO27: 5.061708861 | BS27: 795.4981646 | BT27: 175.945 | BU27: 0 | BV27: 275.356962 | BY27: 76.12810127 | BZ27: 69.44664557 | CA27: 26.11841772 | CB27: 72.07873418 | CC27: 16.39993671 | CD27: 0 | CE27: 33.20481013 | CF27: 3.037025316 | CG27: 6.478987342 | CH27: 53.24917722 | CI27: 24.49867089 | CJ27: 6.478987342 | CK27: 7.693797468 | CL27: 1.214810127 | CN27: 0 | CO27: 25.51101266 | CP27: 47.985 | CR27: 396.0281013 | CS27: 433.0798101
A28: FC-CR 1.60 Float | B28: Solid | C28: Fireclay Coarse Refuse Density Fractionated | F28: Processing | G28: Coal Separations | H28: Coarse Refuse | I28: Central Appalachia | J28: N/A | K28: Fire Clay Seam | L28: KY | M28: Hazard | N28: Leatherwood | O28: KY | P28: Hazard | Q28: Leatherwood | R28: Coarse Refuse | S28: 177 | T28: 0.0136 | U28: 0.2833 | V28: 0.00647507272 | AJ28: Modified ASTM 6357-11 | AK28: ICP-OES | AL28: Dry Mass Basis | AU28: 9.275112036 | BJ28: 27.36001144 | BY28: 43.85651667 | BZ28: 108.4120985 | CA28: 10.30927152 | CB28: 41.23158044 | CC28: 8.081798498 | CD28: 0.9231876578 | CE28: 4.034516967 | CF28: 0.2248510791 | CG28: 6.689277103 | CH28: 1.398420361 | CI28: 3.006442522 | CJ28: 1.159935987 | CK28: 2.777470953 | CL28: 0.2190941756 | CR28: 232.3244625 | CS28: 259.6844739
A29: FC-CR 1.60x1.80 | B29: Solid | C29: Fireclay Coarse Refuse Density Fractionated | F29: Processing | G29: Coal Separations | H29: Coarse Refuse | I29: Central Appalachia | J29: N/A | K29: Fire Clay Seam | L29: KY | M29: Hazard | N29: Leatherwood | O29: KY | P29: Hazard | Q29: Leatherwood | R29: Coarse Refuse | S29: 177 | T29: 0.0181 | U29: 0.4314 | V29: 0.005675953533 | AJ29: Modified ASTM 6357-11 | AK29: ICP-OES | AL29: Dry Mass Basis | AU29: 12.04876795 | BJ29: 29.033331 | BY29: 50.2143218 | BZ29: 123.1437748 | CA29: 12.04411442 | CB29: 48.15352306 | CC29: 9.443146992 | CD29: 1.191963502 | CE29: 3.742219895 | CF29: 0.3511960413 | CG29: 7.304310862 | CH29: 1.560417521 | CI29: 3.914589488 | CJ29: 1.305001875 | CK29: 3.061789582 | CL29: 0.1576671027 | CR29: 265.5880369 | CS29: 294.6213679
A30: FC-CR 1.80x2.00 | B30: Solid | C30: Fireclay Coarse Refuse Density Fractionated | F30: Processing | G30: Coal Separations | H30: Coarse Refuse | I30: Central Appalachia | J30: N/A | K30: Fire Clay Seam | L30: KY | M30: Hazard | N30: Leatherwood | O30: KY | P30: Hazard | Q30: Leatherwood | R30: Coarse Refuse | S30: 177 | T30: 0.012 | U30: 0.5986 | V30: 0.006162682963 | AJ30: Modified ASTM 6357-11 | AK30: ICP-OES | AL30: Dry Mass Basis | AU30: 13.25502225 | BJ30: 30.04900377 | BY30: 68.04414306 | BZ30: 167.9968701 | CA30: 16.1422627 | CB30: 63.3091041 | CC30: 13.10875192 | CD30: 1.748996103 | CE30: 5.524905168 | CF30: 0.3129577007 | CG30: 8.283571787 | CH30: 1.918083359 | CI30: 4.672786836 | CJ30: 1.622737506 | CK30: 3.318085608 | CL30: 0.1525624266 | CR30: 356.1558184 | CS30: 386.2048222
A31: FC-CR 2.00x2.20 | B31: Solid | C31: Fireclay Coarse Refuse Density Fractionated | F31: Processing | G31: Coal Separations | H31: Coarse Refuse | I31: Central Appalachia | J31: N/A | K31: Fire Clay Seam | L31: KY | M31: Hazard | N31: Leatherwood | O31: KY | P31: Hazard | Q31: Leatherwood | R31: Coarse Refuse | S31: 177 | T31: 0.0103 | U31: 0.7287 | V31: 0.005100277199 | AJ31: Modified ASTM 6357-11 | AK31: ICP-OES | AL31: Dry Mass Basis | AU31: 14.09030242 | BJ31: 29.08155648 | BY31: 77.24541358 | BZ31: 192.4603036 | CA31: 18.62280401 | CB31: 71.07456214 | CC31: 15.04543475 | CD31: 2.144796712 | CE31: 6.755543755 | CF31: 0.2892967812 | CG31: 8.519275913 | CH31: 1.950340873 | CI31: 5.307214455 | CJ31: 1.704138429 | CK31: 3.256822061 | CL31: 0.06656293646 | CR31: 404.44251 | CS31: 433.5240665
A32: FC-CR 2.20 Sink | B32: Solid | C32: Fireclay Coarse Refuse Density Fractionated | F32: Processing | G32: Coal Separations | H32: Coarse Refuse | I32: Central Appalachia | J32: N/A | K32: Fire Clay Seam | L32: KY | M32: Hazard | N32: Leatherwood | O32: KY | P32: Hazard | Q32: Leatherwood | R32: Coarse Refuse | S32: 177 | T32: 0.009633333333 | U32: 0.9051 | V32: 0.002385572798 | AJ32: Modified ASTM 6357-11 | AK32: ICP-OES | AL32: Dry Mass Basis | AU32: 16.30622191 | BJ32: 22.73755015 | BY32: 48.41179187 | BZ32: 106.9920987 | CA32: 12.31725356 | CB32: 45.09128369 | CC32: 9.776454537 | CD32: 1.642255442 | CE32: 4.132321296 | CF32: 0.6417333256 | CG32: 5.502022979 | CH32: 1.215457154 | CI32: 4.790500784 | CJ32: 1.176039366 | CK32: 3.132980734 | CL32: 0.3675444756 | CR32: 245.1897379 | CS32: 267.9272881
A33: FC-CR | B33: Solid | C33: Fireclay Coarse Refuse | F33: Processing | G33: Coal Separations | H33: Coarse Refuse | I33: Central Appalachia | J33: N/A | K33: Fire Clay Seam | L33: KY | M33: Hazard | N33: Leatherwood | O33: KY | P33: Hazard | Q33: Leatherwood | R33: Coarse Refuse | S33: 177 | T33: 0.01008280456 | U33: 0.858026283 | V33: 0.002806688397 | AJ33: Modified ASTM 6357-11 | AK33: ICP-OES | AL33: Dry Mass Basis | AU33: 16.21628238 | BJ33: 25.48879311 | BY33: 53.17955238 | BZ33: 120.9454901 | CA33: 13.32043576 | CB33: 49.60175134 | CC33: 10.57974027 | CD33: 1.680689855 | CE33: 4.532742692 | CF33: 0.598199387 | CG33: 6.297361831 | CH33: 1.387181788 | CI33: 4.895252261 | CJ33: 1.29587933 | CK33: 3.302642841 | CL33: 0.3425178437 | CR33: 271.9594376 | CS33: 297.4482307
A34: High Freq. Over (A-Side) | B34: Solid | C34: Spiral Reject High Frequency Screen Overflow | F34: Processing | G34: Coal Separations | H34: Fine Coal By-Product | I34: Illinois Basin | J34: N/A | K34: West Kentucky No.13 Coal Seam | L34: Kentucky | M34: Webster | N34: Princeton | O34: Kentucky | P34: Webster | Q34: Princeton | R34: Spiral Circuit | T34: 0.0235 | U34: 0.8567 | V34: 0.07972220989 | AJ34: Modified ASTM 6357-11 | AK34: ICP-OES | AL34: Dry Ash Basis | AU34: 33.67690783 | BJ34: 19.02874133 | BY34: 33.33994054 | BZ34: 51.93260654 | CA34: 10.3468781 | CB34: 34.66798811 | CC34: 6.838453915 | CD34: 1.486620416 | CE34: 15.08424182 | CF34: 1.506442022 | CG34: 2.636273538 | CH34: 0.2378592666 | CI34: 3.111992071 | CJ34: 0.8919722498 | CK34: 3.052527255 | CL34: 1.506442022 | CR34: 166.6402379 | CS34: 185.6689792
A35: Stack Size Tails (A-Side) | B35: Solid | C35: Stack sizer Tailing | F35: Processing | G35: Coal Separations | H35: Fine Coal By-Product | I35: Illinois Basin | J35: N/A | K35: West Kentucky No.13 Coal Seam | L35: Kentucky | M35: Webster | N35: Princeton | O35: Kentucky | P35: Webster | Q35: Princeton | R35: Spiral Circuit | T35: 0.0171 | U35: 0.4507 | V35: 0.04856828101 | AJ35: Modified ASTM 6357-11 | AK35: ICP-OES | AL35: Dry Ash Basis | AU35: 28.4040404 | BJ35: 19.07070707 | BY35: 32.32323232 | BZ35: 53.19191919 | CA35: 10.94949495 | CB35: 34.48484848 | CC35: 7.818181818 | CD35: 1.595959596 | CE35: 13.37373737 | CF35: 1.717171717 | CG35: 2.545454545 | CH35: 0.0404040404 | CI35: 3.131313131 | CJ35: 0.6262626263 | CK35: 3.454545455 | CL35: 1.97979798 | CR35: 167.2323232 | CS35: 186.3030303
A36: Flotation Tails | B36: Solid | C36: Flotation Tailing | F36: Processing | G36: Coal Separations | H36: Fine Coal By-Product | I36: Illinois Basin | J36: N/A | K36: West Kentucky No.13 Coal Seam | L36: Kentucky | M36: Webster | N36: Princeton | O36: Kentucky | P36: Webster | Q36: Princeton | R36: Flotation | T36: 0.0042 | U36: 0.8579 | V36: 0.03254523967 | AJ36: Modified ASTM 6357-11 | AK36: ICP-OES | AL36: Dry Ash Basis | AU36: 25.05836576 | BJ36: 16.67315175 | BY36: 30.71984436 | BZ36: 50.46692607 | CA36: 9.260700389 | CB36: 32.21789883 | CC36: 6.809338521 | CD36: 1.361867704 | CE36: 11.28404669 | CF36: 1.128404669 | CG36: 2.782101167 | CH36: 0.4280155642 | CI36: 3.151750973 | CJ36: 0.7003891051 | CK36: 2.859922179 | CL36: 1.361867704 | CR36: 154.5330739 | CS36: 171.2062257
A37: C.C. Sieve Through (A-Side) | B37: Solid | C37: Clean Coal Sieve Bend Underflow | F37: Processing | G37: Coal Separations | H37: Fine Coal By-Product | I37: Illinois Basin | J37: N/A | K37: West Kentucky No.13 Coal Seam | L37: Kentucky | M37: Webster | N37: Princeton | O37: Kentucky | P37: Webster | Q37: Princeton | R37: Spiral Circuit | T37: 0 | U37: 0.4817 | V37: 0.05470209355 | AJ37: Modified ASTM 6357-11 | AK37: ICP-OES | AL37: Dry Ash Basis | AU37: 31.85840708 | BJ37: 18.91838741 | BY37: 30.73746313 | BZ37: 46.29301868 | CA37: 10.69813176 | CB37: 33.35299902 | CC37: 7.453294002 | CD37: 1.573254671 | CE37: 14.906588 | CF37: 1.907571288 | CG37: 1.691248771 | CH37: 0 | CI37: 2.772861357 | CJ37: 0.7472959685 | CK37: 3.539823009 | CL37: 2.300884956 | CR37: 157.9744346 | CS37: 176.892822
A38: Bottom of Coloumn Flotation | B38: Solid | C38: Column Flotation Bottom Stack Pile | F38: Processing | G38: Coal Separations | H38: Fine Coal By-Product | I38: Illinois Basin | J38: N/A | K38: West Kentucky No.13 Coal Seam | L38: Kentucky | M38: Webster | N38: Princeton | O38: Kentucky | P38: Webster | Q38: Princeton | R38: Flotation | T38: 0.0134 | U38: 0.7438 | V38: 0.06811910669 | AJ38: Modified ASTM 6357-11 | AK38: ICP-OES | AL38: Dry Ash Basis | AU38: 34.99075786 | BJ38: 18.29944547 | BY38: 28.29944547 | BZ38: 36.72828096 | CA38: 9.611829945 | CB38: 30.77634011 | CC38: 6.709796673 | CD38: 1.34935305 | CE38: 15.8780037 | CF38: 1.68207024 | CG38: 2.402957486 | CH38: 0 | CI38: 2.495378928 | CJ38: 0.6839186691 | CK38: 3.012939002 | CL38: 2.033271719 | CR38: =SUM(BY38:CL38) -> 141.663586 | CS38: =SUM(BJ38,BY38:CL38) -> 159.9630314
A39: DTK-CR 1.80 Float | B39: Solid | C39: WKY 13 Coarse Refuse Density Fractionated | F39: Processing | G39: Coal Separations | H39: Coarse Refuse | I39: Illinois Basin | J39: N/A | K39: West Kentucky No.13 Coal Seam | L39: Kentucky | M39: Webster | N39: Princeton | O39: Kentucky | P39: Webster | Q39: Princeton | R39: Coarse Refuse | T39: 0.0273 | U39: 0.2228333333 | V39: 0.02461433113 | AJ39: Modified ASTM 6357-11 | AK39: ICP-OES | AL39: Dry Ash Basis | AU39: 30.45299874 | BJ39: 48.14572061 | BY39: 80.65580399 | BZ39: 190.3837774 | CA39: 22.18350225 | CB39: 81.99641785 | CC39: 18.12275965 | CD39: 3.357674931 | CE39: 15.77483622 | CF39: 1.93637891 | CG39: 10.92606039 | CH39: 1.82690544 | CI39: 6.382473992 | CJ39: 1.220035928 | CK39: 6.802174853 | CL39: 2.231218468 | CR39: 443.8000203 | CS39: 491.9457409
A40: DTK-CR 1.80x2.00 | B40: Solid | C40: WKY 13 Coarse Refuse Density Fractionated | F40: Processing | G40: Coal Separations | H40: Coarse Refuse | I40: Illinois Basin | J40: N/A | K40: West Kentucky No.13 Coal Seam | L40: Kentucky | M40: Webster | N40: Princeton | O40: Kentucky | P40: Webster | Q40: Princeton | R40: Coarse Refuse | T40: 0.0176 | U40: 0.5633666667 | V40: 0.04602370199 | AJ40: Modified ASTM 6357-11 | AK40: ICP-OES | AL40: Dry Ash Basis | AU40: 27.76227003 | BJ40: 39.19346363 | BY40: 101.6008081 | BZ40: 246.8022758 | CA40: 28.14110851 | CB40: 104.7527292 | CC40: 24.06119096 | CD40: 4.245866555 | CE40: 16.15442022 | CF40: 1.274233731 | CG40: 9.501037698 | CH40: 1.662056899 | CI40: 5.958815954 | CJ40: 0.9544447276 | CK40: 6.104839221 | CL40: 2.39438324 | CR40: 553.6082109 | CS40: 592.8016745
A41: DTK-CR 2.00x2.20 | B41: Solid | C41: WKY 13 Coarse Refuse Density Fractionated | F41: Processing | G41: Coal Separations | H41: Coarse Refuse | I41: Illinois Basin | J41: N/A | K41: West Kentucky No.13 Coal Seam | L41: Kentucky | M41: Webster | N41: Princeton | O41: Kentucky | P41: Webster | Q41: Princeton | R41: Coarse Refuse | T41: 0.01936666667 | U41: 0.6608333333 | V41: 0.06238405497 | AJ41: Modified ASTM 6357-11 | AK41: ICP-OES | AL41: Dry Ash Basis | AU41: 24.88170538 | BJ41: 35.51477794 | BY41: 82.40137913 | BZ41: 198.9604242 | CA41: 23.80386906 | CB41: 87.71802285 | CC41: 21.62932293 | CD41: 3.713109264 | CE41: 14.61860034 | CF41: 1.570862264 | CG41: 7.906634756 | CH41: 0.9998696257 | CI41: 5.316415856 | CJ41: 0.8178692197 | CK41: 5.66053756 | CL41: 2.655006597 | CR41: 457.7719236 | CS41: 493.2867016
A42: DTK-CR 2.20 Sink | B42: Solid | C42: WKY 13 Coarse Refuse Density Fractionated | F42: Processing | G42: Coal Separations | H42: Coarse Refuse | I42: Illinois Basin | J42: N/A | K42: West Kentucky No.13 Coal Seam | L42: Kentucky | M42: Webster | N42: Princeton | O42: Kentucky | P42: Webster | Q42: Princeton | R42: Coarse Refuse | T42: 0.01126666667 | U42: 0.9104 | V42: 0.008775813928 | AJ42: Modified ASTM 6357-11 | AK42: ICP-OES | AL42: Dry Ash Basis | AU42: 20.20492266 | BJ42: 26.50238892 | BY42: 53.20319603 | BZ42: 106.8200929 | CA42: 13.99137776 | CB42: 52.82823972 | CC42: 11.86656616 | CD42: 2.169376841 | CE42: 9.743708902 | CF42: 0.7091358014 | CG42: 6.142909193 | CH42: 1.292856259 | CI42: 4.809197604 | CJ42: 0.6325896502 | CK42: 3.843944625 | CL42: 1.164514206 | CR42: 269.2177057 | CS42: 295.7200946
A43: DTK-CR | B43: Solid | C43: WKY 13 Coarse Refuse | F43: Processing | G43: Coal Separations | H43: Coarse Refuse | I43: Illinois Basin | J43: N/A | K43: West Kentucky No.13 Coal Seam | L43: Kentucky | M43: Webster | N43: Princeton | O43: Kentucky | P43: Webster | Q43: Princeton | R43: Coarse Refuse | T43: 0.01173574436 | U43: 0.8923793759 | V43: 0.01085418213 | AJ43: Modified ASTM 6357-11 | AK43: ICP-OES | AL43: Dry Ash Basis | AU43: 20.52412731 | BJ43: 27.12005647 | BY43: 54.81077733 | BZ43: 111.7369078 | CA43: 14.50000667 | CB43: 54.65272801 | CC43: 12.33387286 | CD43: 2.246861548 | CE43: 10.01174699 | CF43: 0.7527912194 | CG43: 6.278167468 | CH43: 1.293763622 | CI43: 4.852017042 | CJ43: 0.6474240573 | CK43: 3.95031797 | CL43: 1.230979682 | CR43: =SUM(BY43:CL43) -> 279.2983623 | CS43: =SUM(BJ43,BY43:CL43) -> 306.4184187
A44: Spiral Rougher Feed | B44: Solid | C44: Coal Prep Plant Pyrite Conc. Spiral Circuit Products | F44: Processing | G44: Coal Separations | H44: Coarse Refuse | I44: Illinois Basin | J44: N/A | K44: West Kentucky No.13 Coal Seam | L44: Kentucky | M44: Webster | N44: Princeton | O44: Kentucky | P44: Webster | Q44: Princeton | R44: Mineral Spiral | S44: 177 | T44: 0.01286666667 | U44: 0.3978666667 | V44: 0.0482 | AJ44: Modified ASTM 6357-11 | AK44: ICP-OES | AL44: Dry Ash Basis | AU44: 32.51805026 | BJ44: 17.23248154 | BY44: 30.0123375 | BZ44: 56.63703147 | CA44: 10.24078449 | CB44: 31.4481316 | CC44: 7.291428061 | CD44: 1.555732892 | CE44: 13.73744213 | CF44: 1.595017815 | CG44: 1.646886288 | CH44: 0 | CI44: 2.732493126 | CJ44: 0.3855888713 | CK44: 3.219027208 | CL44: 2.461738354 | CR44: 162.9636398 | CS44: 180.1961213
A45: Spiral Rougher Concentrate | B45: Solid | C45: Coal Prep Plant Pyrite Conc. Spiral Circuit Products | F45: Processing | G45: Coal Separations | H45: Coarse Refuse | I45: Illinois Basin | J45: N/A | K45: West Kentucky No.13 Coal Seam | L45: Kentucky | M45: Webster | N45: Princeton | O45: Kentucky | P45: Webster | Q45: Princeton | R45: Mineral Spiral | S45: 177 | T45: 0.01423333333 | U45: 0.29 | V45: 0.043 | AJ45: Modified ASTM 6357-11 | AK45: ICP-OES | AL45: Dry Ash Basis | AU45: 31.78782912 | BJ45: 18.86384828 | BY45: 30.30244955 | BZ45: 56.66748658 | CA45: 10.77277909 | CB45: 31.57767139 | CC45: 7.205216062 | CD45: 1.793510631 | CE45: 13.46852278 | CF45: 1.735236823 | CG45: 2.238928974 | CH45: 0 | CI45: 3.119753805 | CJ45: 0.4468190906 | CK45: 3.598985303 | CL45: 2.456052705 | CR45: =SUM(BY45:CL45) -> 165.3834128 | CS45: =SUM(BJ45,BY45:CL45) -> 184.2472611
A46: Spiral Rougher Middlings | B46: Solid | C46: Coal Prep Plant Pyrite Conc. Spiral Circuit Products | F46: Processing | G46: Coal Separations | H46: Coarse Refuse | I46: Illinois Basin | J46: N/A | K46: West Kentucky No.13 Coal Seam | L46: Kentucky | M46: Webster | N46: Princeton | O46: Kentucky | P46: Webster | Q46: Princeton | R46: Mineral Spiral | S46: 177 | T46: 0.01196666667 | U46: 0.3667666667 | V46: 0.0462 | AJ46: Modified ASTM 6357-11 | AK46: ICP-OES | AL46: Dry Ash Basis | AU46: 33.65007819 | BJ46: 18.2449422 | BY46: 30.65983858 | BZ46: 56.57339383 | CA46: 10.65588614 | CB46: 30.78943329 | CC46: 6.837840134 | CD46: 1.825407183 | CE46: 14.05540912 | CF46: 1.756102902 | CG46: 2.287224799 | CH46: 0.02757669769 | CI46: 2.852158721 | CJ46: 0.382401194 | CK46: 3.52240297 | CL46: 2.528076975 | CR46: 164.7531525 | CS46: 182.9980947
A47: Spiral Rougher Cleaner Concentrate | B47: Solid | C47: Coal Prep Plant Pyrite Conc. Spiral Circuit Products | F47: Processing | G47: Coal Separations | H47: Coarse Refuse | I47: Illinois Basin | J47: N/A | K47: West Kentucky No.13 Coal Seam | L47: Kentucky | M47: Webster | N47: Princeton | O47: Kentucky | P47: Webster | Q47: Princeton | R47: Mineral Spiral | S47: 177 | T47: 0.01546666667 | U47: 0.7403666667 | V47: 0.0897 | AJ47: Modified ASTM 6357-11 | AK47: ICP-OES | AL47: Dry Ash Basis | AU47: 34.82897651 | BJ47: 14.13776286 | BY47: 23.64982944 | BZ47: 45.02226455 | CA47: 9.680601985 | CB47: 25.18745169 | CC47: 6.236459824 | CD47: 1.354128269 | CE47: 14.534131 | CF47: 1.736299651 | CG47: 0.2607935639 | CH47: 0 | CI47: 2.028149666 | CJ47: 0.2139839569 | CK47: 3.067447073 | CL47: 2.93422605 | CR47: 135.9057667 | CS47: 150.0435296
A48: Spiral Rougher Cleaner Tailings | B48: Solid | C48: Coal Prep Plant Pyrite Conc. Spiral Circuit Products | F48: Processing | G48: Coal Separations | H48: Coarse Refuse | I48: Illinois Basin | J48: N/A | K48: West Kentucky No.13 Coal Seam | L48: Kentucky | M48: Webster | N48: Princeton | O48: Kentucky | P48: Webster | Q48: Princeton | R48: Mineral Spiral | S48: 177 | T48: 0.003133333333 | U48: 0.7755 | V48: 0.3054 | AJ48: Modified ASTM 6357-11 | AK48: ICP-OES | AL48: Dry Ash Basis | AU48: 28.85943579 | BJ48: 10.9907743 | BY48: 16.53271831 | BZ48: 35.53404084 | CA48: 14.12594859 | CB48: 21.93978539 | CC48: 15.26290198 | CD48: 0.7763077452 | CE48: 14.22480462 | CF48: 3.587010732 | CG48: 0 | CH48: 0 | CI48: 0 | CJ48: 0 | CK48: 4.878286573 | CL48: 8.398827166 | CR48: 135.2606319 | CS48: 146.2514062
A49: DTK-AMD20 | B49: Acid Mine Drainage | C49: AMD Collected from WKY 13 | F49: Resource Production | G49: Coal Mining | H49: Acid Mine Drainage | I49: Illinois Basin | J49: N/A | K49: West Kentucky No.13 Coal Seam | L49: Kentucky | M49: Webster | N49: Princeton | O49: Kentucky | P49: Webster | Q49: Princeton | R49: Pond | AJ49: N/A | AK49: ICP-OES | AL49: N/A | AM49: 0.22 | AN49: 12203.5 | AO49: 321.1 | AP49: 333.69 | AR49: 2.14 | AS49: 3.47 | AT49: 455.06 | AU49: 0.17 | AW49: 0.22 | AX49: 0.24 | AY49: 62.66 | AZ49: 713.6 | BA49: 1.76 | BB49: 4.92 | BC49: 2.99 | BD49: 9.07 | BE49: 0 | BG49: 0 | BH49: 2.42 | BJ49: 1.36 | BO49: 0.18 | BS49: 0.01 | BT49: 1.99 | BU49: 0 | BV49: 1.3 | BY49: 0.83 | BZ49: 1.19 | CA49: 0.23 | CB49: 0.6 | CC49: 0.35 | CD49: 0.05 | CE49: 0.2 | CF49: 0.06 | CG49: 0.54 | CH49: 0.03 | CI49: 0.14 | CJ49: 0.08 | CK49: 0.2 | CL49: 0.04 | CN49: 0.31 | CO49: 0.02 | CP49: 0.38 | CR49: =SUM(BY49:CL49) -> 4.54 | CS49: =SUM(BJ49,BY49:CL49) -> 5.9
A50: DTK-SMI | B50: Acid Mine Drainage | C50: AMD Collected from Dotiki Smith Property | F50: Resource Production | G50: Coal Mining | H50: Acid Mine Drainage | I50: Illinois Basin | J50: N/A | K50: West Kentucky No.9 Coal Seam | L50: Kentucky | M50: Webster | N50: NA | O50: Kentucky | P50: Webster | Q50: NA | R50: Pond | AJ50: N/A | AK50: ICP-OES | AL50: N/A | AM50: 0.1318333333 | AN50: 28.45766667 | AO50: 147.28 | AP50: 467.7366667 | AR50: 12.62666667 | AS50: 192.94 | AT50: 319.63 | AU50: 0.1763333333 | AW50: 0.095 | AX50: 0.3991666667 | AY50: 18.12333333 | AZ50: 1267.101667 | BA50: 0.9171666667 | BB50: 3.269166667 | BC50: 3.461 | BD50: 5.900666667 | BE50: 0 | BG50: 1.388333333 | BH50: 0.1463333333 | BJ50: 0.5843333333 | BO50: 0.2573333333 | BS50: 0.01066666667 | BT50: 1.704166667 | BU50: 0.343 | BV50: 1.299666667 | BY50: 0.06133333333 | BZ50: 0.2185 | CA50: 0 | CB50: 0.282 | CC50: 0.08433333333 | CD50: 0 | CE50: 0.1393333333 | CF50: 0.0335 | CG50: 0 | CH50: 0.03 | CI50: 0 | CJ50: 0 | CK50: 0.1218333333 | CL50: 0.03216666667 | CN50: 0.05383333333 | CO50: 0.808 | CP50: 0.111 | CR50: 1.003 | CS50: 1.587333333
A51: MTK.AMD.SAMPLE.1 | B51: Acid Mine Drainage | C51: Metiki AMD Sample | F51: Resource Production | G51: Coal Mining | H51: Acid Mine Drainage | I51: Illinois Basin | J51: N/A | K51: West Kentucky No.9 Coal Seam | L51: Kentucky | M51: Webster | N51: Metiki | O51: Kentucky | P51: Webster | Q51: Metiki | R51: Pond | AJ51: N/A | AK51: ICP-OES | AL51: N/A | AM51: < 0.027 | AN51: 21.933 | AO51: 187.79 | AP51: 35.568 | AQ51: 8.786 | AR51: < -0.074 | AS51: 50.894 | AT51: 514.78 | AU51: 0.017 | AW51: < -0.003 | AX51: 0.009 | AY51: 26.94 | AZ51: 254.16 | BA51: 0.824 | BB51: 0.863 | BC51: 0.186 | BD51: 2.556 | BE51: < -0.059 | BG51: < -0.022 | BH51: 0.53 | BJ51: 0.19 | BO51: 0.043 | BS51: 0.022 | BT51: 4.124 | BU51: < 0.049 | BV51: 0.146 | BW51: < 0.04 | BX51: 3.01 | BY51: < 0.048 | BZ51: < 0.173 | CA51: < -0.031 | CB51: 0.087 | CC51: < -0.02 | CD51: < -0.058 | CE51: < 0.068 | CF51: < 0 | CG51: 0.071 | CH51: < 0.01 | CI51: < -0.009 | CJ51: < -0.03 | CK51: 0.024 | CL51: 0.007 | CN51: < 0.043 | CO51: 0.028 | CP51: 0.012 | CR51: 0.189 | CS51: 0.379
A52: MTK.AMD.SAMPLE.2 | B52: Acid Mine Drainage | C52: Metiki AMD Sample | F52: Resource Production | G52: Coal Mining | H52: Acid Mine Drainage | I52: Illinois Basin | J52: N/A | K52: West Kentucky No.9 Coal Seam | L52: Kentucky | M52: Webster | N52: Metiki | O52: Kentucky | P52: Webster | Q52: Metiki | R52: Pond | AJ52: N/A | AK52: ICP-OES | AL52: N/A | AM52: < 0.026 | AN52: 21.249 | AO52: 188.37 | AP52: 34.273 | AQ52: 8.559 | AR52: < -0.067 | AS52: 49.246 | AT52: 514.42 | AU52: 0.016 | AW52: < -0.001 | AX52: 0.012 | AY52: 26.93 | AZ52: 254.12 | BA52: 0.798 | BB52: 0.841 | BC52: 0.179 | BD52: 2.486 | BE52: < -0.08 | BG52: < -0.024 | BH52: 0.476 | BJ52: 0.183 | BO52: 0.041 | BS52: 0.022 | BT52: 4.012 | BU52: < 0.059 | BV52: 0.141 | BW52: < 0.041 | BX52: 2.907 | BY52: < 0.047 | BZ52: < 0.184 | CA52: < -0.037 | CB52: 0.099 | CC52: < -0.014 | CD52: < -0.057 | CE52: < 0.068 | CF52: < -0.003 | CG52: 0.069 | CH52: < 0.009 | CI52: < -0.008 | CJ52: < -0.028 | CK52: 0.023 | CL52: 0.007 | CN52: < 0.031 | CO52: 0.033 | CP52: 0.018 | CR52: 0.198 | CS52: 0.381
A53: MTK.AMD.SAMPLE.3 | B53: Acid Mine Drainage | C53: Metiki AMD Sample | F53: Resource Production | G53: Coal Mining | H53: Acid Mine Drainage | I53: Illinois Basin | J53: N/A | K53: West Kentucky No.9 Coal Seam | L53: Kentucky | M53: Webster | N53: Metiki | O53: Kentucky | P53: Webster | Q53: Metiki | R53: Pond | AJ53: N/A | AK53: ICP-OES | AL53: N/A | AM53: < 0.026 | AN53: 20.497 | AO53: 185.34 | AP53: 33.332 | AQ53: 8.358 | AR53: < -0.068 | AS53: 47.954 | AT53: 507.43 | AU53: 0.016 | AW53: < -0.003 | AX53: 0.01 | AY53: 26.6 | AZ53: 251.02 | BA53: 0.773 | BB53: 0.8 | BC53: 0.176 | BD53: 2.416 | BE53: < -0.068 | BG53: < -0.014 | BH53: 0.455 | BJ53: 0.178 | BO53: 0.039 | BS53: 0.021 | BT53: 3.92 | BU53: < 0.034 | BV53: 0.139 | BW53: < 0.043 | BX53: 2.865 | BY53: < 0.042 | BZ53: < 0.158 | CA53: < -0.021 | CB53: 0.092 | CC53: < -0.016 | CD53: < -0.054 | CE53: < 0.067 | CF53: < -0.002 | CG53: 0.069 | CH53: < 0.008 | CI53: < -0.012 | CJ53: < -0.028 | CK53: 0.022 | CL53: 0.006 | CN53: < 0.034 | CO53: 0.036 | CP53: 0.017 | CR53: 0.189 | CS53: 0.367

Sheet Separation-Processing Samples
A1: Separation-Processing Samples
F4: Researcher Field Sampling Data Inputs | AJ4: Primary Elemental Identification Technique | CU4: Secondary Elemental Identification Technique (If Measured) | DO4: XRD, Phase Identification (If measured) | DS4: SEM-EDX (If measured)
D5: Sample Reference # for Analyses on Sample Source | F5: Origin of the Sample and Description | O5: Location of Sampling Site | V5: Proximate Analysis (Wt%) | AA5: Ultimate Analysis (%) | AF5: CHNS Analysis (%) | AJ5: Analysis Description/Method | AM5: Elements (ppm) | BY5: Lanthanides (ppm) | CM5: Other Metals (ppm) | CP5: Actinides (ppm) | CR5: Total REE (ppm) | CS5: Total REE+Y (ppm) | CU5: Analysis Description Method | CX5: Results (ppm)
A6: Sample Reference # (# required to enable calculations) | B6: Sample Type | C6: Description | D6: Furthest Upstream Sample Ref # | E6: Previous Upstream Sample Ref # | F6: Level 1 Attribute | G6: Level 2 Attribute | H6: Level 3 Attribute | I6: Coal Basin | J6: Geological Group | K6: Associated Coal Bed/Zone/Seam | L6: State | M6: County | N6: Site | O6: State2 | P6: County2 | Q6: Site2 | R6: Location2 | S6: Size Fraction Analyzed (µm) | T6: % Moisture, As-Received | U6: %Ash, Dry | V6: Sulfur | W6: Moisture | X6: Volatile Matter | Y6: Ash | Z6: Fixed Carbon | AA6: Carbon | AB6: Hydrogen | AC6: Sulfur | AD6: Oxygen | AE6: Nitrogen | AF6: Carbon2 | AG6: H | AH6: N | AI6: S | AJ6: Digestion Method | AK6: Analytical Technique | AL6: Measurment Basis | AM6: Be 4 | AN6: Na 11 | AO6: Mg 12 | AP6: Al 13 | AQ6: Si 14 | AR6: P 15 | AS6: K 19 | AT6: Ca 20 | AU6: Sc 21 | AV6: Ti 22 | AW6: V 23 | AX6: Cr 24 | AY6: Mn 25 | AZ6: Fe 26 | BA6: Co 27 | BB6: Ni 28 | BC6: Cu 29 | BD6: Zn 30 | BE6: Ga 31 | BF6: Ge 32 | BG6: As 33 | BH6: Se 34 | BI6: Rb 37 | BJ6: Y 39 | BK6: Zr 40 | BL6: Nb 41 | BM6: Mo 42 | BN6: Ag 47 | BO6: Cd 48 | BP6: Sn 50 | BQ6: Sb 51 | BR6: Cs 55 | BS6: Ba 56 | BT6: B | BU6: Bi | BV6: Li | BW6: Re | BX6: Sr | BY6: La 57 | BZ6: Ce 58 | CA6: Pr 59 | CB6: Nd 60 | CC6: Sm 62 | CD6: Eu 63 | CE6: Gd 64 | CF6: Tb 65 | CG6: Dy 66 | CH6: Ho 67 | CI6: Er 68 | CJ6: Tm 69 | CK6: Yb 70 | CL6: Lu 71 | CM6: Hf 72 | CN6: Tl 81 | CO6: Pb 82 | CP6: Th 90 | CQ6: U 92 | CR6: Lanthanides | CS6: Lanthanides+Y | CT6: Notes | CU6: Secondary Analytical Technique | CV6: Secondary Digestion Method | CW6: Measurment Basis2 | CX6: Al3 13 | CY6: Ca4 20 | CZ6: Fe5 26 | DA6: K6 19 | DB6: Mg7 12 | DC6: Na8 11 | DD6: P2 15 | DE6: Ti2 22 | DF6: SiO2* | DG6: Zr 402 | DH6: Sn 502 | DI6: Other6 | DJ6: Other8 | DK6: Other9 | DL6: Other10 | DM6: Other11 | DN6: Notes3 | DO6: Major Phases | DP6: Minor Phases | DQ6: Trace Phases | DR6: Notes2 | DS6: Mineral/particle/crystal | DT6: Size | DU6: Mineral/particle/crystal2 | DV6: Size3 | DW6: Mineral/particle/crystal3 | DX6: Size4 | DY6: Notes4
A7: XBL.BA | B7: Bioleach Acid | C7: Bioleach Acid generated from bio-oxidation | D7: Spiral Rougher Cleaner Tailings | F7: Processing | G7: Coal Mining | H7: Refuse | I7: Illinois Basin | J7: N/A | K7: West Kentucky No.13 Coal Seam | L7: Kentucky | M7: Webster | N7: NA | O7: Kentucky | P7: Webster | Q7: NA | R7: Spiral Circuit | AJ7: N/A | AK7: ICP-OES | AL7: N/A | AM7: 1.133 | AN7: 8.556 | AO7: 239.21 | AP7: 25.051 | AQ7: 35.47 | AR7: 225.4 | AS7: 37.569 | AT7: 644.7 | AU7: 0.06 | AW7: 0.418 | AX7: 0.394 | AY7: 43.61 | AZ7: 11276 | BA7: 1.229 | BB7: 3.842 | BC7: 23.38 | BD7: 59.1 | BE7: < -2.379 | BG7: 2.097 | BH7: 0.858 | BJ7: 0.357 | BO7: 1.915 | BS7: 0.005 | BT7: 9.396 | BU7: 2.457 | BV7: 0.066 | BW7: 1.012 | BX7: 1.152 | BY7: 0.196 | BZ7: < 0.059 | CA7: < -1.916 | CB7: 0.371 | CC7: 0.161 | CD7: < -0.265 | CE7: < -0.233 | CF7: 0.156 | CG7: < -0.309 | CH7: < 0.043 | CI7: < -1.183 | CJ7: < -0.305 | CK7: 0.704 | CL7: 0.169 | CN7: < -2.308 | CO7: 0.632 | CP7: 0.264 | CR7: =SUM(BY7:CL7) -> 1.757 | CS7: =SUM(BJ7,BY7:CL7) -> 2.114
A8: XBL.BA2001.1 | B8: Leachate | C8: Bioleach Acid, Dotiki Pile -1.5 inch, 2 mm, 600°C, 20 min, muffle furnace, 40 g / 200 ml, 75 °C | D8: DTK-CR | F8: Processing | G8: Coal Mining | H8: Coarse Refuse | I8: Illinois Basin | J8: N/A | K8: West Kentucky No.13 Coal Seam | L8: Kentucky | M8: Webster | N8: NA | O8: Kentucky | P8: Webster | Q8: NA | R8: Coarse Refuse | AJ8: N/A | AK8: ICP-OES | AL8: N/A | AM8: 1.28 | AN8: 97.34 | AO8: 411.36 | AP8: 465.3 | AQ8: 111.8 | AR8: 247.6 | AS8: 281.63 | AT8: 736.7 | AU8: 0.47 | AW8: 1.25 | AX8: 0.77 | AY8: 59.32 | AZ8: > 10694.2 | BA8: 1.98 | BB8: 5.73 | BC8: 25.94 | BD8: 63.36 | BE8: < -3.17 | BG8: 4.82 | BH8: < -4.53 | BJ8: 0.82 | BO8: 2.42 | BS8: 1.24 | BT8: 13.65 | BU8: 3.28 | BV8: 7.55 | BW8: < 0.79 | BX8: 12.71 | BY8: 2.02 | BZ8: 3.18 | CA8: < -2.06 | CB8: 1.94 | CC8: 0.47 | CD8: < -0.39 | CE8: < -0.08 | CF8: 0.16 | CG8: < -0.21 | CH8: < 0.08 | CI8: < -1.33 | CJ8: < -0.19 | CK8: 0.86 | CL8: 0.19 | CN8: < -3.32 | CO8: 2.97 | CP8: 0.81 | CR8: =SUM(BY8:CL8) -> 8.82 | CS8: =SUM(BJ8,BY8:CL8) -> 9.64
A9: XBL.BA2001.2 | B9: Leachate | C9: Bioleach Acid, Dotiki Pile -1.5 inch, 2 mm, 600°C, 20 min, muffle furnace, 40 g / 200 ml, 75 °C | D9: DTK-CR | F9: Processing | G9: Coal Mining | H9: Coarse Refuse | I9: Illinois Basin | J9: N/A | K9: West Kentucky No.13 Coal Seam | L9: Kentucky | M9: Webster | N9: NA | O9: Kentucky | P9: Webster | Q9: NA | R9: Coarse Refuse | AJ9: N/A | AK9: ICP-OES | AL9: N/A | AM9: 1.27 | AN9: 115.09 | AO9: 469.95 | AP9: 900.9 | AQ9: 202.4 | AR9: 252.1 | AS9: 320.36 | AT9: 789.8 | AU9: 0.57 | AW9: 1.3 | AX9: 1.02 | AY9: 62.75 | AZ9: > 10447.5 | BA9: 2.1 | BB9: 6.06 | BC9: 26.21 | BD9: 63.73 | BE9: < -3.03 | BG9: 5.03 | BH9: < -5.41 | BJ9: 0.95 | BO9: 2.4 | BS9: 0.72 | BT9: 13.73 | BU9: < 2.71 | BV9: 10.21 | BW9: < 0.83 | BX9: 18.55 | BY9: 2.97 | BZ9: 4.98 | CA9: < -1.46 | CB9: 2.72 | CC9: 0.6 | CD9: < -0.38 | CE9: < 0.05 | CF9: 0.26 | CG9: < -0.15 | CH9: < 0.1 | CI9: < -1.28 | CJ9: < -0.18 | CK9: 0.85 | CL9: 0.19 | CN9: < -3.05 | CO9: 3.05 | CP9: 1.14 | CR9: 12.57 | CS9: 13.52
A10: XBL.BA2001.3 | B10: Leachate | C10: Bioleach Acid, Dotiki Pile -1.5 inch, 2 mm, 600°C, 20 min, muffle furnace, 40 g / 200 ml, 75 °C | D10: DTK-CR | F10: Processing | G10: Coal Mining | H10: Coarse Refuse | I10: Illinois Basin | J10: N/A | K10: West Kentucky No.13 Coal Seam | L10: Kentucky | M10: Webster | N10: NA | O10: Kentucky | P10: Webster | Q10: NA | R10: Coarse Refuse | AJ10: N/A | AK10: ICP-OES | AL10: N/A | AM10: < 0.97 | AN10: 124.95 | AO10: 518.98 | AP10: 1329.8 | AQ10: 282.1 | AR10: 246.6 | AS10: 235.26 | AT10: 832.3 | AU10: 0.62 | AW10: 1.24 | AX10: 1.22 | AY10: 65.79 | AZ10: > 9775.23 | BA10: 2.21 | BB10: 6.42 | BC10: 26.57 | BD10: 65.06 | BE10: < -2.85 | BG10: 5.08 | BH10: < -2.72 | BJ10: 1.04 | BO10: 2.25 | BS10: < 0.01 | BT10: 13.06 | BU10: < 2.54 | BV10: 12.45 | BW10: < 0.75 | BX10: 21.66 | BY10: 3.3 | BZ10: 6.05 | CA10: < -1.14 | CB10: 3.35 | CC10: 0.76 | CD10: < -0.37 | CE10: < 0.12 | CF10: 0.19 | CG10: < -0.09 | CH10: < 0.1 | CI10: < -1.18 | CJ10: < -0.23 | CK10: 0.81 | CL10: 0.17 | CN10: < -3.12 | CO10: 2.46 | CP10: 1.2 | CR10: 14.63 | CS10: 15.67
A11: XBL.BA2001.4 | B11: Leachate | C11: Bioleach Acid, Dotiki Pile -1.5 inch, 2 mm, 600°C, 20 min, muffle furnace, 40 g / 200 ml, 75 °C | D11: DTK-CR | F11: Processing | G11: Coal Mining | H11: Coarse Refuse | I11: Illinois Basin | J11: N/A | K11: West Kentucky No.13 Coal Seam | L11: Kentucky | M11: Webster | N11: NA | O11: Kentucky | P11: Webster | Q11: NA | R11: Coarse Refuse | AJ11: N/A | AK11: ICP-OES | AL11: N/A | AM11: 1.25 | AN11: 122.13 | AO11: 568.9 | AP11: 2053.5 | AQ11: 385.5 | AR11: 219.3 | AS11: 4.83 | AT11: 861.6 | AU11: 0.69 | AW11: 1.06 | AX11: 1.52 | AY11: 71.55 | AZ11: > 7433.6 | BA11: 2.48 | BB11: 7.19 | BC11: 27.22 | BD11: 68.28 | BE11: < -2.11 | BG11: 4.64 | BH11: 1.42 | BJ11: 1.21 | BO11: 1.93 | BS11: < -0.01 | BT11: 10.59 | BU11: < 2.18 | BV11: 16.1 | BW11: < 0.42 | BX11: 16.95 | BY11: 3.12 | BZ11: 6.08 | CA11: < -0.58 | CB11: 3.56 | CC11: 0.79 | CD11: < -0.07 | CE11: < 0.3 | CF11: 0.21 | CG11: 0.08 | CH11: < 0.08 | CI11: < -0.82 | CJ11: < -0.25 | CK11: 0.64 | CL11: 0.14 | CN11: < -2.77 | CO11: 3.25 | CP11: 1.09 | CR11: 14.62 | CS11: 15.83
A12: XBL.BA2001.5 | B12: Leachate | C12: Bioleach Acid, Dotiki Pile -1.5 inch, 2 mm, 600°C, 20 min, muffle furnace, 40 g / 200 ml, 75 °C | D12: DTK-CR | F12: Processing | G12: Coal Mining | H12: Coarse Refuse | I12: Illinois Basin | J12: N/A | K12: West Kentucky No.13 Coal Seam | L12: Kentucky | M12: Webster | N12: NA | O12: Kentucky | P12: Webster | Q12: NA | R12: Coarse Refuse | AJ12: N/A | AK12: ICP-OES | AL12: N/A | AM12: < 0.56 | AN12: 102.35 | AO12: 685 | AP12: 2802.1 | AQ12: 481.7 | AR12: 208.8 | AS12: < 2.36 | AT12: 944.9 | AU12: 0.74 | AW12: 0.94 | AX12: 1.75 | AY12: 75.22 | AZ12: > 5298.76 | BA12: 2.65 | BB12: 7.71 | BC12: 27.5 | BD12: 70.4 | BE12: < -1.27 | BG12: 4.38 | BH12: 1.47 | BJ12: 1.29 | BO12: 1.62 | BS12: < -0.01 | BT12: 8.37 | BU12: < 1.17 | BV12: 18.6 | BW12: < 0.2 | BX12: 8.62 | BY12: 2.68 | BZ12: 6.04 | CA12: < -0.01 | CB12: 3.66 | CC12: 0.83 | CD12: < 0 | CE12: < 0.42 | CF12: 0.14 | CG12: 0.22 | CH12: < 0.08 | CI12: < -0.53 | CJ12: < -0.15 | CK12: 0.48 | CL12: 0.12 | CN12: < -2.3 | CO12: 3.91 | CP12: 0.93 | CR12: 14.17 | CS12: 15.46
A13: XBL.BA2001.6 | B13: Leachate | C13: Bioleach Acid, Dotiki Pile -1.5 inch, 2 mm, 600°C, 20 min, muffle furnace, 40 g / 200 ml, 75 °C | D13: DTK-CR | F13: Processing | G13: Coal Mining | H13: Coarse Refuse | I13: Illinois Basin | J13: N/A | K13: West Kentucky No.13 Coal Seam | L13: Kentucky | M13: Webster | N13: NA | O13: Kentucky | P13: Webster | Q13: NA | R13: Coarse Refuse | AJ13: N/A | AK13: ICP-OES | AL13: N/A | AM13: < 0.26 | AN13: 85.02 | AO13: 755.1 | AP13: 3303.1 | AQ13: 526.7 | AR13: 186.1 | AS13: < 2.42 | AT13: 954.4 | AU13: 0.77 | AW13: 0.84 | AX13: 1.91 | AY13: 78.01 | AZ13: 3964.5 | BA13: 2.78 | BB13: 8.12 | BC13: 27.74 | BD13: 71.86 | BE13: < -0.86 | BG13: 3.73 | BH13: 1.34 | BJ13: 1.33 | BO13: 1.39 | BS13: < 0 | BT13: 6.75 | BU13: < 0.92 | BV13: 20.47 | BW13: < 0.46 | BX13: 4.35 | BY13: 2.18 | BZ13: 5.39 | CA13: < 0.34 | CB13: 3.73 | CC13: 0.89 | CD13: < -0.03 | CE13: < 0.5 | CF13: 0.14 | CG13: 0.32 | CH13: < 0.06 | CI13: < -0.3 | CJ13: < -0.1 | CK13: 0.37 | CL13: 0.09 | CN13: < -2.15 | CO13: 4.4 | CP13: 0.75 | CR13: 13.11 | CS13: 14.44
A14: XBL.BA2001.7 | B14: Leachate | C14: Bioleach Acid, Dotiki Pile -1.5 inch, 2 mm, 600°C, 20 min, muffle furnace, 40 g / 200 ml, 75 °C | D14: DTK-CR | F14: Processing | G14: Coal Mining | H14: Coarse Refuse | I14: Illinois Basin | J14: N/A | K14: West Kentucky No.13 Coal Seam | L14: Kentucky | M14: Webster | N14: NA | O14: Kentucky | P14: Webster | Q14: NA | R14: Coarse Refuse | AJ14: N/A | AK14: ICP-OES | AL14: N/A | AM14: < 0.16 | AN14: 61.26 | AO14: 808.7 | AP14: 3885.5 | AQ14: 536.4 | AR14: 144.3 | AS14: 2.29 | AT14: 857.6 | AU14: 0.8 | AW14: 0.75 | AX14: 2.09 | AY14: 82.21 | AZ14: 1940.2 | BA14: 2.96 | BB14: 8.8 | BC14: 28.1 | BD14: 74.5 | BE14: < -0.49 | BG14: 2.57 | BH14: 1.69 | BJ14: 1.39 | BO14: 1.16 | BS14: < -0.01 | BT14: 4.89 | BU14: < 0.39 | BV14: 22.9 | BW14: < 0.28 | BX14: < 1.09 | BY14: 1.24 | BZ14: 4.16 | CA14: 0.56 | CB14: 3.7 | CC14: 0.86 | CD14: 0.01 | CE14: < 0.61 | CF14: 0.1 | CG14: 0.43 | CH14: < 0.06 | CI14: < -0.08 | CJ14: < -0.03 | CK14: 0.24 | CL14: 0.05 | CN14: < -1.31 | CO14: 5.42 | CP14: 0.41 | CR14: 11.35 | CS14: 12.74
A15: XBL.BA2001.8 | B15: Leachate | C15: Bioleach Acid, Dotiki Pile -1.5 inch, 2 mm, 600°C, 20 min, muffle furnace, 40 g / 200 ml, 75 °C | D15: DTK-CR | F15: Processing | G15: Coal Mining | H15: Coarse Refuse | I15: Illinois Basin | J15: N/A | K15: West Kentucky No.13 Coal Seam | L15: Kentucky | M15: Webster | N15: NA | O15: Kentucky | P15: Webster | Q15: NA | R15: Coarse Refuse | AJ15: N/A | AK15: ICP-OES | AL15: N/A | AM15: < 0.17 | AN15: 48.95 | AO15: 858 | AP15: 4264.7 | AQ15: 503.2 | AR15: 106 | AS15: 10.16 | AT15: 791.1 | AU15: 0.82 | AW15: 0.66 | AX15: 2.2 | AY15: 85.18 | AZ15: 959.8 | BA15: 3.1 | BB15: 9.42 | BC15: 27.95 | BD15: 76.24 | BE15: < -0.2 | BG15: 1.52 | BH15: 1.47 | BJ15: 1.42 | BO15: 1.04 | BS15: < 0.01 | BT15: 4.1 | BU15: < 0.08 | BV15: 24.63 | BW15: < 0.15 | BX15: < 0.78 | BY15: < 0.62 | BZ15: 2.9 | CA15: < 0.52 | CB15: 3.53 | CC15: 0.85 | CD15: 0.11 | CE15: < 0.62 | CF15: 0.12 | CG15: 0.49 | CH15: < 0.07 | CI15: < 0.07 | CJ15: < 0 | CK15: 0.18 | CL15: 0.03 | CN15: < -1.14 | CO15: 5.91 | CP15: 0.33 | CR15: 8.21 | CS15: 9.63
A16: XBL.BA2001.9 | B16: Leachate | C16: Bioleach Acid, Dotiki Pile -1.5 inch, 2 mm, 600°C, 20 min, muffle furnace, 40 g / 200 ml, 75 °C | D16: DTK-CR | F16: Processing | G16: Coal Mining | H16: Coarse Refuse | I16: Illinois Basin | J16: N/A | K16: West Kentucky No.13 Coal Seam | L16: Kentucky | M16: Webster | N16: NA | O16: Kentucky | P16: Webster | Q16: NA | R16: Coarse Refuse | AJ16: N/A | AK16: ICP-OES | AL16: N/A | AM16: < 0.13 | AN16: 44.42 | AO16: 882.6 | AP16: 4379.2 | AQ16: 460.5 | AR16: 87.69 | AS16: 10.18 | AT16: 758.4 | AU16: 0.79 | AW16: 0.6 | AX16: 2.16 | AY16: 84.04 | AZ16: 612.3 | BA16: 3.08 | BB16: 9.08 | BC16: 27.01 | BD16: 74.96 | BE16: < -0.16 | BG16: < 0.87 | BH16: 1.99 | BJ16: 1.4 | BO16: 0.95 | BS16: < 0.01 | BT16: 3.76 | BU16: < -0.09 | BV16: 25.14 | BW16: < 0.1 | BX16: < 0.93 | BY16: < 0.45 | BZ16: 2.28 | CA16: < 0.6 | CB16: 3.27 | CC16: 0.87 | CD16: 0.16 | CE16: < 0.64 | CF16: < 0.09 | CG16: 0.5 | CH16: < 0.07 | CI16: 0.12 | CJ16: < 0.02 | CK16: 0.16 | CL16: 0.03 | CN16: < -1.14 | CO16: 5.95 | CP16: 0.27 | CR16: 7.39 | CS16: 8.79
A17: XBL.BA2001.EFF | B17: Leachate | C17: Bioleach Acid, Dotiki Pile -1.5 inch, 2 mm, 600°C, 20 min, muffle furnace, 40 g / 200 ml, 75 °C | D17: DTK-CR | F17: Processing | G17: Coal Mining | H17: Coarse Refuse | I17: Illinois Basin | J17: N/A | K17: West Kentucky No.13 Coal Seam | L17: Kentucky | M17: Webster | N17: NA | O17: Kentucky | P17: Webster | Q17: NA | R17: Coarse Refuse | AJ17: N/A | AK17: ICP-OES | AL17: N/A | AM17: 0.284 | AN17: 41.826 | AO17: 873.9 | AP17: 4311.4 | AQ17: 444.2 | AR17: 84.5 | AS17: 5.933 | AT17: 743.8 | AU17: 0.712 | AW17: 0.562 | AX17: 1.839 | AY17: 84.41 | AZ17: 538.99 | BA17: 2.573 | BB17: 7.532 | BC17: 26.97 | BD17: 75.06 | BE17: < -0.034 | BG17: 0.657 | BH17: 1.281 | BJ17: 1.289 | BO17: 0.791 | BS17: 0.005 | BT17: 3.166 | BU17: 0.562 | BV17: 24.92 | BW17: < 0.044 | BX17: 0.796 | BY17: 0.324 | BZ17: 2.323 | CA17: 0.684 | CB17: 2.992 | CC17: 0.774 | CD17: 0.137 | CE17: 0.584 | CF17: 0.075 | CG17: 0.476 | CH17: 0.057 | CI17: 0.076 | CJ17: < -0.007 | CK17: 0.14 | CL17: 0.024 | CN17: < -0.783 | CO17: 4.963 | CP17: 0.216 | CR17: 8.666 | CS17: 9.955
A18: XBL.BA2002.1L | B18: Leachate | C18: Bioleach Acid, Dotiki Pile -1.5 inch, 80 mesh, 600°C, 2 hour, muffle furnace, 40 g / 200 ml, 75 °C | D18: DTK-CR | F18: Processing | G18: Coal Mining | H18: Coarse Refuse | I18: Illinois Basin | J18: N/A | K18: West Kentucky No.13 Coal Seam | L18: Kentucky | M18: Webster | N18: NA | O18: Kentucky | P18: Webster | Q18: NA | R18: Coarse Refuse | AJ18: N/A | AK18: ICP-OES | AL18: N/A | AM18: 1.14 | AN18: 88.19 | AO18: 469.74 | AP18: > 760 | AQ18: > 183.15 | AR18: > 249.46 | AS18: 298.63 | AT18: > 761.03 | AU18: 0.6 | AW18: 1.04 | AX18: 0.88 | AY18: 52.26 | AZ18: > 9588.72 | BA18: 1.82 | BB18: 5.26 | BC18: 24.41 | BD18: 58.45 | BE18: < -2.92 | BG18: 4.56 | BH18: < -4.05 | BJ18: 0.96 | BN18: < -0.29 | BO18: 2.3 | BS18: 0.84 | BT18: 14.35 | BU18: 2.54 | BV18: 8.21 | BW18: 1.11 | BX18: 24.17 | BY18: 4.2 | BZ18: 7.44 | CA18: < -0.88 | CB18: 3.52 | CC18: 0.56 | CD18: < -0.54 | CE18: < 0.07 | CF18: < 0.05 | CG18: < -2.01 | CH18: < 0.1 | CI18: < -1.11 | CJ18: < -0.3 | CK18: 0.96 | CL18: 0.17 | CN18: < 0.37 | CO18: 3.03 | CP18: 1.3 | CR18: 16.85 | CS18: 17.81
A19: XBL.BA2002.2L | B19: Leachate | C19: Bioleach Acid, Dotiki Pile -1.5 inch, 80 mesh, 600°C, 2 hour, muffle furnace, 40 g / 200 ml, 75 °C | D19: DTK-CR | F19: Processing | G19: Coal Mining | H19: Coarse Refuse | I19: Illinois Basin | J19: N/A | K19: West Kentucky No.13 Coal Seam | L19: Kentucky | M19: Webster | N19: NA | O19: Kentucky | P19: Webster | Q19: NA | R19: Coarse Refuse | AJ19: N/A | AK19: ICP-OES | AL19: N/A | AM19: 1.16 | AN19: 102.39 | AO19: 511.38 | AP19: > 1243.28 | AQ19: > 287.26 | AR19: > 258.83 | AS19: 340.14 | AT19: > 806.3 | AU19: 0.67 | AW19: 0.71 | AX19: 1.15 | AY19: 54.74 | AZ19: > 9532.28 | BA19: 1.97 | BB19: 5.62 | BC19: 24.67 | BD19: 59.59 | BE19: < -2.85 | BG19: 4.75 | BH19: < -3.39 | BJ19: 1.03 | BN19: < -0.31 | BO19: 2.29 | BS19: 0.31 | BT19: 14.38 | BU19: 2.71 | BV19: 9.89 | BW19: 1.16 | BX19: 28.63 | BY19: 4.96 | BZ19: 9.09 | CA19: < -0.56 | CB19: 4.29 | CC19: 0.72 | CD19: < -0.51 | CE19: < 0.16 | CF19: < 0.05 | CG19: < -1.95 | CH19: < 0.09 | CI19: < -1.1 | CJ19: < -0.32 | CK19: 0.96 | CL19: 0.17 | CN19: < 0.15 | CO19: 3.09 | CP19: 1.55 | CR19: 20.19 | CS19: 21.22
A20: XBL.BA2002.3L | B20: Leachate | C20: Bioleach Acid, Dotiki Pile -1.5 inch, 80 mesh, 600°C, 2 hour, muffle furnace, 40 g / 200 ml, 75 °C | D20: DTK-CR | F20: Processing | G20: Coal Mining | H20: Coarse Refuse | I20: Illinois Basin | J20: N/A | K20: West Kentucky No.13 Coal Seam | L20: Kentucky | M20: Webster | N20: NA | O20: Kentucky | P20: Webster | Q20: NA | R20: Coarse Refuse | AJ20: N/A | AK20: ICP-OES | AL20: N/A | AM20: 1.16 | AN20: 103.04 | AO20: > 553.98 | AP20: > 1793.29 | AQ20: > 375.33 | AR20: > 228.33 | AS20: 3.69 | AT20: > 821.2 | AU20: 0.69 | AW20: 0.48 | AX20: 1.33 | AY20: 57.06 | AZ20: > 6969.6 | BA20: 2.05 | BB20: 6.02 | BC20: 24.42 | BD20: 60.53 | BE20: < -1.97 | BG20: 4.35 | BH20: 1.24 | BJ20: 1.15 | BN20: < -0.23 | BO20: 1.86 | BS20: 0.01 | BT20: 10.98 | BU20: < 2.11 | BV20: 11.73 | BW20: < 0.65 | BX20: 23.58 | BY20: 4.3 | BZ20: 8.34 | CA20: < 0.07 | CB20: 4.14 | CC20: 0.77 | CD20: < -0.33 | CE20: < 0.28 | CF20: < 0.09 | CG20: < -1.29 | CH20: < 0.09 | CI20: < -0.71 | CJ20: < -0.27 | CK20: 0.72 | CL20: 0.14 | CN20: < 0.21 | CO20: 2.97 | CP20: 1.32 | CR20: 18.41 | CS20: 19.56
A21: XBL.BA2002.4L | B21: Leachate | C21: Bioleach Acid, Dotiki Pile -1.5 inch, 80 mesh, 600°C, 2 hour, muffle furnace, 40 g / 200 ml, 75 °C | D21: DTK-CR | F21: Processing | G21: Coal Mining | H21: Coarse Refuse | I21: Illinois Basin | J21: N/A | K21: West Kentucky No.13 Coal Seam | L21: Kentucky | M21: Webster | N21: NA | O21: Kentucky | P21: Webster | Q21: NA | R21: Coarse Refuse | AJ21: N/A | AK21: ICP-OES | AL21: N/A | AM21: < 0.43 | AN21: 75.62 | AO21: > 613.75 | AP21: > 2628.67 | AQ21: > 466.83 | AR21: > 179.57 | AS21: < 1.96 | AT21: > 799.02 | AU21: 0.74 | AW21: 0.41 | AX21: 1.61 | AY21: 60.44 | AZ21: > 3614.4 | BA21: 2.23 | BB21: 6.65 | BC21: 24.57 | BD21: 62.24 | BE21: < -0.91 | BG21: 3.66 | BH21: 1.31 | BJ21: 1.21 | BN21: < -0.13 | BO21: 1.34 | BS21: 0.01 | BT21: 6.8 | BU21: < 1.1 | BV21: 14.48 | BW21: < 0.57 | BX21: 6.62 | BY21: 2.89 | BZ21: 6.74 | CA21: < 0.46 | CB21: 3.84 | CC21: 0.79 | CD21: < -0.19 | CE21: < 0.48 | CF21: < 0.04 | CG21: < -0.45 | CH21: < 0.07 | CI21: < -0.28 | CJ21: < -0.17 | CK21: 0.42 | CL21: 0.09 | CN21: < 0.17 | CO21: 3.82 | CP21: 0.98 | CR21: 14.77 | CS21: 15.98
A22: XBL.BA2002.5L | B22: Leachate | C22: Bioleach Acid, Dotiki Pile -1.5 inch, 80 mesh, 600°C, 2 hour, muffle furnace, 40 g / 200 ml, 75 °C | D22: DTK-CR | F22: Processing | G22: Coal Mining | H22: Coarse Refuse | I22: Illinois Basin | J22: N/A | K22: West Kentucky No.13 Coal Seam | L22: Kentucky | M22: Webster | N22: NA | O22: Kentucky | P22: Webster | Q22: NA | R22: Coarse Refuse | AJ22: N/A | AK22: ICP-OES | AL22: N/A | AM22: < 0.34 | AN22: 58.85 | AO22: > 658.35 | AP22: > 3128.35 | AQ22: > 484.93 | AR22: > 144.42 | AS22: < 2.07 | AT22: > 726.7 | AU22: 0.76 | AW22: 0.3 | AX22: 1.75 | AY22: 63.26 | AZ22: > 1940.88 | BA22: 2.34 | BB22: 7.09 | BC22: 24.82 | BD22: 63.86 | BE22: < -0.68 | BG22: 2.72 | BH22: 1.31 | BJ22: 1.23 | BN22: < -0.06 | BO22: 1.1 | BS22: 0.01 | BT22: 4.79 | BU22: < 0.5 | BV22: 16.4 | BW22: < 0.27 | BX22: 1.85 | BY22: 1.78 | BZ22: 5.3 | CA22: 0.71 | CB22: 3.67 | CC22: 0.79 | CD22: < -0.08 | CE22: < 0.5 | CF22: < 0.02 | CG22: < -0.03 | CH22: < 0.07 | CI22: < -0.11 | CJ22: < -0.06 | CK22: 0.27 | CL22: 0.05 | CN22: < 0.23 | CO22: 4.36 | CP22: 0.61 | CR22: 12.57 | CS22: 13.8
A23: XBL.BA2002.6L | B23: Leachate | C23: Bioleach Acid, Dotiki Pile -1.5 inch, 80 mesh, 600°C, 2 hour, muffle furnace, 40 g / 200 ml, 75 °C | D23: DTK-CR | F23: Processing | G23: Coal Mining | H23: Coarse Refuse | I23: Illinois Basin | J23: N/A | K23: West Kentucky No.13 Coal Seam | L23: Kentucky | M23: Webster | N23: NA | O23: Kentucky | P23: Webster | Q23: NA | R23: Coarse Refuse | AJ23: N/A | AK23: ICP-OES | AL23: N/A | AM23: < 0.33 | AN23: 49.74 | AO23: > 670.81 | AP23: > 3288.43 | AQ23: > 463.61 | AR23: > 118.61 | AS23: < 1.55 | AT23: > 654.16 | AU23: 0.77 | AW23: 0.24 | AX23: 1.76 | AY23: 64.25 | AZ23: > 1158.16 | BA23: 2.41 | BB23: 7.21 | BC23: 24.53 | BD23: 64.21 | BE23: < -0.31 | BG23: 1.95 | BH23: 1.58 | BJ23: 1.23 | BN23: < -0.03 | BO23: 0.97 | BS23: 0.02 | BT23: 3.87 | BU23: < 0.42 | BV23: 17.32 | BW23: < 0.2 | BX23: 1.08 | BY23: 1.13 | BZ23: 4.13 | CA23: 0.72 | CB23: 3.25 | CC23: 0.76 | CD23: 0.02 | CE23: < 0.54 | CF23: < -0.04 | CG23: 0.18 | CH23: < 0.08 | CI23: < 0.02 | CJ23: < -0.03 | CK23: 0.2 | CL23: 0.03 | CN23: < 0.15 | CO23: 4.71 | CP23: 0.46 | CR23: 10.42 | CS23: 11.65
A24: XBL.BA2002.7L | B24: Leachate | C24: Bioleach Acid, Dotiki Pile -1.5 inch, 80 mesh, 600°C, 2 hour, muffle furnace, 40 g / 200 ml, 75 °C | D24: DTK-CR | F24: Processing | G24: Coal Mining | H24: Coarse Refuse | I24: Illinois Basin | J24: N/A | K24: West Kentucky No.13 Coal Seam | L24: Kentucky | M24: Webster | N24: NA | O24: Kentucky | P24: Webster | Q24: NA | R24: Coarse Refuse | AJ24: N/A | AK24: ICP-OES | AL24: N/A | AM24: < 0.29 | AN24: 41.33 | AO24: > 689.59 | AP24: > 3477.68 | AQ24: > 400.84 | AR24: 91.2 | AS24: 7.93 | AT24: > 584.21 | AU24: 0.74 | AW24: 0.17 | AX24: 1.78 | AY24: 64.73 | AZ24: 526.33 | BA24: 2.44 | BB24: 7.41 | BC24: 23.79 | BD24: 64.1 | BE24: < -0.2 | BG24: 1.19 | BH24: 1.39 | BJ24: 1.23 | BN24: < -0.02 | BO24: 0.86 | BS24: 0.01 | BT24: 3.21 | BU24: < 0.29 | BV24: 18.09 | BW24: < 0.11 | BX24: < 0.63 | BY24: < 0.66 | BZ24: 2.94 | CA24: 0.76 | CB24: 3.05 | CC24: 0.72 | CD24: 0.13 | CE24: < 0.52 | CF24: < -0.02 | CG24: 0.31 | CH24: < 0.07 | CI24: 0.06 | CJ24: < -0.04 | CK24: 0.15 | CL24: 0.02 | CN24: < -0.14 | CO24: 5.17 | CP24: 0.31 | CR24: 8.14 | CS24: 9.37
A25: XBL.BA2002.8L | B25: Leachate | C25: Bioleach Acid, Dotiki Pile -1.5 inch, 80 mesh, 600°C, 2 hour, muffle furnace, 40 g / 200 ml, 75 °C | D25: DTK-CR | F25: Processing | G25: Coal Mining | H25: Coarse Refuse | I25: Illinois Basin | J25: N/A | K25: West Kentucky No.13 Coal Seam | L25: Kentucky | M25: Webster | N25: NA | O25: Kentucky | P25: Webster | Q25: NA | R25: Coarse Refuse | AJ25: N/A | AK25: ICP-OES | AL25: N/A | AM25: < 0.26 | AN25: 39.29 | AO25: > 697.11 | AP25: > 3490.42 | AQ25: > 353.47 | AR25: 77.85 | AS25: 11.96 | AT25: > 552.17 | AU25: 0.72 | AW25: 0.14 | AX25: 1.75 | AY25: 64.7 | AZ25: 302.12 | BA25: 2.48 | BB25: 7.39 | BC25: 23.19 | BD25: 63.65 | BE25: < -0.14 | BG25: < 0.62 | BH25: 0.97 | BJ25: 1.22 | BN25: < -0.02 | BO25: 0.83 | BS25: 0.01 | BT25: 3.07 | BU25: < 0.23 | BV25: 18.36 | BW25: < 0.11 | BX25: < 0.98 | BY25: < 0.49 | BZ25: 2.88 | CA25: 0.88 | CB25: 2.88 | CC25: 0.72 | CD25: 0.14 | CE25: < 0.53 | CF25: < -0.01 | CG25: 0.36 | CH25: < 0.06 | CI25: 0.11 | CJ25: < 0.01 | CK25: 0.13 | CL25: 0.02 | CN25: < 0.01 | CO25: 5.25 | CP25: 0.25 | CR25: 8.12 | CS25: 9.34
A26: XBL.BA2002.9L | B26: Leachate | C26: Bioleach Acid, Dotiki Pile -1.5 inch, 80 mesh, 600°C, 2 hour, muffle furnace, 40 g / 200 ml, 75 °C | D26: DTK-CR | F26: Processing | G26: Coal Mining | H26: Coarse Refuse | I26: Illinois Basin | J26: N/A | K26: West Kentucky No.13 Coal Seam | L26: Kentucky | M26: Webster | N26: NA | O26: Kentucky | P26: Webster | Q26: NA | R26: Coarse Refuse | AJ26: N/A | AK26: ICP-OES | AL26: N/A | AM26: < 0.26 | AN26: 39.09 | AO26: > 712.69 | AP26: > 3527.98 | AQ26: > 321.17 | AR26: 71.16 | AS26: 11.85 | AT26: 539.73 | AU26: 0.69 | AW26: 0.13 | AX26: 1.78 | AY26: 65.79 | AZ26: 179.74 | BA26: 2.53 | BB26: 7.65 | BC26: 23.01 | BD26: 64.35 | BE26: < -0.07 | BG26: < 0.46 | BH26: 1.21 | BJ26: 1.24 | BN26: < 0.01 | BO26: 0.83 | BS26: 0.01 | BT26: 3.08 | BU26: < 0.39 | BV26: 18.74 | BW26: < 0.07 | BX26: 1.05 | BY26: < 0.44 | BZ26: 2.59 | CA26: 0.83 | CB26: 2.73 | CC26: 0.73 | CD26: 0.14 | CE26: < 0.53 | CF26: < 0.02 | CG26: 0.39 | CH26: < 0.03 | CI26: 0.11 | CJ26: < 0 | CK26: 0.12 | CL26: 0.02 | CN26: < -0.16 | CO26: 5.42 | CP26: 0.27 | CR26: 7.66 | CS26: 8.9
A27: XBL.BA2002.EFF | B27: Leachate | C27: Bioleach Acid, Dotiki Pile -1.5 inch, 80 mesh, 600°C, 2 hour, muffle furnace, 40 g / 200 ml, 75 °C | D27: DTK-CR | F27: Processing | G27: Coal Mining | H27: Coarse Refuse | I27: Illinois Basin | J27: N/A | K27: West Kentucky No.13 Coal Seam | L27: Kentucky | M27: Webster | N27: NA | O27: Kentucky | P27: Webster | Q27: NA | R27: Coarse Refuse | AJ27: N/A | AK27: ICP-OES | AL27: N/A | AM27: < 0.18 | AN27: 28.12 | AO27: 499.49 | AP27: > 2484.37 | AQ27: > 215.84 | AR27: 46.95 | AS27: 7.37 | AT27: 496.79 | AU27: 0.46 | AW27: 0.08 | AX27: 1.22 | AY27: 45.46 | AZ27: 117.44 | BA27: 1.77 | BB27: 5.26 | BC27: 15.98 | BD27: 44.52 | BE27: < -0.07 | BG27: < 0.37 | BH27: < 0.21 | BJ27: 0.85 | BN27: < 0 | BO27: 0.56 | BS27: 0.01 | BT27: 2.13 | BU27: < 0.11 | BV27: 12.91 | BW27: < 0.08 | BX27: < 0.9 | BY27: < 0.31 | BZ27: < 1.91 | CA27: 0.68 | CB27: 2.11 | CC27: 0.51 | CD27: 0.1 | CE27: < 0.39 | CF27: < 0.05 | CG27: 0.28 | CH27: < 0.05 | CI27: 0.1 | CJ27: < 0 | CK27: 0.08 | CL27: 0.01 | CN27: < -0.32 | CO27: 3.64 | CP27: 0.14 | CR27: 3.87 | CS27: 4.72
A28: XBL.BA2002 | B28: Leachate | C28: Bioleach Acid, Dotiki Pile -1.5 inch, 80 mesh, 600°C, 2 hour, muffle furnace, 40 g / 200 ml, 75 °C | D28: DTK-CR | F28: Processing | G28: Coal Mining | H28: Coarse Refuse | I28: Illinois Basin | J28: N/A | K28: West Kentucky No.13 Coal Seam | L28: Kentucky | M28: Webster | N28: NA | O28: Kentucky | P28: Webster | Q28: NA | R28: Coarse Refuse | AJ28: N/A | AK28: ICP-OES | AL28: N/A | AM28: 1.1 | AN28: 9.03 | AO28: 204.19 | AP28: 26.3 | AQ28: 34.94 | AR28: 197.1 | AS28: 34.69 | AT28: 509.87 | AU28: 0.06 | AW28: 0.29 | AX28: 0.45 | AY28: 37.11 | AZ28: > 8762.55 | BA28: 1.4 | BB28: 4.28 | BC28: 19.58 | BD28: 50.56 | BE28: < -2.71 | BG28: 2.48 | BH28: < -3.22 | BJ28: 0.32 | BN28: < -0.27 | BO28: 2.1 | BS28: 0.02 | BT28: 11.77 | BU28: < 2.43 | BV28: 0.06 | BW28: 1.05 | BX28: 1.2 | BY28: < 0.3 | BZ28: < 0.44 | CA28: < -1.77 | CB28: 0.13 | CC28: < -0.1 | CD28: < -0.58 | CE28: < -0.34 | CF28: < 0.08 | CG28: < -2.02 | CH28: < 0.02 | CI28: < -1.09 | CJ28: < -0.28 | CK28: 0.82 | CL28: 0.14 | CN28: < -0.02 | CO28: 0.94 | CP28: 0.3 | CR28: 1.09 | CS28: 1.41
A29: XBL.BA.2003.EFF | B29: Leachate | C29: Bioleach Acid, Dotiki Pile -1.5 inch, 2 mm, 600°C, 20 min, muffle furnace, 40 g / 200 ml, 75 °C | D29: DTK-CR | F29: Processing | G29: Coal Mining | H29: Coarse Refuse | I29: Illinois Basin | J29: N/A | K29: West Kentucky No.13 Coal Seam | L29: Kentucky | M29: Webster | N29: NA | O29: Kentucky | P29: Webster | Q29: NA | R29: Coarse Refuse | AJ29: N/A | AK29: ICP-OES | AL29: N/A | AM29: 0.62 | AN29: 116.81 | AO29: 634 | AP29: 2305.5 | AQ29: 512.2 | AR29: 213.7 | AS29: 1.394 | AT29: 834 | AU29: 0.62 | AW29: 0.713 | AX29: 1.231 | AY29: 71.8 | AZ29: > 4231.47 | BA29: 1.938 | BB29: 5.496 | BC29: 26.91 | BD29: 67 | BE29: < -0.974 | BG29: 3.378 | BH29: 1.695 | BJ29: 1.055 | BN29: < -0.178 | BO29: 1.474 | BS29: 0.008 | BT29: 8.006 | BU29: 1.916 | BV29: 16.55 | BW29: 0.733 | BX29: 14.49 | BY29: 2.482 | BZ29: 5.469 | CA29: < -0.028 | CB29: 3.045 | CC29: 0.577 | CD29: < -0.284 | CE29: 0.25 | CF29: 0.114 | CG29: < -0.961 | CH29: 0.059 | CI29: < -0.596 | CJ29: < -0.274 | CK29: 0.614 | CL29: 0.131 | CN29: < 0.111 | CO29: 2.556 | CP29: 0.921 | CR29: 12.741 | CS29: 13.796
A30: XBL.BA.2003.F | B30: Bioleach Acid | C30: Bioleach Acid generated from bio-oxidation | D30: DTK-CR | F30: Processing | G30: Coal Mining | H30: Coarse Refuse | I30: Illinois Basin | J30: N/A | K30: West Kentucky No.13 Coal Seam | L30: Kentucky | M30: Webster | N30: NA | O30: Kentucky | P30: Webster | Q30: NA | R30: Coarse Refuse | AJ30: N/A | AK30: ICP-OES | AL30: N/A | AM30: 1.33 | AN30: 11.66 | AO30: 248.57 | AP30: 30.99 | AQ30: 45.07 | AR30: 227.6 | AS30: 54.01 | AT30: 616.8 | AU30: 0.07 | AW30: 0.36 | AX30: 0.55 | AY30: 45.32 | AZ30: > 10623.7 | BA30: 1.62 | BB30: 5.22 | BC30: 24.55 | BD30: 60.82 | BE30: < -3.3 | BG30: 3.18 | BH30: < -4.97 | BJ30: 0.4 | BN30: < -0.41 | BO30: 2.54 | BS30: 0.01 | BT30: 14.1 | BU30: 2.96 | BV30: 0.07 | BW30: 1.2 | BX30: < 0.84 | BY30: < 0.31 | BZ30: < 0.42 | CA30: < -2.26 | CB30: 0.32 | CC30: < -0.11 | CD30: < -0.7 | CE30: < -0.35 | CF30: < 0.09 | CG30: < -2.49 | CH30: < 0.05 | CI30: < -1.42 | CJ30: < -0.3 | CK30: 1.04 | CL30: 0.19 | CN30: < 0.13 | CO30: 1.16 | CP30: 0.28 | CR30: 1.55 | CS30: 1.95
A31: XBL.BA.2003.L | B31: Leachate | C31: Bioleach Acid, Dotiki Pile -1.5 inch, 2 mm, 600°C, 20 min, muffle furnace, 40 g / 200 ml, 75 °C | D31: DTK-CR | F31: Processing | G31: Coal Mining | H31: Coarse Refuse | I31: Illinois Basin | J31: N/A | K31: West Kentucky No.13 Coal Seam | L31: Kentucky | M31: Webster | N31: NA | O31: Kentucky | P31: Webster | Q31: NA | R31: Coarse Refuse | AJ31: N/A | AK31: ICP-OES | AL31: N/A | AM31: 1.03 | AN31: 122.03 | AO31: 627.8 | AP31: 2154.6 | AQ31: 512.1 | AR31: 225.5 | AS31: 4.34 | AT31: 848.4 | AU31: 0.74 | AW31: 0.93 | AX31: 1.53 | AY31: 72.05 | AZ31: > 7076.43 | BA31: 2.45 | BB31: 7.2 | BC31: 27.38 | BD31: 67.68 | BE31: < -1.98 | BG31: 4.78 | BH31: 1.12 | BJ31: 1.27 | BN31: < -0.27 | BO31: 1.98 | BS31: 0.01 | BT31: 11.17 | BU31: < 2.31 | BV31: 16.15 | BW31: < 0.59 | BX31: 15.76 | BY31: 3.24 | BZ31: 6.51 | CA31: < -0.3 | CB31: 3.25 | CC31: 0.67 | CD31: < -0.33 | CE31: < 0.25 | CF31: < 0.11 | CG31: < -1.27 | CH31: < 0.08 | CI31: < -0.75 | CJ31: < -0.3 | CK31: 0.76 | CL31: 0.16 | CN31: < 0 | CO31: 3.47 | CP31: 1.05 | CR31: 14.59 | CS31: 15.86
A32: XBL.BA.2003.PT.1 | B32: Liquid | C32: Precipitation test on Bioleach PLS solution using calcite | D32: DTK-CR | F32: Processing | G32: Coal Mining | H32: Coarse Refuse | I32: Illinois Basin | J32: N/A | K32: West Kentucky No.13 Coal Seam | L32: Kentucky | M32: Webster | N32: NA | O32: Kentucky | P32: Webster | Q32: NA | R32: Coarse Refuse | AJ32: N/A | AK32: ICP-OES | AL32: N/A | AM32: < 0.85 | AN32: 115.2 | AO32: > 623.72 | AP32: > 2216.03 | AQ32: > 431 | AR32: > 200.85 | AS32: 6.46 | AT32: > 1230.48 | AU32: 0.76 | AW32: 0.94 | AX32: 1.59 | AY32: 84.13 | AZ32: > 6299.74 | BA32: 2.67 | BB32: 7.46 | BC32: 26.46 | BD32: 66.53 | BE32: < -1.7 | BG32: 4.35 | BH32: 1.52 | BJ32: 1.29 | BN32: < -0.22 | BO32: 1.84 | BS32: 0.12 | BT32: 10.36 | BU32: < 1.8 | BV32: 16.2 | BW32: < 0.54 | BX32: 7.18 | BY32: 2.59 | BZ32: 4.84 | CA32: < -0.4 | CB32: 2.75 | CC32: 0.51 | CD32: < -0.33 | CE32: < 0.31 | CF32: < 0.03 | CG32: < -1.07 | CH32: < 0.08 | CI32: < -0.67 | CJ32: < -0.29 | CK32: 0.68 | CL32: 0.15 | CN32: < 0.27 | CO32: 3.46 | CP32: 0.99 | CR32: 11.52 | CS32: 12.81
A33: XBL.BA.2003.PT.10 | B33: Liquid | C33: Precipitation test on Bioleach PLS solution using calcite | D33: DTK-CR | F33: Processing | G33: Coal Mining | H33: Coarse Refuse | I33: Illinois Basin | J33: N/A | K33: West Kentucky No.13 Coal Seam | L33: Kentucky | M33: Webster | N33: NA | O33: Kentucky | P33: Webster | Q33: NA | R33: Coarse Refuse | AJ33: N/A | AK33: ICP-OES | AL33: N/A | AM33: < 0.11 | AN33: 122.93 | AO33: > 727.53 | AP33: > 729.56 | AQ33: > 147.97 | AR33: 3.26 | AS33: 33.37 | AT33: > 599.07 | AU33: 0.15 | AW33: < -0.02 | AX33: 0.06 | AY33: > 127.73 | AZ33: 255.18 | BA33: 3.43 | BB33: 9.14 | BC33: 17.37 | BD33: 70.62 | BE33: < -0.01 | BG33: < 0.05 | BH33: 2.16 | BJ33: 1.28 | BN33: < -0.03 | BO33: 0.95 | BS33: 0.37 | BT33: 2.66 | BU33: < -0.07 | BV33: 17.39 | BW33: < 0.09 | BX33: < 0.72 | BY33: < 0.88 | BZ33: < 1.03 | CA33: < 0.2 | CB33: 0.34 | CC33: 0.19 | CD33: 0.02 | CE33: < 0.33 | CF33: < -0.11 | CG33: 0.45 | CH33: < 0.04 | CI33: < 0.04 | CJ33: < -0.02 | CK33: 0.12 | CL33: 0.02 | CN33: < 0.2 | CO33: 0.91 | CP33: < 0.01 | CR33: 1.14 | CS33: 2.42
A34: XBL.BA.2003.PT.11 | B34: Liquid | C34: Precipitation test on Bioleach PLS solution using calcite | D34: DTK-CR | F34: Processing | G34: Coal Mining | H34: Coarse Refuse | I34: Illinois Basin | J34: N/A | K34: West Kentucky No.13 Coal Seam | L34: Kentucky | M34: Webster | N34: NA | O34: Kentucky | P34: Webster | Q34: NA | R34: Coarse Refuse | AJ34: N/A | AK34: ICP-OES | AL34: N/A | AM34: < 0.09 | AN34: 123.55 | AO34: > 727.38 | AP34: 524.36 | AQ34: > 124.67 | AR34: < 1.64 | AS34: 36.05 | AT34: > 549.25 | AU34: 0.1 | AW34: < -0.03 | AX34: 0.06 | AY34: > 129.35 | AZ34: 229.36 | BA34: 3.4 | BB34: 9.17 | BC34: 15.46 | BD34: 70.58 | BE34: < -0.12 | BG34: < 0.13 | BH34: 1.59 | BJ34: 1.24 | BN34: < -0.05 | BO34: 0.92 | BS34: 0.34 | BT34: 2.57 | BU34: < -0.04 | BV34: 17.44 | BW34: < 0.07 | BX34: < 0.86 | BY34: < 0.84 | BZ34: < 1.05 | CA34: < 0.19 | CB34: 0.1 | CC34: 0.12 | CD34: 0.02 | CE34: < 0.26 | CF34: < -0.08 | CG34: 0.47 | CH34: < 0.04 | CI34: 0.08 | CJ34: < -0.03 | CK34: 0.11 | CL34: 0.02 | CN34: < 0.04 | CO34: 0.68 | CP34: < 0 | CR34: 0.92 | CS34: 2.16
A35: XBL.BA.2003.PT.12 | B35: Liquid | C35: Precipitation test on Bioleach PLS solution using calcite | D35: DTK-CR | F35: Processing | G35: Coal Mining | H35: Coarse Refuse | I35: Illinois Basin | J35: N/A | K35: West Kentucky No.13 Coal Seam | L35: Kentucky | M35: Webster | N35: NA | O35: Kentucky | P35: Webster | Q35: NA | R35: Coarse Refuse | AJ35: N/A | AK35: ICP-OES | AL35: N/A | AM35: < 0.07 | AN35: 124.02 | AO35: > 732.02 | AP35: 341.32 | AQ35: 106.2 | AR35: < 0.8 | AS35: 40.64 | AT35: 528.6 | AU35: 0.07 | AW35: < -0.02 | AX35: < 0.03 | AY35: > 130.95 | AZ35: 214.99 | BA35: 3.43 | BB35: 9.19 | BC35: 13.42 | BD35: 70.43 | BE35: < -0.12 | BG35: < 0.18 | BH35: 2.03 | BJ35: 1.21 | BN35: < -0.06 | BO35: 0.93 | BS35: 0.33 | BT35: 2.54 | BU35: < 0.1 | BV35: 17.53 | BW35: < 0.01 | BX35: < 0.89 | BY35: < 0.8 | BZ35: < 0.84 | CA35: < -0.05 | CB35: 0.32 | CC35: 0.13 | CD35: 0.01 | CE35: < 0.25 | CF35: < 0.04 | CG35: 0.47 | CH35: < 0.04 | CI35: < 0.03 | CJ35: < -0.02 | CK35: 0.1 | CL35: 0.02 | CN35: < 0.24 | CO35: 0.44 | CP35: < 0.04 | CR35: 1.05 | CS35: 2.26
A36: XBL.BA.2003.PT.2 | B36: Liquid | C36: Precipitation test on Bioleach PLS solution using calcite | D36: DTK-CR | F36: Processing | G36: Coal Mining | H36: Coarse Refuse | I36: Illinois Basin | J36: N/A | K36: West Kentucky No.13 Coal Seam | L36: Kentucky | M36: Webster | N36: NA | O36: Kentucky | P36: Webster | Q36: NA | R36: Coarse Refuse | AJ36: N/A | AK36: ICP-OES | AL36: N/A | AM36: < 0.86 | AN36: 114.56 | AO36: > 626.66 | AP36: > 2232.5 | AQ36: > 429.79 | AR36: > 202.14 | AS36: 8.24 | AT36: > 702.78 | AU36: 0.77 | AW36: 0.93 | AX36: 1.59 | AY36: 86.55 | AZ36: > 6307.24 | BA36: 2.72 | BB36: 7.49 | BC36: 26.49 | BD36: 66.92 | BE36: < -1.64 | BG36: 4.2 | BH36: 1.42 | BJ36: 1.3 | BN36: < -0.23 | BO36: 1.85 | BS36: 0.15 | BT36: 10.34 | BU36: < 1.83 | BV36: 16.25 | BW36: < 0.45 | BX36: 4.85 | BY36: 2.33 | BZ36: 4.14 | CA36: < -0.53 | CB36: 2.17 | CC36: 0.46 | CD36: < -0.34 | CE36: < 0.23 | CF36: < 0.09 | CG36: < -1.07 | CH36: < 0.05 | CI36: < -0.7 | CJ36: < -0.29 | CK36: 0.68 | CL36: 0.15 | CN36: < 0.18 | CO36: 3.32 | CP36: 0.92 | CR36: 9.93 | CS36: 11.23
A37: XBL.BA.2003.PT.3 | B37: Liquid | C37: Precipitation test on Bioleach PLS solution using calcite | D37: DTK-CR | F37: Processing | G37: Coal Mining | H37: Coarse Refuse | I37: Illinois Basin | J37: N/A | K37: West Kentucky No.13 Coal Seam | L37: Kentucky | M37: Webster | N37: NA | O37: Kentucky | P37: Webster | Q37: NA | R37: Coarse Refuse | AJ37: N/A | AK37: ICP-OES | AL37: N/A | AM37: < 0.9 | AN37: 115.08 | AO37: > 644.01 | AP37: > 2287.07 | AQ37: > 434.95 | AR37: > 206.15 | AS37: 11.77 | AT37: > 657.18 | AU37: 0.79 | AW37: 0.95 | AX37: 1.63 | AY37: 89.76 | AZ37: > 6445.79 | BA37: 2.77 | BB37: 7.71 | BC37: 26.95 | BD37: 68.09 | BE37: < -1.66 | BG37: 4.27 | BH37: 0.81 | BJ37: 1.33 | BN37: < -0.23 | BO37: 1.89 | BS37: 0.19 | BT37: 10.56 | BU37: < 1.79 | BV37: 16.42 | BW37: < 0.48 | BX37: 4.31 | BY37: 2.29 | BZ37: 3.91 | CA37: < -0.73 | CB37: 2.26 | CC37: 0.43 | CD37: < -0.34 | CE37: < 0.23 | CF37: < 0.1 | CG37: < -1.11 | CH37: < 0.06 | CI37: < -0.76 | CJ37: < -0.3 | CK37: 0.71 | CL37: 0.15 | CN37: < 0.31 | CO37: 3.66 | CP37: 0.97 | CR37: 9.75 | CS37: 11.08
A38: XBL.BA.2003.PT.4 | B38: Liquid | C38: Precipitation test on Bioleach PLS solution using calcite | D38: DTK-CR | F38: Processing | G38: Coal Mining | H38: Coarse Refuse | I38: Illinois Basin | J38: N/A | K38: West Kentucky No.13 Coal Seam | L38: Kentucky | M38: Webster | N38: NA | O38: Kentucky | P38: Webster | Q38: NA | R38: Coarse Refuse | AJ38: N/A | AK38: ICP-OES | AL38: N/A | AM38: < 0.59 | AN38: 113.42 | AO38: > 633.12 | AP38: > 2136.98 | AQ38: > 401.58 | AR38: > 161.88 | AS38: 13.6 | AT38: > 770.26 | AU38: 0.76 | AW38: 0.7 | AX38: 1.42 | AY38: 95.2 | AZ38: > 5025.43 | BA38: 2.82 | BB38: 7.71 | BC38: 25.95 | BD38: 66.22 | BE38: < -1.2 | BG38: 3.43 | BH38: 1.67 | BJ38: 1.29 | BN38: < -0.16 | BO38: 1.63 | BS38: 0.24 | BT38: 8.76 | BU38: < 1.46 | BV38: 16.09 | BW38: < 0.31 | BX38: 2.46 | BY38: 1.8 | BZ38: 2.81 | CA38: < -0.56 | CB38: 1.52 | CC38: 0.36 | CD38: < -0.34 | CE38: < 0.24 | CF38: < 0.06 | CG38: < -0.73 | CH38: < 0.07 | CI38: < -0.53 | CJ38: < -0.22 | CK38: 0.56 | CL38: 0.12 | CN38: < 0.17 | CO38: 3.28 | CP38: 0.93 | CR38: 7.17 | CS38: 8.46
A39: XBL.BA.2003.PT.5 | B39: Liquid | C39: Precipitation test on Bioleach PLS solution using calcite | D39: DTK-CR | F39: Processing | G39: Coal Mining | H39: Coarse Refuse | I39: Illinois Basin | J39: N/A | K39: West Kentucky No.13 Coal Seam | L39: Kentucky | M39: Webster | N39: NA | O39: Kentucky | P39: Webster | Q39: NA | R39: Coarse Refuse | AJ39: N/A | AK39: ICP-OES | AL39: N/A | AM39: < 0.31 | AN39: 115.23 | AO39: > 652.81 | AP39: > 2112.59 | AQ39: > 344.39 | AR39: 67.69 | AS39: 16.34 | AT39: > 720.28 | AU39: 0.77 | AW39: 0.26 | AX39: 1.02 | AY39: 102.43 | AZ39: > 2084.63 | BA39: 2.87 | BB39: 7.94 | BC39: 26.03 | BD39: 67.46 | BE39: < -0.62 | BG39: 1.67 | BH39: 2.01 | BJ39: 1.32 | BN39: < -0.07 | BO39: 1.19 | BS39: 0.26 | BT39: 5.07 | BU39: < 0.7 | BV39: 16.37 | BW39: < 0.44 | BX39: 1.81 | BY39: 1.55 | BZ39: < 2.22 | CA39: < -0.14 | CB39: 1.06 | CC39: 0.33 | CD39: < -0.18 | CE39: < 0.36 | CF39: < -0.01 | CG39: < -0.01 | CH39: < 0.05 | CI39: < -0.13 | CJ39: < -0.08 | CK39: 0.3 | CL39: 0.06 | CN39: < 0.34 | CO39: 3.03 | CP39: 0.67 | CR39: 3.3 | CS39: 4.62
A40: XBL.BA.2003.PT.6 | B40: Liquid | C40: Precipitation test on Bioleach PLS solution using calcite | D40: DTK-CR | F40: Processing | G40: Coal Mining | H40: Coarse Refuse | I40: Illinois Basin | J40: N/A | K40: West Kentucky No.13 Coal Seam | L40: Kentucky | M40: Webster | N40: NA | O40: Kentucky | P40: Webster | Q40: NA | R40: Coarse Refuse | AJ40: N/A | AK40: ICP-OES | AL40: N/A | AM40: < 0.3 | AN40: 116.79 | AO40: > 666.34 | AP40: > 2087.87 | AQ40: > 303.79 | AR40: 27.21 | AS40: 20.11 | AT40: > 670.88 | AU40: 0.69 | AW40: 0.11 | AX40: 0.62 | AY40: 106.87 | AZ40: > 839 | BA40: 2.89 | BB40: 8.09 | BC40: 25.95 | BD40: 68.47 | BE40: < -0.25 | BG40: < 0.86 | BH40: 1.5 | BJ40: 1.34 | BN40: < -0.05 | BO40: 1 | BS40: 0.27 | BT40: 3.5 | BU40: < 0.25 | BV40: 16.56 | BW40: < 0.27 | BX40: 1.32 | BY40: 1.42 | BZ40: < 2.08 | CA40: < 0.08 | CB40: 1 | CC40: 0.27 | CD40: 0.03 | CE40: < 0.37 | CF40: < 0.1 | CG40: 0.31 | CH40: < 0.04 | CI40: < -0.02 | CJ40: < -0.02 | CK40: 0.19 | CL40: 0.03 | CN40: < 0.47 | CO40: 2.77 | CP40: 0.46 | CR40: 3.25 | CS40: 4.59
A41: XBL.BA.2003.PT.7 | B41: Liquid | C41: Precipitation test on Bioleach PLS solution using calcite | D41: DTK-CR | F41: Processing | G41: Coal Mining | H41: Coarse Refuse | I41: Illinois Basin | J41: N/A | K41: West Kentucky No.13 Coal Seam | L41: Kentucky | M41: Webster | N41: NA | O41: Kentucky | P41: Webster | Q41: NA | R41: Coarse Refuse | AJ41: N/A | AK41: ICP-OES | AL41: N/A | AM41: < 0.2 | AN41: 115.76 | AO41: > 666.69 | AP41: > 1725.98 | AQ41: > 254.25 | AR41: 14.9 | AS41: 21.99 | AT41: > 739.93 | AU41: 0.44 | AW41: 0.05 | AX41: 0.34 | AY41: > 109.95 | AZ41: 482.72 | BA41: 3.06 | BB41: 8.29 | BC41: 22.88 | BD41: 67.36 | BE41: < -0.11 | BG41: < 0.4 | BH41: 1.61 | BJ41: 1.28 | BN41: < -0.03 | BO41: 0.93 | BS41: 0.31 | BT41: 2.99 | BU41: < 0.03 | BV41: 16.42 | BW41: < 0.08 | BX41: 1.06 | BY41: 1.23 | BZ41: < 1.52 | CA41: < 0.25 | CB41: 0.77 | CC41: 0.27 | CD41: 0.04 | CE41: < 0.41 | CF41: < -0.05 | CG41: 0.37 | CH41: < 0.03 | CI41: < 0.03 | CJ41: < -0.01 | CK41: 0.15 | CL41: 0.02 | CN41: < 0.48 | CO41: 2.46 | CP41: 0.29 | CR41: 2.85 | CS41: 4.13
A42: XBL.BA.2003.PT.8 | B42: Liquid | C42: Precipitation test on Bioleach PLS solution using calcite | D42: DTK-CR | F42: Processing | G42: Coal Mining | H42: Coarse Refuse | I42: Illinois Basin | J42: N/A | K42: West Kentucky No.13 Coal Seam | L42: Kentucky | M42: Webster | N42: NA | O42: Kentucky | P42: Webster | Q42: NA | R42: Coarse Refuse | AJ42: N/A | AK42: ICP-OES | AL42: N/A | AM42: < 0.16 | AN42: 116.97 | AO42: > 679.56 | AP42: > 1310.87 | AQ42: > 206.43 | AR42: 9.08 | AS42: 24.84 | AT42: > 651.52 | AU42: 0.28 | AW42: 0.02 | AX42: 0.37 | AY42: > 116.4 | AZ42: 349.81 | BA42: 3.1 | BB42: 8.43 | BC42: 20.49 | BD42: 67.76 | BE42: < -0.03 | BG42: < 0.28 | BH42: 1.75 | BJ42: 1.27 | BN42: < -0.04 | BO42: 0.92 | BS42: 0.32 | BT42: 2.75 | BU42: < 0.3 | BV42: 16.57 | BW42: < 0.05 | BX42: < 0.67 | BY42: 1.02 | BZ42: < 1.3 | CA42: < 0.15 | CB42: 0.7 | CC42: 0.18 | CD42: 0.03 | CE42: < 0.32 | CF42: < -0.03 | CG42: 0.41 | CH42: < 0.05 | CI42: < 0.02 | CJ42: < -0.01 | CK42: 0.13 | CL42: 0.02 | CN42: < 0.28 | CO42: 1.67 | CP42: 0.24 | CR42: =SUM(BY42:CL42) -> 2.49 | CS42: =SUM(BJ42,BY42:CL42) -> 3.76
A43: XBL.BA.2003.PT.9 | B43: Liquid | C43: Precipitation test on Bioleach PLS solution using calcite | D43: DTK-CR | F43: Processing | G43: Coal Mining | H43: Coarse Refuse | I43: Illinois Basin | J43: N/A | K43: West Kentucky No.13 Coal Seam | L43: Kentucky | M43: Webster | N43: NA | O43: Kentucky | P43: Webster | Q43: NA | R43: Coarse Refuse | AJ43: N/A | AK43: ICP-OES | AL43: N/A | AM43: < 0.14 | AN43: 122.25 | AO43: > 713.96 | AP43: > 1030.51 | AQ43: > 174.65 | AR43: 5.58 | AS43: 30.11 | AT43: > 560.47 | AU43: 0.21 | AW43: < -0.01 | AX43: 0.12 | AY43: > 125.04 | AZ43: 286.16 | BA43: 3.24 | BB43: 8.75 | BC43: 19.44 | BD43: 70.73 | BE43: < 0 | BG43: < 0.1 | BH43: 2.03 | BJ43: 1.31 | BN43: < -0.01 | BO43: 0.96 | BS43: 0.33 | BT43: 2.72 | BU43: < -0.11 | BV43: 17.32 | BW43: < 0.07 | BX43: 1.02 | BY43: < 0.95 | BZ43: < 1.09 | CA43: < 0.23 | CB43: 0.56 | CC43: 0.19 | CD43: 0.03 | CE43: < 0.33 | CF43: < -0.06 | CG43: 0.47 | CH43: < 0.03 | CI43: < 0.04 | CJ43: < -0.03 | CK43: 0.13 | CL43: 0.03 | CN43: < 0.24 | CO43: 1.5 | CP43: 0.1 | CR43: =SUM(BY43:CL43) -> 1.41 | CS43: 2.72
A44: XBL.BA.2003.PT.F | B44: Liquid | C44: Precipitation test on Bioleach PLS solution using calcite | D44: DTK-CR | F44: Processing | G44: Coal Mining | H44: Coarse Refuse | I44: Illinois Basin | J44: N/A | K44: West Kentucky No.13 Coal Seam | L44: Kentucky | M44: Webster | N44: NA | O44: Kentucky | P44: Webster | Q44: NA | R44: Coarse Refuse | AJ44: N/A | AK44: ICP-OES | AL44: N/A | AM44: < 0.091 | AN44: 11.881 | AO44: > 62.562 | AP44: > 228.309 | AQ44: > 44.544 | AR44: > 20.766 | AS44: 0.298 | AT44: > 82.262 | AU44: 0.075 | AW44: 0.097 | AX44: 0.161 | AY44: 7.316 | AZ44: > 654.21 | BA44: 0.251 | BB44: 0.74 | BC44: 2.737 | BD44: 6.816 | BE44: < -0.164 | BG44: 0.452 | BH44: 0.084 | BJ44: 0.128 | BN44: < -0.026 | BO44: 0.19 | BS44: 0.002 | BT44: 1.058 | BU44: < 0.205 | BV44: 1.679 | BW44: < 0.048 | BX44: 1.465 | BY44: 0.32 | BZ44: 0.688 | CA44: < 0.003 | CB44: 0.335 | CC44: 0.066 | CD44: < -0.03 | CE44: < 0.028 | CF44: < 0.007 | CG44: < -0.111 | CH44: < 0.008 | CI44: < -0.072 | CJ44: < -0.031 | CK44: 0.071 | CL44: 0.015 | CN44: < 0.012 | CO44: 0.336 | CP44: 0.101 | CR44: 1.495 | CS44: 1.623
A45: XBL.BA.2003.WW | B45: Liquid | C45: Precipitation test on Bioleach PLS solution using calcite | D45: DTK-CR | F45: Processing | G45: Coal Mining | H45: Coarse Refuse | I45: Illinois Basin | J45: N/A | K45: West Kentucky No.13 Coal Seam | L45: Kentucky | M45: Webster | N45: NA | O45: Kentucky | P45: Webster | Q45: NA | R45: Coarse Refuse | AJ45: N/A | AK45: ICP-OES | AL45: N/A | AM45: < 0.072 | AN45: 13.371 | AO45: > 65.741 | AP45: > 238.643 | AQ45: 48.96 | AR45: 16.68 | AS45: 0.263 | AT45: > 332.452 | AU45: 0.071 | AW45: 0.098 | AX45: 0.145 | AY45: 7.781 | AZ45: > 532.636 | BA45: 0.263 | BB45: 0.767 | BC45: 2.818 | BD45: 7.152 | BE45: < -0.108 | BG45: 0.337 | BH45: 0.123 | BJ45: 0.14 | BN45: < -0.025 | BO45: 0.175 | BS45: 0.001 | BT45: 0.904 | BU45: < 0.153 | BV45: 1.798 | BW45: < 0.038 | BX45: 2.686 | BY45: 0.343 | BZ45: 0.768 | CA45: < 0.021 | CB45: 0.413 | CC45: 0.082 | CD45: < -0.024 | CE45: < 0.076 | CF45: < 0.011 | CG45: < -0.082 | CH45: < 0.008 | CI45: < -0.058 | CJ45: < -0.029 | CK45: 0.063 | CL45: 0.013 | CN45: < -0.008 | CO45: 0.36 | CP45: 0.115 | CR45: 1.682 | CS45: 1.822
A46: XBL.BA.2004.F | B46: Bioleach Acid | C46: Bioleach Acid generated from bio-oxidation | D46: DTK-CR | F46: Processing | G46: Coal Mining | H46: Coarse Refuse | I46: Illinois Basin | J46: N/A | K46: West Kentucky No.13 Coal Seam | L46: Kentucky | M46: Webster | N46: NA | O46: Kentucky | P46: Webster | Q46: NA | R46: Coarse Refuse | AJ46: N/A | AK46: ICP-OES | AL46: N/A | AM46: 1.24 | AN46: 12.84 | AO46: 274.33 | AP46: 33.35 | AQ46: 50.25 | AR46: 249.8 | AS46: 48.78 | AT46: 704.6 | AU46: 0.08 | AW46: 0.43 | AX46: 0.61 | AY46: 50.27 | AZ46: > 11706.8 | BA46: 1.81 | BB46: 5.78 | BC46: 27.12 | BD46: 67.17 | BE46: < -3.76 | BG46: 3.27 | BH46: < -4.16 | BJ46: 0.38 | BN46: < -0.38 | BO46: 2.77 | BS46: 0.02 | BT46: 15.53 | BU46: 3.06 | BV46: 0.11 | BW46: 1.5 | BX46: 1.38 | BY46: < 0.35 | BZ46: < 0.39 | CA46: < -2.72 | CB46: 0.49 | CC46: < -0.05 | CD46: < -0.74 | CE46: < -0.41 | CF46: < 0.26 | CG46: < -2.73 | CH46: < 0.04 | CI46: < -1.57 | CJ46: < -0.35 | CK46: 1.17 | CL46: 0.2 | CN46: < 0.14 | CO46: 0.88 | CP46: 0.37 | CR46: 1.86 | CS46: 2.24
A47: XBL.BA.2004.L | B47: Leachate | C47: Bioleach Acid, Dotiki Pile -1.5 inch, 2 mm, 600°C, 20 min, muffle furnace, 40 g / 200 ml, 75 °C | D47: DTK-CR | F47: Processing | G47: Coal Mining | H47: Coarse Refuse | I47: Illinois Basin | J47: N/A | K47: West Kentucky No.13 Coal Seam | L47: Kentucky | M47: Webster | N47: NA | O47: Kentucky | P47: Webster | Q47: NA | R47: Coarse Refuse | AJ47: N/A | AK47: ICP-OES | AL47: N/A | AM47: 1.44 | AN47: 134.28 | AO47: 667.6 | AP47: 2091.4 | AQ47: 511.8 | AR47: 252.2 | AS47: 3.73 | AT47: 945.9 | AU47: 0.76 | AW47: 1.09 | AX47: 1.57 | AY47: 77.37 | AZ47: > 8602.72 | BA47: 2.68 | BB47: 7.77 | BC47: 29.81 | BD47: 73.97 | BE47: < -2.58 | BG47: 4.87 | BH47: 1.62 | BJ47: 1.35 | BN47: < -0.27 | BO47: 2.29 | BS47: 0.01 | BT47: 13.2 | BU47: 2.52 | BV47: 16.86 | BW47: < 0.89 | BX47: 18.84 | BY47: 3.54 | BZ47: 7.23 | CA47: < -0.93 | CB47: 3.76 | CC47: 0.66 | CD47: < -0.42 | CE47: < 0.24 | CF47: < 0.23 | CG47: < -1.63 | CH47: < 0.06 | CI47: < -1.04 | CJ47: < -0.33 | CK47: 0.94 | CL47: 0.16 | CN47: < 0.27 | CO47: 3.21 | CP47: 1.21 | CR47: 16.29 | CS47: 17.64
A48: XBL.BA.2004.PT.1 | B48: Liquid | C48: Precipitation test on Bioleach PLS solution using calcite | D48: DTK-CR | F48: Processing | G48: Coal Mining | H48: Coarse Refuse | I48: Illinois Basin | J48: N/A | K48: West Kentucky No.13 Coal Seam | L48: Kentucky | M48: Webster | N48: NA | O48: Kentucky | P48: Webster | Q48: NA | R48: Coarse Refuse | AJ48: N/A | AK48: ICP-OES | AL48: N/A | AM48: < 0.85 | AN48: 113.83 | AO48: > 637.1 | AP48: > 2419.56 | AQ48: > 446.33 | AR48: > 203.45 | AS48: 8.64 | AT48: > 1258.43 | AU48: 0.77 | AW48: 0.97 | AX48: 1.74 | AY48: 83.15 | AZ48: > 6208.01 | BA48: 2.68 | BB48: 7.64 | BC48: 27.09 | BD48: 68.14 | BE48: < -1.64 | BG48: 4.28 | BH48: 1.06 | BJ48: 1.3 | BN48: < -0.24 | BO48: 1.84 | BS48: 0.03 | BT48: 9.79 | BU48: < 1.8 | BV48: 17.05 | BW48: < 0.48 | BX48: 7.63 | BY48: 2.63 | BZ48: 5.03 | CA48: < -0.35 | CB48: 3.03 | CC48: 0.51 | CD48: < -0.3 | CE48: < 0.28 | CF48: < 0.02 | CG48: < -1.06 | CH48: < 0.08 | CI48: < -0.67 | CJ48: < -0.31 | CK48: 0.69 | CL48: 0.14 | CN48: < -0.03 | CO48: 3.53 | CP48: 1.04 | CR48: 12.03 | CS48: 13.33
A49: XBL.BA.2004.PT.10 | B49: Liquid | C49: Precipitation test on Bioleach PLS solution using calcite | D49: DTK-CR | F49: Processing | G49: Coal Mining | H49: Coarse Refuse | I49: Illinois Basin | J49: N/A | K49: West Kentucky No.13 Coal Seam | L49: Kentucky | M49: Webster | N49: NA | O49: Kentucky | P49: Webster | Q49: NA | R49: Coarse Refuse | AJ49: N/A | AK49: ICP-OES | AL49: N/A | AM49: < 0.14 | AN49: 111.03 | AO49: > 710.03 | AP49: > 1124.51 | AQ49: > 171.91 | AR49: 3.94 | AS49: < 2.11 | AT49: 499.18 | AU49: 0.2 | AW49: < -0.01 | AX49: 0.15 | AY49: > 119.85 | AZ49: 294.41 | BA49: 3.05 | BB49: 8.48 | BC49: 17.63 | BD49: 68.92 | BE49: < -0.08 | BG49: < -0.07 | BH49: 1.63 | BJ49: 1.32 | BN49: < -0.05 | BO49: 0.9 | BS49: < 0 | BT49: 2.13 | BU49: < 0.2 | BV49: 17.37 | BW49: < 0.12 | BX49: 2.02 | BY49: < 0.99 | BZ49: < 1 | CA49: < 0.11 | CB49: 0.44 | CC49: 0.13 | CD49: 0.02 | CE49: < 0.28 | CF49: < -0.02 | CG49: 0.45 | CH49: < 0.03 | CI49: < 0 | CJ49: < -0.05 | CK49: 0.13 | CL49: 0.03 | CN49: < 0.4 | CO49: 1.34 | CP49: 0.16 | CR49: 1.2 | CS49: 2.52
A50: XBL.BA.2004.PT.11 | B50: Liquid | C50: Precipitation test on Bioleach PLS solution using calcite | D50: DTK-CR | F50: Processing | G50: Coal Mining | H50: Coarse Refuse | I50: Illinois Basin | J50: N/A | K50: West Kentucky No.13 Coal Seam | L50: Kentucky | M50: Webster | N50: NA | O50: Kentucky | P50: Webster | Q50: NA | R50: Coarse Refuse | AJ50: N/A | AK50: ICP-OES | AL50: N/A | AM50: < 0.12 | AN50: 110.85 | AO50: > 711.58 | AP50: > 872.85 | AQ50: > 144.41 | AR50: 2.68 | AS50: 4.05 | AT50: 469.8 | AU50: 0.16 | AW50: < -0.02 | AX50: 0.12 | AY50: > 120.97 | AZ50: 267.8 | BA50: 3.05 | BB50: 8.5 | BC50: 15.49 | BD50: 68.27 | BE50: < -0.12 | BG50: < 0.03 | BH50: 1.75 | BJ50: 1.31 | BN50: < -0.07 | BO50: 0.9 | BS50: 0.01 | BT50: 2.04 | BU50: < 0.26 | BV50: 17.33 | BW50: < 0.11 | BX50: 2.38 | BY50: < 0.95 | BZ50: < 1.06 | CA50: < -0.13 | CB50: 0.37 | CC50: 0.11 | CD50: 0.02 | CE50: < 0.3 | CF50: < 0.03 | CG50: 0.43 | CH50: < 0.04 | CI50: < -0.03 | CJ50: < -0.04 | CK50: 0.13 | CL50: 0.02 | CN50: < 0.45 | CO50: 0.93 | CP50: < 0.08 | CR50: 1.08 | CS50: 2.39
A51: XBL.BA.2004.PT.12 | B51: Liquid | C51: Precipitation test on Bioleach PLS solution using calcite | D51: DTK-CR | F51: Processing | G51: Coal Mining | H51: Coarse Refuse | I51: Illinois Basin | J51: N/A | K51: West Kentucky No.13 Coal Seam | L51: Kentucky | M51: Webster | N51: NA | O51: Kentucky | P51: Webster | Q51: NA | R51: Coarse Refuse | AJ51: N/A | AK51: ICP-OES | AL51: N/A | AM51: < 0.09 | AN51: 110.71 | AO51: > 713.73 | AP51: > 564.26 | AQ51: > 119.3 | AR51: < 1.29 | AS51: 4.74 | AT51: 494.95 | AU51: 0.1 | AW51: < -0.03 | AX51: 0.05 | AY51: > 123.03 | AZ51: 253.83 | BA51: 3.17 | BB51: 8.69 | BC51: 13.04 | BD51: 67.51 | BE51: < -0.07 | BG51: < -0.09 | BH51: 1.7 | BJ51: 1.26 | BN51: < -0.07 | BO51: 0.88 | BS51: 0.01 | BT51: 2.02 | BU51: < 0.16 | BV51: 17.29 | BW51: < 0.09 | BX51: 1.94 | BY51: < 0.89 | BZ51: < 0.88 | CA51: < 0.25 | CB51: 0.15 | CC51: 0.1 | CD51: 0.01 | CE51: < 0.27 | CF51: < 0.11 | CG51: 0.44 | CH51: < 0 | CI51: < -0.01 | CJ51: < -0.05 | CK51: 0.12 | CL51: 0.02 | CN51: < 0.31 | CO51: 0.67 | CP51: 0.18 | CR51: 0.84 | CS51: 2.1
A52: XBL.BA.2004.PT.13 | B52: Liquid | C52: Precipitation test on Bioleach PLS solution using calcite | D52: DTK-CR | F52: Processing | G52: Coal Mining | H52: Coarse Refuse | I52: Illinois Basin | J52: N/A | K52: West Kentucky No.13 Coal Seam | L52: Kentucky | M52: Webster | N52: NA | O52: Kentucky | P52: Webster | Q52: NA | R52: Coarse Refuse | AJ52: N/A | AK52: ICP-OES | AL52: N/A | AM52: < 0.08 | AN52: 125.1 | AO52: > 811.25 | AP52: 403.2 | AQ52: > 113.96 | AR52: < 0.79 | AS52: 5.59 | AT52: 528.47 | AU52: 0.07 | AW52: < -0.04 | AX52: < 0.04 | AY52: > 141.88 | AZ52: 275.29 | BA52: 3.62 | BB52: 9.94 | BC52: 12.77 | BD52: 75.68 | BE52: < -0.12 | BG52: < -0.07 | BH52: 1.99 | BJ52: 1.41 | BN52: < -0.06 | BO52: 1.01 | BS52: 0.01 | BT52: 2.22 | BU52: < 0.08 | BV52: 19.62 | BW52: < 0.06 | BX52: 2.31 | BY52: < 0.9 | BZ52: < 0.91 | CA52: < 0.07 | CB52: 0.27 | CC52: 0.09 | CD52: 0.02 | CE52: < 0.32 | CF52: < -0.07 | CG52: 0.5 | CH52: < 0.04 | CI52: < 0.01 | CJ52: < -0.06 | CK52: 0.13 | CL52: 0.02 | CN52: < 0.39 | CO52: 0.42 | CP52: 0.2 | CR52: 1.03 | CS52: 2.44
A53: XBL.BA.2004.PT.14 | B53: Liquid | C53: Precipitation test on Bioleach PLS solution using calcite | D53: DTK-CR | F53: Processing | G53: Coal Mining | H53: Coarse Refuse | I53: Illinois Basin | J53: N/A | K53: West Kentucky No.13 Coal Seam | L53: Kentucky | M53: Webster | N53: NA | O53: Kentucky | P53: Webster | Q53: NA | R53: Coarse Refuse | AJ53: N/A | AK53: ICP-OES | AL53: N/A | AM53: < 0.07 | AN53: 124.35 | AO53: > 804.87 | AP53: 254.27 | AQ53: 97.5 | AR53: < 0.35 | AS53: 7.18 | AT53: 515.85 | AU53: 0.05 | AW53: < -0.04 | AX53: < 0.04 | AY53: > 142.01 | AZ53: 254.98 | BA53: 3.6 | BB53: 9.88 | BC53: 10.4 | BD53: 74.27 | BE53: < -0.07 | BG53: < -0.11 | BH53: 2.06 | BJ53: 1.34 | BN53: < -0.06 | BO53: 0.99 | BS53: 0.01 | BT53: 2.14 | BU53: < 0.28 | BV53: 19.44 | BW53: < 0.05 | BX53: 2.5 | BY53: < 0.87 | BZ53: < 0.75 | CA53: < 0.16 | CB53: 0.32 | CC53: 0.1 | CD53: 0.01 | CE53: < 0.29 | CF53: < -0.02 | CG53: 0.47 | CH53: < 0.03 | CI53: < 0.01 | CJ53: < -0.05 | CK53: 0.12 | CL53: 0.02 | CN53: < 0.35 | CO53: < 0.08 | CP53: < 0.09 | CR53: 1.04 | CS53: 2.38
A54: XBL.BA.2004.PT.2 | B54: Liquid | C54: Precipitation test on Bioleach PLS solution using calcite | D54: DTK-CR | F54: Processing | G54: Coal Mining | H54: Coarse Refuse | I54: Illinois Basin | J54: N/A | K54: West Kentucky No.13 Coal Seam | L54: Kentucky | M54: Webster | N54: NA | O54: Kentucky | P54: Webster | Q54: NA | R54: Coarse Refuse | AJ54: N/A | AK54: ICP-OES | AL54: N/A | AM54: < 0.81 | AN54: 111.83 | AO54: > 634.73 | AP54: > 2391.09 | AQ54: > 439.49 | AR54: > 198.97 | AS54: 3.62 | AT54: > 710.39 | AU54: 0.76 | AW54: 0.88 | AX54: 1.72 | AY54: 84.01 | AZ54: > 6016.45 | BA54: 2.68 | BB54: 7.7 | BC54: 26.71 | BD54: 67.59 | BE54: < -1.52 | BG54: 4 | BH54: 1.55 | BJ54: 1.28 | BN54: < -0.26 | BO54: 1.8 | BS54: 0.02 | BT54: 9.52 | BU54: < 1.76 | BV54: 16.89 | BW54: < 0.48 | BX54: 5.72 | BY54: 2.38 | BZ54: 4.3 | CA54: < -0.44 | CB54: 2.72 | CC54: 0.47 | CD54: < -0.31 | CE54: < 0.22 | CF54: < 0.1 | CG54: < -1.02 | CH54: < 0.05 | CI54: < -0.62 | CJ54: < -0.31 | CK54: 0.68 | CL54: 0.14 | CN54: < 0.21 | CO54: 3.46 | CP54: 0.95 | CR54: 10.69 | CS54: 11.97
A55: XBL.BA.2004.PT.3 | B55: Liquid | C55: Precipitation test on Bioleach PLS solution using calcite | D55: DTK-CR | F55: Processing | G55: Coal Mining | H55: Coarse Refuse | I55: Illinois Basin | J55: N/A | K55: West Kentucky No.13 Coal Seam | L55: Kentucky | M55: Webster | N55: NA | O55: Kentucky | P55: Webster | Q55: NA | R55: Coarse Refuse | AJ55: N/A | AK55: ICP-OES | AL55: N/A | AM55: < 0.79 | AN55: 111.15 | AO55: > 636.39 | AP55: > 2377.78 | AQ55: > 435.85 | AR55: > 197.48 | AS55: < 1.9 | AT55: > 631.26 | AU55: 0.75 | AW55: 0.9 | AX55: 1.71 | AY55: 84.52 | AZ55: > 5909.9 | BA55: 2.66 | BB55: 7.58 | BC55: 26.52 | BD55: 67.31 | BE55: < -1.52 | BG55: 3.99 | BH55: 1.49 | BJ55: 1.28 | BN55: < -0.23 | BO55: 1.77 | BS55: 0.01 | BT55: 9.36 | BU55: < 1.72 | BV55: 16.83 | BW55: < 0.42 | BX55: 5.01 | BY55: 2.28 | BZ55: 4.31 | CA55: < -0.59 | CB55: 2.56 | CC55: 0.4 | CD55: < -0.33 | CE55: < 0.22 | CF55: < 0.07 | CG55: < -0.99 | CH55: < 0.05 | CI55: < -0.64 | CJ55: < -0.3 | CK55: 0.66 | CL55: 0.14 | CN55: < 0.14 | CO55: 3.73 | CP55: 0.93 | CR55: 10.35 | CS55: 11.63
A56: XBL.BA.2004.PT.4 | B56: Liquid | C56: Precipitation test on Bioleach PLS solution using calcite | D56: DTK-CR | F56: Processing | G56: Coal Mining | H56: Coarse Refuse | I56: Illinois Basin | J56: N/A | K56: West Kentucky No.13 Coal Seam | L56: Kentucky | M56: Webster | N56: NA | O56: Kentucky | P56: Webster | Q56: NA | R56: Coarse Refuse | AJ56: N/A | AK56: ICP-OES | AL56: N/A | AM56: < 0.76 | AN56: 110.69 | AO56: > 641.65 | AP56: > 2384.17 | AQ56: > 435.38 | AR56: > 194.26 | AS56: < 1.21 | AT56: > 585.05 | AU56: 0.75 | AW56: 0.88 | AX56: 1.74 | AY56: 86.32 | AZ56: > 5668.76 | BA56: 2.7 | BB56: 7.61 | BC56: 26.54 | BD56: 67.8 | BE56: < -1.46 | BG56: 3.89 | BH56: 1.52 | BJ56: 1.29 | BN56: < -0.24 | BO56: 1.74 | BS56: 0.01 | BT56: 9.1 | BU56: < 1.68 | BV56: 16.98 | BW56: < 0.5 | BX56: 5.34 | BY56: 2.22 | BZ56: 3.81 | CA56: < -0.37 | CB56: 2.17 | CC56: 0.36 | CD56: < -0.32 | CE56: < 0.2 | CF56: < 0.01 | CG56: < -0.94 | CH56: < 0.05 | CI56: < -0.67 | CJ56: < -0.29 | CK56: 0.64 | CL56: 0.13 | CN56: < 0.11 | CO56: 3.71 | CP56: 0.99 | CR56: 9.33 | CS56: 10.62
A57: XBL.BA.2004.PT.5 | B57: Liquid | C57: Precipitation test on Bioleach PLS solution using calcite | D57: DTK-CR | F57: Processing | G57: Coal Mining | H57: Coarse Refuse | I57: Illinois Basin | J57: N/A | K57: West Kentucky No.13 Coal Seam | L57: Kentucky | M57: Webster | N57: NA | O57: Kentucky | P57: Webster | Q57: NA | R57: Coarse Refuse | AJ57: N/A | AK57: ICP-OES | AL57: N/A | AM57: < 0.75 | AN57: 111.07 | AO57: > 654.33 | AP57: > 2389.38 | AQ57: > 438.13 | AR57: > 192.06 | AS57: < 0.35 | AT57: > 584.93 | AU57: 0.76 | AW57: 0.84 | AX57: 1.76 | AY57: 88.1 | AZ57: > 5603.9 | BA57: 2.74 | BB57: 7.82 | BC57: 26.78 | BD57: 68.76 | BE57: < -1.41 | BG57: 3.98 | BH57: 1.78 | BJ57: 1.31 | BN57: < -0.24 | BO57: 1.74 | BS57: 0.01 | BT57: 8.98 | BU57: < 1.78 | BV57: 17.19 | BW57: < 0.39 | BX57: 5.67 | BY57: 2.26 | BZ57: 4.2 | CA57: < -0.48 | CB57: 2.3 | CC57: 0.43 | CD57: < -0.31 | CE57: < 0.21 | CF57: < 0.08 | CG57: < -0.9 | CH57: < 0.08 | CI57: < -0.59 | CJ57: < -0.28 | CK57: 0.64 | CL57: 0.14 | CN57: < 0 | CO57: 3.61 | CP57: 1.01 | CR57: 9.97 | CS57: 11.28
A58: XBL.BA.2004.PT.6 | B58: Liquid | C58: Precipitation test on Bioleach PLS solution using calcite | D58: DTK-CR | F58: Processing | G58: Coal Mining | H58: Coarse Refuse | I58: Illinois Basin | J58: N/A | K58: West Kentucky No.13 Coal Seam | L58: Kentucky | M58: Webster | N58: NA | O58: Kentucky | P58: Webster | Q58: NA | R58: Coarse Refuse | AJ58: N/A | AK58: ICP-OES | AL58: N/A | AM58: < 0.37 | AN58: 109.16 | AO58: > 655.29 | AP58: > 2324.32 | AQ58: > 396.94 | AR58: > 126.01 | AS58: < 0.34 | AT58: > 598.88 | AU58: 0.75 | AW58: 0.51 | AX58: 1.45 | AY58: 95.95 | AZ58: > 3572.04 | BA58: 2.81 | BB58: 7.91 | BC58: 25.91 | BD58: 67.98 | BE58: < -1.07 | BG58: 2.58 | BH58: 1.97 | BJ58: 1.32 | BN58: < -0.17 | BO58: 1.38 | BS58: < 0 | BT58: 6.44 | BU58: < 1.32 | BV58: 17.01 | BW58: < 0.64 | BX58: 3.18 | BY58: 1.79 | BZ58: 2.69 | CA58: < -0.45 | CB58: 1.47 | CC58: 0.27 | CD58: < -0.32 | CE58: < 0.26 | CF58: < 0.14 | CG58: < -0.39 | CH58: < 0.04 | CI58: < -0.39 | CJ58: < -0.18 | CK58: 0.45 | CL58: 0.09 | CN58: < 0.1 | CO58: 3.46 | CP58: 0.82 | CR58: 6.76 | CS58: 8.08
A59: XBL.BA.2004.PT.7 | B59: Liquid | C59: Precipitation test on Bioleach PLS solution using calcite | D59: DTK-CR | F59: Processing | G59: Coal Mining | H59: Coarse Refuse | I59: Illinois Basin | J59: N/A | K59: West Kentucky No.13 Coal Seam | L59: Kentucky | M59: Webster | N59: NA | O59: Kentucky | P59: Webster | Q59: NA | R59: Coarse Refuse | AJ59: N/A | AK59: ICP-OES | AL59: N/A | AM59: < 0.33 | AN59: 109.5 | AO59: > 662.06 | AP59: > 2314.81 | AQ59: > 367.32 | AR59: 75.44 | AS59: 2.97 | AT59: > 590.78 | AU59: 0.75 | AW59: 0.27 | AX59: 1.22 | AY59: 99.76 | AZ59: > 2162.38 | BA59: 2.81 | BB59: 7.95 | BC59: 25.85 | BD59: 68.23 | BE59: < -0.71 | BG59: 1.61 | BH59: 2.12 | BJ59: 1.32 | BN59: < -0.15 | BO59: 1.17 | BS59: 0.03 | BT59: 4.65 | BU59: < 1.05 | BV59: 17.09 | BW59: < 0.43 | BX59: 2.8 | BY59: 1.67 | BZ59: < 2.47 | CA59: < -0.11 | CB59: 1.06 | CC59: 0.22 | CD59: < -0.19 | CE59: < 0.3 | CF59: < 0.14 | CG59: < -0.02 | CH59: < 0.05 | CI59: < -0.24 | CJ59: < -0.08 | CK59: 0.32 | CL59: 0.07 | CN59: < 0.02 | CO59: 3.27 | CP59: 0.66 | CR59: 3.34 | CS59: 4.66
A60: XBL.BA.2004.PT.8 | B60: Liquid | C60: Precipitation test on Bioleach PLS solution using calcite | D60: DTK-CR | F60: Processing | G60: Coal Mining | H60: Coarse Refuse | I60: Illinois Basin | J60: N/A | K60: West Kentucky No.13 Coal Seam | L60: Kentucky | M60: Webster | N60: NA | O60: Kentucky | P60: Webster | Q60: NA | R60: Coarse Refuse | AJ60: N/A | AK60: ICP-OES | AL60: N/A | AM60: < 0.32 | AN60: 110.83 | AO60: > 680.09 | AP60: > 2260.36 | AQ60: > 336.25 | AR60: 34.38 | AS60: < 1.04 | AT60: > 552.72 | AU60: 0.73 | AW60: 0.13 | AX60: 0.91 | AY60: 104.11 | AZ60: > 1056.99 | BA60: 2.88 | BB60: 8.17 | BC60: 25.72 | BD60: 69.39 | BE60: < -0.39 | BG60: < 0.8 | BH60: 1.91 | BJ60: 1.35 | BN60: < -0.09 | BO60: 1.01 | BS60: < 0 | BT60: 3.3 | BU60: < 0.59 | BV60: 17.38 | BW60: < 0.26 | BX60: 2.78 | BY60: 1.53 | BZ60: < 2.11 | CA60: < 0.05 | CB60: 0.91 | CC60: 0.24 | CD60: < -0.03 | CE60: < 0.35 | CF60: < 0.07 | CG60: 0.26 | CH60: < 0.02 | CI60: < -0.05 | CJ60: < -0.06 | CK60: 0.21 | CL60: 0.04 | CN60: < 0.19 | CO60: 3.08 | CP60: 0.57 | CR60: 3.19 | CS60: 4.54
A61: XBL.BA.2004.PT.9 | B61: Liquid | C61: Precipitation test on Bioleach PLS solution using calcite | D61: DTK-CR | F61: Processing | G61: Coal Mining | H61: Coarse Refuse | I61: Illinois Basin | J61: N/A | K61: West Kentucky No.13 Coal Seam | L61: Kentucky | M61: Webster | N61: NA | O61: Kentucky | P61: Webster | Q61: NA | R61: Coarse Refuse | AJ61: N/A | AK61: ICP-OES | AL61: N/A | AM61: < 0.19 | AN61: 111.65 | AO61: > 700.69 | AP61: > 1595.05 | AQ61: > 236.72 | AR61: 10.89 | AS61: 11.52 | AT61: > 613.67 | AU61: 0.31 | AW61: 0.05 | AX61: 0.31 | AY61: > 114.97 | AZ61: 497.86 | BA61: 3.02 | BB61: 8.44 | BC61: 20.31 | BD61: 69.07 | BE61: < -0.19 | BG61: < 0.19 | BH61: 1.92 | BJ61: 1.33 | BN61: < -0.07 | BO61: 0.93 | BS61: 0.16 | BT61: 2.48 | BU61: < 0.23 | BV61: 17.42 | BW61: < 0.13 | BX61: 2.35 | BY61: 1.12 | BZ61: < 1.4 | CA61: < 0 | CB61: 0.48 | CC61: 0.13 | CD61: 0.03 | CE61: < 0.35 | CF61: < 0.07 | CG61: 0.4 | CH61: < 0.02 | CI61: < -0.01 | CJ61: < -0.06 | CK61: 0.16 | CL61: 0.03 | CN61: < 0.18 | CO61: 2.31 | CP61: 0.18 | CR61: 2.35 | CS61: 3.68
A62: XBL.BA.2004.PT.F | B62: Liquid | C62: Precipitation test on Bioleach PLS solution using calcite | D62: DTK-CR | F62: Processing | G62: Coal Mining | H62: Coarse Refuse | I62: Illinois Basin | J62: N/A | K62: West Kentucky No.13 Coal Seam | L62: Kentucky | M62: Webster | N62: NA | O62: Kentucky | P62: Webster | Q62: NA | R62: Coarse Refuse | AJ62: N/A | AK62: ICP-OES | AL62: N/A | AM62: < -0.01 | AN62: < -0.07 | AO62: < -0.19 | AP62: < -0.02 | AQ62: < 0.04 | AR62: < 0.03 | AS62: < -0.28 | AT62: < -6.12 | AU62: < 0 | AW62: < -0.02 | AX62: < -0.04 | AY62: < -0.01 | AZ62: < 0.05 | BA62: < 0 | BB62: < 0.01 | BC62: < 0.01 | BD62: < -0.13 | BE62: < 0.05 | BG62: < -0.07 | BH62: 0.57 | BJ62: < 0 | BN62: < -0.07 | BO62: < -0.01 | BS62: < 0 | BT62: < -0.04 | BU62: < 0.16 | BV62: < 0 | BW62: < 0 | BX62: < 0.07 | BY62: < 0.01 | BZ62: < -0.1 | CA62: < 0.13 | CB62: < -0.15 | CC62: < -0.04 | CD62: < -0.01 | CE62: < -0.01 | CF62: < -0.04 | CG62: < -0.01 | CH62: < 0 | CI62: < -0.01 | CJ62: < -0.02 | CK62: < 0 | CL62: < 0 | CN62: < 0.22 | CO62: < 0.02 | CP62: < 0.02 | CR62: 0 | CS62: 0
A63: XBL.BA2005.BA | B63: Bioleach Acid | C63: Bioleach Acid generated from bio-oxidation | D63: DTK-CR | F63: Processing | G63: Coal Mining | H63: Coarse Refuse | I63: Illinois Basin | J63: N/A | K63: West Kentucky No.13 Coal Seam | L63: Kentucky | M63: Webster | N63: NA | O63: Kentucky | P63: Webster | Q63: NA | R63: Coarse Refuse | AJ63: N/A | AK63: ICP-OES | AL63: N/A | AM63: < 0.98 | AN63: 10.62 | AO63: 210.06 | AP63: 25.9 | AQ63: 45.64 | AR63: 203.2 | AS63: 34.45 | AT63: 530.6 | AU63: 0.07 | AW63: 0.26 | AX63: 0.45 | AY63: 38.57 | AZ63: 9308 | BA63: 1.4 | BB63: 4.54 | BC63: 19.94 | BD63: 52.33 | BE63: < -2.88 | BG63: 2.52 | BH63: < -3.78 | BJ63: 0.26 | BN63: < -0.39 | BO63: 2.17 | BS63: 0.01 | BT63: 12.44 | BU63: 2.52 | BV63: 0.05 | BW63: 1.23 | BX63: 1.15 | BY63: < 0.27 | BZ63: < 0.44 | CA63: < -2.3 | CB63: 0.25 | CC63: < -0.2 | CD63: < -0.96 | CE63: < -0.32 | CF63: < 0.06 | CG63: < -2.02 | CH63: < 0.06 | CI63: < -1.09 | CJ63: < -0.27 | CK63: 0.55 | CL63: 0.16 | CN63: < -0.01 | CO63: 0.76 | CP63: 0.14 | CR63: 0.96 | CS63: 1.22
A64: XBL.BA2005.L | B64: Leachate | C64: Bioleach Acid, Dotiki Pile -1.5 inch, 2 mm, 600°C, 20 min, muffle furnace, 40 g / 200 ml, 75 °C | D64: DTK-CR | F64: Processing | G64: Coal Mining | H64: Coarse Refuse | I64: Illinois Basin | J64: N/A | K64: West Kentucky No.13 Coal Seam | L64: Kentucky | M64: Webster | N64: NA | O64: Kentucky | P64: Webster | Q64: NA | R64: Coarse Refuse | AJ64: N/A | AK64: ICP-OES | AL64: N/A | AM64: 1.07 | AN64: 98.42 | AO64: 477.88 | AP64: 1616.4 | AQ64: 391 | AR64: 200.3 | AS64: < 2.48 | AT64: 707.1 | AU64: 0.57 | AW64: 0.65 | AX64: 1.18 | AY64: 57.93 | AZ64: 6723 | BA64: 2.03 | BB64: 5.95 | BC64: 21.23 | BD64: 55.91 | BE64: < -1.98 | BG64: 4.01 | BH64: 0.76 | BJ64: 0.97 | BN64: < -0.31 | BO64: 1.73 | BS64: < 0 | BT64: 10.18 | BU64: < 1.75 | BV64: 11.25 | BW64: < 0.73 | BX64: 13.93 | BY64: 2.65 | BZ64: 5.31 | CA64: < -0.87 | CB64: 2.57 | CC64: 0.4 | CD64: < -0.48 | CE64: < 0.11 | CF64: < 0.08 | CG64: < -1.16 | CH64: < 0.08 | CI64: < -0.69 | CJ64: < -0.26 | CK64: 0.44 | CL64: 0.12 | CN64: < -0.01 | CO64: 2.5 | CP64: 0.8 | CR64: 11.49 | CS64: 12.46
A65: XBL.BA2005.PT0 | B65: Liquid | C65: Precipitation test on Bioleach PLS solution using NaOH | D65: DTK-CR | F65: Processing | G65: Coal Mining | H65: Coarse Refuse | I65: Illinois Basin | J65: N/A | K65: West Kentucky No.13 Coal Seam | L65: Kentucky | M65: Webster | N65: NA | O65: Kentucky | P65: Webster | Q65: NA | R65: Coarse Refuse | AJ65: N/A | AK65: ICP-OES | AL65: N/A | AM65: 1.07 | AN65: 1253.1 | AO65: 486.27 | AP65: 1648.6 | AQ65: 398.8 | AR65: 206.8 | AS65: 8.28 | AT65: 747.1 | AU65: 0.57 | AW65: 0.65 | AX65: 1.22 | AY65: 58.13 | AZ65: 663700 | BA65: 2.06 | BB65: 5.95 | BC65: 21.48 | BD65: 56.43 | BE65: < -1.93 | BG65: 4.21 | BH65: 1.42 | BJ65: 0.97 | BN65: < -0.3 | BO65: 1.74 | BS65: < 0 | BT65: 10.4 | BU65: < 1.9 | BV65: 11.33 | BW65: < 0.79 | BX65: 14.19 | BY65: 2.66 | BZ65: 5.45 | CA65: < -0.79 | CB65: 2.21 | CC65: 0.35 | CD65: < -0.49 | CE65: < 0.16 | CF65: < 0 | CG65: < -1.16 | CH65: < 0.08 | CI65: < -0.66 | CJ65: < -0.27 | CK65: 0.45 | CL65: 0.11 | CN65: < 0.02 | CO65: 2.7 | CP65: 0.85 | CR65: 11.23 | CS65: 12.2
A66: XBL.BA2005.PT1 | B66: Liquid | C66: Precipitation test on Bioleach PLS solution using NaOH | D66: DTK-CR | F66: Processing | G66: Coal Mining | H66: Coarse Refuse | I66: Illinois Basin | J66: N/A | K66: West Kentucky No.13 Coal Seam | L66: Kentucky | M66: Webster | N66: NA | O66: Kentucky | P66: Webster | Q66: NA | R66: Coarse Refuse | AJ66: N/A | AK66: ICP-OES | AL66: N/A | AM66: 1.06 | AN66: 2627.9 | AO66: 481.4 | AP66: 1628.1 | AQ66: 397.5 | AR66: 205.2 | AS66: 15.02 | AT66: 737.8 | AU66: 0.55 | AW66: 0.63 | AX66: 1.21 | AY66: 57.6 | AZ66: 657500 | BA66: 2.03 | BB66: 5.98 | BC66: 21.31 | BD66: 55.91 | BE66: < -1.92 | BG66: 4.07 | BH66: 1.18 | BJ66: 0.96 | BN66: < -0.27 | BO66: 1.72 | BS66: < 0 | BT66: 10.22 | BU66: < 1.78 | BV66: 11.23 | BW66: < 0.74 | BX66: 14.09 | BY66: 2.66 | BZ66: 5.49 | CA66: < -0.79 | CB66: 2.44 | CC66: 0.4 | CD66: < -0.48 | CE66: < 0.15 | CF66: < 0.01 | CG66: < -1.14 | CH66: < 0.08 | CI66: < -0.66 | CJ66: < -0.26 | CK66: 0.45 | CL66: 0.11 | CN66: < 0.09 | CO66: 2.51 | CP66: 0.82 | CR66: 11.55 | CS66: 12.51
A67: XBL.BA2005.PT10 | B67: Liquid | C67: Precipitation test on Bioleach PLS solution using NaOH | D67: DTK-CR | F67: Processing | G67: Coal Mining | H67: Coarse Refuse | I67: Illinois Basin | J67: N/A | K67: West Kentucky No.13 Coal Seam | L67: Kentucky | M67: Webster | N67: NA | O67: Kentucky | P67: Webster | Q67: NA | R67: Coarse Refuse | AJ67: N/A | AK67: ICP-OES | AL67: N/A | AM67: < -0.01 | AN67: > 10828.5 | AO67: 421.24 | AP67: < 0.21 | AQ67: 5.66 | AR67: < 0.02 | AS67: 67.48 | AT67: 437.4 | AU67: < 0 | AW67: < -0.01 | AX67: < -0.02 | AY67: 19.74 | AZ67: < 0.29 | BA67: 0.11 | BB67: 0.36 | BC67: < 0 | BD67: < 0.06 | BE67: < -0.12 | BG67: < 0.03 | BH67: < 0.08 | BJ67: < -0.01 | BN67: < -0.12 | BO67: 0.04 | BS67: < 0 | BT67: < 0.53 | BU67: < 0.02 | BV67: 10.46 | BW67: < 0.01 | BX67: 10.76 | BY67: < -0.03 | BZ67: < 0.16 | CA67: < -0.03 | CB67: < -0.02 | CC67: < 0.01 | CD67: < 0 | CE67: < 0.05 | CF67: < -0.01 | CG67: 0.05 | CH67: < 0 | CI67: < -0.05 | CJ67: < -0.03 | CK67: < -0.01 | CL67: < 0 | CN67: < -0.19 | CO67: < 0 | CP67: < 0.03 | CR67: 0.05 | CS67: 0.05
A68: XBL.BA2005.PT11 | B68: Liquid | C68: Precipitation test on Bioleach PLS solution using NaOH | D68: DTK-CR | F68: Processing | G68: Coal Mining | H68: Coarse Refuse | I68: Illinois Basin | J68: N/A | K68: West Kentucky No.13 Coal Seam | L68: Kentucky | M68: Webster | N68: NA | O68: Kentucky | P68: Webster | Q68: NA | R68: Coarse Refuse | AJ68: N/A | AK68: ICP-OES | AL68: N/A | AM68: < -0.01 | AN68: > 11308.6 | AO68: 315 | AP68: < 0.68 | AQ68: 4.53 | AR68: < 0.1 | AS68: 69.36 | AT68: 372.15 | AU68: < 0 | AW68: < -0.01 | AX68: < -0.03 | AY68: 2.55 | AZ68: 1.27 | BA68: < 0 | BB68: < 0.02 | BC68: < 0.01 | BD68: < -0.1 | BE68: < -0.11 | BG68: < -0.08 | BH68: < -0.02 | BJ68: < -0.01 | BN68: < -0.1 | BO68: < 0 | BS68: < 0 | BT68: < 0.35 | BU68: < 0.05 | BV68: 10.35 | BW68: < -0.02 | BX68: 9.15 | BY68: < -0.03 | BZ68: < 0.2 | CA68: < -0.04 | CB68: < 0 | CC68: 0.06 | CD68: < 0 | CE68: < 0.03 | CF68: < -0.01 | CG68: < 0 | CH68: < 0.01 | CI68: < -0.01 | CJ68: < -0.01 | CK68: < -0.01 | CL68: < 0 | CN68: < -0.12 | CO68: < 0.07 | CP68: < -0.06 | CR68: 0.06 | CS68: 0.06
A69: XBL.BA2005.PT12 | B69: Liquid | C69: Precipitation test on Bioleach PLS solution using NaOH | D69: DTK-CR | F69: Processing | G69: Coal Mining | H69: Coarse Refuse | I69: Illinois Basin | J69: N/A | K69: West Kentucky No.13 Coal Seam | L69: Kentucky | M69: Webster | N69: NA | O69: Kentucky | P69: Webster | Q69: NA | R69: Coarse Refuse | AJ69: N/A | AK69: ICP-OES | AL69: N/A | AM69: < -0.01 | AN69: > 12024.9 | AO69: 127.29 | AP69: 4.78 | AQ69: 4.3 | AR69: < 0.21 | AS69: 72.9 | AT69: 286.19 | AU69: < 0 | AW69: < -0.01 | AX69: < -0.01 | AY69: 0.21 | AZ69: < 0.65 | BA69: < 0 | BB69: < 0.01 | BC69: < 0.01 | BD69: < -0.1 | BE69: < -0.08 | BG69: < -0.12 | BH69: < -0.11 | BJ69: < -0.01 | BN69: < -0.11 | BO69: < -0.01 | BS69: < 0 | BT69: < 0.29 | BU69: < 0.01 | BV69: 9.98 | BW69: < -0.03 | BX69: 6.47 | BY69: < -0.02 | BZ69: < 0.01 | CA69: < -0.07 | CB69: < -0.09 | CC69: < 0.02 | CD69: < 0 | CE69: < 0.01 | CF69: < -0.07 | CG69: < -0.01 | CH69: < -0.01 | CI69: < -0.04 | CJ69: < -0.01 | CK69: < -0.01 | CL69: < 0 | CN69: < -0.23 | CO69: < 0.04 | CP69: < -0.1 | CR69: 0 | CS69: 0
A70: XBL.BA2005.PT13 | B70: Liquid | C70: Precipitation test on Bioleach PLS solution using NaOH | D70: DTK-CR | F70: Processing | G70: Coal Mining | H70: Coarse Refuse | I70: Illinois Basin | J70: N/A | K70: West Kentucky No.13 Coal Seam | L70: Kentucky | M70: Webster | N70: NA | O70: Kentucky | P70: Webster | Q70: NA | R70: Coarse Refuse | AJ70: N/A | AK70: ICP-OES | AL70: N/A | AM70: < -0.01 | AN70: > 13064.2 | AO70: 3.47 | AP70: 33.95 | AQ70: 6.27 | AR70: < 0.41 | AS70: 77.92 | AT70: 76.81 | AU70: < 0 | AW70: < -0.02 | AX70: < -0.03 | AY70: 0.01 | AZ70: < 0.22 | BA70: < -0.01 | BB70: < 0 | BC70: < 0.03 | BD70: < -0.11 | BE70: < -0.01 | BG70: < 0 | BH70: < -0.57 | BJ70: < -0.01 | BN70: < -0.11 | BO70: < 0 | BS70: < 0 | BT70: < 0.51 | BU70: < 0.02 | BV70: 8.42 | BW70: < 0 | BX70: 2.46 | BY70: < 0 | BZ70: < 0.06 | CA70: < 0.04 | CB70: < 0 | CC70: < 0.04 | CD70: < 0 | CE70: < 0 | CF70: < -0.01 | CG70: < -0.01 | CH70: < 0.01 | CI70: < -0.04 | CJ70: < 0 | CK70: < -0.01 | CL70: < -0.01 | CN70: < -0.16 | CO70: < 0.02 | CP70: < -0.03 | CR70: 0 | CS70: 0
A71: XBL.BA2005.PT2 | B71: Liquid | C71: Precipitation test on Bioleach PLS solution using NaOH | D71: DTK-CR | F71: Processing | G71: Coal Mining | H71: Coarse Refuse | I71: Illinois Basin | J71: N/A | K71: West Kentucky No.13 Coal Seam | L71: Kentucky | M71: Webster | N71: NA | O71: Kentucky | P71: Webster | Q71: NA | R71: Coarse Refuse | AJ71: N/A | AK71: ICP-OES | AL71: N/A | AM71: < 0.22 | AN71: > 6708.51 | AO71: 470.68 | AP71: 1560.4 | AQ71: 333 | AR71: 37.71 | AS71: 36.04 | AT71: 726.9 | AU71: 0.56 | AW71: 0.11 | AX71: 0.69 | AY71: 56.46 | AZ71: 1427.7 | BA71: 1.95 | BB71: 5.84 | BC71: 20.36 | BD71: 54.48 | BE71: < -0.34 | BG71: < 0.79 | BH71: 1.5 | BJ71: 1 | BN71: < -0.12 | BO71: 0.91 | BS71: < 0 | BT71: 3.5 | BU71: < 0.34 | BV71: 11.15 | BW71: < 0.32 | BX71: 13.6 | BY71: 2.54 | BZ71: 5.01 | CA71: < 0.49 | CB71: 2.29 | CC71: 0.52 | CD71: < -0.1 | CE71: < 0.38 | CF71: < -0.01 | CG71: 0.07 | CH71: < 0.06 | CI71: < -0.06 | CJ71: < -0.07 | CK71: 0.15 | CL71: 0.03 | CN71: < 0.03 | CO71: 2.25 | CP71: 0.74 | CR71: 10.61 | CS71: 11.61
A72: XBL.BA2005.PT3 | B72: Liquid | C72: Precipitation test on Bioleach PLS solution using NaOH | D72: DTK-CR | F72: Processing | G72: Coal Mining | H72: Coarse Refuse | I72: Illinois Basin | J72: N/A | K72: West Kentucky No.13 Coal Seam | L72: Kentucky | M72: Webster | N72: NA | O72: Kentucky | P72: Webster | Q72: NA | R72: Coarse Refuse | AJ72: N/A | AK72: ICP-OES | AL72: N/A | AM72: < 0.14 | AN72: > 7453.4 | AO72: 463.13 | AP72: 1383.2 | AQ72: 289.1 | AR72: 5.86 | AS72: 42.43 | AT72: 726.8 | AU72: 0.4 | AW72: < 0 | AX72: 0.13 | AY72: 55.54 | AZ72: 169.05 | BA72: 1.9 | BB72: 5.74 | BC72: 18.47 | BD72: 53.52 | BE72: < -0.07 | BG72: < 0.15 | BH72: 1.12 | BJ72: 0.95 | BN72: < -0.09 | BO72: 0.72 | BS72: < 0 | BT72: 1.86 | BU72: < 0.22 | BV72: 11.03 | BW72: < 0.13 | BX72: 13.56 | BY72: 2.35 | BZ72: 4.68 | CA72: 0.78 | CB72: 2 | CC72: 0.47 | CD72: 0.06 | CE72: < 0.4 | CF72: < -0.05 | CG72: 0.32 | CH72: < 0.01 | CI72: 0.07 | CJ72: < -0.03 | CK72: 0.07 | CL72: < 0 | CN72: < -0.01 | CO72: 1.73 | CP72: 0.29 | CR72: 10.8 | CS72: 11.75
A73: XBL.BA2005.PT4 | B73: Liquid | C73: Precipitation test on Bioleach PLS solution using NaOH | D73: DTK-CR | F73: Processing | G73: Coal Mining | H73: Coarse Refuse | I73: Illinois Basin | J73: N/A | K73: West Kentucky No.13 Coal Seam | L73: Kentucky | M73: Webster | N73: NA | O73: Kentucky | P73: Webster | Q73: NA | R73: Coarse Refuse | AJ73: N/A | AK73: ICP-OES | AL73: N/A | AM73: < 0.08 | AN73: > 8628.13 | AO73: 459.97 | AP73: 952.2 | AQ73: 250.6 | AR73: 3.81 | AS73: 48.77 | AT73: 721.9 | AU73: 0.19 | AW73: < -0.03 | AX73: 0.07 | AY73: 54.87 | AZ73: 54.34 | BA73: 1.88 | BB73: 5.65 | BC73: 13.82 | BD73: 52.34 | BE73: < -0.01 | BG73: < 0.1 | BH73: 1.07 | BJ73: 0.92 | BN73: < -0.08 | BO73: 0.7 | BS73: < 0 | BT73: 1.57 | BU73: < -0.04 | BV73: 10.96 | BW73: < 0.04 | BX73: 13.56 | BY73: 2.3 | BZ73: 4.57 | CA73: 0.67 | CB73: 1.72 | CC73: 0.45 | CD73: 0.07 | CE73: < 0.36 | CF73: < -0.04 | CG73: 0.32 | CH73: < 0.02 | CI73: 0.1 | CJ73: < -0.02 | CK73: 0.06 | CL73: < 0 | CN73: < 0.13 | CO73: 0.94 | CP73: 0.27 | CR73: 10.26 | CS73: 11.18
A74: XBL.BA2005.PT5 | B74: Liquid | C74: Precipitation test on Bioleach PLS solution using NaOH | D74: DTK-CR | F74: Processing | G74: Coal Mining | H74: Coarse Refuse | I74: Illinois Basin | J74: N/A | K74: West Kentucky No.13 Coal Seam | L74: Kentucky | M74: Webster | N74: NA | O74: Kentucky | P74: Webster | Q74: NA | R74: Coarse Refuse | AJ74: N/A | AK74: ICP-OES | AL74: N/A | AM74: < 0 | AN74: > 9923.74 | AO74: 455.85 | AP74: 72.7 | AQ74: 84.02 | AR74: < 0.17 | AS74: 51.93 | AT74: 702.2 | AU74: 0.02 | AW74: < -0.02 | AX74: < 0.04 | AY74: 53.6 | AZ74: 16.57 | BA74: 1.82 | BB74: 5.3 | BC74: 4.41 | BD74: 47.62 | BE74: < -0.04 | BG74: < 0.05 | BH74: 0.94 | BJ74: 0.73 | BN74: < -0.09 | BO74: 0.68 | BS74: < 0 | BT74: 1.32 | BU74: < 0.05 | BV74: 10.8 | BW74: < 0.05 | BX74: 13.14 | BY74: 2.02 | BZ74: 3.67 | CA74: 0.54 | CB74: 1.45 | CC74: 0.36 | CD74: 0.06 | CE74: < 0.29 | CF74: < -0.04 | CG74: 0.28 | CH74: < 0.02 | CI74: 0.06 | CJ74: < -0.03 | CK74: 0.03 | CL74: < 0 | CN74: < -0.06 | CO74: < 0 | CP74: 0.18 | CR74: 8.47 | CS74: 9.2
A75: XBL.BA2005.PT7 | B75: Liquid | C75: Precipitation test on Bioleach PLS solution using NaOH | D75: DTK-CR | F75: Processing | G75: Coal Mining | H75: Coarse Refuse | I75: Illinois Basin | J75: N/A | K75: West Kentucky No.13 Coal Seam | L75: Kentucky | M75: Webster | N75: NA | O75: Kentucky | P75: Webster | Q75: NA | R75: Coarse Refuse | AJ75: N/A | AK75: ICP-OES | AL75: N/A | AM75: < -0.01 | AN75: > 10271.2 | AO75: 447.13 | AP75: < 0.67 | AQ75: 24.16 | AR75: < -0.02 | AS75: 60.13 | AT75: 544 | AU75: < 0 | AW75: < -0.03 | AX75: < -0.03 | AY75: 51.23 | AZ75: 5.77 | BA75: 1.55 | BB75: 4.43 | BC75: 0.14 | BD75: 19.36 | BE75: < -0.12 | BG75: < 0.01 | BH75: 0.61 | BJ75: 0.07 | BN75: < -0.1 | BO75: 0.53 | BS75: 0.01 | BT75: < 0.95 | BU75: < 0.06 | BV75: 10.74 | BW75: < -0.01 | BX75: 12.28 | BY75: < 0.7 | BZ75: < 0.91 | CA75: < -0.01 | CB75: 0.24 | CC75: 0.07 | CD75: < 0 | CE75: < 0.08 | CF75: < 0.03 | CG75: 0.14 | CH75: < 0 | CI75: < -0.01 | CJ75: < -0.02 | CK75: < 0 | CL75: < 0 | CN75: < 0.01 | CO75: < -0.08 | CP75: < 0.04 | CR75: 0.45 | CS75: 0.52
A76: XBL.BA2005.PT8 | B76: Liquid | C76: Precipitation test on Bioleach PLS solution using NaOH | D76: DTK-CR | F76: Processing | G76: Coal Mining | H76: Coarse Refuse | I76: Illinois Basin | J76: N/A | K76: West Kentucky No.13 Coal Seam | L76: Kentucky | M76: Webster | N76: NA | O76: Kentucky | P76: Webster | Q76: NA | R76: Coarse Refuse | AJ76: N/A | AK76: ICP-OES | AL76: N/A | AM76: < -0.01 | AN76: > 10436.8 | AO76: 444.98 | AP76: < 0.36 | AQ76: 12.97 | AR76: < -0.02 | AS76: 63.35 | AT76: 494.67 | AU76: < 0 | AW76: < -0.01 | AX76: < -0.03 | AY76: 46.92 | AZ76: 1.17 | BA76: 1.09 | BB76: 3.13 | BC76: < 0.02 | BD76: 5.94 | BE76: < -0.06 | BG76: < 0.03 | BH76: < 0.44 | BJ76: < 0 | BN76: < -0.09 | BO76: 0.35 | BS76: 0.01 | BT76: < 0.8 | BU76: < -0.02 | BV76: 10.61 | BW76: < 0 | BX76: 11.46 | BY76: < 0.23 | BZ76: < 0.31 | CA76: < -0.01 | CB76: 0.08 | CC76: < 0.04 | CD76: < 0 | CE76: < 0.04 | CF76: < 0.03 | CG76: 0.12 | CH76: < 0 | CI76: < -0.06 | CJ76: < -0.03 | CK76: < 0 | CL76: < 0 | CN76: < -0.03 | CO76: < -0.06 | CP76: < -0.08 | CR76: 0.2 | CS76: 0.2
A77: XBL.BA2005.PT9 | B77: Liquid | C77: Precipitation test on Bioleach PLS solution using NaOH | D77: DTK-CR | F77: Processing | G77: Coal Mining | H77: Coarse Refuse | I77: Illinois Basin | J77: N/A | K77: West Kentucky No.13 Coal Seam | L77: Kentucky | M77: Webster | N77: NA | O77: Kentucky | P77: Webster | Q77: NA | R77: Coarse Refuse | AJ77: N/A | AK77: ICP-OES | AL77: N/A | AM77: < -0.01 | AN77: > 10636.3 | AO77: 433.66 | AP77: < 0.33 | AQ77: 6.75 | AR77: < 0.03 | AS77: 64.81 | AT77: 460.14 | AU77: < -0.01 | AW77: < -0.01 | AX77: < -0.03 | AY77: 32.42 | AZ77: 1.16 | BA77: 0.37 | BB77: 1.15 | BC77: < 0.01 | BD77: < 0.58 | BE77: < -0.09 | BG77: < -0.05 | BH77: < 0.04 | BJ77: < -0.01 | BN77: < -0.1 | BO77: 0.11 | BS77: 0.01 | BT77: < 0.61 | BU77: < 0.02 | BV77: 10.47 | BW77: < 0.02 | BX77: 11.12 | BY77: < -0.01 | BZ77: < 0.15 | CA77: < -0.03 | CB77: < -0.01 | CC77: < 0 | CD77: < 0 | CE77: < 0.04 | CF77: < 0.01 | CG77: 0.07 | CH77: < 0.01 | CI77: < -0.05 | CJ77: < -0.02 | CK77: < -0.01 | CL77: < 0 | CN77: < 0.1 | CO77: 0.11 | CP77: < -0.01 | CR77: 0.07 | CS77: 0.07
A78: XBL.BA2005.WW | B78: Liquid | C78: Precipitation test on Bioleach PLS solution using NaOH | D78: DTK-CR | F78: Processing | G78: Coal Mining | H78: Coarse Refuse | I78: Illinois Basin | J78: N/A | K78: West Kentucky No.13 Coal Seam | L78: Kentucky | M78: Webster | N78: NA | O78: Kentucky | P78: Webster | Q78: NA | R78: Coarse Refuse | AJ78: N/A | AK78: ICP-OES | AL78: N/A | AM78: < 0.084 | AN78: 14.542 | AO78: 84.91 | AP78: 313.98 | AQ78: 58.03 | AR78: 16.66 | AS78: 0.296 | AT78: 304.85 | AU78: 0.079 | AW78: 0.061 | AX78: 0.191 | AY78: 9.362 | AZ78: 523.51 | BA78: 0.333 | BB78: 0.986 | BC78: 2.91 | BD78: 8.535 | BE78: < -0.16 | BG78: 0.34 | BH78: 0.132 | BJ78: 0.164 | BN78: < -0.027 | BO78: 0.183 | BS78: 0.002 | BT78: 0.915 | BU78: < 0.168 | BV78: 2.152 | BW78: < 0.038 | BX78: 2.39 | BY78: 0.401 | BZ78: 0.899 | CA78: < 0.028 | CB78: 0.482 | CC78: 0.096 | CD78: < -0.029 | CE78: < 0.085 | CF78: < 0.015 | CG78: < -0.054 | CH78: < 0.01 | CI78: < -0.044 | CJ78: < -0.021 | CK78: 0.042 | CL78: 0.012 | CN78: < -0.006 | CO78: 0.497 | CP78: 0.108 | CR78: 1.932 | CS78: 2.096
A79: XBL.BA2006.BA | B79: Bioleach Acid | C79: Bioleach Acid generated from bio-oxidation | D79: DTK-CR | F79: Processing | G79: Coal Mining | H79: Coarse Refuse | I79: Illinois Basin | J79: N/A | K79: West Kentucky No.13 Coal Seam | L79: Kentucky | M79: Webster | N79: NA | O79: Kentucky | P79: Webster | Q79: NA | R79: Coarse Refuse | AJ79: N/A | AK79: ICP-OES | AL79: N/A | AM79: < 0.91 | AN79: 12.25 | AO79: 236.4 | AP79: 29.09 | AQ79: 60.79 | AR79: 222 | AS79: 39.16 | AT79: 616.8 | AU79: 0.11 | AW79: 0.27 | AX79: 0.54 | AY79: 43.34 | AZ79: > 10113 | BA79: 1.57 | BB79: 5.03 | BC79: 22.59 | BD79: 58.2 | BE79: < -3.02 | BG79: 2.99 | BH79: < -3.58 | BJ79: 0.2 | BN79: < -0.33 | BO79: 2.45 | BS79: 0.01 | BT79: 13.99 | BU79: 2.76 | BV79: 0.06 | BW79: 1.46 | BX79: 1.43 | BY79: < 0.32 | BZ79: < 1.06 | CA79: < -2.63 | CB79: 0.12 | CC79: < -1.27 | CD79: < -2.38 | CE79: < -0.4 | CF79: < -0.14 | CG79: < -2.26 | CH79: < 0.14 | CI79: < -1.1 | CJ79: < -0.51 | CK79: 0.31 | CL79: 0.19 | CN79: < 0.07 | CO79: 1.12 | CP79: 0.33 | CR79: 0.62 | CS79: 0.82
A80: XBL.BA2006.L | B80: Leachate | C80: Bioleach Acid, Dotiki Pile -1.5 inch, 2 mm, 600°C, 20 min, muffle furnace, 40 g / 200 ml, 75 °C | D80: DTK-CR | F80: Processing | G80: Coal Mining | H80: Coarse Refuse | I80: Illinois Basin | J80: N/A | K80: West Kentucky No.13 Coal Seam | L80: Kentucky | M80: Webster | N80: NA | O80: Kentucky | P80: Webster | Q80: NA | R80: Coarse Refuse | AJ80: N/A | AK80: ICP-OES | AL80: N/A | AM80: < 0.32 | AN80: 46.27 | AO80: 721.7 | AP80: 3497.7 | AQ80: > 475.51 | AR80: 104.19 | AS80: < 0.58 | AT80: 688.1 | AU80: 0.77 | AW80: 0.5 | AX80: 1.92 | AY80: 76.41 | AZ80: 1049.8 | BA80: 2.73 | BB80: 8.25 | BC80: 24.14 | BD80: 66.58 | BE80: < -0.22 | BG80: 1.57 | BH80: 1.69 | BJ80: 1.24 | BN80: < -0.03 | BO80: 0.98 | BS80: 0.01 | BT80: 3.91 | BU80: < 0.19 | BV80: 19.43 | BW80: < 0.29 | BX80: < 0.5 | BY80: < 0.76 | BZ80: 3.47 | CA80: 0.68 | CB80: 2.69 | CC80: 0.58 | CD80: < -0.12 | CE80: < 0.5 | CF80: < 0.04 | CG80: 0.38 | CH80: < 0.07 | CI80: < 0.01 | CJ80: < -0.07 | CK80: 0.13 | CL80: 0.04 | CN80: < 0.19 | CO80: 5.37 | CP80: 0.32 | CR80: 7.97 | CS80: 9.21
A81: XBL.BA2006.PT.1 | B81: Liquid | C81: Precipitation test on Bioleach PLS solution using NaOH | D81: DTK-CR | F81: Processing | G81: Coal Mining | H81: Coarse Refuse | I81: Illinois Basin | J81: N/A | K81: West Kentucky No.13 Coal Seam | L81: Kentucky | M81: Webster | N81: NA | O81: Kentucky | P81: Webster | Q81: NA | R81: Coarse Refuse | AJ81: N/A | AK81: ICP-OES | AL81: N/A | AM81: < 0.32 | AN81: 662 | AO81: 737.5 | AP81: 3594.9 | AR81: 103.66 | AS81: 10.89 | AT81: 718 | AU81: 0.75 | AW81: 0.5 | AX81: 1.87 | AY81: 76.12 | AZ81: 1071.3 | BA81: 2.71 | BB81: 8.34 | BC81: 24.19 | BD81: 66.65 | BE81: < -0.22 | BG81: 1.56 | BH81: 1.43 | BJ81: 1.24 | BO81: 0.96 | BS81: < 0 | BT81: 3.92 | BU81: < 0.51 | BV81: 19.56 | BW81: < 0.21 | BX81: < 0.72 | BY81: < 0.71 | BZ81: 3.54 | CA81: 0.67 | CB81: 3.16 | CC81: 0.69 | CD81: < -0.08 | CE81: < 0.52 | CF81: < 0.08 | CG81: 0.31 | CH81: < 0.05 | CI81: 0.07 | CJ81: < -0.07 | CK81: 0.13 | CL81: 0.03 | CN81: < 0.01 | CO81: 5.17 | CP81: 0.31 | CR81: 8.6 | CS81: 9.84
A82: XBL.BA2006.PT.10 | B82: Liquid | C82: Precipitation test on Bioleach PLS solution using NaOH | D82: DTK-CR | F82: Processing | G82: Coal Mining | H82: Coarse Refuse | I82: Illinois Basin | J82: N/A | K82: West Kentucky No.13 Coal Seam | L82: Kentucky | M82: Webster | N82: NA | O82: Kentucky | P82: Webster | Q82: NA | R82: Coarse Refuse | AJ82: N/A | AK82: ICP-OES | AL82: N/A | AM82: < -0.01 | AN82: > 8957.01 | AO82: 570.2 | AP82: < 0.74 | AQ82: 8.94 | AR82: < -0.13 | AS82: 39.87 | AT82: 563.1 | AU82: < 0 | AW82: < 0 | AX82: < 0.01 | AY82: 34.65 | AZ82: < 0.32 | BA82: 0.22 | BB82: 0.53 | BC82: < 0.04 | BD82: < 0.14 | BE82: < -0.01 | BG82: < 0.11 | BH82: < 0.47 | BJ82: < 0 | BN82: < -0.02 | BO82: 0.06 | BS82: 0.01 | BT82: 1.18 | BU82: < -0.1 | BV82: 17.18 | BW82: < 0.02 | BX82: < 0.45 | BY82: < -0.07 | BZ82: < 0.07 | CA82: < 0.18 | CB82: < -0.14 | CC82: < -0.01 | CD82: < 0 | CE82: < 0.02 | CF82: < 0.01 | CG82: 0.15 | CH82: < 0.01 | CI82: < 0.03 | CJ82: < -0.02 | CK82: < 0 | CL82: < 0 | CN82: < 0.07 | CO82: 0.24 | CP82: < -0.02 | CR82: 0.15 | CS82: 0.15
A83: XBL.BA2006.PT.11 | B83: Liquid | C83: Precipitation test on Bioleach PLS solution using NaOH | D83: DTK-CR | F83: Processing | G83: Coal Mining | H83: Coarse Refuse | I83: Illinois Basin | J83: N/A | K83: West Kentucky No.13 Coal Seam | L83: Kentucky | M83: Webster | N83: NA | O83: Kentucky | P83: Webster | Q83: NA | R83: Coarse Refuse | AJ83: N/A | AK83: ICP-OES | AL83: N/A | AM83: < -0.01 | AN83: > 9516.16 | AO83: 423.28 | AP83: 1.48 | AQ83: 8.18 | AR83: < 0.05 | AS83: 41.87 | AT83: 457.85 | AU83: 0.01 | AW83: < -0.01 | AX83: < 0.03 | AY83: 6.1 | AZ83: < 0.41 | BA83: < -0.01 | BB83: 0.06 | BC83: < 0.05 | BD83: < -0.07 | BE83: < -0.03 | BG83: < 0.07 | BH83: < 0.05 | BJ83: < -0.01 | BN83: < -0.01 | BO83: < 0 | BS83: < 0 | BT83: < 0.74 | BU83: < 0.03 | BV83: 14.69 | BW83: < 0.04 | BX83: < 0.5 | BY83: < -0.05 | BZ83: < 0.17 | CA83: < 0.07 | CB83: < -0.07 | CC83: < 0 | CD83: < 0 | CE83: < -0.01 | CF83: < -0.05 | CG83: < 0.03 | CH83: < 0.01 | CI83: < 0 | CJ83: < 0 | CK83: < 0 | CL83: < 0 | CN83: < 0.06 | CO83: 0.15 | CP83: < -0.02 | CR83: 0 | CS83: 0
A84: XBL.BA2006.PT.12 | B84: Liquid | C84: Precipitation test on Bioleach PLS solution using NaOH | D84: DTK-CR | F84: Processing | G84: Coal Mining | H84: Coarse Refuse | I84: Illinois Basin | J84: N/A | K84: West Kentucky No.13 Coal Seam | L84: Kentucky | M84: Webster | N84: NA | O84: Kentucky | P84: Webster | Q84: NA | R84: Coarse Refuse | AJ84: N/A | AK84: ICP-OES | AL84: N/A | AM84: < -0.01 | AN84: > 9940.3 | AO84: 48.52 | AP84: 8.78 | AQ84: 7.56 | AR84: < 0.12 | AS84: 46.06 | AT84: 212.16 | AU84: < 0 | AW84: < 0 | AX84: < -0.01 | AY84: 0.25 | AZ84: < 0.3 | BA84: < -0.02 | BB84: < 0.01 | BC84: < 0.07 | BD84: < -0.07 | BE84: < 0 | BG84: < 0.08 | BH84: < -0.24 | BJ84: < 0 | BN84: < -0.02 | BO84: < -0.01 | BS84: < 0 | BT84: < 0.58 | BU84: < -0.02 | BV84: 0.31 | BW84: < 0 | BX84: < 0.03 | BY84: < 0 | BZ84: < 0.07 | CA84: < 0.04 | CB84: < -0.11 | CC84: < -0.02 | CD84: < 0 | CE84: < -0.01 | CF84: < 0.01 | CG84: < 0 | CH84: < 0 | CI84: < 0 | CJ84: < 0 | CK84: < 0 | CL84: < 0 | CN84: < 0 | CO84: 0.32 | CP84: < -0.05 | CR84: 0 | CS84: 0
A85: XBL.BA2006.PT.13 | B85: Liquid | C85: Precipitation test on Bioleach PLS solution using NaOH | D85: DTK-CR | F85: Processing | G85: Coal Mining | H85: Coarse Refuse | I85: Illinois Basin | J85: N/A | K85: West Kentucky No.13 Coal Seam | L85: Kentucky | M85: Webster | N85: NA | O85: Kentucky | P85: Webster | Q85: NA | R85: Coarse Refuse | AJ85: N/A | AK85: ICP-OES | AL85: N/A | AM85: < -0.01 | AN85: > 10241.6 | AO85: 2.07 | AP85: 84.85 | AQ85: 7.52 | AR85: < 0.22 | AS85: 49.29 | AT85: 71.42 | AU85: < 0 | AW85: < 0 | AX85: < 0.01 | AY85: 0.02 | AZ85: < 0.26 | BA85: < -0.02 | BB85: < 0.01 | BC85: 0.1 | BD85: < -0.08 | BE85: < 0.01 | BG85: < 0.12 | BH85: < -0.22 | BJ85: < 0 | BN85: < -0.03 | BO85: < -0.01 | BS85: < 0 | BT85: < 0.93 | BU85: < -0.18 | BV85: 0.07 | BW85: < 0.02 | BX85: < 0.01 | BY85: < 0.01 | BZ85: < -0.02 | CA85: < 0.13 | CB85: < -0.14 | CC85: < -0.01 | CD85: < 0 | CE85: < -0.02 | CF85: < -0.04 | CG85: < 0 | CH85: < 0.01 | CI85: < 0 | CJ85: < -0.02 | CK85: < 0 | CL85: < 0 | CN85: < 0.02 | CO85: 0.37 | CP85: < -0.02 | CR85: 0 | CS85: 0
A86: XBL.BA2006.PT.2 | B86: Liquid | C86: Precipitation test on Bioleach PLS solution using NaOH | D86: DTK-CR | F86: Processing | G86: Coal Mining | H86: Coarse Refuse | I86: Illinois Basin | J86: N/A | K86: West Kentucky No.13 Coal Seam | L86: Kentucky | M86: Webster | N86: NA | O86: Kentucky | P86: Webster | Q86: NA | R86: Coarse Refuse | AJ86: N/A | AK86: ICP-OES | AL86: N/A | AM86: < 0.32 | AN86: 1158.6 | AO86: 730.7 | AP86: 3571.1 | AR86: 102.71 | AS86: 14.87 | AT86: 713.8 | AU86: 0.75 | AW86: 0.49 | AX86: 1.88 | AY86: 75.05 | AZ86: 1070.3 | BA86: 2.69 | BB86: 8.19 | BC86: 23.84 | BD86: 65.84 | BE86: < -0.27 | BG86: 1.48 | BH86: 1.53 | BJ86: 1.22 | BO86: 0.96 | BS86: 0.01 | BT86: 3.9 | BU86: < 0.55 | BV86: 19.3 | BW86: < 0.18 | BX86: < 0.82 | BY86: < 0.72 | BZ86: 3.34 | CA86: 0.72 | CB86: 2.97 | CC86: 0.66 | CD86: < -0.08 | CE86: < 0.51 | CF86: < 0.06 | CG86: 0.3 | CH86: < 0.06 | CI86: 0.05 | CJ86: < -0.06 | CK86: 0.14 | CL86: 0.02 | CN86: < 0.25 | CO86: 5.23 | CP86: 0.32 | CR86: 8.2 | CS86: 9.42
A87: XBL.BA2006.PT.3 | B87: Liquid | C87: Precipitation test on Bioleach PLS solution using NaOH | D87: DTK-CR | F87: Processing | G87: Coal Mining | H87: Coarse Refuse | I87: Illinois Basin | J87: N/A | K87: West Kentucky No.13 Coal Seam | L87: Kentucky | M87: Webster | N87: NA | O87: Kentucky | P87: Webster | Q87: NA | R87: Coarse Refuse | AJ87: N/A | AK87: ICP-OES | AL87: N/A | AM87: < 0.31 | AN87: 2184.2 | AO87: 705.4 | AP87: 3392.1 | AR87: 92.06 | AS87: 18.1 | AT87: 690.3 | AU87: 0.73 | AW87: 0.42 | AX87: 1.76 | AY87: 73.88 | AZ87: 921.5 | BA87: 2.61 | BB87: 7.78 | BC87: 23.34 | BD87: 64.69 | BE87: < -0.22 | BG87: 1.26 | BH87: 1.48 | BJ87: 1.21 | BO87: 0.93 | BS87: 0.01 | BT87: 3.68 | BU87: < 0.32 | BV87: 19.03 | BW87: < 0.18 | BX87: < 0.53 | BY87: < 0.72 | BZ87: 3.4 | CA87: 0.73 | CB87: 2.97 | CC87: 0.64 | CD87: < -0.05 | CE87: < 0.49 | CF87: < 0.13 | CG87: 0.32 | CH87: < 0.07 | CI87: 0.09 | CJ87: < -0.04 | CK87: 0.13 | CL87: 0.02 | CN87: < 0.2 | CO87: 5.05 | CP87: 0.33 | CR87: 8.3 | CS87: 9.51
A88: XBL.BA2006.PT.4 | B88: Liquid | C88: Precipitation test on Bioleach PLS solution using NaOH | D88: DTK-CR | F88: Processing | G88: Coal Mining | H88: Coarse Refuse | I88: Illinois Basin | J88: N/A | K88: West Kentucky No.13 Coal Seam | L88: Kentucky | M88: Webster | N88: NA | O88: Kentucky | P88: Webster | Q88: NA | R88: Coarse Refuse | AJ88: N/A | AK88: ICP-OES | AL88: N/A | AM88: < 0.15 | AN88: > 6034.8 | AO88: 660.7 | AP88: 1451.8 | AR88: 10.26 | AS88: 24.07 | AT88: 677.5 | AU88: 0.37 | AW88: 0.01 | AX88: 0.4 | AY88: 68.6 | AZ88: 122.69 | BA88: 2.42 | BB88: 6.96 | BC88: 19.3 | BD88: 59.33 | BE88: < 0 | BG88: < 0.06 | BH88: 0.9 | BJ88: 1.12 | BO88: 0.75 | BS88: 0.01 | BT88: 2.47 | BU88: < 0.08 | BV88: 17.59 | BW88: < 0.04 | BX88: < 0.55 | BY88: < 0.64 | BZ88: 3.04 | CA88: 0.81 | CB88: 2.7 | CC88: 0.68 | CD88: 0.09 | CE88: < 0.51 | CF88: < 0.11 | CG88: 0.46 | CH88: < 0.04 | CI88: 0.16 | CJ88: < -0.02 | CK88: 0.09 | CL88: 0.01 | CN88: < 0.18 | CO88: 1.9 | CP88: 0.12 | CR88: 8.04 | CS88: 9.16
A89: XBL.BA2006.PT.5 | B89: Liquid | C89: Precipitation test on Bioleach PLS solution using NaOH | D89: DTK-CR | F89: Processing | G89: Coal Mining | H89: Coarse Refuse | I89: Illinois Basin | J89: N/A | K89: West Kentucky No.13 Coal Seam | L89: Kentucky | M89: Webster | N89: NA | O89: Kentucky | P89: Webster | Q89: NA | R89: Coarse Refuse | AJ89: N/A | AK89: ICP-OES | AL89: N/A | AM89: < 0.02 | AN89: > 7042.67 | AO89: 633.7 | AP89: 81.41 | AR89: < 0.08 | AS89: 23.84 | AT89: 615.8 | AU89: 0.04 | AW89: < -0.01 | AX89: < -0.01 | AY89: 65.05 | AZ89: 42.01 | BA89: 2.2 | BB89: 5.85 | BC89: 9.63 | BD89: 52.05 | BE89: < 0.04 | BG89: < -0.04 | BH89: 0.77 | BJ89: 0.87 | BO89: 0.69 | BS89: 0.01 | BT89: 2.19 | BU89: < 0.17 | BV89: 16.76 | BW89: < 0.06 | BX89: < 0.61 | BY89: < 0.58 | BZ89: 2.59 | CA89: 0.63 | CB89: 2.25 | CC89: 0.54 | CD89: 0.08 | CE89: < 0.39 | CF89: < 0.12 | CG89: 0.39 | CH89: < 0.03 | CI89: 0.13 | CJ89: < -0.03 | CK89: 0.05 | CL89: < 0 | CN89: < 0.08 | CO89: < 0 | CP89: 0.1 | CR89: 6.66 | CS89: 7.53
A90: XBL.BA2006.PT.6 | B90: Liquid | C90: Precipitation test on Bioleach PLS solution using NaOH | D90: DTK-CR | F90: Processing | G90: Coal Mining | H90: Coarse Refuse | I90: Illinois Basin | J90: N/A | K90: West Kentucky No.13 Coal Seam | L90: Kentucky | M90: Webster | N90: NA | O90: Kentucky | P90: Webster | Q90: NA | R90: Coarse Refuse | AJ90: N/A | AK90: ICP-OES | AL90: N/A | AM90: < 0 | AN90: > 7183.5 | AO90: 629.2 | AP90: 5.25 | AR90: < -0.12 | AS90: 25.7 | AT90: 609.6 | AU90: 0.01 | AW90: < 0 | AX90: < 0 | AY90: 62.81 | AZ90: 32.19 | BA90: 2.14 | BB90: 5.53 | BC90: 2.97 | BD90: 44.89 | BE90: < 0.02 | BG90: < 0.09 | BH90: 0.72 | BJ90: 0.53 | BO90: 0.65 | BS90: < 0 | BT90: 1.99 | BU90: < -0.13 | BV90: 16.18 | BW90: < 0.02 | BX90: < 0.45 | BY90: < 0.5 | BZ90: < 2.03 | CA90: 0.6 | CB90: 1.7 | CC90: 0.37 | CD90: 0.05 | CE90: < 0.28 | CF90: < 0.15 | CG90: 0.31 | CH90: < 0.01 | CI90: 0.09 | CJ90: < -0.02 | CK90: 0.02 | CL90: < -0.01 | CN90: < 0.07 | CO90: < -0.05 | CP90: < 0.06 | CR90: 3.14 | CS90: 3.67
A91: XBL.BA2006.PT.7 | B91: Liquid | C91: Precipitation test on Bioleach PLS solution using NaOH | D91: DTK-CR | F91: Processing | G91: Coal Mining | H91: Coarse Refuse | I91: Illinois Basin | J91: N/A | K91: West Kentucky No.13 Coal Seam | L91: Kentucky | M91: Webster | N91: NA | O91: Kentucky | P91: Webster | Q91: NA | R91: Coarse Refuse | AJ91: N/A | AK91: ICP-OES | AL91: N/A | AM91: < 0 | AN91: > 7298.4 | AO91: 619 | AP91: 1.05 | AR91: < -0.12 | AS91: 27.44 | AT91: 539.98 | AU91: < 0 | AW91: < 0 | AX91: < -0.02 | AY91: 61.08 | AZ91: 21.13 | BA91: 1.99 | BB91: 5.19 | BC91: 0.54 | BD91: 28.39 | BE91: < 0.02 | BG91: < -0.03 | BH91: 0.61 | BJ91: 0.13 | BO91: 0.6 | BS91: < 0 | BT91: 1.84 | BU91: < -0.1 | BV91: 15.87 | BW91: < 0.02 | BX91: < 0.4 | BY91: < 0.37 | BZ91: < 1.03 | CA91: < 0.3 | CB91: 0.98 | CC91: 0.15 | CD91: < 0 | CE91: < 0.12 | CF91: < 0.06 | CG91: 0.21 | CH91: < -0.01 | CI91: < 0.04 | CJ91: < -0.02 | CK91: < 0 | CL91: < -0.01 | CN91: < 0.08 | CO91: < -0.08 | CP91: < 0.02 | CR91: 1.34 | CS91: 1.47
A92: XBL.BA2006.PT.8 | B92: Liquid | C92: Precipitation test on Bioleach PLS solution using NaOH | D92: DTK-CR | F92: Processing | G92: Coal Mining | H92: Coarse Refuse | I92: Illinois Basin | J92: N/A | K92: West Kentucky No.13 Coal Seam | L92: Kentucky | M92: Webster | N92: NA | O92: Kentucky | P92: Webster | Q92: NA | R92: Coarse Refuse | AJ92: N/A | AK92: ICP-OES | AL92: N/A | AM92: < 0 | AN92: > 7385.14 | AO92: 622 | AP92: < 0.52 | AR92: < -0.14 | AS92: 29.28 | AT92: 531.85 | AU92: < 0 | AW92: < -0.02 | AX92: < -0.01 | AY92: 57.23 | AZ92: 7.23 | BA92: 1.57 | BB92: 4.1 | BC92: 0.1 | BD92: 8.85 | BE92: < -0.04 | BG92: < -0.07 | BH92: 0.53 | BJ92: 0.01 | BO92: 0.45 | BS92: 0.01 | BT92: 1.6 | BU92: < -0.06 | BV92: 15.5 | BW92: < -0.01 | BX92: < 0.46 | BY92: < 0.1 | BZ92: < 0.19 | CA92: < 0.09 | CB92: 0.48 | CC92: < 0.04 | CD92: < -0.01 | CE92: < 0.08 | CF92: < 0.1 | CG92: 0.19 | CH92: < 0 | CI92: < 0.02 | CJ92: < -0.03 | CK92: < 0 | CL92: < -0.01 | CN92: < 0.19 | CO92: 0.15 | CP92: < 0.08 | CR92: 0.67 | CS92: 0.68
A93: XBL.BA2006.PT.9 | B93: Liquid | C93: Precipitation test on Bioleach PLS solution using NaOH | D93: DTK-CR | F93: Processing | G93: Coal Mining | H93: Coarse Refuse | I93: Illinois Basin | J93: N/A | K93: West Kentucky No.13 Coal Seam | L93: Kentucky | M93: Webster | N93: NA | O93: Kentucky | P93: Webster | Q93: NA | R93: Coarse Refuse | AJ93: N/A | AK93: ICP-OES | AL93: N/A | AM93: < -0.01 | AN93: > 8515.12 | AO93: 606.2 | AP93: < 0.78 | AQ93: 10.38 | AR93: < -0.19 | AS93: 35.69 | AT93: 598.2 | AU93: < 0 | AW93: < -0.01 | AX93: < 0 | AY93: 52.77 | AZ93: < 0.45 | BA93: 0.77 | BB93: 2.02 | BC93: < 0.05 | BD93: 1.24 | BE93: < -0.01 | BG93: < 0.09 | BH93: < 0.34 | BJ93: < 0 | BN93: < -0.01 | BO93: 0.21 | BS93: 0.01 | BT93: 1.44 | BU93: < 0.02 | BV93: 17.28 | BW93: < 0.01 | BX93: < 0.17 | BY93: < -0.03 | BZ93: < 0.14 | CA93: < 0.14 | CB93: < -0.13 | CC93: < -0.03 | CD93: < 0 | CE93: < 0.02 | CF93: < -0.05 | CG93: 0.23 | CH93: < -0.01 | CI93: < 0 | CJ93: < -0.02 | CK93: < 0 | CL93: < 0 | CN93: < 0.05 | CO93: < 0.09 | CP93: < 0 | CR93: 0.23 | CS93: 0.23
A94: XBL.BA2006.WW | B94: Liquid | C94: Precipitation test on Bioleach PLS solution using NaOH | D94: DTK-CR | F94: Processing | G94: Coal Mining | H94: Coarse Refuse | I94: Illinois Basin | J94: N/A | K94: West Kentucky No.13 Coal Seam | L94: Kentucky | M94: Webster | N94: NA | O94: Kentucky | P94: Webster | Q94: NA | R94: Coarse Refuse | AJ94: N/A | AK94: ICP-OES | AL94: N/A | AM94: < 0.071 | AN94: 13.412 | AO94: 194.84 | AP94: 922 | AQ94: 104.71 | AR94: 14.03 | AS94: < 0.116 | AT94: 544.52 | AU94: 0.157 | AW94: 0.156 | AX94: 0.422 | AY94: 20.94 | AZ94: 168.24 | BA94: 0.718 | BB94: 2.149 | BC94: 6.448 | BD94: 17.84 | BE94: < -0.075 | BG94: 0.156 | BH94: 0.436 | BJ94: 0.352 | BN94: < -0.006 | BO94: 0.235 | BS94: 0.001 | BT94: 0.769 | BU94: < 0.075 | BV94: 5.387 | BW94: < 0.047 | BX94: 0.758 | BY94: 0.252 | BZ94: 1.141 | CA94: 0.243 | CB94: 0.897 | CC94: 0.194 | CD94: 0.004 | CE94: < 0.195 | CF94: < 0.012 | CG94: 0.136 | CH94: < 0.016 | CI94: 0.016 | CJ94: < -0.016 | CK94: 0.034 | CL94: 0.007 | CN94: < 0.037 | CO94: 1.319 | CP94: 0.066 | CR94: 2.924 | CS94: 3.276
A95: XBL.BA2007.BA | B95: Bioleach Acid | C95: Bioleach Acid generated from bio-oxidation | D95: DTK-CR | F95: Processing | G95: Coal Mining | H95: Coarse Refuse | I95: Illinois Basin | J95: N/A | K95: West Kentucky No.13 Coal Seam | L95: Kentucky | M95: Webster | N95: NA | O95: Kentucky | P95: Webster | Q95: NA | R95: Coarse Refuse | AJ95: N/A | AK95: ICP-OES | AL95: N/A | AM95: < 0.91 | AN95: 8.78 | AO95: 233.9 | AP95: 28.12 | AQ95: 58.69 | AR95: 226.1 | AS95: 37.68 | AT95: 681.2 | AU95: 0.11 | AW95: 0.23 | AX95: 0.53 | AY95: 43 | AZ95: 10762 | BA95: 1.56 | BB95: 5.02 | BC95: 21.99 | BD95: 57.79 | BE95: < -2.91 | BG95: 2.95 | BH95: < -3.37 | BJ95: 0.2 | BN95: < -0.24 | BO95: 2.44 | BS95: 0.02 | BT95: 14.49 | BU95: 2.57 | BV95: 0.08 | BW95: 1.46 | BX95: 1.52 | BY95: < 0.03 | BZ95: < 0.7 | CA95: < -2.74 | CB95: 0.29 | CC95: < -1.32 | CD95: < -2.24 | CE95: < -0.34 | CF95: < -0.31 | CG95: < -2.29 | CH95: < 0.24 | CI95: < -0.74 | CJ95: < -0.49 | CK95: 0.28 | CL95: 0.19 | CN95: < 0.3 | CO95: 0.93 | CP95: 0.15 | CR95: 0.76 | CS95: 0.96
A96: XBL.BA2007.L | B96: Leachate | C96: Bioleach Acid, Dotiki Pile -1.5 inch, 2 mm, 600°C, 20 min, muffle furnace, 40 g / 200 ml, 75 °C | D96: DTK-CR | F96: Processing | G96: Coal Mining | H96: Coarse Refuse | I96: Illinois Basin | J96: N/A | K96: West Kentucky No.13 Coal Seam | L96: Kentucky | M96: Webster | N96: NA | O96: Kentucky | P96: Webster | Q96: NA | R96: Coarse Refuse | AJ96: N/A | AK96: ICP-OES | AL96: N/A | AM96: 0.258 | AN96: 29.153 | AO96: 773.6 | AP96: 3756.3 | AQ96: 396.1 | AR96: 80.76 | AS96: 0.581 | AT96: 661.4 | AU96: 0.654 | AW96: 0.334 | AX96: 1.596 | AY96: 78.5 | AZ96: 529.57 | BA96: 2.353 | BB96: 6.927 | BC96: 23.23 | BD96: 67.99 | BE96: < -0.028 | BG96: 0.645 | BH96: 1.457 | BJ96: 1.14 | BN96: < -0.007 | BO96: 0.762 | BS96: 0.005 | BT96: 3.013 | BU96: 0.507 | BV96: 20.04 | BW96: < 0.07 | BX96: 0.854 | BY96: 0.349 | BZ96: 2.342 | CA96: 0.628 | CB96: 2.523 | CC96: 0.587 | CD96: 0.042 | CE96: 0.498 | CF96: < 0.035 | CG96: 0.458 | CH96: 0.053 | CI96: 0.077 | CJ96: < -0.032 | CK96: 0.106 | CL96: 0.023 | CN96: < 0.115 | CO96: 4.432 | CP96: 0.15 | CR96: 7.686 | CS96: 8.826
A97: XBL.BA2007.PT.1 | B97: Liquid | C97: Precipitation test on Bioleach PLS solution using NaOH | D97: DTK-CR | F97: Processing | G97: Coal Mining | H97: Coarse Refuse | I97: Illinois Basin | J97: N/A | K97: West Kentucky No.13 Coal Seam | L97: Kentucky | M97: Webster | N97: NA | O97: Kentucky | P97: Webster | Q97: NA | R97: Coarse Refuse | AJ97: N/A | AK97: ICP-OES | AL97: N/A | AM97: < 0.31 | AN97: 192.9 | AO97: 843.9 | AP97: 4033.4 | AQ97: 424.7 | AR97: 82.54 | AS97: 3.28 | AT97: 774.2 | AU97: 0.75 | AW97: 0.37 | AX97: 1.91 | AY97: 80.12 | AZ97: 538.03 | BA97: 2.89 | BB97: 8.88 | BC97: 23.87 | BD97: 69.36 | BE97: < -0.18 | BG97: < 0.98 | BH97: 2.08 | BJ97: 1.28 | BN97: < -0.03 | BO97: 0.94 | BS97: 0.01 | BT97: 3.61 | BU97: < 0.28 | BV97: 20.87 | BW97: < 0.12 | BX97: < 0.93 | BY97: < 0.5 | BZ97: < 2.4 | CA97: 0.6 | CB97: 2.88 | CC97: 0.71 | CD97: 0.06 | CE97: < 0.54 | CF97: < 0.05 | CG97: 0.51 | CH97: < 0.03 | CI97: 0.09 | CJ97: < -0.02 | CK97: 0.12 | CL97: 0.03 | CN97: < 0.24 | CO97: 5.84 | CP97: 0.1 | CR97: 5 | CS97: 6.28
A98: XBL.BA2007.PT.10 | B98: Liquid | C98: Precipitation test on Bioleach PLS solution using NaOH | D98: DTK-CR | F98: Processing | G98: Coal Mining | H98: Coarse Refuse | I98: Illinois Basin | J98: N/A | K98: West Kentucky No.13 Coal Seam | L98: Kentucky | M98: Webster | N98: NA | O98: Kentucky | P98: Webster | Q98: NA | R98: Coarse Refuse | AJ98: N/A | AK98: ICP-OES | AL98: N/A | AM98: < -0.01 | AN98: > 7990.59 | AO98: 615.5 | AP98: < 0.52 | AQ98: < 2.3 | AR98: < -0.03 | AS98: 30.42 | AT98: 535.5 | AU98: 0.01 | AW98: < -0.02 | AX98: < -0.01 | AY98: 36.83 | AZ98: < 0.07 | BA98: 0.25 | BB98: 0.58 | BC98: < 0.06 | BD98: < 0.28 | BE98: < -0.12 | BG98: < -0.05 | BH98: 0.93 | BJ98: 0.01 | BN98: < 0.1 | BO98: 0.08 | BS98: 0.02 | BT98: 1.29 | BU98: < -0.15 | BV98: 17.47 | BW98: < -0.01 | BX98: < 0.62 | BY98: < -0.35 | BZ98: < -0.27 | CA98: < 0.26 | CB98: 0.31 | CC98: < -0.02 | CD98: < 0 | CE98: < 0.08 | CF98: < -0.16 | CG98: 0.09 | CH98: < 0.11 | CI98: 0.33 | CJ98: < 0.01 | CK98: < 0 | CL98: < 0 | CN98: < 0.07 | CO98: < 0.04 | CP98: < -0.1 | CR98: 0.73 | CS98: 0.74
A99: XBL.BA2007.PT.11 | B99: Liquid | C99: Precipitation test on Bioleach PLS solution using NaOH | D99: DTK-CR | F99: Processing | G99: Coal Mining | H99: Coarse Refuse | I99: Illinois Basin | J99: N/A | K99: West Kentucky No.13 Coal Seam | L99: Kentucky | M99: Webster | N99: NA | O99: Kentucky | P99: Webster | Q99: NA | R99: Coarse Refuse | AJ99: N/A | AK99: ICP-OES | AL99: N/A | AM99: < -0.01 | AN99: > 8338.56 | AO99: 468.98 | AP99: 1.18 | AQ99: < 1.55 | AR99: < 0.07 | AS99: 34.43 | AT99: 421.04 | AU99: 0.01 | AW99: < 0 | AX99: < 0 | AY99: 9.13 | AZ99: < 0.09 | BA99: < 0.03 | BB99: < 0.04 | BC99: < 0.06 | BD99: < 0.04 | BE99: < -0.04 | BG99: < -0.04 | BH99: 0.65 | BJ99: 0.01 | BN99: < 0.09 | BO99: 0.01 | BS99: 0.02 | BT99: < 0.82 | BU99: < -0.07 | BV99: 14.55 | BW99: < -0.02 | BX99: < 0.71 | BY99: < -0.32 | BZ99: < -0.43 | CA99: < 0.47 | CB99: 0.12 | CC99: < -0.04 | CD99: < 0 | CE99: < 0.05 | CF99: < -0.18 | CG99: < -0.03 | CH99: < 0.11 | CI99: 0.33 | CJ99: < 0.02 | CK99: < 0 | CL99: < 0 | CN99: < -0.08 | CO99: < 0.01 | CP99: < -0.16 | CR99: 0.45 | CS99: 0.46
A100: XBL.BA2007.PT.12 | B100: Liquid | C100: Precipitation test on Bioleach PLS solution using NaOH | D100: DTK-CR | F100: Processing | G100: Coal Mining | H100: Coarse Refuse | I100: Illinois Basin | J100: N/A | K100: West Kentucky No.13 Coal Seam | L100: Kentucky | M100: Webster | N100: NA | O100: Kentucky | P100: Webster | Q100: NA | R100: Coarse Refuse | AJ100: N/A | AK100: ICP-OES | AL100: N/A | AM100: < -0.01 | AN100: > 9063.43 | AO100: 105.06 | AP100: 6.12 | AQ100: < 1.42 | AR100: < 0.15 | AS100: 38.6 | AT100: 229.41 | AU100: < 0 | AW100: < -0.01 | AX100: < 0 | AY100: 0.5 | AZ100: < 0.06 | BA100: < 0 | BB100: < 0.03 | BC100: < 0.07 | BD100: < 0.03 | BE100: < 0.01 | BG100: < 0.06 | BH100: < 0.36 | BJ100: 0.01 | BN100: < 0.1 | BO100: < 0 | BS100: 0.01 | BT100: < 0.58 | BU100: < -0.14 | BV100: 2.73 | BW100: < -0.03 | BX100: < 0.42 | BY100: < -0.29 | BZ100: < -0.48 | CA100: < 0.24 | CB100: 0.35 | CC100: < -0.01 | CD100: < 0 | CE100: < 0.04 | CF100: < -0.14 | CG100: < -0.06 | CH100: < 0.1 | CI100: 0.36 | CJ100: < 0.01 | CK100: < 0 | CL100: < 0 | CN100: < -0.02 | CO100: < 0 | CP100: < -0.11 | CR100: 0.71 | CS100: 0.72
A101: XBL.BA2007.PT.13 | B101: Liquid | C101: Precipitation test on Bioleach PLS solution using NaOH | D101: DTK-CR | F101: Processing | G101: Coal Mining | H101: Coarse Refuse | I101: Illinois Basin | J101: N/A | K101: West Kentucky No.13 Coal Seam | L101: Kentucky | M101: Webster | N101: NA | O101: Kentucky | P101: Webster | Q101: NA | R101: Coarse Refuse | AJ101: N/A | AK101: ICP-OES | AL101: N/A | AM101: < -0.01 | AN101: > 9675.18 | AO101: 2.44 | AP101: 85.54 | AQ101: < 1.31 | AR101: < 0.29 | AS101: 41.73 | AT101: 67.29 | AU101: < 0 | AW101: < -0.01 | AX101: < 0 | AY101: 0.01 | AZ101: < 0.09 | BA101: < -0.01 | BB101: < 0.02 | BC101: < 0.06 | BD101: < 0.05 | BE101: < 0.02 | BG101: < -0.05 | BH101: < 0.48 | BJ101: 0.01 | BN101: < 0.08 | BO101: < -0.01 | BS101: 0.02 | BT101: 1.04 | BU101: < -0.13 | BV101: 0.15 | BW101: < 0.01 | BX101: < 0.4 | BY101: < -0.3 | BZ101: < -0.44 | CA101: < 0.26 | CB101: 0.18 | CC101: < -0.06 | CD101: < 0 | CE101: < 0.03 | CF101: < -0.17 | CG101: < -0.07 | CH101: < 0.12 | CI101: 0.36 | CJ101: < 0.02 | CK101: < 0 | CL101: < 0 | CN101: < -0.09 | CO101: < 0.04 | CP101: < -0.18 | CR101: 0.54 | CS101: 0.55
A102: XBL.BA2007.PT.2 | B102: Liquid | C102: Precipitation test on Bioleach PLS solution using NaOH | D102: DTK-CR | F102: Processing | G102: Coal Mining | H102: Coarse Refuse | I102: Illinois Basin | J102: N/A | K102: West Kentucky No.13 Coal Seam | L102: Kentucky | M102: Webster | N102: NA | O102: Kentucky | P102: Webster | Q102: NA | R102: Coarse Refuse | AJ102: N/A | AK102: ICP-OES | AL102: N/A | AM102: < 0.3 | AN102: > 568.25 | AO102: 818 | AP102: 3946.5 | AQ102: 413 | AR102: 81.9 | AS102: 4 | AT102: 696.5 | AU102: 0.74 | AW102: 0.37 | AX102: 1.93 | AY102: 78.87 | AZ102: 531.56 | BA102: 2.85 | BB102: 8.68 | BC102: 23.44 | BD102: 68.23 | BE102: < -0.15 | BG102: < 0.91 | BH102: 1.73 | BJ102: 1.26 | BN102: < -0.03 | BO102: 0.92 | BS102: 0.01 | BT102: 3.56 | BU102: < 0.22 | BV102: 20.48 | BW102: < 0.09 | BX102: < 0.86 | BY102: < 0.48 | BZ102: 2.61 | CA102: 0.66 | CB102: 2.97 | CC102: 0.68 | CD102: 0.06 | CE102: < 0.52 | CF102: < 0.1 | CG102: 0.51 | CH102: < 0.04 | CI102: 0.05 | CJ102: < -0.02 | CK102: 0.12 | CL102: 0.02 | CN102: < 0.33 | CO102: 5.84 | CP102: 0.13 | CR102: 7.68 | CS102: 8.94
A103: XBL.BA2007.PT.3 | B103: Liquid | C103: Precipitation test on Bioleach PLS solution using NaOH | D103: DTK-CR | F103: Processing | G103: Coal Mining | H103: Coarse Refuse | I103: Illinois Basin | J103: N/A | K103: West Kentucky No.13 Coal Seam | L103: Kentucky | M103: Webster | N103: NA | O103: Kentucky | P103: Webster | Q103: NA | R103: Coarse Refuse | AJ103: N/A | AK103: ICP-OES | AL103: N/A | AM103: < 0.3 | AN103: 1507.6 | AO103: 832.8 | AP103: 3994 | AQ103: 419.3 | AR103: 80.27 | AS103: 6.41 | AT103: 775.5 | AU103: 0.73 | AW103: 0.35 | AX103: 1.87 | AY103: 77.47 | AZ103: 524.24 | BA103: 2.77 | BB103: 8.57 | BC103: 22.99 | BD103: 67.27 | BE103: < -0.18 | BG103: < 0.83 | BH103: 1.61 | BJ103: 1.23 | BN103: < -0.02 | BO103: 0.91 | BS103: 0.01 | BT103: 3.5 | BU103: < 0.27 | BV103: 20.19 | BW103: < 0.1 | BX103: < 0.49 | BY103: < 0.5 | BZ103: < 2.31 | CA103: 0.69 | CB103: 2.93 | CC103: 0.63 | CD103: 0.06 | CE103: < 0.54 | CF103: < 0.05 | CG103: 0.49 | CH103: < 0.03 | CI103: 0.07 | CJ103: < -0.02 | CK103: 0.12 | CL103: 0.02 | CN103: < 0.29 | CO103: 5.54 | CP103: 0.13 | CR103: 5.01 | CS103: 6.24
A104: XBL.BA2007.PT.4 | B104: Liquid | C104: Precipitation test on Bioleach PLS solution using NaOH | D104: DTK-CR | F104: Processing | G104: Coal Mining | H104: Coarse Refuse | I104: Illinois Basin | J104: N/A | K104: West Kentucky No.13 Coal Seam | L104: Kentucky | M104: Webster | N104: NA | O104: Kentucky | P104: Webster | Q104: NA | R104: Coarse Refuse | AJ104: N/A | AK104: ICP-OES | AL104: N/A | AM104: < 0.17 | AN104: > 5305.87 | AO104: 778.4 | AP104: 2128.8 | AQ104: 222.7 | AR104: 20.99 | AS104: 8.9 | AT104: 727.2 | AU104: 0.43 | AW104: 0.04 | AX104: 0.74 | AY104: 72.01 | AZ104: 173.07 | BA104: 2.6 | BB104: 7.39 | BC104: 19.27 | BD104: 61.59 | BE104: < -0.1 | BG104: < 0.33 | BH104: 1.44 | BJ104: 1.13 | BN104: < -0.02 | BO104: 0.81 | BS104: 0.01 | BT104: 2.86 | BU104: < 0.08 | BV104: 18.72 | BW104: < 0.07 | BX104: < 0.74 | BY104: < 0.41 | BZ104: < 2.24 | CA104: 0.55 | CB104: 2.78 | CC104: 0.67 | CD104: 0.09 | CE104: < 0.5 | CF104: < 0.11 | CG104: 0.52 | CH104: < 0.02 | CI104: 0.09 | CJ104: < 0 | CK104: 0.1 | CL104: 0.02 | CN104: < 0.2 | CO104: 2.74 | CP104: < 0.04 | CR104: 4.82 | CS104: 5.95
A105: XBL.BA2007.PT.5 | B105: Liquid | C105: Precipitation test on Bioleach PLS solution using NaOH | D105: DTK-CR | F105: Processing | G105: Coal Mining | H105: Coarse Refuse | I105: Illinois Basin | J105: N/A | K105: West Kentucky No.13 Coal Seam | L105: Kentucky | M105: Webster | N105: NA | O105: Kentucky | P105: Webster | Q105: NA | R105: Coarse Refuse | AJ105: N/A | AK105: ICP-OES | AL105: N/A | AM105: < 0.02 | AN105: > 6771.36 | AO105: 757.2 | AP105: 95.05 | AQ105: 65.03 | AR105: < -0.03 | AS105: 10.93 | AT105: 704.2 | AU105: 0.04 | AW105: < -0.02 | AX105: < 0.03 | AY105: 71.29 | AZ105: 64.18 | BA105: 2.53 | BB105: 6.76 | BC105: 13.17 | BD105: 59.02 | BE105: < -0.09 | BG105: < 0.22 | BH105: 1.23 | BJ105: 1.05 | BN105: < -0.01 | BO105: 0.8 | BS105: 0.01 | BT105: 2.59 | BU105: < 0.1 | BV105: 18.49 | BW105: < 0.03 | BX105: < 0.82 | BY105: < 0.41 | BZ105: < 2.14 | CA105: 0.79 | CB105: 2.33 | CC105: 0.64 | CD105: 0.11 | CE105: < 0.46 | CF105: < 0.03 | CG105: 0.52 | CH105: < 0.02 | CI105: 0.09 | CJ105: < 0.01 | CK105: 0.08 | CL105: 0.01 | CN105: < 0.2 | CO105: 0.17 | CP105: < 0.05 | CR105: 4.57 | CS105: 5.62
A106: XBL.BA2007.PT.6 | B106: Liquid | C106: Precipitation test on Bioleach PLS solution using NaOH | D106: DTK-CR | F106: Processing | G106: Coal Mining | H106: Coarse Refuse | I106: Illinois Basin | J106: N/A | K106: West Kentucky No.13 Coal Seam | L106: Kentucky | M106: Webster | N106: NA | O106: Kentucky | P106: Webster | Q106: NA | R106: Coarse Refuse | AJ106: N/A | AK106: ICP-OES | AL106: N/A | AM106: < 0 | AN106: > 7003.73 | AO106: 734.7 | AP106: 5.02 | AQ106: 41.48 | AR106: < -0.23 | AS106: 14.34 | AT106: 681.6 | AU106: < 0 | AW106: < -0.01 | AX106: < 0.02 | AY106: 70.44 | AZ106: 49.17 | BA106: 2.45 | BB106: 6.45 | BC106: 4.04 | BD106: 51.8 | BE106: < -0.04 | BG106: < 0.14 | BH106: 1.45 | BJ106: 0.63 | BN106: < -0.02 | BO106: 0.78 | BS106: 0.01 | BT106: 2.43 | BU106: < -0.1 | BV106: 18.25 | BW106: < -0.01 | BX106: < 0.99 | BY106: < 0.38 | BZ106: < 1.82 | CA106: < 0.49 | CB106: 2 | CC106: 0.4 | CD106: 0.06 | CE106: < 0.31 | CF106: < 0.06 | CG106: 0.41 | CH106: < 0.01 | CI106: < 0.02 | CJ106: < -0.01 | CK106: 0.03 | CL106: < 0 | CN106: < 0.21 | CO106: < 0.07 | CP106: < 0.01 | CR106: =SUM(BY106:CL106) -> 2.9 | CS106: =SUM(BJ106,BY106:CL106) -> 3.53
A107: XBL.BA2007.PT.7 | B107: Liquid | C107: Precipitation test on Bioleach PLS solution using NaOH | D107: DTK-CR | F107: Processing | G107: Coal Mining | H107: Coarse Refuse | I107: Illinois Basin | J107: N/A | K107: West Kentucky No.13 Coal Seam | L107: Kentucky | M107: Webster | N107: NA | O107: Kentucky | P107: Webster | Q107: NA | R107: Coarse Refuse | AJ107: N/A | AK107: ICP-OES | AL107: N/A | AM107: < 0 | AN107: > 7420.56 | AO107: 686.4 | AP107: < 0.7 | AQ107: 22.68 | AR107: < -0.18 | AS107: 19.51 | AT107: 625.2 | AU107: < -0.01 | AW107: < -0.03 | AX107: < 0.01 | AY107: 72.35 | AZ107: 33.59 | BA107: 2.44 | BB107: 6.28 | BC107: 0.8 | BD107: 35.79 | BE107: < -0.13 | BG107: < 0.07 | BH107: 1.22 | BJ107: 0.18 | BN107: < -0.02 | BO107: 0.75 | BS107: 0.01 | BT107: 2.35 | BU107: < -0.05 | BV107: 18.89 | BW107: < 0.01 | BX107: < 0.68 | BY107: < 0.29 | BZ107: < 1.04 | CA107: < 0.11 | CB107: 0.91 | CC107: 0.16 | CD107: 0.02 | CE107: < 0.14 | CF107: < 0.03 | CG107: 0.32 | CH107: < -0.01 | CI107: < 0.01 | CJ107: < -0.02 | CK107: 0.01 | CL107: < 0 | CN107: < 0.2 | CO107: < 0.09 | CP107: < -0.02 | CR107: 1.42 | CS107: 1.6
A108: XBL.BA2007.PT.8 | B108: Liquid | C108: Precipitation test on Bioleach PLS solution using NaOH | D108: DTK-CR | F108: Processing | G108: Coal Mining | H108: Coarse Refuse | I108: Illinois Basin | J108: N/A | K108: West Kentucky No.13 Coal Seam | L108: Kentucky | M108: Webster | N108: NA | O108: Kentucky | P108: Webster | Q108: NA | R108: Coarse Refuse | AJ108: N/A | AK108: ICP-OES | AL108: N/A | AM108: < -0.01 | AN108: > 8011.71 | AO108: 679.7 | AP108: < 0.65 | AQ108: 8.07 | AR108: < -0.22 | AS108: 25.21 | AT108: 584.4 | AU108: < 0 | AW108: < -0.02 | AX108: < 0.02 | AY108: 69.64 | AZ108: 6.83 | BA108: 1.93 | BB108: 4.89 | BC108: 0.1 | BD108: 8.78 | BE108: < -0.04 | BG108: < 0.1 | BH108: 1.44 | BJ108: 0.01 | BN108: < -0.03 | BO108: 0.56 | BS108: 0.01 | BT108: 2.05 | BU108: < -0.02 | BV108: 19.08 | BW108: < -0.03 | BX108: < 0.64 | BY108: < 0.05 | BZ108: < 0.09 | CA108: < -0.04 | CB108: 0.19 | CC108: < 0.01 | CD108: < 0 | CE108: < 0.06 | CF108: < 0 | CG108: 0.29 | CH108: < -0.01 | CI108: < 0.01 | CJ108: < -0.01 | CK108: < 0 | CL108: < 0 | CN108: < 0.19 | CO108: < -0.04 | CP108: < -0.01 | CR108: 0.48 | CS108: 0.49
A109: XBL.BA2007.PT.9 | B109: Liquid | C109: Precipitation test on Bioleach PLS solution using NaOH | D109: DTK-CR | F109: Processing | G109: Coal Mining | H109: Coarse Refuse | I109: Illinois Basin | J109: N/A | K109: West Kentucky No.13 Coal Seam | L109: Kentucky | M109: Webster | N109: NA | O109: Kentucky | P109: Webster | Q109: NA | R109: Coarse Refuse | AJ109: N/A | AK109: ICP-OES | AL109: N/A | AM109: < -0.01 | AN109: > 7934.24 | AO109: 650.4 | AP109: < 0.33 | AQ109: 3.78 | AR109: < -0.14 | AS109: 26.71 | AT109: 554.7 | AU109: < 0 | AW109: < -0.03 | AX109: < 0 | AY109: 56.92 | AZ109: < 0.15 | BA109: 0.97 | BB109: 2.35 | BC109: < 0.08 | BD109: 1.63 | BE109: < -0.03 | BG109: < 0 | BH109: 1.09 | BJ109: 0.01 | BN109: < 0.1 | BO109: 0.27 | BS109: 0.02 | BT109: 1.65 | BU109: < -0.09 | BV109: 18.2 | BW109: < -0.02 | BX109: < 0.79 | BY109: < -0.35 | BZ109: < -0.54 | CA109: < 0.24 | CB109: 0.27 | CC109: < -0.03 | CD109: < 0 | CE109: < 0.06 | CF109: < -0.2 | CG109: 0.18 | CH109: < 0.1 | CI109: 0.37 | CJ109: < 0 | CK109: < 0 | CL109: < 0 | CN109: < 0.11 | CO109: < -0.04 | CP109: < -0.11 | CR109: 0.82 | CS109: 0.83
A110: XBL.BA2007.WW | B110: Liquid | C110: Precipitation test on Bioleach PLS solution using NaOH | D110: DTK-CR | F110: Processing | G110: Coal Mining | H110: Coarse Refuse | I110: Illinois Basin | J110: N/A | K110: West Kentucky No.13 Coal Seam | L110: Kentucky | M110: Webster | N110: NA | O110: Kentucky | P110: Webster | Q110: NA | R110: Coarse Refuse | AJ110: N/A | AK110: ICP-OES | AL110: N/A | AM110: < 0.081 | AN110: 10.801 | AO110: 234.11 | AP110: 1120.6 | AQ110: 96.75 | AR110: 7.365 | AS110: < 0.102 | AT110: 558.8 | AU110: 0.151 | AW110: 0.119 | AX110: 0.485 | AY110: 24.7 | AZ110: 85.22 | BA110: 0.831 | BB110: 2.439 | BC110: 7.198 | BD110: 20.62 | BE110: < -0.022 | BG110: < 0.008 | BH110: 0.518 | BJ110: 0.376 | BN110: < 0 | BO110: 0.252 | BS110: < 0 | BT110: 0.803 | BU110: < 0.045 | BV110: 6.181 | BW110: < 0.038 | BX110: 0.877 | BY110: 0.143 | BZ110: 0.91 | CA110: 0.26 | CB110: 0.899 | CC110: 0.217 | CD110: 0.027 | CE110: < 0.204 | CF110: < 0.008 | CG110: 0.176 | CH110: < 0.016 | CI110: 0.035 | CJ110: < -0.012 | CK110: 0.034 | CL110: 0.006 | CN110: < 0.05 | CO110: 1.443 | CP110: 0.035 | CR110: 2.707 | CS110: 3.083
A111: XBL.BA2008.L | B111: Leachate | C111: Bioleach Acid, Dotiki Pile -1.5 inch, 2 mm, 600°C, 20 min, muffle furnace, 40 g / 200 ml, 75 °C | D111: DTK-CR | F111: Processing | G111: Coal Mining | H111: Coarse Refuse | I111: Illinois Basin | J111: N/A | K111: West Kentucky No.13 Coal Seam | L111: Kentucky | M111: Webster | N111: NA | O111: Kentucky | P111: Webster | Q111: NA | R111: Coarse Refuse | AJ111: N/A | AK111: ICP-OES | AL111: N/A | AM111: < 0.94 | AN111: 97.22 | AO111: 507.83 | AP111: 2070.5 | AR111: 214.7 | AS111: < 2.43 | AT111: 804.2 | AU111: 0.6 | AW111: 0.75 | AX111: 1.3 | AY111: 60.44 | AZ111: 7876 | BA111: 2.06 | BB111: 6.06 | BC111: 22.48 | BD111: 57.14 | BE111: < -1.73 | BG111: 3.98 | BH111: 1.26 | BJ111: 0.98 | BO111: 1.64 | BS111: < 0 | BT111: 9.21 | BU111: < 1.73 | BV111: 13.25 | BW111: < 0.57 | BX111: 14.62 | BY111: 2.79 | BZ111: 6.04 | CA111: < -0.62 | CB111: 2.74 | CC111: 0.27 | CD111: < -0.71 | CE111: < 0.23 | CF111: < 0.09 | CG111: < -0.93 | CH111: < 0.07 | CI111: < -0.56 | CJ111: < -0.3 | CK111: 0.32 | CL111: 0.13 | CN111: < 0.24 | CO111: 2.82 | CP111: 0.88 | CR111: 12.29 | CS111: 13.27
A112: XBL.BA2008.PT.1 | B112: Liquid | C112: Precipitation of leachate generated using bioleach acid leach Dotiki material | D112: DTK-CR | F112: Processing | G112: Coal Mining | H112: Coarse Refuse | I112: Illinois Basin | J112: N/A | K112: West Kentucky No.13 Coal Seam | L112: Kentucky | M112: Webster | N112: NA | O112: Kentucky | P112: Webster | Q112: NA | R112: Coarse Refuse | AJ112: N/A | AK112: ICP-OES | AL112: N/A | AM112: < 0.87 | AN112: 96.16 | AO112: 539.1 | AP112: 2100 | AR112: 211 | AS112: < 0.76 | AT112: 816.1 | AU112: 0.63 | AW112: 0.66 | AX112: 1.3 | AY112: 67.11 | AZ112: 7546.4 | BA112: 2.4 | BB112: 6.7 | BC112: 22.52 | BD112: 58 | BE112: < -1.66 | BG112: 4.02 | BH112: 1.24 | BJ112: 1 | BO112: 1.59 | BS112: < 0 | BT112: 8.86 | BU112: < 1.67 | BV112: 13.48 | BW112: < 0.46 | BX112: 10.66 | BY112: 2.32 | BZ112: 4.77 | CA112: < -0.77 | CB112: 2.2 | CC112: 0.2 | CD112: < -0.7 | CE112: < 0.2 | CF112: < 0.05 | CG112: < -0.86 | CH112: < 0.09 | CI112: < -0.53 | CJ112: < -0.28 | CK112: 0.31 | CL112: 0.13 | CN112: < 0.25 | CO112: 3.07 | CP112: 0.76 | CR112: 9.93 | CS112: 10.93
A113: XBL.BA2008.PT.10 | B113: Liquid | C113: Precipitation of leachate generated using bioleach acid leach Dotiki material | D113: DTK-CR | F113: Processing | G113: Coal Mining | H113: Coarse Refuse | I113: Illinois Basin | J113: N/A | K113: West Kentucky No.13 Coal Seam | L113: Kentucky | M113: Webster | N113: NA | O113: Kentucky | P113: Webster | Q113: NA | R113: Coarse Refuse | AJ113: N/A | AK113: ICP-OES | AL113: N/A | AM113: < 0.26 | AN113: 75.35 | AO113: 700.4 | AP113: 2093.9 | AR113: 52.84 | AS113: < 0.97 | AT113: 469.88 | AU113: 0.62 | AW113: 0.11 | AX113: 0.99 | AY113: 88.66 | AZ113: 1519.4 | BA113: 2.64 | BB113: 7.31 | BC113: 21.35 | BD113: 63.93 | BE113: < -0.47 | BG113: 1.24 | BH113: 1.1 | BJ113: 1.19 | BO113: 1 | BS113: 0.01 | BT113: 3.91 | BU113: < 0.38 | BV113: 14.2 | BW113: < 0.31 | BX113: 2.63 | BY113: 1.44 | BZ113: < 2.47 | CA113: < 0.13 | CB113: 1.33 | CC113: 0.27 | CD113: < -0.22 | CE113: < 0.31 | CF113: < 0.06 | CG113: 0.22 | CH113: < 0.06 | CI113: < -0.05 | CJ113: < -0.07 | CK113: 0.15 | CL113: 0.04 | CN113: < 0.27 | CO113: 2.58 | CP113: 0.6 | CR113: 3.45 | CS113: 4.64
A114: XBL.BA2008.PT.11 | B114: Liquid | C114: Precipitation of leachate generated using bioleach acid leach Dotiki material | D114: DTK-CR | F114: Processing | G114: Coal Mining | H114: Coarse Refuse | I114: Illinois Basin | J114: N/A | K114: West Kentucky No.13 Coal Seam | L114: Kentucky | M114: Webster | N114: NA | O114: Kentucky | P114: Webster | Q114: NA | R114: Coarse Refuse | AJ114: N/A | AK114: ICP-OES | AL114: N/A | AM114: < 0.27 | AN114: 75.52 | AO114: 713.1 | AP114: 2025.3 | AR114: 20.95 | AS114: < 0.34 | AT114: 461.16 | AU114: 0.55 | AW114: 0.03 | AX114: 0.69 | AY114: 91.7 | AZ114: 933.4 | BA114: 2.61 | BB114: 7.35 | BC114: 20.53 | BD114: 64.53 | BE114: < -0.31 | BG114: < 0.48 | BH114: 1.34 | BJ114: 1.21 | BO114: 0.92 | BS114: 0.01 | BT114: 3.3 | BU114: < 0.26 | BV114: 14.25 | BW114: < 0.23 | BX114: 2.47 | BY114: 1.34 | BZ114: < 2.19 | CA114: < 0.11 | CB114: 1.24 | CC114: 0.29 | CD114: < -0.1 | CE114: < 0.37 | CF114: < 0.03 | CG114: 0.36 | CH114: < 0.04 | CI114: < 0 | CJ114: < -0.05 | CK114: 0.13 | CL114: 0.03 | CN114: < 0.17 | CO114: 2.61 | CP114: 0.4 | CR114: 3.39 | CS114: 4.6
A115: XBL.BA2008.PT.12 | B115: Liquid | C115: Precipitation of leachate generated using bioleach acid leach Dotiki material | D115: DTK-CR | F115: Processing | G115: Coal Mining | H115: Coarse Refuse | I115: Illinois Basin | J115: N/A | K115: West Kentucky No.13 Coal Seam | L115: Kentucky | M115: Webster | N115: NA | O115: Kentucky | P115: Webster | Q115: NA | R115: Coarse Refuse | AJ115: N/A | AK115: ICP-OES | AL115: N/A | AM115: < 0.25 | AN115: 74.5 | AO115: 713.7 | AP115: 1888.4 | AR115: 9.51 | AS115: < 1.18 | AT115: 446.92 | AU115: 0.37 | AW115: 0.01 | AX115: 0.4 | AY115: 93.7 | AZ115: 734.3 | BA115: 2.62 | BB115: 7.41 | BC115: 18.58 | BD115: 64.42 | BE115: < -0.27 | BG115: < 0.15 | BH115: 1.48 | BJ115: 1.21 | BO115: 0.89 | BS115: 0.01 | BT115: 3.12 | BU115: < 0.14 | BV115: 14.12 | BW115: < 0.15 | BX115: 2.4 | BY115: 1.26 | BZ115: < 1.94 | CA115: < 0.18 | CB115: 0.89 | CC115: 0.3 | CD115: < -0.05 | CE115: < 0.33 | CF115: < 0.03 | CG115: 0.41 | CH115: < 0.03 | CI115: < 0 | CJ115: < -0.06 | CK115: 0.12 | CL115: 0.03 | CN115: < 0.18 | CO115: 2.36 | CP115: 0.21 | CR115: 3.01 | CS115: 4.22
A116: XBL.BA2008.PT.2 | B116: Liquid | C116: Precipitation of leachate generated using bioleach acid leach Dotiki material | D116: DTK-CR | F116: Processing | G116: Coal Mining | H116: Coarse Refuse | I116: Illinois Basin | J116: N/A | K116: West Kentucky No.13 Coal Seam | L116: Kentucky | M116: Webster | N116: NA | O116: Kentucky | P116: Webster | Q116: NA | R116: Coarse Refuse | AJ116: N/A | AK116: ICP-OES | AL116: N/A | AM116: < 0.83 | AN116: 94.83 | AO116: 623.5 | AP116: 2124.2 | AR116: 210.7 | AS116: < 0.12 | AT116: 721.3 | AU116: 0.64 | AW116: 0.7 | AX116: 1.34 | AY116: 69.18 | AZ116: 7180.6 | BA116: 2.45 | BB116: 6.79 | BC116: 22.65 | BD116: 58.96 | BE116: < -1.59 | BG116: 3.98 | BH116: 1.29 | BJ116: 1.03 | BO116: 1.57 | BS116: < 0 | BT116: 8.62 | BU116: < 1.78 | BV116: 13.61 | BW116: < 0.44 | BX116: 10.25 | BY116: 2.29 | BZ116: 4.61 | CA116: < -0.86 | CB116: 2.26 | CC116: 0.15 | CD116: < -0.68 | CE116: < 0.21 | CF116: < 0.11 | CG116: < -0.79 | CH116: < 0.08 | CI116: < -0.49 | CJ116: < -0.29 | CK116: 0.3 | CL116: 0.13 | CN116: < 0.28 | CO116: 3.14 | CP116: 0.82 | CR116: 9.74 | CS116: 10.77
A117: XBL.BA2008.PT.3 | B117: Liquid | C117: Precipitation of leachate generated using bioleach acid leach Dotiki material | D117: DTK-CR | F117: Processing | G117: Coal Mining | H117: Coarse Refuse | I117: Illinois Basin | J117: N/A | K117: West Kentucky No.13 Coal Seam | L117: Kentucky | M117: Webster | N117: NA | O117: Kentucky | P117: Webster | Q117: NA | R117: Coarse Refuse | AJ117: N/A | AK117: ICP-OES | AL117: N/A | AM117: < 0.76 | AN117: 92.19 | AO117: 661.3 | AP117: 2192.1 | AR117: 214.1 | AS117: < 0.54 | AT117: 688.2 | AU117: 0.64 | AW117: 0.7 | AX117: 1.33 | AY117: 69.84 | AZ117: 6846.8 | BA117: 2.46 | BB117: 6.73 | BC117: 22.43 | BD117: 58.74 | BE117: < -1.52 | BG117: 3.83 | BH117: 1.2 | BJ117: 1.03 | BO117: 1.54 | BS117: < 0 | BT117: 8.35 | BU117: < 1.68 | BV117: 13.56 | BW117: < 0.44 | BX117: 9.67 | BY117: 2.22 | BZ117: 4.55 | CA117: < -0.69 | CB117: 2.18 | CC117: 0.15 | CD117: < -0.65 | CE117: < 0.21 | CF117: < 0.11 | CG117: < -0.74 | CH117: < 0.08 | CI117: < -0.49 | CJ117: < -0.28 | CK117: 0.29 | CL117: 0.12 | CN117: < 0.23 | CO117: 3.05 | CP117: 0.82 | CR117: 9.51 | CS117: 10.54
A118: XBL.BA2008.PT.4 | B118: Liquid | C118: Precipitation of leachate generated using bioleach acid leach Dotiki material | D118: DTK-CR | F118: Processing | G118: Coal Mining | H118: Coarse Refuse | I118: Illinois Basin | J118: N/A | K118: West Kentucky No.13 Coal Seam | L118: Kentucky | M118: Webster | N118: NA | O118: Kentucky | P118: Webster | Q118: NA | R118: Coarse Refuse | AJ118: N/A | AK118: ICP-OES | AL118: N/A | AM118: < 0.73 | AN118: 90.8 | AO118: 651.7 | AP118: 2145.3 | AR118: 208.5 | AS118: < 0.79 | AT118: 660.5 | AU118: 0.65 | AW118: 0.67 | AX118: 1.33 | AY118: 71.72 | AZ118: 6631.4 | BA118: 2.5 | BB118: 6.82 | BC118: 22.38 | BD118: 59.39 | BE118: < -1.55 | BG118: 3.96 | BH118: 1.09 | BJ118: 1.04 | BO118: 1.52 | BS118: < 0 | BT118: 8.18 | BU118: < 1.52 | BV118: 13.51 | BW118: < 0.35 | BX118: 9.2 | BY118: 2.14 | BZ118: 4.07 | CA118: < -0.68 | CB118: 2.12 | CC118: 0.18 | CD118: < -0.63 | CE118: < 0.22 | CF118: < 0.03 | CG118: < -0.69 | CH118: < 0.07 | CI118: < -0.47 | CJ118: < -0.28 | CK118: 0.28 | CL118: 0.12 | CN118: < 0.05 | CO118: 2.95 | CP118: 0.83 | CR118: 8.91 | CS118: 9.95
A119: XBL.BA2008.PT.5 | B119: Liquid | C119: Precipitation of leachate generated using bioleach acid leach Dotiki material | D119: DTK-CR | F119: Processing | G119: Coal Mining | H119: Coarse Refuse | I119: Illinois Basin | J119: N/A | K119: West Kentucky No.13 Coal Seam | L119: Kentucky | M119: Webster | N119: NA | O119: Kentucky | P119: Webster | Q119: NA | R119: Coarse Refuse | AJ119: N/A | AK119: ICP-OES | AL119: N/A | AM119: < 0.72 | AN119: 90.82 | AO119: 661 | AP119: 2152.6 | AR119: 206.7 | AS119: < 1.06 | AT119: 643.2 | AU119: 0.66 | AW119: 0.61 | AX119: 1.35 | AY119: 74.26 | AZ119: 5440.1 | BA119: 2.55 | BB119: 7.01 | BC119: 22.71 | BD119: 61.01 | BE119: < -1.41 | BG119: 3.83 | BH119: 0.99 | BJ119: 1.08 | BO119: 1.51 | BS119: < 0 | BT119: 8.04 | BU119: < 1.51 | BV119: 13.8 | BW119: < 0.42 | BX119: 8.56 | BY119: 2.08 | BZ119: 4.13 | CA119: < -0.65 | CB119: 1.99 | CC119: 0.21 | CD119: < -0.61 | CE119: < 0.23 | CF119: < 0.02 | CG119: < -0.66 | CH119: < 0.07 | CI119: < -0.48 | CJ119: < -0.27 | CK119: 0.28 | CL119: 0.11 | CN119: < 0.21 | CO119: 3.02 | CP119: 0.79 | CR119: 8.8 | CS119: 9.88
A120: XBL.BA2008.PT.6 | B120: Liquid | C120: Precipitation of leachate generated using bioleach acid leach Dotiki material | D120: DTK-CR | F120: Processing | G120: Coal Mining | H120: Coarse Refuse | I120: Illinois Basin | J120: N/A | K120: West Kentucky No.13 Coal Seam | L120: Kentucky | M120: Webster | N120: NA | O120: Kentucky | P120: Webster | Q120: NA | R120: Coarse Refuse | AJ120: N/A | AK120: ICP-OES | AL120: N/A | AM120: < 0.65 | AN120: 88.34 | AO120: 679.4 | AP120: 2184.5 | AR120: 203.8 | AS120: < 0.81 | AT120: 525.09 | AU120: 0.66 | AW120: 0.54 | AX120: 1.35 | AY120: 76.17 | AZ120: 5169.7 | BA120: 2.54 | BB120: 7.03 | BC120: 22.55 | BD120: 61.29 | BE120: < -1.32 | BG120: 3.69 | BH120: 1.48 | BJ120: 1.09 | BO120: 1.46 | BS120: < 0 | BT120: 7.54 | BU120: < 1.21 | BV120: 13.79 | BW120: < 0.34 | BX120: 7.48 | BY120: 2 | BZ120: 3.8 | CA120: < -0.5 | CB120: 1.98 | CC120: 0.23 | CD120: < -0.58 | CE120: < 0.22 | CF120: < 0.03 | CG120: < -0.57 | CH120: < 0.07 | CI120: < -0.4 | CJ120: < -0.24 | CK120: 0.27 | CL120: 0.1 | CN120: < 0.26 | CO120: 3.01 | CP120: 0.73 | CR120: 8.38 | CS120: 9.47
A121: XBL.BA2008.PT.7 | B121: Liquid | C121: Precipitation of leachate generated using bioleach acid leach Dotiki material | D121: DTK-CR | F121: Processing | G121: Coal Mining | H121: Coarse Refuse | I121: Illinois Basin | J121: N/A | K121: West Kentucky No.13 Coal Seam | L121: Kentucky | M121: Webster | N121: NA | O121: Kentucky | P121: Webster | Q121: NA | R121: Coarse Refuse | AJ121: N/A | AK121: ICP-OES | AL121: N/A | AM121: < 0.58 | AN121: 85.95 | AO121: 682.8 | AP121: 2184.7 | AR121: 194.2 | AS121: < 0.81 | AT121: 509.12 | AU121: 0.67 | AW121: 0.44 | AX121: 1.35 | AY121: 78.17 | AZ121: 4743.6 | BA121: 2.56 | BB121: 7.05 | BC121: 22.5 | BD121: 61.6 | BE121: < -1.13 | BG121: 3.44 | BH121: 1.33 | BJ121: 1.11 | BO121: 1.42 | BS121: < 0 | BT121: 7.06 | BU121: < 1.18 | BV121: 13.9 | BW121: < 0.32 | BX121: 6.51 | BY121: 1.89 | BZ121: 3.7 | CA121: < -0.49 | CB121: 2 | CC121: 0.17 | CD121: < -0.53 | CE121: < 0.23 | CF121: < 0.08 | CG121: < -0.48 | CH121: < 0.06 | CI121: < -0.36 | CJ121: < -0.23 | CK121: 0.26 | CL121: 0.1 | CN121: < 0.28 | CO121: 2.96 | CP121: 0.8 | CR121: 8.12 | CS121: 9.23
A122: XBL.BA2008.PT.8 | B122: Liquid | C122: Precipitation of leachate generated using bioleach acid leach Dotiki material | D122: DTK-CR | F122: Processing | G122: Coal Mining | H122: Coarse Refuse | I122: Illinois Basin | J122: N/A | K122: West Kentucky No.13 Coal Seam | L122: Kentucky | M122: Webster | N122: NA | O122: Kentucky | P122: Webster | Q122: NA | R122: Coarse Refuse | AJ122: N/A | AK122: ICP-OES | AL122: N/A | AM122: < 0.4 | AN122: 81.13 | AO122: 681.9 | AP122: 2135 | AR122: 164.1 | AS122: < 1.22 | AT122: 485.52 | AU122: 0.66 | AW122: 0.32 | AX122: 1.28 | AY122: 81.19 | AZ122: 3710.9 | BA122: 2.57 | BB122: 7.12 | BC122: 22.15 | BD122: 61.92 | BE122: < -0.95 | BG122: 3.06 | BH122: 1.23 | BJ122: 1.13 | BO122: 1.29 | BS122: < 0 | BT122: 6.1 | BU122: < 0.97 | BV122: 13.98 | BW122: < 0.52 | BX122: 4.55 | BY122: 1.74 | BZ122: 3.21 | CA122: < -0.43 | CB122: 1.58 | CC122: 0.18 | CD122: < -0.48 | CE122: < 0.27 | CF122: < 0.03 | CG122: < -0.28 | CH122: < 0.06 | CI122: < -0.27 | CJ122: < -0.2 | CK122: 0.22 | CL122: 0.09 | CN122: < 0.25 | CO122: 2.77 | CP122: 0.72 | CR122: 7.02 | CS122: 8.15
A123: XBL.BA2008.PT.9 | B123: Liquid | C123: Precipitation of leachate generated using bioleach acid leach Dotiki material | D123: DTK-CR | F123: Processing | G123: Coal Mining | H123: Coarse Refuse | I123: Illinois Basin | J123: N/A | K123: West Kentucky No.13 Coal Seam | L123: Kentucky | M123: Webster | N123: NA | O123: Kentucky | P123: Webster | Q123: NA | R123: Coarse Refuse | AJ123: N/A | AK123: ICP-OES | AL123: N/A | AM123: < 0.3 | AN123: 77.84 | AO123: 692.5 | AP123: 2131.5 | AR123: 134.6 | AS123: < 1.05 | AT123: 485.25 | AU123: 0.66 | AW123: 0.27 | AX123: 1.21 | AY123: 83.87 | AZ123: 2924.5 | BA123: 2.6 | BB123: 7.17 | BC123: 21.85 | BD123: 62.64 | BE123: < -0.86 | BG123: 2.3 | BH123: 1.34 | BJ123: 1.16 | BO123: 1.18 | BS123: 0.01 | BT123: 5.3 | BU123: < 0.64 | BV123: 14.05 | BW123: < 0.49 | BX123: 3.44 | BY123: 1.63 | BZ123: 2.95 | CA123: < -0.09 | CB123: 1.69 | CC123: 0.22 | CD123: < -0.45 | CE123: < 0.29 | CF123: < 0.08 | CG123: < -0.09 | CH123: < 0.04 | CI123: < -0.21 | CJ123: < -0.15 | CK123: 0.2 | CL123: 0.07 | CN123: < 0.2 | CO123: 2.73 | CP123: 0.71 | CR123: 6.76 | CS123: 7.92
A124: XBL.BA2009.L | B124: Leachate | C124: Bioleach Acid, Dotiki Pile -1.5 inch, 2 mm, 600°C, 20 min, muffle furnace, 40 g / 200 ml, 75 °C | D124: DTK-CR | F124: Processing | G124: Coal Mining | H124: Coarse Refuse | I124: Illinois Basin | J124: N/A | K124: West Kentucky No.13 Coal Seam | L124: Kentucky | M124: Webster | N124: NA | O124: Kentucky | P124: Webster | Q124: NA | R124: Coarse Refuse | AJ124: N/A | AK124: ICP-OES | AL124: N/A | AM124: 1 | AN124: 102.62 | AO124: 496.37 | AP124: 1883.1 | AR124: 209.9 | AS124: < 2.35 | AT124: 763.3 | AU124: 0.59 | AW124: 0.67 | AX124: 1.22 | AY124: 59.43 | AZ124: 8134 | BA124: 2.05 | BB124: 5.93 | BC124: 22.39 | BD124: 57.63 | BE124: < -1.76 | BG124: 3.94 | BH124: 1.1 | BJ124: 0.97 | BO124: 1.7 | BS124: < 0 | BT124: 9.8 | BU124: < 1.77 | BV124: 12.79 | BW124: < 0.57 | BX124: 14.18 | BY124: 2.66 | BZ124: 5.66 | CA124: < -0.64 | CB124: 2.69 | CC124: 0.23 | CD124: < -0.79 | CE124: < 0.17 | CF124: < 0.02 | CG124: < -1.02 | CH124: < 0.07 | CI124: < -0.62 | CJ124: < -0.28 | CK124: 0.32 | CL124: 0.14 | CN124: < 0.26 | CO124: 2.67 | CP124: 0.87 | CR124: 11.7 | CS124: 12.67
A125: XBL.BA2009.PT.1 | B125: Liquid | C125: Precipitation of leachate generated using bioleach acid leach Dotiki material | D125: DTK-CR | F125: Processing | G125: Coal Mining | H125: Coarse Refuse | I125: Illinois Basin | J125: N/A | K125: West Kentucky No.13 Coal Seam | L125: Kentucky | M125: Webster | N125: NA | O125: Kentucky | P125: Webster | Q125: NA | R125: Coarse Refuse | AJ125: N/A | AK125: ICP-OES | AL125: N/A | AM125: < 0.85 | AN125: 94.62 | AO125: 548.6 | AP125: 1995.3 | AR125: 202.5 | AS125: < 0.99 | AT125: 944.9 | AU125: 0.63 | AW125: 0.72 | AX125: 1.28 | AY125: 65.36 | AZ125: 7134 | BA125: 2.51 | BB125: 6.82 | BC125: 22.52 | BD125: 59.58 | BE125: < -1.53 | BG125: 3.93 | BH125: 1.21 | BJ125: 1.03 | BO125: 1.61 | BS125: < 0 | BT125: 9.15 | BU125: < 1.65 | BV125: 13.37 | BW125: < 0.55 | BX125: 10 | BY125: 2.31 | BZ125: 4.95 | CA125: < -0.77 | CB125: 2.43 | CC125: 0.19 | CD125: < -0.7 | CE125: < 0.24 | CF125: < 0.04 | CG125: < -0.83 | CH125: < 0.08 | CI125: < -0.51 | CJ125: < -0.31 | CK125: 0.3 | CL125: 0.12 | CN125: < 0.06 | CO125: 2.97 | CP125: 0.79 | CR125: 10.3 | CS125: 11.33
A126: XBL.BA2009.PT.2 | B126: Liquid | C126: Precipitation of leachate generated using bioleach acid leach Dotiki material | D126: DTK-CR | F126: Processing | G126: Coal Mining | H126: Coarse Refuse | I126: Illinois Basin | J126: N/A | K126: West Kentucky No.13 Coal Seam | L126: Kentucky | M126: Webster | N126: NA | O126: Kentucky | P126: Webster | Q126: NA | R126: Coarse Refuse | AJ126: N/A | AK126: ICP-OES | AL126: N/A | AM126: < 0.65 | AN126: 83.55 | AO126: 626.1 | AP126: 2111.9 | AR126: 187.8 | AS126: < 1.13 | AT126: 787.7 | AU126: 0.64 | AW126: 0.86 | AX126: 1.29 | AY126: 67.2 | AZ126: 5023.6 | BA126: 2.6 | BB126: 6.98 | BC126: 22.4 | BD126: 61.21 | BE126: < -1.18 | BG126: 3.66 | BH126: 1.46 | BJ126: 1.06 | BO126: 1.46 | BS126: < 0 | BT126: 7.98 | BU126: < 1.37 | BV126: 13.89 | BW126: < 0.4 | BX126: 6.04 | BY126: 1.95 | BZ126: 4.49 | CA126: < -0.51 | CB126: 2.43 | CC126: 0.24 | CD126: < -0.56 | CE126: < 0.25 | CF126: < 0.01 | CG126: < -0.59 | CH126: < 0.07 | CI126: < -0.38 | CJ126: < -0.24 | CK126: 0.26 | CL126: 0.11 | CN126: < 0.01 | CO126: 3.2 | CP126: 0.72 | CR126: 9.48 | CS126: 10.54
A127: XBL.BA2009.PT.3 | B127: Liquid | C127: Precipitation of leachate generated using bioleach acid leach Dotiki material | D127: DTK-CR | F127: Processing | G127: Coal Mining | H127: Coarse Refuse | I127: Illinois Basin | J127: N/A | K127: West Kentucky No.13 Coal Seam | L127: Kentucky | M127: Webster | N127: NA | O127: Kentucky | P127: Webster | Q127: NA | R127: Coarse Refuse | AJ127: N/A | AK127: ICP-OES | AL127: N/A | AM127: < 0.49 | AN127: 73.81 | AO127: 700.1 | AP127: 2463.2 | AR127: 179 | AS127: < 0.93 | AT127: 752.9 | AU127: 0.66 | AW127: 1.02 | AX127: 1.39 | AY127: 71.59 | AZ127: 4133.5 | BA127: 2.76 | BB127: 7.48 | BC127: 23.12 | BD127: 66.08 | BE127: < -0.92 | BG127: 3.27 | BH127: 1.46 | BJ127: 1.13 | BO127: 1.38 | BS127: < 0 | BT127: 7.05 | BU127: < 1.18 | BV127: 15.14 | BW127: < 0.27 | BX127: 3.02 | BY127: 1.56 | BZ127: 3.99 | CA127: < -0.35 | CB127: 2.36 | CC127: 0.32 | CD127: < -0.49 | CE127: < 0.31 | CF127: < 0.09 | CG127: < -0.37 | CH127: < 0.07 | CI127: < -0.29 | CJ127: < -0.2 | CK127: 0.23 | CL127: 0.09 | CN127: < -0.17 | CO127: 3.42 | CP127: 0.63 | CR127: 8.55 | CS127: 9.68
A128: XBL.BA2009.PT.4 | B128: Liquid | C128: Precipitation of leachate generated using bioleach acid leach Dotiki material | D128: DTK-CR | F128: Processing | G128: Coal Mining | H128: Coarse Refuse | I128: Illinois Basin | J128: N/A | K128: West Kentucky No.13 Coal Seam | L128: Kentucky | M128: Webster | N128: NA | O128: Kentucky | P128: Webster | Q128: NA | R128: Coarse Refuse | AJ128: N/A | AK128: ICP-OES | AL128: N/A | AM128: < 0.38 | AN128: 66.1 | AO128: 746.4 | AP128: 2648.6 | AR128: 170.3 | AS128: < 0.16 | AT128: 715 | AU128: 0.67 | AW128: 1.12 | AX128: 1.39 | AY128: 73.16 | AZ128: 3602.2 | BA128: 2.78 | BB128: 7.66 | BC128: 23 | BD128: 67.64 | BE128: < -0.71 | BG128: 2.87 | BH128: 1.47 | BJ128: 1.15 | BO128: 1.3 | BS128: < 0 | BT128: 6.33 | BU128: < 0.97 | BV128: 15.6 | BW128: < 0.55 | BX128: 1.46 | BY128: 1.21 | BZ128: 3.59 | CA128: < -0.26 | CB128: 2.29 | CC128: 0.37 | CD128: < -0.43 | CE128: < 0.31 | CF128: < 0.07 | CG128: < -0.23 | CH128: < 0.08 | CI128: < -0.21 | CJ128: < -0.19 | CK128: 0.21 | CL128: 0.08 | CN128: < -0.03 | CO128: 3.56 | CP128: 0.54 | CR128: 7.75 | CS128: 8.9
A129: XBL.BA2009.PT.5 | B129: Liquid | C129: Precipitation of leachate generated using bioleach acid leach Dotiki material | D129: DTK-CR | F129: Processing | G129: Coal Mining | H129: Coarse Refuse | I129: Illinois Basin | J129: N/A | K129: West Kentucky No.13 Coal Seam | L129: Kentucky | M129: Webster | N129: NA | O129: Kentucky | P129: Webster | Q129: NA | R129: Coarse Refuse | AJ129: N/A | AK129: ICP-OES | AL129: N/A | AM129: < 0.33 | AN129: 61.32 | AO129: 782.5 | AP129: 2886 | AR129: 152.4 | AS129: < 1.07 | AT129: 683.5 | AU129: 0.69 | AW129: 1.19 | AX129: 1.47 | AY129: 76.99 | AZ129: 2999.7 | BA129: 2.92 | BB129: 8.31 | BC129: 23.41 | BD129: 71.17 | BE129: < -0.6 | BG129: 2.4 | BH129: 1.43 | BJ129: 1.21 | BO129: 1.27 | BS129: < 0 | BT129: 5.83 | BU129: < 0.87 | BV129: 16.72 | BW129: < 0.5 | BX129: < 0.89 | BY129: < 0.92 | BZ129: 3.05 | CA129: < -0.06 | CB129: 2.21 | CC129: 0.38 | CD129: < -0.41 | CE129: < 0.35 | CF129: < 0 | CG129: < -0.08 | CH129: < 0.06 | CI129: < -0.15 | CJ129: < -0.15 | CK129: 0.19 | CL129: 0.07 | CN129: < 0.05 | CO129: 3.88 | CP129: 0.42 | CR129: 5.9 | CS129: 7.11
A130: XBL.BA2009.PT.6 | B130: Liquid | C130: Precipitation of leachate generated using bioleach acid leach Dotiki material | D130: DTK-CR | F130: Processing | G130: Coal Mining | H130: Coarse Refuse | I130: Illinois Basin | J130: N/A | K130: West Kentucky No.13 Coal Seam | L130: Kentucky | M130: Webster | N130: NA | O130: Kentucky | P130: Webster | Q130: NA | R130: Coarse Refuse | AJ130: N/A | AK130: ICP-OES | AL130: N/A | AM130: < 0.32 | AN130: 52.81 | AO130: 839.5 | AP130: 3141.6 | AR130: 102.02 | AS130: < 0.34 | AT130: 642.4 | AU130: 0.71 | AW130: 1.25 | AX130: 1.55 | AY130: 82.59 | AZ130: 2169.7 | BA130: 3.09 | BB130: 8.75 | BC130: 23.22 | BD130: 75.86 | BE130: < -0.65 | BG130: < 0.9 | BH130: 1.94 | BJ130: 1.25 | BO130: 1.21 | BS130: < 0 | BT130: 5.14 | BU130: < 0.69 | BV130: 18.24 | BW130: < 0.38 | BX130: < 0.67 | BY130: < 0.44 | BZ130: < 2.14 | CA130: < -0.04 | CB130: 2.06 | CC130: 0.41 | CD130: < -0.28 | CE130: < 0.38 | CF130: < 0.05 | CG130: 0.1 | CH130: < 0.06 | CI130: < -0.07 | CJ130: < -0.09 | CK130: 0.17 | CL130: 0.05 | CN130: < 0.08 | CO130: 4.09 | CP130: 0.24 | CR130: 2.79 | CS130: 4.04
A131: XBL.BA2009.PT.7 | B131: Liquid | C131: Precipitation of leachate generated using bioleach acid leach Dotiki material | D131: DTK-CR | F131: Processing | G131: Coal Mining | H131: Coarse Refuse | I131: Illinois Basin | J131: N/A | K131: West Kentucky No.13 Coal Seam | L131: Kentucky | M131: Webster | N131: NA | O131: Kentucky | P131: Webster | Q131: NA | R131: Coarse Refuse | AJ131: N/A | AK131: ICP-OES | AL131: N/A | AM131: < 0.31 | AN131: 50.11 | AO131: 825.7 | AP131: 3059.5 | AR131: 85.33 | AS131: < -0.14 | AT131: 518.97 | AU131: 0.67 | AW131: 1.18 | AX131: 1.49 | AY131: 84.63 | AZ131: 1952 | BA131: 3.1 | BB131: 8.79 | BC131: 22.77 | BD131: 76.74 | BE131: < -0.69 | BG131: < 0.52 | BH131: 1.67 | BJ131: 1.24 | BO131: 1.2 | BS131: < 0 | BT131: 4.94 | BU131: < 0.56 | BV131: 18.36 | BW131: < 0.39 | BX131: < 0.82 | BY131: < 0.33 | BZ131: < 1.75 | CA131: < -0.18 | CB131: 1.79 | CC131: 0.4 | CD131: < -0.25 | CE131: < 0.38 | CF131: < 0.05 | CG131: 0.13 | CH131: < 0.07 | CI131: < -0.07 | CJ131: < -0.07 | CK131: 0.16 | CL131: 0.05 | CN131: < -0.07 | CO131: 4.04 | CP131: < 0.07 | CR131: 2.53 | CS131: 3.77
A132: XBL.BA2010.BA.1 | B132: Liquid | C132: Bioleach Acid generated from bio-oxidation | D132: DTK-CR | F132: Processing | G132: Coal Mining | H132: Coarse Refuse | I132: Illinois Basin | J132: N/A | K132: West Kentucky No.13 Coal Seam | L132: Kentucky | M132: Webster | N132: NA | O132: Kentucky | P132: Webster | Q132: NA | R132: Coarse Refuse | AJ132: N/A | AK132: ICP-OES | AL132: N/A | AM132: 1.18 | AN132: 11.86 | AO132: 240.76 | AP132: 29.47 | AQ132: 52.24 | AR132: 234 | AS132: 40.74 | AT132: 647.6 | AU132: 0.1 | AW132: 0.32 | AX132: 0.52 | AY132: 43.79 | AZ132: > 10317.3 | BA132: 1.59 | BB132: 4.97 | BC132: 23.74 | BD132: 59.24 | BE132: < -3.24 | BG132: 2.87 | BH132: < -4.22 | BJ132: 0.19 | BO132: 2.38 | BS132: 0.01 | BT132: 14.3 | BU132: 2.75 | BV132: 0.06 | BW132: 1.38 | BX132: 1.88 | BY132: < 0.32 | BZ132: < 0.87 | CA132: < -2.97 | CB132: 0.12 | CC132: < -1.53 | CD132: < -2.51 | CE132: < -0.35 | CF132: < -0.05 | CG132: < -2.35 | CH132: < 0.17 | CI132: < -1.15 | CJ132: < -0.54 | CK132: 0.29 | CL132: 0.17 | CN132: < -0.02 | CO132: 0.94 | CP132: 0.29 | CR132: 0.58 | CS132: 0.77
A133: XBL.BA2010.BA.2 | B133: Liquid | C133: Counter Current Leaching of WKY13 material using bioleach acid | D133: DTK-CR | F133: Processing | G133: Coal Mining | H133: Coarse Refuse | I133: Illinois Basin | J133: N/A | K133: West Kentucky No.13 Coal Seam | L133: Kentucky | M133: Webster | N133: NA | O133: Kentucky | P133: Webster | Q133: NA | R133: Coarse Refuse | AJ133: N/A | AK133: ICP-OES | AL133: N/A | AM133: 1.02 | AN133: 12.37 | AO133: 254.06 | AP133: 31.28 | AQ133: 43.06 | AR133: 251.2 | AS133: 43.59 | AT133: 690 | AU133: 0.11 | AW133: 0.34 | AX133: 0.54 | AY133: 46.36 | AZ133: > 10844.9 | BA133: 1.7 | BB133: 5.28 | BC133: 25.13 | BD133: 62.77 | BE133: < -3.46 | BG133: 3.02 | BH133: < -4.79 | BJ133: 0.2 | BO133: 2.52 | BS133: 0.01 | BT133: 15.16 | BU133: 2.93 | BV133: 0.07 | BW133: 1.51 | BX133: 1.85 | BY133: < 0.33 | BZ133: < 1.08 | CA133: < -3.27 | CB133: 0.23 | CC133: < -1.55 | CD133: < -2.65 | CE133: < -0.38 | CF133: < -0.13 | CG133: < -2.5 | CH133: < 0.18 | CI133: < -1.23 | CJ133: < -0.59 | CK133: 0.31 | CL133: 0.18 | CN133: < 0.04 | CO133: 0.95 | CP133: 0.27 | CR133: 0.72 | CS133: 0.92
A134: XBL.BA2010.BA.L.2.WW.1 | B134: Liquid | C134: Counter Current Leaching of WKY13 material using bioleach acid | D134: DTK-CR | F134: Processing | G134: Coal Mining | H134: Coarse Refuse | I134: Illinois Basin | J134: N/A | K134: West Kentucky No.13 Coal Seam | L134: Kentucky | M134: Webster | N134: NA | O134: Kentucky | P134: Webster | Q134: NA | R134: Coarse Refuse | AJ134: N/A | AK134: ICP-OES | AL134: N/A | AM134: 0.122 | AN134: 10.852 | AO134: > 108.973 | AP134: > 435.034 | AQ134: > 85.591 | AR134: > 41.263 | AS134: 0.686 | AT134: > 453.569 | AU134: 0.075 | AW134: 0.201 | AX134: 0.317 | AY134: > 14.179 | AZ134: > 1558.3 | BA134: 0.51 | BB134: 1.642 | BC134: 6.306 | BD134: > 16.523 | BE134: < -0.379 | BG134: 0.634 | BH134: < -0.078 | BJ134: 0.158 | BO134: 0.456 | BS134: 0.002 | BT134: 2.428 | BU134: 0.462 | BV134: 1.931 | BW134: 0.24 | BX134: 3.11 | BY134: 0.376 | BZ134: 0.998 | CA134: < -0.298 | CB134: 0.511 | CC134: < -0.129 | CD134: < -0.423 | CE134: < 0.045 | CF134: < -0.023 | CG134: < -0.311 | CH134: < 0.031 | CI134: < -0.176 | CJ134: < -0.093 | CK134: 0.056 | CL134: 0.036 | CN134: < 0.057 | CO134: 0.73 | CP134: 0.118 | CR134: 1.977 | CS134: 2.135
A135: XBL.BA2010.BA.L.2.WW.2 | B135: Liquid | C135: Counter Current Leaching of WKY13 material using bioleach acid | D135: DTK-CR | F135: Processing | G135: Coal Mining | H135: Coarse Refuse | I135: Illinois Basin | J135: N/A | K135: West Kentucky No.13 Coal Seam | L135: Kentucky | M135: Webster | N135: NA | O135: Kentucky | P135: Webster | Q135: NA | R135: Coarse Refuse | AJ135: N/A | AK135: ICP-OES | AL135: N/A | AM135: < 0.011 | AN135: 1.524 | AO135: 9.842 | AP135: 36.279 | AQ135: 9.391 | AR135: 1.181 | AS135: 0.28 | AT135: > 409.616 | AU135: 0.003 | AW135: 0.007 | AX135: 0.021 | AY135: 1.415 | AZ135: > 59.694 | BA135: 0.045 | BB135: 0.133 | BC135: 0.453 | BD135: 1.287 | BE135: < -0.016 | BG135: < 0.019 | BH135: < 0.003 | BJ135: 0.028 | BO135: 0.025 | BS135: 0.001 | BT135: 0.114 | BU135: < 0.03 | BV135: 0.205 | BW135: < 0.013 | BX135: 1.413 | BY135: < 0.06 | BZ135: < 0.126 | CA135: < 0.016 | CB135: 0.092 | CC135: 0.011 | CD135: < -0.008 | CE135: < 0.062 | CF135: < 0.003 | CG135: < 0 | CH135: < 0 | CI135: < -0.007 | CJ135: < -0.004 | CK135: 0.005 | CL135: 0.001 | CN135: < 0.013 | CO135: 0.034 | CP135: < 0.009 | CR135: 0.109 | CS135: 0.137
A136: XBL.BA2010.BA.L.4.WW.1 | B136: Liquid | C136: Counter Current Leaching of WKY13 material using bioleach acid | D136: DTK-CR | F136: Processing | G136: Coal Mining | H136: Coarse Refuse | I136: Illinois Basin | J136: N/A | K136: West Kentucky No.13 Coal Seam | L136: Kentucky | M136: Webster | N136: NA | O136: Kentucky | P136: Webster | Q136: NA | R136: Coarse Refuse | AJ136: N/A | AK136: ICP-OES | AL136: N/A | AM136: 0.152 | AN136: 15.544 | AO136: > 132.479 | AP136: > 642.482 | AQ136: > 101.12 | AR136: > 36.644 | AS136: < 0.19 | AT136: > 432.584 | AU136: 0.113 | AW136: 0.207 | AX136: 0.361 | AY136: > 16.184 | AZ136: > 982.01 | BA136: 0.572 | BB136: 1.77 | BC136: 6.325 | BD136: > 16.933 | BE136: < -0.195 | BG136: 0.67 | BH136: < -0.031 | BJ136: 0.25 | BO136: 0.347 | BS136: 0.001 | BT136: 1.737 | BU136: 0.292 | BV136: 3.376 | BW136: 0.12 | BX136: 3.34 | BY136: 0.604 | BZ136: 1.657 | CA136: < 0.017 | CB136: 0.922 | CC136: 0.052 | CD136: < -0.214 | CE136: < 0.12 | CF136: < -0.008 | CG136: < -0.12 | CH136: < 0.026 | CI136: < -0.087 | CJ136: < -0.054 | CK136: 0.046 | CL136: 0.019 | CN136: < 0.047 | CO136: 0.949 | CP136: 0.151 | CR136: 3.3 | CS136: 3.55
A137: XBL.BA2010.BA.L.4.WW.2 | B137: Liquid | C137: Counter Current Leaching of WKY13 material using bioleach acid | D137: DTK-CR | F137: Processing | G137: Coal Mining | H137: Coarse Refuse | I137: Illinois Basin | J137: N/A | K137: West Kentucky No.13 Coal Seam | L137: Kentucky | M137: Webster | N137: NA | O137: Kentucky | P137: Webster | Q137: NA | R137: Coarse Refuse | AJ137: N/A | AK137: ICP-OES | AL137: N/A | AM137: < 0.013 | AN137: 1.836 | AO137: 12.8 | AP137: > 55.771 | AQ137: 9.222 | AR137: 1.779 | AS137: < 0.075 | AT137: > 297.003 | AU137: 0.008 | AW137: 0.01 | AX137: 0.026 | AY137: 1.717 | AZ137: > 65.496 | BA137: 0.052 | BB137: 0.159 | BC137: 0.543 | BD137: 1.485 | BE137: < -0.027 | BG137: < 0.026 | BH137: < 0.033 | BJ137: 0.039 | BO137: 0.028 | BS137: 0.001 | BT137: 0.134 | BU137: < 0.019 | BV137: 0.285 | BW137: < 0.016 | BX137: 1.318 | BY137: < 0.095 | BZ137: 0.252 | CA137: < 0.031 | CB137: 0.154 | CC137: 0.025 | CD137: < -0.008 | CE137: < 0.052 | CF137: < 0.01 | CG137: < 0.002 | CH137: < 0 | CI137: < -0.006 | CJ137: < -0.004 | CK137: 0.005 | CL137: 0.001 | CN137: < 0.003 | CO137: 0.056 | CP137: 0.013 | CR137: 0.437 | CS137: 0.476
A138: XBL.BA2010.L.1 | B138: Leachate | C138: Counter Current Leaching of WKY13 material using bioleach acid | D138: DTK-CR | F138: Processing | G138: Coal Mining | H138: Coarse Refuse | I138: Illinois Basin | J138: N/A | K138: West Kentucky No.13 Coal Seam | L138: Kentucky | M138: Webster | N138: NA | O138: Kentucky | P138: Webster | Q138: NA | R138: Coarse Refuse | AJ138: N/A | AK138: ICP-OES | AL138: N/A | AM138: 1.23 | AN138: 123.64 | AO138: 525.58 | AP138: > 1492.12 | AQ138: > 316.96 | AR138: > 233.31 | AS138: 131.35 | AT138: > 766.43 | AU138: 0.66 | AW138: 0.89 | AX138: 1.23 | AY138: 66.2 | AZ138: > 8958.26 | BA138: 2.3 | BB138: 6.51 | BC138: 26.29 | BD138: 65 | BE138: < -2.79 | BG138: 4.96 | BH138: < -2.44 | BJ138: 0.98 | BO138: 2.17 | BS138: 0.02 | BT138: 13.94 | BU138: 2.53 | BV138: 12.8 | BW138: 1.16 | BX138: 20.39 | BY138: 3.15 | BZ138: 6.82 | CA138: < -1.69 | CB138: 2.7 | CC138: < -0.68 | CD138: < -1.83 | CE138: < 0.14 | CF138: < -0.02 | CG138: < -1.69 | CH138: < 0.17 | CI138: < -0.86 | CJ138: < -0.5 | CK138: 0.33 | CL138: 0.15 | CN138: < 0.1 | CO138: 2.71 | CP138: 1.09 | CR138: 13.15 | CS138: 14.13
A139: XBL.BA2010.L.2.WW.1 | B139: Liquid | C139: Counter Current Leaching of WKY13 material using bioleach acid | D139: DTK-CR | F139: Processing | G139: Coal Mining | H139: Coarse Refuse | I139: Illinois Basin | J139: N/A | K139: West Kentucky No.13 Coal Seam | L139: Kentucky | M139: Webster | N139: NA | O139: Kentucky | P139: Webster | Q139: NA | R139: Coarse Refuse | AJ139: N/A | AK139: ICP-OES | AL139: N/A | AM139: < 0.14 | AN139: 10.68 | AO139: 118.28 | AP139: 451.38 | AQ139: 86.94 | AR139: 42.68 | AS139: < 0.98 | AT139: 486.15 | AU139: 0.07 | AW139: 0.19 | AX139: 0.37 | AY139: 15.11 | AZ139: 1916.6 | BA139: 0.56 | BB139: 1.75 | BC139: 6.53 | BD139: 17.44 | BE139: < -0.66 | BG139: < 0.69 | BH139: < 0.03 | BJ139: 0.16 | BO139: 0.49 | BS139: < -0.01 | BT139: 2.62 | BU139: < 0.49 | BV139: 1.9 | BW139: < 0.33 | BX139: 3.34 | BY139: < 0.44 | BZ139: < 1.06 | CA139: < -0.51 | CB139: 0.29 | CC139: < -0.16 | CD139: < -0.45 | CE139: < 0.01 | CF139: < 0 | CG139: < -0.33 | CH139: < 0.03 | CI139: < -0.17 | CJ139: < -0.12 | CK139: 0.06 | CL139: 0.03 | CN139: < 0.1 | CO139: 0.6 | CP139: 0.16 | CR139: 0.38 | CS139: 0.54
A140: XBL.BA2010.L.2.WW.2 | B140: Liquid | C140: Counter Current Leaching of WKY13 material using bioleach acid | D140: DTK-CR | F140: Processing | G140: Coal Mining | H140: Coarse Refuse | I140: Illinois Basin | J140: N/A | K140: West Kentucky No.13 Coal Seam | L140: Kentucky | M140: Webster | N140: NA | O140: Kentucky | P140: Webster | Q140: NA | R140: Coarse Refuse | AJ140: N/A | AK140: ICP-OES | AL140: N/A | AM140: < 0 | AN140: 3.75 | AO140: 9.89 | AP140: 35.97 | AQ140: 8.8 | AR140: < 1.32 | AS140: < 0.25 | AT140: 408.25 | AU140: < -0.01 | AW140: < -0.01 | AX140: < 0.03 | AY140: 1.44 | AZ140: 60.16 | BA140: < 0.05 | BB140: 0.13 | BC140: 0.43 | BD140: 1.25 | BE140: < -0.01 | BG140: < 0.02 | BH140: < -0.19 | BJ140: 0.03 | BO140: 0.04 | BS140: < -0.01 | BT140: < 0.12 | BU140: < 0.09 | BV140: 0.18 | BW140: < 0.06 | BX140: 1.77 | BY140: < 0.04 | BZ140: < 0.08 | CA140: < -0.1 | CB140: 0.12 | CC140: < 0 | CD140: < -0.01 | CE140: < 0.04 | CF140: < 0 | CG140: < -0.02 | CH140: < -0.01 | CI140: < 0.01 | CJ140: < -0.01 | CK140: < 0 | CL140: < -0.01 | CN140: < 0.02 | CO140: < 0.05 | CP140: < 0.04 | CR140: 0.12 | CS140: 0.15
A141: XBL.BA2010.L.2 | B141: Leachate | C141: Counter Current Leaching of WKY13 material using bioleach acid | D141: DTK-CR | F141: Processing | G141: Coal Mining | H141: Coarse Refuse | I141: Illinois Basin | J141: N/A | K141: West Kentucky No.13 Coal Seam | L141: Kentucky | M141: Webster | N141: NA | O141: Kentucky | P141: Webster | Q141: NA | R141: Coarse Refuse | AJ141: N/A | AK141: ICP-OES | AL141: N/A | AM141: 1.04 | AN141: 40.37 | AO141: 411.86 | AP141: 1510.8 | AQ141: 342.6 | AR141: 242 | AS141: 5.25 | AT141: 907.2 | AU141: 0.28 | AW141: 0.89 | AX141: 1.27 | AY141: 55.72 | AZ141: 10187 | BA141: 2.09 | BB141: 6.38 | BC141: 25.74 | BD141: 65.41 | BE141: < -2.82 | BG141: 3.44 | BH141: < -3.52 | BJ141: 0.49 | BO141: 2.19 | BS141: 0.01 | BT141: 13.15 | BU141: < 2.34 | BV141: 5.78 | BW141: 1.19 | BX141: 8.85 | BY141: 1.35 | BZ141: 3.59 | CA141: < -2.29 | CB141: 1.24 | CC141: < -1 | CD141: < -1.92 | CE141: < -0.09 | CF141: < -0.09 | CG141: < -1.89 | CH141: < 0.17 | CI141: < -0.99 | CJ141: < -0.48 | CK141: 0.28 | CL141: 0.14 | CN141: < 0.18 | CO141: 2.59 | CP141: 0.48 | CR141: 6.6 | CS141: 7.09
A142: XBL.BA2010.L.3 | B142: Leachate | C142: Counter Current Leaching of WKY13 material using bioleach acid | D142: DTK-CR | F142: Processing | G142: Coal Mining | H142: Coarse Refuse | I142: Illinois Basin | J142: N/A | K142: West Kentucky No.13 Coal Seam | L142: Kentucky | M142: Webster | N142: NA | O142: Kentucky | P142: Webster | Q142: NA | R142: Coarse Refuse | AJ142: N/A | AK142: ICP-OES | AL142: N/A | AM142: 0.536 | AN142: 226.52 | AO142: 837.8 | AP142: 2595.8 | AQ142: 478.4 | AR142: 236.8 | AS142: 6.102 | AT142: 924.6 | AU142: 1.108 | AW142: 0.692 | AX142: 1.4 | AY142: 88.14 | AZ142: 6632.2 | BA142: 2.516 | BB142: 6.674 | BC142: 27.68 | BD142: 70.82 | BE142: < -1.35 | BG142: 5.224 | BH142: 1.356 | BJ142: 1.808 | BO142: 1.588 | BS142: < -0.004 | BT142: 10.226 | BU142: 2.068 | BV142: 26.05 | BW142: 0.8 | BX142: 26.45 | BY142: 4.386 | BZ142: 9.886 | CA142: 0.21 | CB142: 4.846 | CC142: 0.328 | CD142: < -1.23 | CE142: 0.58 | CF142: < -0.002 | CG142: < -0.598 | CH142: 0.152 | CI142: < -0.406 | CJ142: < -0.394 | CK142: 0.31 | CL142: 0.136 | CN142: < 0.244 | CO142: 2.796 | CP142: 1.384 | CR142: 20.834 | CS142: 22.642
A143: XBL.BA2010.L.4.WW.1 | B143: Liquid | C143: Counter Current Leaching of WKY13 material using bioleach acid | D143: DTK-CR | F143: Processing | G143: Coal Mining | H143: Coarse Refuse | I143: Illinois Basin | J143: N/A | K143: West Kentucky No.13 Coal Seam | L143: Kentucky | M143: Webster | N143: NA | O143: Kentucky | P143: Webster | Q143: NA | R143: Coarse Refuse | AJ143: N/A | AK143: ICP-OES | AL143: N/A | AM143: < 0.15 | AN143: 14.44 | AO143: 138.69 | AP143: 664.4 | AQ143: 96.25 | AR143: 35.93 | AS143: < 0.7 | AT143: 433.47 | AU143: 0.1 | AW143: 0.2 | AX143: 0.39 | AY143: 16.15 | AZ143: 1104.6 | BA143: 0.59 | BB143: 1.83 | BC143: 6.17 | BD143: 16.8 | BE143: < -0.24 | BG143: < 0.72 | BH143: < 0.25 | BJ143: 0.24 | BO143: 0.36 | BS143: < -0.01 | BT143: 1.79 | BU143: < 0.13 | BV143: 3.12 | BW143: < 0.23 | BX143: 3.53 | BY143: < 0.65 | BZ143: < 1.58 | CA143: < 0.08 | CB143: 0.82 | CC143: 0.06 | CD143: < -0.24 | CE143: < 0.09 | CF143: < 0.01 | CG143: < -0.14 | CH143: < 0 | CI143: < -0.11 | CJ143: < -0.07 | CK143: 0.05 | CL143: 0.02 | CN143: < 0.17 | CO143: 0.68 | CP143: < 0.06 | CR143: 0.95 | CS143: 1.19
A144: XBL.BA2010.L.4.WW.2 | B144: Liquid | C144: Counter Current Leaching of WKY13 material using bioleach acid | D144: DTK-CR | F144: Processing | G144: Coal Mining | H144: Coarse Refuse | I144: Illinois Basin | J144: N/A | K144: West Kentucky No.13 Coal Seam | L144: Kentucky | M144: Webster | N144: NA | O144: Kentucky | P144: Webster | Q144: NA | R144: Coarse Refuse | AJ144: N/A | AK144: ICP-OES | AL144: N/A | AM144: < 0.01 | AN144: < 1.76 | AO144: 12.6 | AP144: 54.71 | AQ144: 8.88 | AR144: < 1.84 | AS144: < 0.12 | AT144: 293.23 | AU144: < 0 | AW144: 0.01 | AX144: < 0.04 | AY144: 1.74 | AZ144: 64.69 | BA144: < 0.05 | BB144: 0.12 | BC144: 0.54 | BD144: 1.46 | BE144: < -0.09 | BG144: < 0.08 | BH144: < -0.02 | BJ144: 0.04 | BO144: 0.04 | BS144: < -0.01 | BT144: < 0.13 | BU144: < -0.03 | BV144: 0.26 | BW144: < 0.06 | BX144: 1.46 | BY144: < 0.11 | BZ144: < 0.08 | CA144: < 0.01 | CB144: 0.17 | CC144: < 0.02 | CD144: < -0.01 | CE144: < 0.05 | CF144: < 0.01 | CG144: < -0.01 | CH144: < -0.01 | CI144: < 0.01 | CJ144: < -0.02 | CK144: 0.01 | CL144: < -0.01 | CN144: < 0.19 | CO144: < 0.04 | CP144: < 0.04 | CR144: 0.18 | CS144: 0.22
A145: XBL.BA2010.L.4 | B145: Leachate | C145: Counter Current Leaching of WKY13 material using bioleach acid | D145: DTK-CR | F145: Processing | G145: Coal Mining | H145: Coarse Refuse | I145: Illinois Basin | J145: N/A | K145: West Kentucky No.13 Coal Seam | L145: Kentucky | M145: Webster | N145: NA | O145: Kentucky | P145: Webster | Q145: NA | R145: Coarse Refuse | AJ145: N/A | AK145: ICP-OES | AL145: N/A | AM145: 0.434 | AN145: 56.952 | AO145: 622.8 | AP145: 2730.6 | AQ145: 487.8 | AR145: 225.6 | AS145: 1.054 | AT145: 929.4 | AU145: 0.476 | AW145: 0.84 | AX145: 1.542 | AY145: 68.94 | AZ145: 6906 | BA145: 2.208 | BB145: 6.592 | BC145: 27.66 | BD145: 71.73 | BE145: < -1.384 | BG145: 3.372 | BH145: 1.38 | BJ145: 0.864 | BO145: 1.618 | BS145: 0.002 | BT145: 8.826 | BU145: 2.17 | BV145: 12.576 | BW145: 0.84 | BX145: 8.31 | BY145: 1.976 | BZ145: 5.266 | CA145: < -0.652 | CB145: 2.754 | CC145: < -0.202 | CD145: < -1.356 | CE145: < 0.208 | CF145: < -0.046 | CG145: < -0.958 | CH145: 0.114 | CI145: < -0.55 | CJ145: < -0.39 | CK145: 0.222 | CL145: 0.126 | CN145: < 0.16 | CO145: 2.902 | CP145: 0.594 | CR145: 10.458 | CS145: 11.322
A146: XBL.PT1.F | B146: Liquid | C146: Precipitation test on modelled solution using calcite | D146: DTK-CR | F146: Processing | G146: Coal Mining | H146: Coarse Refuse | I146: Illinois Basin | J146: N/A | K146: West Kentucky No.13 Coal Seam | L146: Kentucky | M146: Webster | N146: NA | O146: Kentucky | P146: Webster | Q146: NA | R146: Coarse Refuse | AJ146: N/A | AK146: ICP-OES | AL146: N/A | AM146: < 0.96 | AN146: 9.65 | AO146: 243.05 | AP146: 30.91 | AQ146: 38.59 | AR146: 221.6 | AS146: 205.2 | AT146: 647.8 | AU146: 0.07 | AW146: 0.57 | AX146: 0.58 | AY146: 44.37 | AZ146: > 10468.6 | BA146: 1.6 | BB146: 5.11 | BC146: 23.71 | BD146: 59.77 | BE146: < -3.14 | BG146: 2.83 | BH146: < -5.72 | BJ146: 0.33 | BO146: 2.36 | BS146: < 0 | BT146: 12.4 | BU146: 3.17 | BV146: 0.07 | BW146: < 0.85 | BX146: < 1.2 | BY146: < 0.28 | BZ146: < 0.25 | CA146: < -2.68 | CB146: 0.5 | CC146: 0.17 | CD146: < -0.47 | CE146: < -0.29 | CF146: 0.18 | CG146: < -0.38 | CH146: < 0.07 | CI146: < -1.38 | CJ146: < -0.16 | CK146: 0.79 | CL146: 0.18 | CN146: < -3.05 | CO146: 0.84 | CP146: 0.28 | CR146: 1.82 | CS146: 2.15
A147: XBL.PT1.1R | B147: Liquid | C147: Precipitation test on modelled solution using calcite | D147: DTK-CR | F147: Processing | G147: Coal Mining | H147: Coarse Refuse | I147: Illinois Basin | J147: N/A | K147: West Kentucky No.13 Coal Seam | L147: Kentucky | M147: Webster | N147: NA | O147: Kentucky | P147: Webster | Q147: NA | R147: Coarse Refuse | AJ147: N/A | AK147: ICP-OES | AL147: N/A | AM147: < 0.8 | AN147: 11.05 | AO147: 308 | AP147: 33.16 | AQ147: 36.09 | AR147: 204.1 | AS147: 229.91 | AT147: 657.2 | AU147: 0.22 | AW147: 0.43 | AX147: 0.64 | AY147: 81.24 | AZ147: > 9431.91 | BA147: 2.06 | BB147: 5.9 | BC147: 23.36 | BD147: 61.46 | BE147: < -2.88 | BG147: 2.26 | BH147: < -2.96 | BJ147: 0.55 | BO147: 2.18 | BS147: 0.49 | BT147: 11.42 | BU147: < 2.34 | BV147: 0.08 | BW147: < 0.7 | BX147: < 0.97 | BY147: < 0.26 | BZ147: < -0.07 | CA147: < -2.23 | CB147: 0.23 | CC147: 0.1 | CD147: < -0.34 | CE147: < -0.23 | CF147: 0.11 | CG147: < -0.2 | CH147: < 0.05 | CI147: < -1.26 | CJ147: < -0.17 | CK147: 0.73 | CL147: 0.16 | CN147: < -3.03 | CO147: 0.97 | CP147: 0.32 | CR147: 1.33 | CS147: 1.88
A148: XBL.PT1.2R | B148: Liquid | C148: Precipitation test on modelled solution using calcite | D148: DTK-CR | F148: Processing | G148: Coal Mining | H148: Coarse Refuse | I148: Illinois Basin | J148: N/A | K148: West Kentucky No.13 Coal Seam | L148: Kentucky | M148: Webster | N148: NA | O148: Kentucky | P148: Webster | Q148: NA | R148: Coarse Refuse | AJ148: N/A | AK148: ICP-OES | AL148: N/A | AM148: < 0.89 | AN148: 11.67 | AO148: 314.88 | AP148: 33.04 | AQ148: 35.95 | AR148: 191.5 | AS148: 251.18 | AT148: 747.4 | AU148: 0.24 | AW148: 0.34 | AX148: 0.66 | AY148: 83.68 | AZ148: > 8824.83 | BA148: 2.1 | BB148: 6.04 | BC148: 23.38 | BD148: 61.79 | BE148: < -2.66 | BG148: 1.89 | BH148: < -3.89 | BJ148: 0.59 | BO148: 2.1 | BS148: 0.51 | BT148: 10.76 | BU148: < 2.14 | BV148: 0.08 | BW148: < 0.63 | BX148: < 1.03 | BY148: < 0.27 | BZ148: < 0.36 | CA148: < -2.2 | CB148: 0.27 | CC148: 0.09 | CD148: < -0.21 | CE148: < -0.19 | CF148: 0.21 | CG148: < -0.16 | CH148: < 0.05 | CI148: < -1.13 | CJ148: < -0.17 | CK148: 0.69 | CL148: 0.15 | CN148: < -2.97 | CO148: 0.79 | CP148: 0.37 | CR148: 1.41 | CS148: 2
A149: XBL.PT1.3R | B149: Liquid | C149: Precipitation test on modelled solution using calcite | D149: DTK-CR | F149: Processing | G149: Coal Mining | H149: Coarse Refuse | I149: Illinois Basin | J149: N/A | K149: West Kentucky No.13 Coal Seam | L149: Kentucky | M149: Webster | N149: NA | O149: Kentucky | P149: Webster | Q149: NA | R149: Coarse Refuse | AJ149: N/A | AK149: ICP-OES | AL149: N/A | AM149: < 0.95 | AN149: 12.23 | AO149: 335.33 | AP149: 32.97 | AQ149: 38.24 | AR149: 179.8 | AS149: 280.17 | AT149: 797.8 | AU149: 0.26 | AW149: 0.25 | AX149: 0.69 | AY149: 87.52 | AZ149: > 8058.86 | BA149: 2.18 | BB149: 6.13 | BC149: 23.44 | BD149: 62.53 | BE149: < -2.35 | BG149: 1.55 | BH149: 0.91 | BJ149: 0.63 | BO149: 1.98 | BS149: 0.52 | BT149: 9.94 | BU149: < 2.02 | BV149: 0.07 | BW149: < 0.49 | BX149: 1.44 | BY149: < 0.24 | BZ149: < 0.01 | CA149: < -1.87 | CB149: 0.37 | CC149: 0.13 | CD149: < -0.24 | CE149: < -0.15 | CF149: 0.1 | CG149: < -0.12 | CH149: < 0.05 | CI149: < -1.03 | CJ149: < -0.27 | CK149: 0.62 | CL149: 0.13 | CN149: < -2.71 | CO149: 0.96 | CP149: 0.27 | CR149: 1.35 | CS149: 1.98
A150: XBL.PT1.4R | B150: Liquid | C150: Precipitation test on modelled solution using calcite | D150: DTK-CR | F150: Processing | G150: Coal Mining | H150: Coarse Refuse | I150: Illinois Basin | J150: N/A | K150: West Kentucky No.13 Coal Seam | L150: Kentucky | M150: Webster | N150: NA | O150: Kentucky | P150: Webster | Q150: NA | R150: Coarse Refuse | AJ150: N/A | AK150: ICP-OES | AL150: N/A | AM150: < 0.32 | AN150: 15.79 | AO150: 431.28 | AP150: 35.41 | AQ150: 35.51 | AR150: 110.9 | AS150: 330.84 | AT150: 645.5 | AU150: 0.33 | AW150: 0.14 | AX150: 0.87 | AY150: 103.85 | AZ150: 4853.5 | BA150: 2.4 | BB150: 6.9 | BC150: 23.39 | BD150: 68.75 | BE150: < -1.38 | BG150: < 0.48 | BH150: 1.65 | BJ150: 0.73 | BO150: 1.62 | BS150: 0.02 | BT150: 6.68 | BU150: < 1.12 | BV150: 0.08 | BW150: < 0.18 | BX150: 1.9 | BY150: < 0.16 | BZ150: < 0.02 | CA150: < -1.04 | CB150: 0.27 | CC150: 0.05 | CD150: < -0.16 | CE150: < -0.05 | CF150: 0.02 | CG150: 0.12 | CH150: < 0.04 | CI150: < -0.58 | CJ150: < -0.16 | CK150: 0.41 | CL150: 0.11 | CN150: < -2.17 | CO150: 0.38 | CP150: 0.14 | CR150: 0.98 | CS150: 1.71
A151: XBL.PT1.5R | B151: Liquid | C151: Precipitation test on modelled solution using calcite | D151: DTK-CR | F151: Processing | G151: Coal Mining | H151: Coarse Refuse | I151: Illinois Basin | J151: N/A | K151: West Kentucky No.13 Coal Seam | L151: Kentucky | M151: Webster | N151: NA | O151: Kentucky | P151: Webster | Q151: NA | R151: Coarse Refuse | AJ151: N/A | AK151: ICP-OES | AL151: N/A | AM151: < -0.22 | AN151: 15.7 | AO151: 544.3 | AP151: < 0.2 | AQ151: 6.84 | AR151: < 0.12 | AS151: < 1.48 | AT151: 493.44 | AU151: < 0 | AW151: < -0.04 | AX151: < 0.01 | AY151: 104.9 | AZ151: 1.5 | BA151: 1.87 | BB151: 4.54 | BC151: 0.17 | BD151: 28.37 | BE151: < -0.08 | BG151: < -0.07 | BH151: 1.34 | BJ151: < 0.01 | BO151: 0.58 | BS151: < 0 | BT151: 1.91 | BU151: < -0.32 | BV151: 0.08 | BW151: < 0.01 | BX151: < 0.72 | BY151: < -0.06 | BZ151: < 0.58 | CA151: < -0.1 | CB151: 0.02 | CC151: < 0.06 | CD151: < 0.01 | CE151: < 0.1 | CF151: < -0.02 | CG151: 0.29 | CH151: < 0 | CI151: < -0.01 | CJ151: < -0.02 | CK151: < 0 | CL151: < 0 | CN151: < -1.13 | CO151: < -0.1 | CP151: < -0.04 | CR151: 0.31 | CS151: 0.31
A152: XBL.PT2.1R | B152: Liquid | C152: Precipitation test on modelled solution using calcite | D152: DTK-CR | F152: Processing | G152: Coal Mining | H152: Coarse Refuse | I152: Illinois Basin | J152: N/A | K152: West Kentucky No.13 Coal Seam | L152: Kentucky | M152: Webster | N152: NA | O152: Kentucky | P152: Webster | Q152: NA | R152: Coarse Refuse | AJ152: N/A | AK152: ICP-OES | AL152: N/A | AM152: < 0.11 | AN152: 44.25 | AO152: 802.9 | AP152: 4034.3 | AQ152: 405.8 | AR152: 81.91 | AS152: 20.38 | AT152: 1624.3 | AU152: 0.78 | AW152: 0.61 | AX152: 2.06 | AY152: 86.72 | AZ152: 524.6 | BA152: 3.03 | BB152: 8.94 | BC152: 26.38 | BD152: 73.13 | BE152: < -0.18 | BG152: < 0.69 | BH152: 1.59 | BJ152: 1.41 | BO152: 0.94 | BS152: 0.07 | BT152: 3.73 | BU152: < -0.01 | BV152: 24.51 | BW152: < 0.06 | BX152: 1.54 | BY152: < 0.46 | BZ152: < 2.5 | CA152: 0.73 | CB152: 3.21 | CC152: 0.79 | CD152: 0.15 | CE152: < 0.72 | CF152: < 0.06 | CG152: 0.54 | CH152: < 0.06 | CI152: < 0.06 | CJ152: < 0.02 | CK152: 0.15 | CL152: 0.03 | CN152: < -1 | CO152: 5.77 | CP152: 0.2 | CR152: 5.6 | CS152: 7.01
A153: XBL.PT2.2R | B153: Liquid | C153: Precipitation test on modelled solution using calcite | D153: DTK-CR | F153: Processing | G153: Coal Mining | H153: Coarse Refuse | I153: Illinois Basin | J153: N/A | K153: West Kentucky No.13 Coal Seam | L153: Kentucky | M153: Webster | N153: NA | O153: Kentucky | P153: Webster | Q153: NA | R153: Coarse Refuse | AJ153: N/A | AK153: ICP-OES | AL153: N/A | AM153: < 0.11 | AN153: 44.52 | AO153: 798.8 | AP153: 4006.1 | AQ153: 404.9 | AR153: 82.84 | AS153: 27.03 | AT153: 1277.4 | AU153: 0.8 | AW153: 0.61 | AX153: 2.13 | AY153: 89.18 | AZ153: 534.78 | BA153: 3.12 | BB153: 9.14 | BC153: 26.59 | BD153: 74.13 | BE153: < -0.11 | BG153: < 0.83 | BH153: 1.51 | BJ153: 1.41 | BO153: 0.95 | BS153: 0.05 | BT153: 3.76 | BU153: < -0.21 | BV153: 24.84 | BW153: < 0.07 | BX153: < 1.05 | BY153: < 0.44 | BZ153: < 2.36 | CA153: < 0.53 | CB153: 3.03 | CC153: 0.74 | CD153: 0.15 | CE153: < 0.69 | CF153: < 0.02 | CG153: 0.54 | CH153: < 0.06 | CI153: 0.1 | CJ153: < 0.01 | CK153: 0.16 | CL153: 0.02 | CN153: < -1.13 | CO153: 5.96 | CP153: < 0.14 | CR153: 4.74 | CS153: 6.15
A154: XBL.PT2.3R | B154: Liquid | C154: Precipitation test on modelled solution using calcite | D154: DTK-CR | F154: Processing | G154: Coal Mining | H154: Coarse Refuse | I154: Illinois Basin | J154: N/A | K154: West Kentucky No.13 Coal Seam | L154: Kentucky | M154: Webster | N154: NA | O154: Kentucky | P154: Webster | Q154: NA | R154: Coarse Refuse | AJ154: N/A | AK154: ICP-OES | AL154: N/A | AM154: < 0.12 | AN154: 44.62 | AO154: 796.6 | AP154: 4047.7 | AQ154: 404 | AR154: 82.81 | AS154: 37.55 | AT154: 660.8 | AU154: 0.8 | AW154: 0.62 | AX154: 2.17 | AY154: 89.98 | AZ154: 538.23 | BA154: 3.14 | BB154: 9.11 | BC154: 26.47 | BD154: 74.46 | BE154: < -0.13 | BG154: < 0.79 | BH154: 1.83 | BJ154: 1.39 | BO154: 0.97 | BS154: 0.07 | BT154: 3.86 | BU154: < -0.11 | BV154: 24.67 | BW154: < 0.08 | BX154: < 0.71 | BY154: < 0.4 | BZ154: < 1.98 | CA154: 0.57 | CB154: 2.44 | CC154: 0.7 | CD154: 0.13 | CE154: < 0.58 | CF154: 0.05 | CG154: 0.53 | CH154: < 0.06 | CI154: < 0.08 | CJ154: < 0 | CK154: 0.16 | CL154: 0.02 | CN154: < -1.13 | CO154: 6.02 | CP154: 0.23 | CR154: 4.6 | CS154: 5.99
A155: XBL.PT2.4R | B155: Liquid | C155: Precipitation test on modelled solution using calcite | D155: DTK-CR | F155: Processing | G155: Coal Mining | H155: Coarse Refuse | I155: Illinois Basin | J155: N/A | K155: West Kentucky No.13 Coal Seam | L155: Kentucky | M155: Webster | N155: NA | O155: Kentucky | P155: Webster | Q155: NA | R155: Coarse Refuse | AJ155: N/A | AK155: ICP-OES | AL155: N/A | AM155: < 0.12 | AN155: 45.25 | AO155: 806.8 | AP155: 4092.1 | AQ155: 404.5 | AR155: 84.55 | AS155: 59.39 | AT155: 538.17 | AU155: 0.81 | AW155: 0.61 | AX155: 2.16 | AY155: 90.97 | AZ155: 543.26 | BA155: 3.17 | BB155: 9.44 | BC155: 26.53 | BD155: 75.08 | BE155: < -0.2 | BG155: < 0.67 | BH155: 1.46 | BJ155: 1.41 | BO155: 0.97 | BS155: 0.12 | BT155: 4.08 | BU155: < 0.05 | BV155: 24.73 | BW155: < 0.09 | BX155: < 0.54 | BY155: < 0.41 | BZ155: < 1.84 | CA155: < 0.53 | CB155: 2.46 | CC155: 0.67 | CD155: 0.13 | CE155: < 0.57 | CF155: < 0.05 | CG155: 0.52 | CH155: < 0.05 | CI155: 0.1 | CJ155: < 0 | CK155: 0.16 | CL155: 0.03 | CN155: < -1.14 | CO155: 6.17 | CP155: 0.19 | CR155: 4.07 | CS155: 5.48
A156: XBL.PT2.5R | B156: Liquid | C156: Precipitation test on modelled solution using calcite | D156: DTK-CR | F156: Processing | G156: Coal Mining | H156: Coarse Refuse | I156: Illinois Basin | J156: N/A | K156: West Kentucky No.13 Coal Seam | L156: Kentucky | M156: Webster | N156: NA | O156: Kentucky | P156: Webster | Q156: NA | R156: Coarse Refuse | AJ156: N/A | AK156: ICP-OES | AL156: N/A | AM156: < 0.11 | AN156: 45.57 | AO156: 806.7 | AP156: 4086.1 | AQ156: 397.2 | AR156: 83.41 | AS156: 71.53 | AT156: 507.78 | AU156: 0.8 | AW156: 0.59 | AX156: 2.15 | AY156: 90.05 | AZ156: 536.79 | BA156: 3.12 | BB156: 9.16 | BC156: 26.01 | BD156: 74.43 | BE156: < -0.18 | BG156: < 0.62 | BH156: 1.62 | BJ156: 1.4 | BO156: 0.96 | BS156: 0.13 | BT156: 4.52 | BU156: < 0.01 | BV156: 24.57 | BW156: < 0.08 | BX156: < 0.79 | BY156: < 0.41 | BZ156: < 1.96 | CA156: < 0.4 | CB156: 2.36 | CC156: 0.7 | CD156: 0.13 | CE156: < 0.57 | CF156: < 0.08 | CG156: 0.54 | CH156: < 0.06 | CI156: < 0.07 | CJ156: < -0.01 | CK156: 0.15 | CL156: 0.03 | CN156: < -0.9 | CO156: 6 | CP156: 0.19 | CR156: 3.91 | CS156: 5.31
A157: XBL.PT2.6R | B157: Liquid | C157: Precipitation test on modelled solution using calcite | D157: DTK-CR | F157: Processing | G157: Coal Mining | H157: Coarse Refuse | I157: Illinois Basin | J157: N/A | K157: West Kentucky No.13 Coal Seam | L157: Kentucky | M157: Webster | N157: NA | O157: Kentucky | P157: Webster | Q157: NA | R157: Coarse Refuse | AJ157: N/A | AK157: ICP-OES | AL157: N/A | AM157: < 0.12 | AN157: 48.84 | AO157: 821.5 | AP157: 4074.2 | AQ157: 395 | AR157: 83.78 | AS157: 112.54 | AT157: 510.93 | AU157: 0.81 | AW157: 0.6 | AX157: 2.15 | AY157: 90.98 | AZ157: 540.33 | BA157: 3.14 | BB157: 9.32 | BC157: 26.12 | BD157: 75.37 | BE157: < -0.08 | BG157: < 0.75 | BH157: 2.01 | BJ157: 1.41 | BO157: 0.98 | BS157: 0.15 | BT157: 4.82 | BU157: < -0.16 | BV157: 24.92 | BW157: < 0.09 | BX157: < 0.67 | BY157: < 0.42 | BZ157: < 2.24 | CA157: < 0.46 | CB157: 2.36 | CC157: 0.67 | CD157: 0.13 | CE157: < 0.57 | CF157: < 0.07 | CG157: 0.54 | CH157: < 0.05 | CI157: 0.09 | CJ157: < 0 | CK157: 0.16 | CL157: 0.03 | CN157: < -1.18 | CO157: 6.33 | CP157: 0.22 | CR157: 3.98 | CS157: 5.39
A158: XBL.PT2.7R | B158: Liquid | C158: Precipitation test on modelled solution using calcite | D158: DTK-CR | F158: Processing | G158: Coal Mining | H158: Coarse Refuse | I158: Illinois Basin | J158: N/A | K158: West Kentucky No.13 Coal Seam | L158: Kentucky | M158: Webster | N158: NA | O158: Kentucky | P158: Webster | Q158: NA | R158: Coarse Refuse | AJ158: N/A | AK158: ICP-OES | AL158: N/A | AM158: < 0.12 | AN158: 50.22 | AO158: 816.7 | AP158: 4062.5 | AQ158: 384.1 | AR158: 83.43 | AS158: 127.59 | AT158: 509.72 | AU158: 0.81 | AW158: 0.57 | AX158: 2.21 | AY158: 91.63 | AZ158: 545.2 | BA158: 3.19 | BB158: 9.62 | BC158: 26.09 | BD158: 75.94 | BE158: < -0.11 | BG158: < 0.7 | BH158: 1.33 | BJ158: 1.42 | BO158: 1 | BS158: 0.32 | BT158: 5.49 | BU158: < -0.21 | BV158: 24.94 | BW158: < 0.07 | BX158: < 0.93 | BY158: < 0.42 | BZ158: < 1.92 | CA158: < 0.43 | CB158: 2.47 | CC158: 0.67 | CD158: 0.13 | CE158: < 0.55 | CF158: < 0.07 | CG158: 0.54 | CH158: < 0.06 | CI158: < 0.04 | CJ158: < 0 | CK158: 0.16 | CL158: 0.03 | CN158: < -1.33 | CO158: 6.36 | CP158: 0.24 | CR158: 4 | CS158: 5.42
A159: XBL.PT2.8R | B159: Liquid | C159: Precipitation test on modelled solution using calcite | D159: DTK-CR | F159: Processing | G159: Coal Mining | H159: Coarse Refuse | I159: Illinois Basin | J159: N/A | K159: West Kentucky No.13 Coal Seam | L159: Kentucky | M159: Webster | N159: NA | O159: Kentucky | P159: Webster | Q159: NA | R159: Coarse Refuse | AJ159: N/A | AK159: ICP-OES | AL159: N/A | AM159: < 0.12 | AN159: 55.83 | AO159: 829.7 | AP159: 4031.5 | AQ159: 337.8 | AR159: 72.07 | AS159: 134.06 | AT159: 502.59 | AU159: 0.8 | AW159: 0.43 | AX159: 2.1 | AY159: 93.19 | AZ159: 500.45 | BA159: 3.26 | BB159: 9.71 | BC159: 25.89 | BD159: 78.28 | BE159: < -0.15 | BG159: < 0.67 | BH159: 1.88 | BJ159: 1.45 | BO159: 1.02 | BS159: 0.11 | BT159: 9.31 | BU159: < -0.25 | BV159: 25.36 | BW159: < 0.07 | BX159: < 0.97 | BY159: < 0.43 | BZ159: < 2.09 | CA159: 0.65 | CB159: 2.41 | CC159: 0.71 | CD159: 0.14 | CE159: < 0.56 | CF159: 0.01 | CG159: 0.55 | CH159: < 0.07 | CI159: 0.12 | CJ159: < -0.02 | CK159: 0.16 | CL159: 0.03 | CN159: < -1.23 | CO159: 6.39 | CP159: 0.22 | CR159: 4.78 | CS159: 6.23
A160: XBL.PT2.EFF | B160: Liquid | C160: Precipitation test on modelled solution using calcite | D160: DTK-CR | F160: Processing | G160: Coal Mining | H160: Coarse Refuse | I160: Illinois Basin | J160: N/A | K160: West Kentucky No.13 Coal Seam | L160: Kentucky | M160: Webster | N160: NA | O160: Kentucky | P160: Webster | Q160: NA | R160: Coarse Refuse | AJ160: N/A | AK160: ICP-OES | AL160: N/A | AM160: 0.271 | AN160: 53.171 | AO160: 923.8 | AP160: 4400.8 | AQ160: 333.2 | AR160: 62.73 | AS160: 325.55 | AT160: 503.12 | AU160: 0.688 | AW160: 0.279 | AX160: 1.789 | AY160: 94.23 | AZ160: 443.27 | BA160: 2.741 | BB160: 8.097 | BC160: 26.09 | BD160: 80.06 | BE160: < -0.042 | BG160: 0.37 | BH160: 1.354 | BJ160: 1.369 | BO160: 0.832 | BS160: 0.066 | BT160: 8.12 | BU160: 0.444 | BV160: 25.82 | BW160: < 0.032 | BX160: 1.013 | BY160: 0.297 | BZ160: 1.905 | CA160: 0.564 | CB160: 2.415 | CC160: 0.662 | CD160: 0.12 | CE160: 0.561 | CF160: 0.068 | CG160: 0.515 | CH160: 0.056 | CI160: 0.09 | CJ160: < -0.005 | CK160: 0.142 | CL160: 0.023 | CN160: < -0.818 | CO160: 5.165 | CP160: 0.191 | CR160: 7.418 | CS160: 8.787
A161: XBL.FA1001.1L | B161: Leachate | C161: Leaching characteristic test of WKY13 feedstock | D161: DTK-CR | F161: Processing | G161: Coal Mining | H161: Coarse Refuse | I161: Illinois Basin | J161: N/A | K161: West Kentucky No.13 Coal Seam | L161: Kentucky | M161: Webster | N161: NA | O161: Kentucky | P161: Webster | Q161: NA | R161: Coarse Refuse | AJ161: N/A | AK161: ICP-OES | AL161: N/A | AM161: < 0.05 | AN161: 2.682 | AO161: 18.25 | AP161: 20.404 | AQ161: 15.7 | AR161: 3.844 | AS161: 11.78 | AT161: 188.06 | AU161: 0.028 | AW161: 0.133 | AX161: 0.125 | AY161: 14.28 | AZ161: 526.6 | BA161: 0.088 | BB161: 0.18 | BC161: 0.162 | BD161: 0.37 | BE161: < -0.13 | BG161: < 0.013 | BH161: 0.177 | BJ161: 0.07 | BO161: 0.08 | BS161: 0.087 | BT161: 0.71 | BU161: < -0.223 | BV161: 0.06 | BW161: < 0.029 | BX161: 0.343 | BY161: < 0.019 | BZ161: < 0.014 | CA161: < -0.07 | CB161: 0.043 | CC161: 0.021 | CD161: < -0.019 | CE161: < 0.014 | CF161: < 0.007 | CG161: < -0.01 | CH161: < 0.009 | CI161: < -0.048 | CJ161: < -0.02 | CK161: 0.036 | CL161: 0.01 | CN161: < -0.029 | CO161: 0.115 | CP161: 0.026 | CR161: 0.11 | CS161: 0.18
A162: XBL.FA1001.2L | B162: Leachate | C162: Leaching characteristic test of WKY13 feedstock | D162: DTK-CR | F162: Processing | G162: Coal Mining | H162: Coarse Refuse | I162: Illinois Basin | J162: N/A | K162: West Kentucky No.13 Coal Seam | L162: Kentucky | M162: Webster | N162: NA | O162: Kentucky | P162: Webster | Q162: NA | R162: Coarse Refuse | AJ162: N/A | AK162: ICP-OES | AL162: N/A | AM162: < 0.056 | AN162: 3.218 | AO162: 25.829 | AP162: 36.028 | AQ162: 32.04 | AR162: 3.949 | AS162: 8.389 | AT162: 192.84 | AU162: 0.033 | AW162: 0.165 | AX162: 0.111 | AY162: 14.8 | AZ162: 546.22 | BA162: 0.108 | BB162: 0.217 | BC162: 0.188 | BD162: 0.512 | BE162: < -0.126 | BG162: < 0.016 | BH162: 0.214 | BJ162: 0.074 | BO162: 0.085 | BS162: 0.125 | BT162: 0.767 | BU162: < -0.236 | BV162: 0.106 | BW162: < 0.029 | BX162: 0.381 | BY162: < 0.023 | BZ162: < 0.024 | CA162: < -0.07 | CB162: 0.045 | CC162: 0.025 | CD162: < -0.017 | CE162: < 0.014 | CF162: < 0.007 | CG162: < -0.01 | CH162: < 0.011 | CI162: < -0.051 | CJ162: < -0.021 | CK162: 0.039 | CL162: 0.01 | CN162: < -0.064 | CO162: 0.156 | CP162: 0.038 | CR162: 0.119 | CS162: 0.193
A163: XBL.FA1001.3L | B163: Leachate | C163: Leaching characteristic test of WKY13 feedstock | D163: DTK-CR | F163: Processing | G163: Coal Mining | H163: Coarse Refuse | I163: Illinois Basin | J163: N/A | K163: West Kentucky No.13 Coal Seam | L163: Kentucky | M163: Webster | N163: NA | O163: Kentucky | P163: Webster | Q163: NA | R163: Coarse Refuse | AJ163: N/A | AK163: ICP-OES | AL163: N/A | AM163: < 0.056 | AN163: 3.244 | AO163: 30.113 | AP163: 44.927 | AQ163: 43.94 | AR163: 3.822 | AS163: 12.227 | AT163: 192.56 | AU163: 0.033 | AW163: 0.172 | AX163: 0.132 | AY163: 14.92 | AZ163: 566.88 | BA163: 0.114 | BB163: 0.238 | BC163: 0.191 | BD163: 0.581 | BE163: < -0.125 | BG163: < 0.016 | BH163: 0.189 | BJ163: 0.074 | BO163: 0.086 | BS163: 0.079 | BT163: 0.771 | BU163: < -0.219 | BV163: 0.132 | BW163: < 0.034 | BX163: 0.373 | BY163: < 0.027 | BZ163: < 0.03 | CA163: < -0.063 | CB163: 0.06 | CC163: 0.027 | CD163: < -0.017 | CE163: < 0.013 | CF163: < 0.01 | CG163: < -0.01 | CH163: < 0.009 | CI163: < -0.053 | CJ163: < -0.018 | CK163: 0.038 | CL163: 0.011 | CN163: < -0.089 | CO163: 0.149 | CP163: 0.042 | CR163: 0.136 | CS163: 0.21
A164: XBL.FA1001.4L | B164: Leachate | C164: Leaching characteristic test of WKY13 feedstock | D164: DTK-CR | F164: Processing | G164: Coal Mining | H164: Coarse Refuse | I164: Illinois Basin | J164: N/A | K164: West Kentucky No.13 Coal Seam | L164: Kentucky | M164: Webster | N164: NA | O164: Kentucky | P164: Webster | Q164: NA | R164: Coarse Refuse | AJ164: N/A | AK164: ICP-OES | AL164: N/A | AM164: < 0.053 | AN164: 3.187 | AO164: 31.616 | AP164: 49.358 | AQ164: 54.88 | AR164: 3.677 | AS164: 12.826 | AT164: 193.18 | AU164: 0.035 | AW164: 0.176 | AX164: 0.141 | AY164: 15.2 | AZ164: 586.38 | BA164: 0.115 | BB164: 0.239 | BC164: 0.19 | BD164: 0.63 | BE164: < -0.117 | BG164: < 0.014 | BH164: 0.199 | BJ164: 0.073 | BO164: 0.084 | BS164: 0.101 | BT164: 0.759 | BU164: < -0.182 | BV164: 0.145 | BW164: < 0.03 | BX164: 0.372 | BY164: < 0.03 | BZ164: < 0.027 | CA164: < -0.061 | CB164: 0.059 | CC164: 0.025 | CD164: < -0.017 | CE164: < 0.011 | CF164: < 0.004 | CG164: < -0.011 | CH164: < 0.011 | CI164: < -0.054 | CJ164: < -0.019 | CK164: 0.037 | CL164: 0.01 | CN164: < -0.086 | CO164: 0.175 | CP164: 0.039 | CR164: 0.131 | CS164: 0.204
A165: XBL.FA1001.5L | B165: Leachate | C165: Leaching characteristic test of WKY13 feedstock | D165: DTK-CR | F165: Processing | G165: Coal Mining | H165: Coarse Refuse | I165: Illinois Basin | J165: N/A | K165: West Kentucky No.13 Coal Seam | L165: Kentucky | M165: Webster | N165: NA | O165: Kentucky | P165: Webster | Q165: NA | R165: Coarse Refuse | AJ165: N/A | AK165: ICP-OES | AL165: N/A | AM165: < 0.063 | AN165: 3.483 | AO165: 36.169 | AP165: 67.32 | AQ165: 65.64 | AR165: 3.968 | AS165: 9.481 | AT165: 194.42 | AU165: 0.038 | AW165: 0.198 | AX165: 0.15 | AY165: 15.28 | AZ165: 594.4 | BA165: 0.124 | BB165: 0.263 | BC165: 0.212 | BD165: 0.719 | BE165: < -0.134 | BG165: < 0.024 | BH165: 0.207 | BJ165: 0.083 | BO165: 0.092 | BS165: 0.109 | BT165: 0.833 | BU165: < -0.196 | BV165: 0.169 | BW165: < 0.033 | BX165: 0.408 | BY165: < 0.036 | BZ165: < 0.067 | CA165: < -0.059 | CB165: 0.064 | CC165: 0.033 | CD165: < -0.017 | CE165: < 0.016 | CF165: < 0.006 | CG165: < -0.011 | CH165: < 0.01 | CI165: < -0.058 | CJ165: < -0.022 | CK165: 0.041 | CL165: 0.011 | CN165: < -0.082 | CO165: 0.185 | CP165: 0.044 | CR165: 0.149 | CS165: 0.232
A166: XBL.FA1002.1L | B166: Leachate | C166: Leaching characteristic test of WKY13 feedstock | D166: DTK-CR | F166: Processing | G166: Coal Mining | H166: Coarse Refuse | I166: Illinois Basin | J166: N/A | K166: West Kentucky No.13 Coal Seam | L166: Kentucky | M166: Webster | N166: NA | O166: Kentucky | P166: Webster | Q166: NA | R166: Coarse Refuse | AJ166: N/A | AK166: ICP-OES | AL166: N/A | AM166: < 0.022 | AN166: 5.882 | AO166: 38.074 | AP166: 147.28 | AQ166: 50.9 | AR166: 5.495 | AS166: 68.54 | AT166: 226.1 | AU166: 0.049 | AW166: 0.23 | AX166: 0.125 | AY166: 8.318 | AZ166: 132.16 | BA166: 0.094 | BB166: 0.199 | BC166: 0.229 | BD166: 0.661 | BE166: < -0.005 | BG166: 0.184 | BH166: 0.129 | BJ166: 0.087 | BO166: 0.027 | BS166: 0.081 | BT166: 0.311 | BU166: < -0.31 | BV166: 0.459 | BW166: < 0.021 | BX166: 1.696 | BY166: 0.278 | BZ166: 0.534 | CA166: 0.059 | CB166: 0.25 | CC166: 0.058 | CD166: < -0.001 | CE166: < 0.046 | CF166: < 0.008 | CG166: 0.025 | CH166: < 0.007 | CI166: < 0 | CJ166: < -0.005 | CK166: 0.014 | CL166: 0.003 | CN166: < -0.058 | CO166: 0.233 | CP166: 0.075 | CR166: 1.221 | CS166: 1.308
A167: XBL.FA1002.2L | B167: Leachate | C167: Leaching characteristic test of WKY13 feedstock | D167: DTK-CR | F167: Processing | G167: Coal Mining | H167: Coarse Refuse | I167: Illinois Basin | J167: N/A | K167: West Kentucky No.13 Coal Seam | L167: Kentucky | M167: Webster | N167: NA | O167: Kentucky | P167: Webster | Q167: NA | R167: Coarse Refuse | AJ167: N/A | AK167: ICP-OES | AL167: N/A | AM167: < 0.025 | AN167: 7.494 | AO167: 44.984 | AP167: 229 | AQ167: 79.12 | AR167: 5.919 | AS167: 88.04 | AT167: 247.86 | AU167: 0.055 | AW167: 0.293 | AX167: 0.177 | AY167: 9.614 | AZ167: 219.82 | BA167: 0.115 | BB167: 0.267 | BC167: 0.268 | BD167: 0.814 | BE167: < -0.019 | BG167: 0.217 | BH167: 0.163 | BJ167: 0.09 | BO167: 0.04 | BS167: 0.064 | BT167: 0.447 | BU167: < -0.277 | BV167: 0.634 | BW167: < 0.03 | BX167: 1.834 | BY167: 0.293 | BZ167: 0.545 | CA167: 0.065 | CB167: 0.28 | CC167: 0.068 | CD167: < -0.008 | CE167: < 0.043 | CF167: < 0.003 | CG167: 0.021 | CH167: < 0.009 | CI167: < -0.01 | CJ167: < -0.006 | CK167: 0.019 | CL167: 0.005 | CN167: < -0.064 | CO167: 0.354 | CP167: 0.084 | CR167: 1.296 | CS167: 1.386
A168: XBL.FA1002.3L | B168: Leachate | C168: Leaching characteristic test of WKY13 feedstock | D168: DTK-CR | F168: Processing | G168: Coal Mining | H168: Coarse Refuse | I168: Illinois Basin | J168: N/A | K168: West Kentucky No.13 Coal Seam | L168: Kentucky | M168: Webster | N168: NA | O168: Kentucky | P168: Webster | Q168: NA | R168: Coarse Refuse | AJ168: N/A | AK168: ICP-OES | AL168: N/A | AM168: < 0.027 | AN168: 8.222 | AO168: 45.964 | AP168: 293.78 | AQ168: 101.52 | AR168: 6.118 | AS168: 95.88 | AT168: 253.6 | AU168: 0.059 | AW168: 0.328 | AX168: 0.198 | AY168: 10.347 | AZ168: 313.56 | BA168: 0.128 | BB168: 0.293 | BC168: 0.294 | BD168: 0.89 | BE168: < -0.032 | BG168: 0.233 | BH168: 0.18 | BJ168: 0.091 | BO168: 0.047 | BS168: 0.12 | BT168: 0.557 | BU168: < -0.245 | BV168: 0.764 | BW168: < 0.04 | BX168: 1.883 | BY168: 0.296 | BZ168: 0.655 | CA168: 0.086 | CB168: 0.25 | CC168: 0.06 | CD168: < -0.014 | CE168: < 0.04 | CF168: < 0.001 | CG168: 0.015 | CH168: < 0.007 | CI168: < -0.024 | CJ168: < -0.012 | CK168: 0.024 | CL168: 0.005 | CN168: < -0.096 | CO168: 0.412 | CP168: 0.095 | CR168: 1.391 | CS168: 1.482
A169: XBL.FA1002.4L | B169: Leachate | C169: Leaching characteristic test of WKY13 feedstock | D169: DTK-CR | F169: Processing | G169: Coal Mining | H169: Coarse Refuse | I169: Illinois Basin | J169: N/A | K169: West Kentucky No.13 Coal Seam | L169: Kentucky | M169: Webster | N169: NA | O169: Kentucky | P169: Webster | Q169: NA | R169: Coarse Refuse | AJ169: N/A | AK169: ICP-OES | AL169: N/A | AM169: < 0.035 | AN169: 8.842 | AO169: 46.536 | AP169: 357.22 | AQ169: 112.72 | AR169: 6.199 | AS169: 99.26 | AT169: 260.42 | AU169: 0.062 | AW169: 0.359 | AX169: 0.217 | AY169: 14.56 | AZ169: 430.1 | BA169: 0.135 | BB169: 0.319 | BC169: 0.312 | BD169: 0.958 | BE169: < -0.043 | BG169: 0.254 | BH169: 0.17 | BJ169: 0.091 | BO169: 0.062 | BS169: 0.088 | BT169: 0.699 | BU169: < -0.24 | BV169: 0.861 | BW169: < 0.047 | BX169: 1.902 | BY169: 0.3 | BZ169: 0.638 | CA169: 0.058 | CB169: 0.272 | CC169: 0.062 | CD169: < -0.013 | CE169: < 0.034 | CF169: < 0.005 | CG169: 0.009 | CH169: < 0.009 | CI169: < -0.034 | CJ169: < -0.015 | CK169: 0.03 | CL169: 0.007 | CN169: < -0.079 | CO169: 0.493 | CP169: 0.095 | CR169: 1.376 | CS169: 1.467
A170: XBL.FA1002.5L | B170: Leachate | C170: Leaching characteristic test of WKY13 feedstock | D170: DTK-CR | F170: Processing | G170: Coal Mining | H170: Coarse Refuse | I170: Illinois Basin | J170: N/A | K170: West Kentucky No.13 Coal Seam | L170: Kentucky | M170: Webster | N170: NA | O170: Kentucky | P170: Webster | Q170: NA | R170: Coarse Refuse | AJ170: N/A | AK170: ICP-OES | AL170: N/A | AM170: < 0.061 | AN170: 9.717 | AO170: 48.631 | AP170: 418.14 | AQ170: 105.04 | AR170: 6.519 | AS170: 102.76 | AT170: 260.38 | AU170: 0.067 | AW170: 0.414 | AX170: 0.254 | AY170: 16.62 | AZ170: 602.16 | BA170: 0.149 | BB170: 0.356 | BC170: 0.337 | BD170: 1.048 | BE170: < -0.066 | BG170: 0.271 | BH170: 0.237 | BJ170: 0.095 | BO170: 0.086 | BS170: 0.119 | BT170: 0.91 | BU170: < -0.163 | BV170: 0.971 | BW170: < 0.024 | BX170: 1.956 | BY170: 0.312 | BZ170: 0.697 | CA170: 0.053 | CB170: 0.277 | CC170: 0.071 | CD170: < -0.011 | CE170: < 0.035 | CF170: < 0.004 | CG170: < -0.004 | CH170: < 0.008 | CI170: < -0.048 | CJ170: < -0.023 | CK170: 0.039 | CL170: 0.009 | CN170: < -0.101 | CO170: 0.607 | CP170: 0.109 | CR170: =SUM(BY170:CL170) -> 1.458 | CS170: =SUM(BJ170,BY170:CL170) -> 1.553
A171: XBL.FA1003.1L | B171: Leachate | C171: Leaching characteristic test of WKY13 feedstock | D171: DTK-CR | F171: Processing | G171: Coal Mining | H171: Coarse Refuse | I171: Illinois Basin | J171: N/A | K171: West Kentucky No.13 Coal Seam | L171: Kentucky | M171: Webster | N171: NA | O171: Kentucky | P171: Webster | Q171: NA | R171: Coarse Refuse | AJ171: N/A | AK171: ICP-OES | AL171: N/A | AM171: < 0.014 | AN171: 2.271 | AO171: 9.984 | AP171: 17.561 | AQ171: 10.573 | AR171: 2.738 | AS171: 16.763 | AT171: 96.36 | AU171: 0.016 | AW171: 0.053 | AX171: 0.116 | AY171: 2.399 | AZ171: 147.3 | BA171: 0.067 | BB171: 0.185 | BC171: 0.305 | BD171: 0.324 | BE171: < -0.029 | BG171: 0.114 | BH171: 0.079 | BJ171: 0.043 | BO171: 0.021 | BS171: 0.093 | BT171: 0.213 | BU171: < -0.335 | BV171: 0.043 | BW171: < 0.022 | BX171: 0.189 | BY171: < 0.016 | BZ171: < 0.066 | CA171: < 0.01 | CB171: 0.027 | CC171: 0.018 | CD171: < -0.005 | CE171: < 0.015 | CF171: < -0.004 | CG171: < 0.002 | CH171: < 0.006 | CI171: < -0.013 | CJ171: < -0.003 | CK171: 0.011 | CL171: 0.002 | CN171: < -0.037 | CO171: 0.145 | CP171: 0.026 | CR171: 0.058 | CS171: 0.101
A172: XBL.FA1003.2L | B172: Leachate | C172: Leaching characteristic test of WKY13 feedstock | D172: DTK-CR | F172: Processing | G172: Coal Mining | H172: Coarse Refuse | I172: Illinois Basin | J172: N/A | K172: West Kentucky No.13 Coal Seam | L172: Kentucky | M172: Webster | N172: NA | O172: Kentucky | P172: Webster | Q172: NA | R172: Coarse Refuse | AJ172: N/A | AK172: ICP-OES | AL172: N/A | AM172: < 0.013 | AN172: 2.963 | AO172: 15.51 | AP172: 29.484 | AQ172: 24.76 | AR172: 2.373 | AS172: 15.122 | AT172: 100.06 | AU172: 0.019 | AW172: 0.072 | AX172: 0.084 | AY172: 2.713 | AZ172: 174.6 | BA172: 0.085 | BB172: 0.201 | BC172: 0.294 | BD172: 0.409 | BE172: < -0.03 | BG172: 0.124 | BH172: 0.085 | BJ172: 0.049 | BO172: 0.026 | BS172: 0.089 | BT172: 0.269 | BU172: < -0.34 | BV172: 0.077 | BW172: < 0.025 | BX172: 0.234 | BY172: < 0.02 | BZ172: < 0.11 | CA172: < 0.02 | CB172: 0.056 | CC172: 0.019 | CD172: < -0.007 | CE172: < 0.014 | CF172: < 0 | CG172: < 0 | CH172: < 0.006 | CI172: < -0.015 | CJ172: < -0.003 | CK172: 0.013 | CL172: 0.003 | CN172: < -0.053 | CO172: 0.178 | CP172: 0.028 | CR172: 0.091 | CS172: 0.14
A173: XBL.FA1003.3L | B173: Leachate | C173: Leaching characteristic test of WKY13 feedstock | D173: DTK-CR | F173: Processing | G173: Coal Mining | H173: Coarse Refuse | I173: Illinois Basin | J173: N/A | K173: West Kentucky No.13 Coal Seam | L173: Kentucky | M173: Webster | N173: NA | O173: Kentucky | P173: Webster | Q173: NA | R173: Coarse Refuse | AJ173: N/A | AK173: ICP-OES | AL173: N/A | AM173: < 0.015 | AN173: 3.258 | AO173: 19.643 | AP173: 38.333 | AQ173: 35.74 | AR173: 2.433 | AS173: 20.512 | AT173: 100.48 | AU173: 0.023 | AW173: 0.085 | AX173: 0.101 | AY173: 2.905 | AZ173: 191.28 | BA173: 0.093 | BB173: 0.216 | BC173: 0.31 | BD173: 0.479 | BE173: < -0.041 | BG173: 0.126 | BH173: 0.062 | BJ173: 0.053 | BO173: 0.028 | BS173: 0.091 | BT173: 0.296 | BU173: < -0.329 | BV173: 0.105 | BW173: < 0.031 | BX173: 0.224 | BY173: < 0.026 | BZ173: < 0.124 | CA173: < 0.002 | CB173: 0.057 | CC173: 0.026 | CD173: < -0.009 | CE173: < 0.015 | CF173: < -0.003 | CG173: < 0 | CH173: < 0.006 | CI173: < -0.017 | CJ173: < -0.004 | CK173: 0.015 | CL173: 0.003 | CN173: < -0.074 | CO173: 0.194 | CP173: 0.036 | CR173: 0.101 | CS173: 0.154
A174: XBL.FA1003.4L | B174: Leachate | C174: Leaching characteristic test of WKY13 feedstock | D174: DTK-CR | F174: Processing | G174: Coal Mining | H174: Coarse Refuse | I174: Illinois Basin | J174: N/A | K174: West Kentucky No.13 Coal Seam | L174: Kentucky | M174: Webster | N174: NA | O174: Kentucky | P174: Webster | Q174: NA | R174: Coarse Refuse | AJ174: N/A | AK174: ICP-OES | AL174: N/A | AM174: < 0.016 | AN174: 3.377 | AO174: 22.77 | AP174: 45.279 | AQ174: 45.72 | AR174: 2.454 | AS174: 12.961 | AT174: 98.7 | AU174: 0.024 | AW174: 0.096 | AX174: 0.104 | AY174: 2.998 | AZ174: 199.4 | BA174: 0.1 | BB174: 0.232 | BC174: 0.319 | BD174: 0.529 | BE174: < -0.042 | BG174: 0.131 | BH174: 0.079 | BJ174: 0.058 | BO174: 0.031 | BS174: 0.078 | BT174: 0.318 | BU174: < -0.314 | BV174: 0.125 | BW174: < 0.031 | BX174: 0.252 | BY174: < 0.031 | BZ174: < 0.132 | CA174: < -0.001 | CB174: 0.07 | CC174: 0.025 | CD174: < -0.009 | CE174: < 0.02 | CF174: < 0.002 | CG174: < 0.001 | CH174: < 0.006 | CI174: < -0.017 | CJ174: < -0.005 | CK174: 0.016 | CL174: 0.003 | CN174: < -0.083 | CO174: 0.202 | CP174: 0.042 | CR174: 0.114 | CS174: 0.172
A175: XBL.FA1003.5L | B175: Leachate | C175: Leaching characteristic test of WKY13 feedstock | D175: DTK-CR | F175: Processing | G175: Coal Mining | H175: Coarse Refuse | I175: Illinois Basin | J175: N/A | K175: West Kentucky No.13 Coal Seam | L175: Kentucky | M175: Webster | N175: NA | O175: Kentucky | P175: Webster | Q175: NA | R175: Coarse Refuse | AJ175: N/A | AK175: ICP-OES | AL175: N/A | AM175: < 0.016 | AN175: 3.27 | AO175: 23.444 | AP175: 49.5 | AQ175: 56.2 | AR175: 2.384 | AS175: 16.738 | AT175: 95.6 | AU175: 0.025 | AW175: 0.103 | AX175: 0.111 | AY175: 2.935 | AZ175: 200.68 | BA175: 0.097 | BB175: 0.232 | BC175: 0.312 | BD175: 0.547 | BE175: < -0.04 | BG175: 0.118 | BH175: 0.078 | BJ175: 0.064 | BO175: 0.03 | BS175: 0.073 | BT175: 0.334 | BU175: < -0.308 | BV175: 0.135 | BW175: < 0.03 | BX175: 0.27 | BY175: < 0.038 | BZ175: < 0.156 | CA175: < 0.023 | CB175: 0.08 | CC175: 0.03 | CD175: < -0.009 | CE175: < 0.017 | CF175: < -0.002 | CG175: < 0.002 | CH175: < 0.006 | CI175: < -0.014 | CJ175: < -0.005 | CK175: 0.016 | CL175: 0.003 | CN175: < -0.077 | CO175: 0.204 | CP175: 0.04 | CR175: 0.129 | CS175: 0.193
A176: XBL.FA1004.1L | B176: Leachate | C176: Leaching characteristic test of WKY13 feedstock | D176: DTK-CR | F176: Processing | G176: Coal Mining | H176: Coarse Refuse | I176: Illinois Basin | J176: N/A | K176: West Kentucky No.13 Coal Seam | L176: Kentucky | M176: Webster | N176: NA | O176: Kentucky | P176: Webster | Q176: NA | R176: Coarse Refuse | AJ176: N/A | AK176: ICP-OES | AL176: N/A | AM176: < 0.021 | AN176: 6.386 | AO176: 28.647 | AP176: 166.62 | AQ176: 53.7 | AR176: 5.554 | AS176: 70.7 | AT176: 123.26 | AU176: 0.043 | AW176: 0.202 | AX176: 0.126 | AY176: 2.019 | AZ176: 103.38 | BA176: 0.074 | BB176: 0.18 | BC176: 0.269 | BD176: 0.544 | BE176: < 0.003 | BG176: 0.303 | BH176: 0.093 | BJ176: 0.069 | BO176: 0.017 | BS176: 0.069 | BT176: 0.279 | BU176: < -0.311 | BV176: 0.608 | BW176: < 0.016 | BX176: 2.034 | BY176: 0.331 | BZ176: 0.679 | CA176: 0.086 | CB176: 0.296 | CC176: 0.064 | CD176: 0.007 | CE176: < 0.039 | CF176: < 0.013 | CG176: 0.012 | CH176: < 0.008 | CI176: < 0.003 | CJ176: < -0.004 | CK176: 0.01 | CL176: 0.002 | CN176: < -0.046 | CO176: 0.275 | CP176: 0.104 | CR176: 1.487 | CS176: 1.556
A177: XBL.FA1004.2L | B177: Leachate | C177: Leaching characteristic test of WKY13 feedstock | D177: DTK-CR | F177: Processing | G177: Coal Mining | H177: Coarse Refuse | I177: Illinois Basin | J177: N/A | K177: West Kentucky No.13 Coal Seam | L177: Kentucky | M177: Webster | N177: NA | O177: Kentucky | P177: Webster | Q177: NA | R177: Coarse Refuse | AJ177: N/A | AK177: ICP-OES | AL177: N/A | AM177: < 0.023 | AN177: 7.716 | AO177: 33.26 | AP177: 258.62 | AQ177: 82.14 | AR177: 5.535 | AS177: 84.3 | AT177: 128.38 | AU177: 0.049 | AW177: 0.244 | AX177: 0.167 | AY177: 2.364 | AZ177: 148.7 | BA177: 0.092 | BB177: 0.232 | BC177: 0.308 | BD177: 0.66 | BE177: < -0.004 | BG177: 0.339 | BH177: 0.077 | BJ177: 0.07 | BO177: 0.023 | BS177: 0.068 | BT177: 0.355 | BU177: < -0.272 | BV177: 0.797 | BW177: < 0.014 | BX177: 2.1 | BY177: 0.334 | BZ177: 0.685 | CA177: 0.086 | CB177: 0.303 | CC177: 0.065 | CD177: < 0 | CE177: < 0.037 | CF177: < 0.011 | CG177: 0.008 | CH177: < 0.007 | CI177: < -0.002 | CJ177: < -0.005 | CK177: 0.013 | CL177: 0.003 | CN177: < -0.074 | CO177: 0.375 | CP177: 0.101 | CR177: 1.497 | CS177: 1.567
A178: XBL.FA1004.3L | B178: Leachate | C178: Leaching characteristic test of WKY13 feedstock | D178: DTK-CR | F178: Processing | G178: Coal Mining | H178: Coarse Refuse | I178: Illinois Basin | J178: N/A | K178: West Kentucky No.13 Coal Seam | L178: Kentucky | M178: Webster | N178: NA | O178: Kentucky | P178: Webster | Q178: NA | R178: Coarse Refuse | AJ178: N/A | AK178: ICP-OES | AL178: N/A | AM178: < 0.025 | AN178: 9.302 | AO178: 37.654 | AP178: 319.92 | AQ178: 99.3 | AR178: 6.032 | AS178: 88.08 | AT178: 124.02 | AU178: 0.058 | AW178: 0.302 | AX178: 0.197 | AY178: 2.763 | AZ178: 176.84 | BA178: 0.107 | BB178: 0.287 | BC178: 0.365 | BD178: 0.763 | BE178: < -0.005 | BG178: 0.409 | BH178: 0.101 | BJ178: 0.077 | BO178: 0.028 | BS178: 0.107 | BT178: 0.443 | BU178: < -0.277 | BV178: 1.027 | BW178: < 0.024 | BX178: 2.362 | BY178: 0.368 | BZ178: 0.778 | CA178: 0.106 | CB178: 0.329 | CC178: 0.073 | CD178: < -0.002 | CE178: < 0.038 | CF178: < 0.011 | CG178: 0.006 | CH178: < 0.009 | CI178: < -0.003 | CJ178: < -0.007 | CK178: 0.016 | CL178: 0.004 | CN178: < -0.102 | CO178: 0.513 | CP178: 0.111 | CR178: 1.68 | CS178: 1.757
A179: XBL.FA1004.4L | B179: Leachate | C179: Leaching characteristic test of WKY13 feedstock | D179: DTK-CR | F179: Processing | G179: Coal Mining | H179: Coarse Refuse | I179: Illinois Basin | J179: N/A | K179: West Kentucky No.13 Coal Seam | L179: Kentucky | M179: Webster | N179: NA | O179: Kentucky | P179: Webster | Q179: NA | R179: Coarse Refuse | AJ179: N/A | AK179: ICP-OES | AL179: N/A | AM179: < 0.029 | AN179: 10.722 | AO179: 40.6 | AP179: 395.94 | AQ179: 92.48 | AR179: 6.391 | AS179: 92.82 | AT179: 124.58 | AU179: 0.065 | AW179: 0.36 | AX179: 0.234 | AY179: 3.173 | AZ179: 225.86 | BA179: 0.122 | BB179: 0.336 | BC179: 0.413 | BD179: 0.85 | BE179: < -0.009 | BG179: 0.438 | BH179: 0.083 | BJ179: 0.082 | BO179: 0.036 | BS179: 0.055 | BT179: 0.547 | BU179: < -0.271 | BV179: 1.253 | BW179: < 0.03 | BX179: 2.527 | BY179: 0.384 | BZ179: 0.829 | CA179: 0.089 | CB179: 0.319 | CC179: 0.077 | CD179: < -0.006 | CE179: < 0.037 | CF179: < 0.013 | CG179: < 0.003 | CH179: < 0.01 | CI179: < -0.013 | CJ179: < -0.007 | CK179: 0.019 | CL179: 0.004 | CN179: < -0.101 | CO179: 0.625 | CP179: 0.122 | CR179: 1.721 | CS179: 1.803
A180: XBL.FA1004.5L | B180: Leachate | C180: Leaching characteristic test of WKY13 feedstock | D180: DTK-CR | F180: Processing | G180: Coal Mining | H180: Coarse Refuse | I180: Illinois Basin | J180: N/A | K180: West Kentucky No.13 Coal Seam | L180: Kentucky | M180: Webster | N180: NA | O180: Kentucky | P180: Webster | Q180: NA | R180: Coarse Refuse | AJ180: N/A | AK180: ICP-OES | AL180: N/A | AM180: < 0.031 | AN180: 11.257 | AO180: 40.334 | AP180: 476.16 | AQ180: 108 | AR180: 6.282 | AS180: 104.28 | AT180: 129.84 | AU180: 0.069 | AW180: 0.401 | AX180: 0.258 | AY180: 3.411 | AZ180: 290.54 | BA180: 0.128 | BB180: 0.363 | BC180: 0.433 | BD180: 0.881 | BE180: < -0.015 | BG180: 0.465 | BH180: 0.082 | BJ180: 0.083 | BO180: 0.043 | BS180: 0.115 | BT180: 0.633 | BU180: < -0.237 | BV180: 1.362 | BW180: < 0.037 | BX180: 2.511 | BY180: 0.384 | BZ180: 0.823 | CA180: 0.089 | CB180: 0.343 | CC180: 0.08 | CD180: < -0.01 | CE180: < 0.039 | CF180: < 0.017 | CG180: < -0.002 | CH180: < 0.009 | CI180: < -0.017 | CJ180: < -0.01 | CK180: 0.022 | CL180: 0.005 | CN180: < -0.093 | CO180: 0.781 | CP180: 0.126 | CR180: 1.746 | CS180: 1.829
A181: XBL.FA1005.1L | B181: Leachate | C181: Leaching characteristic test of WKY13 feedstock | D181: DTK-CR | F181: Processing | G181: Coal Mining | H181: Coarse Refuse | I181: Illinois Basin | J181: N/A | K181: West Kentucky No.13 Coal Seam | L181: Kentucky | M181: Webster | N181: NA | O181: Kentucky | P181: Webster | Q181: NA | R181: Coarse Refuse | AJ181: N/A | AK181: ICP-OES | AL181: N/A | AM181: < 0.014 | AN181: 5.98 | AO181: 8.799 | AP181: 25.308 | AQ181: 10.059 | AR181: 2.044 | AS181: 13.861 | AT181: 26.954 | AU181: 0.016 | AW181: 0.041 | AX181: 0.056 | AY181: 1.148 | AZ181: 104.06 | BA181: 0.068 | BB181: 0.186 | BC181: 0.326 | BD181: 0.418 | BE181: < -0.029 | BG181: 0.204 | BH181: < 0.032 | BJ181: 0.035 | BO181: 0.018 | BS181: 0.102 | BT181: 0.184 | BU181: < -0.36 | BV181: 0.078 | BW181: < 0.017 | BX181: 0.192 | BY181: < 0.013 | BZ181: < 0.055 | CA181: < -0.01 | CB181: 0.034 | CC181: 0.013 | CD181: < -0.005 | CE181: < 0.009 | CF181: < 0.002 | CG181: < 0 | CH181: < 0.006 | CI181: < -0.005 | CJ181: < -0.003 | CK181: 0.008 | CL181: 0.003 | CN181: < -0.008 | CO181: 0.143 | CP181: 0.028 | CR181: 0.058 | CS181: 0.093
A182: XBL.FA1005.2L | B182: Leachate | C182: Leaching characteristic test of WKY13 feedstock | D182: DTK-CR | F182: Processing | G182: Coal Mining | H182: Coarse Refuse | I182: Illinois Basin | J182: N/A | K182: West Kentucky No.13 Coal Seam | L182: Kentucky | M182: Webster | N182: NA | O182: Kentucky | P182: Webster | Q182: NA | R182: Coarse Refuse | AJ182: N/A | AK182: ICP-OES | AL182: N/A | AM182: < 0.013 | AN182: 4.848 | AO182: 13.203 | AP182: 31.402 | AQ182: 24.14 | AR182: 1.433 | AS182: 13.653 | AT182: 25.202 | AU182: 0.019 | AW182: 0.061 | AX182: 0.069 | AY182: 1.209 | AZ182: 142.96 | BA182: 0.076 | BB182: 0.188 | BC182: 0.312 | BD182: 0.379 | BE182: < -0.027 | BG182: 0.204 | BH182: < 0.047 | BJ182: 0.036 | BO182: 0.023 | BS182: 0.101 | BT182: 0.237 | BU182: < -0.346 | BV182: 0.081 | BW182: < 0.021 | BX182: 0.288 | BY182: < 0.019 | BZ182: < 0.081 | CA182: < -0.005 | CB182: 0.044 | CC182: 0.019 | CD182: < -0.01 | CE182: < 0.006 | CF182: < 0.011 | CG182: < -0.005 | CH182: < 0.008 | CI182: < -0.01 | CJ182: < -0.004 | CK182: 0.011 | CL182: 0.003 | CN182: < -0.045 | CO182: 0.18 | CP182: 0.029 | CR182: 0.077 | CS182: 0.113
A183: XBL.FA1005.3L | B183: Leachate | C183: Leaching characteristic test of WKY13 feedstock | D183: DTK-CR | F183: Processing | G183: Coal Mining | H183: Coarse Refuse | I183: Illinois Basin | J183: N/A | K183: West Kentucky No.13 Coal Seam | L183: Kentucky | M183: Webster | N183: NA | O183: Kentucky | P183: Webster | Q183: NA | R183: Coarse Refuse | AJ183: N/A | AK183: ICP-OES | AL183: N/A | AM183: < 0.014 | AN183: 5.199 | AO183: 17.821 | AP183: 41.86 | AQ183: 36.28 | AR183: 1.536 | AS183: 15.768 | AT183: 25.751 | AU183: 0.022 | AW183: 0.078 | AX183: 0.088 | AY183: 1.362 | AZ183: 163.14 | BA183: 0.086 | BB183: 0.211 | BC183: 0.332 | BD183: 0.451 | BE183: < -0.035 | BG183: 0.214 | BH183: 0.059 | BJ183: 0.042 | BO183: 0.026 | BS183: 0.091 | BT183: 0.275 | BU183: < -0.319 | BV183: 0.112 | BW183: < 0.024 | BX183: 0.301 | BY183: < 0.025 | BZ183: < 0.1 | CA183: < -0.023 | CB183: 0.054 | CC183: 0.019 | CD183: < -0.011 | CE183: < 0.006 | CF183: < 0.015 | CG183: < -0.005 | CH183: < 0.008 | CI183: < -0.008 | CJ183: < -0.004 | CK183: 0.013 | CL183: 0.003 | CN183: < -0.062 | CO183: 0.207 | CP183: 0.04 | CR183: 0.089 | CS183: 0.131
A184: XBL.FA1005.4L | B184: Leachate | C184: Leaching characteristic test of WKY13 feedstock | D184: DTK-CR | F184: Processing | G184: Coal Mining | H184: Coarse Refuse | I184: Illinois Basin | J184: N/A | K184: West Kentucky No.13 Coal Seam | L184: Kentucky | M184: Webster | N184: NA | O184: Kentucky | P184: Webster | Q184: NA | R184: Coarse Refuse | AJ184: N/A | AK184: ICP-OES | AL184: N/A | AM184: < 0.015 | AN184: 5.409 | AO184: 20.712 | AP184: 52.823 | AQ184: 52.76 | AR184: 1.581 | AS184: 24.259 | AT184: 25.796 | AU184: 0.026 | AW184: 0.094 | AX184: 0.116 | AY184: 1.453 | AZ184: 175.72 | BA184: 0.09 | BB184: 0.229 | BC184: 0.341 | BD184: 0.477 | BE184: < -0.036 | BG184: 0.201 | BH184: 0.057 | BJ184: 0.051 | BO184: 0.026 | BS184: 0.131 | BT184: 0.31 | BU184: < -0.335 | BV184: 0.139 | BW184: < 0.027 | BX184: 0.322 | BY184: < 0.033 | BZ184: < 0.139 | CA184: < -0.004 | CB184: 0.055 | CC184: 0.023 | CD184: < -0.011 | CE184: < 0.007 | CF184: < 0.006 | CG184: < -0.003 | CH184: < 0.006 | CI184: < -0.01 | CJ184: < -0.004 | CK184: 0.014 | CL184: 0.004 | CN184: < -0.098 | CO184: 0.238 | CP184: 0.041 | CR184: 0.096 | CS184: 0.147
A185: XBL.FA1005.5L | B185: Leachate | C185: Leaching characteristic test of WKY13 feedstock | D185: DTK-CR | F185: Processing | G185: Coal Mining | H185: Coarse Refuse | I185: Illinois Basin | J185: N/A | K185: West Kentucky No.13 Coal Seam | L185: Kentucky | M185: Webster | N185: NA | O185: Kentucky | P185: Webster | Q185: NA | R185: Coarse Refuse | AJ185: N/A | AK185: ICP-OES | AL185: N/A | AM185: < 0.015 | AN185: 5.587 | AO185: 21.168 | AP185: 62.6 | AQ185: 60.68 | AR185: 1.531 | AS185: 69.06 | AT185: 24.656 | AU185: 0.027 | AW185: 0.098 | AX185: 0.132 | AY185: 1.412 | AZ185: 181.28 | BA185: 0.09 | BB185: 0.233 | BC185: 0.331 | BD185: 0.479 | BE185: < -0.028 | BG185: 0.21 | BH185: 0.068 | BJ185: 0.058 | BO185: 0.026 | BS185: 0.113 | BT185: 0.321 | BU185: < -0.307 | BV185: 0.142 | BW185: < 0.025 | BX185: 0.32 | BY185: < 0.041 | BZ185: < 0.187 | CA185: < 0.001 | CB185: 0.051 | CC185: 0.029 | CD185: < -0.01 | CE185: < 0.012 | CF185: < -0.001 | CG185: < -0.003 | CH185: < 0.004 | CI185: < -0.013 | CJ185: < -0.003 | CK185: 0.014 | CL185: 0.004 | CN185: < -0.086 | CO185: 0.224 | CP185: 0.038 | CR185: 0.098 | CS185: 0.156
A186: XBL.FA1006.1L | B186: Leachate | C186: Leaching characteristic test of WKY13 feedstock | D186: DTK-CR | F186: Processing | G186: Coal Mining | H186: Coarse Refuse | I186: Illinois Basin | J186: N/A | K186: West Kentucky No.13 Coal Seam | L186: Kentucky | M186: Webster | N186: NA | O186: Kentucky | P186: Webster | Q186: NA | R186: Coarse Refuse | AJ186: N/A | AK186: ICP-OES | AL186: N/A | AM186: < 0.019 | AN186: 9.121 | AO186: 25.482 | AP186: 157.8 | AQ186: 46.96 | AR186: 5.571 | AS186: 71.06 | AT186: 31.815 | AU186: 0.045 | AW186: 0.174 | AX186: 0.114 | AY186: 0.949 | AZ186: 72.1 | BA186: 0.053 | BB186: 0.143 | BC186: 0.223 | BD186: 0.432 | BE186: < 0.009 | BG186: 0.2 | BH186: < 0.036 | BJ186: 0.053 | BO186: 0.011 | BS186: 0.133 | BT186: 0.27 | BU186: < -0.33 | BV186: 0.709 | BW186: < 0.008 | BX186: 2.348 | BY186: 0.402 | BZ186: 0.871 | CA186: 0.129 | CB186: 0.341 | CC186: 0.075 | CD186: 0.011 | CE186: < 0.031 | CF186: < 0.003 | CG186: 0.005 | CH186: < 0.005 | CI186: 0.006 | CJ186: < -0.004 | CK186: 0.008 | CL186: 0.002 | CN186: < -0.054 | CO186: 0.249 | CP186: 0.112 | CR186: 1.85 | CS186: 1.903
A187: XBL.FA1006.2L | B187: Leachate | C187: Leaching characteristic test of WKY13 feedstock | D187: DTK-CR | F187: Processing | G187: Coal Mining | H187: Coarse Refuse | I187: Illinois Basin | J187: N/A | K187: West Kentucky No.13 Coal Seam | L187: Kentucky | M187: Webster | N187: NA | O187: Kentucky | P187: Webster | Q187: NA | R187: Coarse Refuse | AJ187: N/A | AK187: ICP-OES | AL187: N/A | AM187: < 0.025 | AN187: 10.794 | AO187: 31.839 | AP187: 268.92 | AQ187: 79.66 | AR187: 5.322 | AS187: 85.08 | AT187: 32.636 | AU187: 0.053 | AW187: 0.235 | AX187: 0.164 | AY187: 1.268 | AZ187: 113.3 | BA187: 0.078 | BB187: 0.204 | BC187: 0.322 | BD187: 0.574 | BE187: 0.012 | BG187: 0.229 | BH187: 0.081 | BJ187: 0.056 | BO187: 0.017 | BS187: 0.288 | BT187: 0.366 | BU187: < -0.298 | BV187: 0.987 | BW187: < 0.012 | BX187: 2.623 | BY187: 0.423 | BZ187: 0.906 | CA187: 0.14 | CB187: 0.351 | CC187: 0.076 | CD187: 0.006 | CE187: < 0.029 | CF187: < 0.012 | CG187: < 0.004 | CH187: < 0.005 | CI187: < -0.001 | CJ187: < -0.004 | CK187: 0.012 | CL187: 0.003 | CN187: < -0.101 | CO187: 0.439 | CP187: 0.114 | CR187: 1.917 | CS187: 1.973
A188: XBL.FA1006.3L | B188: Leachate | C188: Leaching characteristic test of WKY13 feedstock | D188: DTK-CR | F188: Processing | G188: Coal Mining | H188: Coarse Refuse | I188: Illinois Basin | J188: N/A | K188: West Kentucky No.13 Coal Seam | L188: Kentucky | M188: Webster | N188: NA | O188: Kentucky | P188: Webster | Q188: NA | R188: Coarse Refuse | AJ188: N/A | AK188: ICP-OES | AL188: N/A | AM188: < 0.025 | AN188: 11.789 | AO188: 33.758 | AP188: 362 | AQ188: 106.26 | AR188: 5.265 | AS188: 96.88 | AT188: 32.151 | AU188: 0.059 | AW188: 0.273 | AX188: 0.191 | AY188: 1.375 | AZ188: 139.48 | BA188: 0.084 | BB188: 0.236 | BC188: 0.292 | BD188: 0.594 | BE188: 0.025 | BG188: 0.235 | BH188: 0.086 | BJ188: 0.057 | BO188: 0.018 | BS188: 0.065 | BT188: 0.417 | BU188: < -0.285 | BV188: 1.196 | BW188: < 0.014 | BX188: 2.68 | BY188: 0.423 | BZ188: 0.925 | CA188: 0.122 | CB188: 0.341 | CC188: 0.078 | CD188: 0.002 | CE188: < 0.029 | CF188: < 0.008 | CG188: < 0.001 | CH188: < 0.005 | CI188: < -0.004 | CJ188: < -0.004 | CK188: 0.012 | CL188: 0.003 | CN188: < -0.109 | CO188: 0.496 | CP188: 0.127 | CR188: 1.906 | CS188: 1.963
A189: XBL.FA1006.4L | B189: Leachate | C189: Leaching characteristic test of WKY13 feedstock | D189: DTK-CR | F189: Processing | G189: Coal Mining | H189: Coarse Refuse | I189: Illinois Basin | J189: N/A | K189: West Kentucky No.13 Coal Seam | L189: Kentucky | M189: Webster | N189: NA | O189: Kentucky | P189: Webster | Q189: NA | R189: Coarse Refuse | AJ189: N/A | AK189: ICP-OES | AL189: N/A | AM189: < 0.027 | AN189: 13.235 | AO189: 36.206 | AP189: 457 | AQ189: 96.82 | AR189: 5.439 | AS189: 105.32 | AT189: 32.652 | AU189: 0.066 | AW189: 0.323 | AX189: 0.225 | AY189: 1.499 | AZ189: 176.18 | BA189: 0.093 | BB189: 0.274 | BC189: 0.322 | BD189: 0.645 | BE189: 0.023 | BG189: 0.27 | BH189: 0.088 | BJ189: 0.06 | BO189: 0.023 | BS189: 0.058 | BT189: 0.489 | BU189: < -0.282 | BV189: 1.41 | BW189: < 0.02 | BX189: 2.804 | BY189: 0.436 | BZ189: 0.97 | CA189: 0.121 | CB189: 0.362 | CC189: 0.079 | CD189: < 0 | CE189: < 0.03 | CF189: < 0.012 | CG189: < -0.002 | CH189: < 0.006 | CI189: < -0.008 | CJ189: < -0.005 | CK189: 0.014 | CL189: 0.004 | CN189: < -0.097 | CO189: 0.628 | CP189: 0.136 | CR189: 1.986 | CS189: 2.046
A190: XBL.FA1006.5L | B190: Leachate | C190: Leaching characteristic test of WKY13 feedstock | D190: DTK-CR | F190: Processing | G190: Coal Mining | H190: Coarse Refuse | I190: Illinois Basin | J190: N/A | K190: West Kentucky No.13 Coal Seam | L190: Kentucky | M190: Webster | N190: NA | O190: Kentucky | P190: Webster | Q190: NA | R190: Coarse Refuse | AJ190: N/A | AK190: ICP-OES | AL190: N/A | AM190: < 0.032 | AN190: 15.365 | AO190: 40.495 | AP190: 522.66 | AQ190: 103.58 | AR190: 6.062 | AS190: 112.02 | AT190: 35.695 | AU190: 0.079 | AW190: 0.408 | AX190: 0.279 | AY190: 1.744 | AZ190: 216.36 | BA190: 0.11 | BB190: 0.324 | BC190: 0.376 | BD190: 0.747 | BE190: 0.015 | BG190: 0.3 | BH190: 0.073 | BJ190: 0.07 | BO190: 0.032 | BS190: 0.093 | BT190: 0.62 | BU190: < -0.298 | BV190: 1.694 | BW190: < 0.029 | BX190: 3.167 | BY190: 0.486 | BZ190: 1.092 | CA190: 0.143 | CB190: 0.412 | CC190: 0.093 | CD190: < -0.004 | CE190: < 0.033 | CF190: < 0.011 | CG190: < -0.005 | CH190: < 0.005 | CI190: < -0.011 | CJ190: < -0.007 | CK190: 0.019 | CL190: 0.005 | CN190: < -0.108 | CO190: 0.953 | CP190: 0.149 | CR190: 2.25 | CS190: 2.32
A191: XBL.FA1010.4L | B191: Leachate | C191: Leaching characteristic test of WKY13 feedstock | D191: DTK-CR | F191: Processing | G191: Coal Mining | H191: Coarse Refuse | I191: Illinois Basin | J191: N/A | K191: West Kentucky No.13 Coal Seam | L191: Kentucky | M191: Webster | N191: NA | O191: Kentucky | P191: Webster | Q191: NA | R191: Coarse Refuse | AJ191: N/A | AK191: ICP-OES | AL191: N/A | AM191: 0.124 | AN191: 4.802 | AO191: > 119.403 | AP191: > 96.196 | AQ191: > 42.883 | AR191: 9.728 | AS191: 34.736 | AT191: > 536.099 | AU191: 0.059 | AW191: 0.292 | AX191: 0.137 | AY191: > 28.816 | AZ191: > 1229.09 | BA191: 0.078 | BB191: 0.128 | BC191: 0.122 | BD191: 0.642 | BE191: < -0.267 | BG191: < -0.093 | BH191: < -0.017 | BJ191: 0.092 | BN191: < -0.036 | BO191: 0.196 | BS191: 0.078 | BT191: 1.652 | BU191: < 0.01 | BV191: 0.167 | BW191: 0.157 | BX191: 0.798 | BY191: 0.122 | BZ191: < 0.055 | CA191: < -0.204 | CB191: 0.214 | CC191: 0.012 | CD191: < -0.105 | CE191: < 0.025 | CF191: < 0.02 | CG191: < -0.211 | CH191: < 0.009 | CI191: < -0.145 | CJ191: < -0.046 | CK191: 0.119 | CL191: 0.022 | CN191: < -0.008 | CO191: 0.221 | CP191: 0.054 | CR191: 0.489 | CS191: 0.581
A192: XBL.FA1010.5L | B192: Leachate | C192: Leaching characteristic test of WKY13 feedstock | D192: DTK-CR | F192: Processing | G192: Coal Mining | H192: Coarse Refuse | I192: Illinois Basin | J192: N/A | K192: West Kentucky No.13 Coal Seam | L192: Kentucky | M192: Webster | N192: NA | O192: Kentucky | P192: Webster | Q192: NA | R192: Coarse Refuse | AJ192: N/A | AK192: ICP-OES | AL192: N/A | AM192: 0.101 | AN192: 5.245 | AO192: > 118.6 | AP192: > 116.475 | AQ192: > 56.875 | AR192: 10.254 | AS192: 33.537 | AT192: > 538.895 | AU192: 0.066 | AW192: 0.32 | AX192: 0.147 | AY192: > 29.983 | AZ192: > 1361.91 | BA192: 0.084 | BB192: 0.141 | BC192: 0.124 | BD192: 0.702 | BE192: < -0.314 | BG192: < -0.088 | BH192: 0.058 | BJ192: 0.094 | BN192: < -0.043 | BO192: 0.23 | BS192: 0.098 | BT192: 1.924 | BU192: < 0.065 | BV192: 0.19 | BW192: 0.181 | BX192: 0.817 | BY192: 0.127 | BZ192: < 0.07 | CA192: < -0.249 | CB192: 0.205 | CC192: 0.01 | CD192: < -0.142 | CE192: < 0.02 | CF192: < 0.021 | CG192: < -0.25 | CH192: < 0.01 | CI192: < -0.173 | CJ192: < -0.056 | CK192: 0.135 | CL192: 0.031 | CN192: < 0.003 | CO192: 0.274 | CP192: 0.058 | CR192: 0.508 | CS192: 0.602
A193: XBL.FA1011.1L | B193: Leachate | C193: Leaching characteristic test of WKY13 feedstock | D193: DTK-CR | F193: Processing | G193: Coal Mining | H193: Coarse Refuse | I193: Illinois Basin | J193: N/A | K193: West Kentucky No.13 Coal Seam | L193: Kentucky | M193: Webster | N193: NA | O193: Kentucky | P193: Webster | Q193: NA | R193: Coarse Refuse | AJ193: N/A | AK193: ICP-OES | AL193: N/A | AM193: < 0.022 | AN193: 2.908 | AO193: 31.384 | AP193: 98.94 | AQ193: 44.96 | AR193: 6.667 | AS193: 49.597 | AT193: 26.952 | AU193: 0.029 | AW193: 0.158 | AX193: 0.142 | AY193: 2.851 | AZ193: 135.48 | BA193: 0.093 | BB193: 0.181 | BC193: 0.175 | BD193: 0.975 | BE193: < -0.02 | BG193: < 0.008 | BH193: 0.092 | BJ193: 0.087 | BN193: < -0.005 | BO193: 0.021 | BS193: 0.031 | BT193: 0.253 | BU193: < -0.314 | BV193: 0.159 | BW193: < 0.019 | BX193: 1.216 | BY193: 0.3 | BZ193: 0.469 | CA193: 0.079 | CB193: 0.244 | CC193: 0.054 | CD193: < -0.003 | CE193: < 0.038 | CF193: < 0.007 | CG193: < 0 | CH193: < 0.008 | CI193: < -0.001 | CJ193: < -0.006 | CK193: 0.016 | CL193: 0.003 | CN193: < -0.072 | CO193: 0.151 | CP193: 0.099 | CR193: 1.165 | CS193: 1.252
A194: XBL.FA1011.2L | B194: Leachate | C194: Leaching characteristic test of WKY13 feedstock | D194: DTK-CR | F194: Processing | G194: Coal Mining | H194: Coarse Refuse | I194: Illinois Basin | J194: N/A | K194: West Kentucky No.13 Coal Seam | L194: Kentucky | M194: Webster | N194: NA | O194: Kentucky | P194: Webster | Q194: NA | R194: Coarse Refuse | AJ194: N/A | AK194: ICP-OES | AL194: N/A | AM194: < 0.026 | AN194: 4.348 | AO194: 54.469 | AP194: 204.04 | AQ194: 93.38 | AR194: 6.687 | AS194: 68.58 | AT194: 27.484 | AU194: 0.042 | AW194: 0.229 | AX194: 0.22 | AY194: 4.443 | AZ194: 279.64 | BA194: 0.156 | BB194: 0.302 | BC194: 0.198 | BD194: 1.262 | BE194: < -0.03 | BG194: < 0.006 | BH194: 0.106 | BJ194: 0.092 | BN194: < -0.008 | BO194: 0.039 | BS194: 0.027 | BT194: 0.439 | BU194: < -0.258 | BV194: 0.287 | BW194: < 0.042 | BX194: 1.192 | BY194: 0.305 | BZ194: 0.517 | CA194: < 0.043 | CB194: 0.249 | CC194: 0.056 | CD194: < -0.016 | CE194: < 0.029 | CF194: < 0.014 | CG194: < -0.023 | CH194: < 0.007 | CI194: < -0.015 | CJ194: < -0.009 | CK194: 0.027 | CL194: 0.005 | CN194: < -0.161 | CO194: 0.292 | CP194: 0.11 | CR194: 1.159 | CS194: 1.251
A195: XBL.FA1011.3L | B195: Leachate | C195: Leaching characteristic test of WKY13 feedstock | D195: DTK-CR | F195: Processing | G195: Coal Mining | H195: Coarse Refuse | I195: Illinois Basin | J195: N/A | K195: West Kentucky No.13 Coal Seam | L195: Kentucky | M195: Webster | N195: NA | O195: Kentucky | P195: Webster | Q195: NA | R195: Coarse Refuse | AJ195: N/A | AK195: ICP-OES | AL195: N/A | AM195: < 0.03 | AN195: 5.364 | AO195: 66.06 | AP195: 252.98 | AQ195: 106.68 | AR195: 7.253 | AS195: 76.6 | AT195: 29.498 | AU195: 0.05 | AW195: 0.271 | AX195: 0.261 | AY195: 5.346 | AZ195: 320.94 | BA195: 0.177 | BB195: 0.363 | BC195: 0.232 | BD195: 1.409 | BE195: < -0.034 | BG195: < -0.005 | BH195: 0.151 | BJ195: 0.102 | BN195: < -0.011 | BO195: 0.048 | BS195: 0.039 | BT195: 0.542 | BU195: < -0.236 | BV195: 0.385 | BW195: < 0.045 | BX195: 1.301 | BY195: 0.327 | BZ195: 0.515 | CA195: < 0.048 | CB195: 0.249 | CC195: 0.062 | CD195: < -0.022 | CE195: < 0.029 | CF195: < 0.009 | CG195: < -0.033 | CH195: < 0.01 | CI195: < -0.023 | CJ195: < -0.013 | CK195: 0.033 | CL195: 0.006 | CN195: < -0.186 | CO195: 0.364 | CP195: 0.118 | CR195: 1.192 | CS195: 1.294
A196: XBL.FA1011.4L | B196: Leachate | C196: Leaching characteristic test of WKY13 feedstock | D196: DTK-CR | F196: Processing | G196: Coal Mining | H196: Coarse Refuse | I196: Illinois Basin | J196: N/A | K196: West Kentucky No.13 Coal Seam | L196: Kentucky | M196: Webster | N196: NA | O196: Kentucky | P196: Webster | Q196: NA | R196: Coarse Refuse | AJ196: N/A | AK196: ICP-OES | AL196: N/A | AM196: < 0.035 | AN196: 5.882 | AO196: 69.42 | AP196: 308.12 | AQ196: 110.38 | AR196: 7.22 | AS196: 79.58 | AT196: 29.311 | AU196: 0.053 | AW196: 0.291 | AX196: 0.271 | AY196: 5.897 | AZ196: 377.54 | BA196: 0.186 | BB196: 0.384 | BC196: 0.243 | BD196: 1.438 | BE196: < -0.045 | BG196: < -0.002 | BH196: 0.144 | BJ196: 0.104 | BN196: < -0.01 | BO196: 0.053 | BS196: 0.093 | BT196: 0.619 | BU196: < -0.214 | BV196: 0.442 | BW196: < 0.041 | BX196: 1.266 | BY196: 0.323 | BZ196: 0.523 | CA196: < 0.046 | CB196: 0.27 | CC196: 0.06 | CD196: < -0.023 | CE196: < 0.026 | CF196: < 0.007 | CG196: < -0.04 | CH196: < 0.01 | CI196: < -0.026 | CJ196: < -0.014 | CK196: 0.036 | CL196: 0.008 | CN196: < -0.2 | CO196: 0.443 | CP196: 0.12 | CR196: 1.22 | CS196: 1.324
A197: XBL.FA1011.5L | B197: Leachate | C197: Leaching characteristic test of WKY13 feedstock | D197: DTK-CR | F197: Processing | G197: Coal Mining | H197: Coarse Refuse | I197: Illinois Basin | J197: N/A | K197: West Kentucky No.13 Coal Seam | L197: Kentucky | M197: Webster | N197: NA | O197: Kentucky | P197: Webster | Q197: NA | R197: Coarse Refuse | AJ197: N/A | AK197: ICP-OES | AL197: N/A | AM197: < 0.041 | AN197: 6.265 | AO197: 70.76 | AP197: 349.02 | AQ197: 113.94 | AR197: 7.078 | AS197: 88.56 | AT197: 28.86 | AU197: 0.056 | AW197: 0.302 | AX197: 0.289 | AY197: 6.462 | AZ197: 420.7 | BA197: 0.188 | BB197: 0.398 | BC197: 0.25 | BD197: 1.435 | BE197: < -0.048 | BG197: < 0.006 | BH197: 0.145 | BJ197: 0.104 | BN197: < -0.013 | BO197: 0.059 | BS197: 0.041 | BT197: 0.677 | BU197: < -0.2 | BV197: 0.471 | BW197: < 0.047 | BX197: 1.265 | BY197: 0.323 | BZ197: 0.524 | CA197: < 0.045 | CB197: 0.283 | CC197: 0.059 | CD197: < -0.022 | CE197: < 0.023 | CF197: < 0.014 | CG197: < -0.046 | CH197: < 0.01 | CI197: < -0.028 | CJ197: < -0.017 | CK197: 0.039 | CL197: 0.009 | CN197: < -0.188 | CO197: 0.495 | CP197: 0.114 | CR197: 1.237 | CS197: 1.341
A198: XBL.FA1012.1L | B198: Leachate | C198: Leaching characteristic test of WKY13 feedstock | D198: DTK-CR | F198: Processing | G198: Coal Mining | H198: Coarse Refuse | I198: Illinois Basin | J198: N/A | K198: West Kentucky No.13 Coal Seam | L198: Kentucky | M198: Webster | N198: NA | O198: Kentucky | P198: Webster | Q198: NA | R198: Coarse Refuse | AJ198: N/A | AK198: ICP-OES | AL198: N/A | AM198: < 0.014 | AN198: 3.122 | AO198: 12.389 | AP198: 68.52 | AQ198: 10.743 | AR198: 7.686 | AS198: 37.049 | AT198: 51.494 | AU198: 0.072 | AW198: 0.6 | AX198: 0.072 | AY198: 1.978 | AZ198: 24.84 | BA198: 0.041 | BB198: 0.139 | BC198: 0.556 | BD198: 0.252 | BE198: < 0.005 | BG198: 1.616 | BH198: < 0.034 | BJ198: 0.078 | BN198: < -0.002 | BO198: 0.005 | BS198: 0.064 | BT198: 0.247 | BU198: < -0.338 | BV198: 0.307 | BW198: < 0.01 | BX198: 4.283 | BY198: 0.569 | BZ198: 1.091 | CA198: 0.206 | CB198: 0.505 | CC198: 0.108 | CD198: 0.019 | CE198: < 0.063 | CF198: < 0.011 | CG198: 0.019 | CH198: < 0.007 | CI198: 0.009 | CJ198: < -0.003 | CK198: 0.009 | CL198: 0.001 | CN198: < 0.001 | CO198: 0.703 | CP198: 0.109 | CR198: 2.536 | CS198: 2.614
A199: XBL.FA1012.2L | B199: Leachate | C199: Leaching characteristic test of WKY13 feedstock | D199: DTK-CR | F199: Processing | G199: Coal Mining | H199: Coarse Refuse | I199: Illinois Basin | J199: N/A | K199: West Kentucky No.13 Coal Seam | L199: Kentucky | M199: Webster | N199: NA | O199: Kentucky | P199: Webster | Q199: NA | R199: Coarse Refuse | AJ199: N/A | AK199: ICP-OES | AL199: N/A | AM199: < 0.027 | AN199: 4.658 | AO199: 16.323 | AP199: 170.62 | AQ199: 39.64 | AR199: 7.645 | AS199: 46.969 | AT199: 52.157 | AU199: 0.083 | AW199: 0.747 | AX199: 0.146 | AY199: 2.271 | AZ199: 91.62 | BA199: 0.056 | BB199: 0.235 | BC199: 0.851 | BD199: 0.373 | BE199: < 0.001 | BG199: 1.804 | BH199: < 0.032 | BJ199: 0.081 | BN199: < -0.005 | BO199: 0.014 | BS199: 0.058 | BT199: 0.367 | BU199: < -0.297 | BV199: 0.498 | BW199: < 0.017 | BX199: 5.262 | BY199: 0.618 | BZ199: 1.185 | CA199: 0.201 | CB199: 0.538 | CC199: 0.117 | CD199: 0.018 | CE199: < 0.06 | CF199: < 0.011 | CG199: 0.008 | CH199: < 0.008 | CI199: < 0.004 | CJ199: < -0.005 | CK199: 0.013 | CL199: 0.003 | CN199: < -0.026 | CO199: 1.051 | CP199: 0.121 | CR199: 2.701 | CS199: 2.782
A200: XBL.FA1012.3L | B200: Leachate | C200: Leaching characteristic test of WKY13 feedstock | D200: DTK-CR | F200: Processing | G200: Coal Mining | H200: Coarse Refuse | I200: Illinois Basin | J200: N/A | K200: West Kentucky No.13 Coal Seam | L200: Kentucky | M200: Webster | N200: NA | O200: Kentucky | P200: Webster | Q200: NA | R200: Coarse Refuse | AJ200: N/A | AK200: ICP-OES | AL200: N/A | AM200: < 0.029 | AN200: 5.392 | AO200: 17.326 | AP200: 248.3 | AQ200: 62.44 | AR200: 7.336 | AS200: 47.618 | AT200: 50.078 | AU200: 0.086 | AW200: 0.794 | AX200: 0.195 | AY200: 2.333 | AZ200: 155.26 | BA200: 0.065 | BB200: 0.29 | BC200: 1.03 | BD200: 0.409 | BE200: < -0.01 | BG200: 1.792 | BH200: < 0.029 | BJ200: 0.08 | BN200: < -0.006 | BO200: 0.021 | BS200: 0.064 | BT200: 0.447 | BU200: < -0.28 | BV200: 0.619 | BW200: < 0.028 | BX200: 5.463 | BY200: 0.608 | BZ200: 1.159 | CA200: 0.176 | CB200: 0.502 | CC200: 0.113 | CD200: 0.007 | CE200: < 0.051 | CF200: < 0.014 | CG200: < -0.002 | CH200: < 0.008 | CI200: < -0.001 | CJ200: < -0.005 | CK200: 0.017 | CL200: 0.003 | CN200: < -0.031 | CO200: 1.299 | CP200: 0.127 | CR200: 2.585 | CS200: 2.665
A201: XBL.FA1012.4L | B201: Leachate | C201: Leaching characteristic test of WKY13 feedstock | D201: DTK-CR | F201: Processing | G201: Coal Mining | H201: Coarse Refuse | I201: Illinois Basin | J201: N/A | K201: West Kentucky No.13 Coal Seam | L201: Kentucky | M201: Webster | N201: NA | O201: Kentucky | P201: Webster | Q201: NA | R201: Coarse Refuse | AJ201: N/A | AK201: ICP-OES | AL201: N/A | AM201: < 0.031 | AN201: 6.106 | AO201: 18.707 | AP201: 312.04 | AQ201: 86.6 | AR201: 7.355 | AS201: 70.62 | AT201: 49.474 | AU201: 0.089 | AW201: 0.86 | AX201: 0.246 | AY201: 2.45 | AZ201: 242.32 | BA201: 0.073 | BB201: 0.354 | BC201: 1.221 | BD201: 0.439 | BE201: < -0.024 | BG201: 1.826 | BH201: 0.05 | BJ201: 0.083 | BN201: < -0.008 | BO201: 0.032 | BS201: 0.084 | BT201: 0.562 | BU201: < -0.254 | BV201: 0.737 | BW201: < 0.041 | BX201: 5.726 | BY201: 0.621 | BZ201: 1.184 | CA201: 0.187 | CB201: 0.509 | CC201: 0.109 | CD201: < -0.001 | CE201: < 0.051 | CF201: < 0.012 | CG201: < -0.017 | CH201: < 0.007 | CI201: < -0.009 | CJ201: < -0.008 | CK201: 0.023 | CL201: 0.005 | CN201: < -0.029 | CO201: 1.508 | CP201: 0.126 | CR201: 2.638 | CS201: 2.721
A202: XBL.FA1012.5L | B202: Leachate | C202: Leaching characteristic test of WKY13 feedstock | D202: DTK-CR | F202: Processing | G202: Coal Mining | H202: Coarse Refuse | I202: Illinois Basin | J202: N/A | K202: West Kentucky No.13 Coal Seam | L202: Kentucky | M202: Webster | N202: NA | O202: Kentucky | P202: Webster | Q202: NA | R202: Coarse Refuse | AJ202: N/A | AK202: ICP-OES | AL202: N/A | AM202: < 0.038 | AN202: 7.243 | AO202: 21.566 | AP202: 364.1 | AQ202: 105.6 | AR202: 8.185 | AS202: 72.62 | AT202: 57.72 | AU202: 0.103 | AW202: 1.006 | AX202: 0.315 | AY202: 2.859 | AZ202: 343.04 | BA202: 0.09 | BB202: 0.44 | BC202: 1.486 | BD202: 0.505 | BE202: < -0.049 | BG202: 2.049 | BH202: 0.064 | BJ202: 0.094 | BN202: < -0.011 | BO202: 0.048 | BS202: 0.132 | BT202: 0.743 | BU202: < -0.227 | BV202: 0.896 | BW202: < 0.051 | BX202: 6.463 | BY202: 0.695 | BZ202: 1.298 | CA202: 0.18 | CB202: 0.614 | CC202: 0.13 | CD202: < -0.01 | CE202: < 0.054 | CF202: < 0.004 | CG202: < -0.038 | CH202: < 0.01 | CI202: < -0.015 | CJ202: < -0.016 | CK202: 0.033 | CL202: 0.007 | CN202: < -0.046 | CO202: 1.838 | CP202: 0.14 | CR202: 2.957 | CS202: 3.051
... 2048 more rows

Sheet Data Validation (hidden)
B1: State | D1: Coal Basin | F1: Level 1 Attribute | H1: Level 2 Attribute | J1: Level 3 Attribute | L1: Extractive Metallurgy Category | N1: Processing Method Tree | P1: REE % Yield (Specific Element) | R1: Mineral Form | T1: Primary Crystal Structure | V1: Analytical Technique | X1: Dry Mass Basis | Z1: Ash Basis
B2: AL | D2: Central Appalachia | F2: Resource Production | H2: Coal Reserve | J2: Coal | L2: Mineral processing | N2: Grinding | P2: La | R2: Quartz | T2: A | V2: Energy Dispersive X-Ray Spectroscopy | X2: Dry Mass Basis | Z2: Dry Ash Basis
B3: AK | D3: Central Interior | F3: Processing | H3: Coal Separations | J3: Clean Coal | L3: Hydrometallurgy | N3: Density | P3: Ce | R3: Monazite | T3: B | V3: Inductive Coupled Plasma
B4: AZ | D4: Gulf Lignite | F4: Utilization | H4: Energy Conversion Processes | J4: Bottom Ash | L4: Pyrometallurgy | N4: Size | P4: Pr | R4: Basnosite | T4: C | V4: Laser Induced Breakdown Spectroscopy
B5: AR | D5: Illinois Basin | H5: Coal Mining | J5: Fly Ash | L5: Electrometallurgy | N5: Shape | P5: Nd | V5: Neutron Activation Analysis
B6: CA | D6: Lignite | H6: Feed Coal | J6: Ash | L6: Other | N6: Electrostatic/Conductivity | P6: Sm | V6: X-Ray Fluorescence
B7: CO | D7: Northern Appalachia | H7: Other | J7: Refuse | N7: Magnetic | P7: Eu
B8: CT | D8: Powder River Basin | J8: Fine Coal By-Product | N8: Surface Chemistry/Froth Flotation | P8: Gd
B9: DE | D9: Rocky Mountain | J9: Coarse Refuse | N9: Leaching | P9: Tb
B10: FL | D10: Southern Appalachia | J10: Disposed Combustion By-Products | N10: Precipitation | P10: Dy
B11: GA | D11: West/Northwest | J11: Coal Mine Drainage | N11: Distillation | P11: Ho
B12: HI | D12: Other | J12: Acid Mine Drainage | N12: Adsorption | P12: Er
B13: ID | J13: Acid Mine Drainage - Sludge | N13: Crystallization | P13: Tm
B14: IL | J14: Aqueous | N14: Ion Exchange | P14: Yb
B15: IN | J15: Other | N15: Solvent Extraction | P15: Lu
B16: IA | N16: Membrane Separation | P16: Hf
B17: KS | N17: Calcining | P17: Tl
B18: KY | N18: Roasting | P18: Pb
B19: LA | N19: Smelting | P19: Th
B20: ME | N20: Electrowinning/Electro-Refining | P20: U
B21: MD | N21: Other | P21: Zr
B22: MA | P22: Y
B23: MI | P23: Other
B24: MN
B25: MS
B26: MO
B27: MT
B28: NE
B29: NV
B30: NH
B31: NJ
B32: NM
B33: NY
B34: NC
B35: ND
B36: OH
B37: OK
B38: OR
B39: PA
B40: RI
B41: SC
B42: SD
B43: TN
B44: TX
B45: UT
B46: VT
B47: VA
B48: WA
B49: WV
B50: WI
B51: WY
B52: Other
